Workbook

Sheet HCP Sheet
A1: Handicap Chart
A2: Base Number | D2: 220
A3: Handicap % | D3: 90
A5: Average | B5: Handicap | D5: Average | E5: Handicap | G5: Average | H5: Handicap | J5: Average | K5: Handicap
A6: =D2 -> 220 | B6: =TRUNC(($D$2-A6)*($D$3/100)*1,0) -> 0 | C6: | | D6: =A55-1 -> 170 | E6: =TRUNC(($D$2-D6)*($D$3/100)*1,0) -> 45 | F6: | | G6: =D55-1 -> 120 | H6: =TRUNC(($D$2-G6)*($D$3/100)*1,0) -> 90 | I6: | | J6: =G55-1 -> 70 | K6: =TRUNC(($D$2-J6)*($D$3/100)*1,0) -> 135
A7: =A6-1 -> 219 | B7: =TRUNC(($D$2-A7)*($D$3/100)*1,0) -> 0 | C7: | | D7: =D6-1 -> 169 | E7: =TRUNC(($D$2-D7)*($D$3/100)*1,0) -> 45 | F7: | | G7: =G6-1 -> 119 | H7: =TRUNC(($D$2-G7)*($D$3/100)*1,0) -> 90 | I7: | | J7: =J6-1 -> 69 | K7: =TRUNC(($D$2-J7)*($D$3/100)*1,0) -> 135
A8: =A7-1 -> 218 | B8: 1 | C8: | | D8: =D7-1 -> 168 | E8: 46 | F8: | | G8: =G7-1 -> 118 | H8: 91 | I8: | | J8: =J7-1 -> 68 | K8: 136
A9: 217 | B9: 2 | C9: | | D9: 167 | E9: 47 | F9: | | G9: 117 | H9: 92 | I9: | | J9: 67 | K9: 137
A10: 216 | B10: 3 | C10: | | D10: 166 | E10: 48 | F10: | | G10: 116 | H10: 93 | I10: | | J10: 66 | K10: 138
A11: 215 | B11: 4 | C11: | | D11: 165 | E11: 49 | F11: | | G11: 115 | H11: 94 | I11: | | J11: 65 | K11: 139
A12: 214 | B12: 5 | C12: | | D12: 164 | E12: 50 | F12: | | G12: 114 | H12: 95 | I12: | | J12: 64 | K12: 140
A13: 213 | B13: 6 | C13: | | D13: 163 | E13: 51 | F13: | | G13: 113 | H13: 96 | I13: | | J13: 63 | K13: 141
A14: 212 | B14: 7 | C14: | | D14: 162 | E14: 52 | F14: | | G14: 112 | H14: 97 | I14: | | J14: 62 | K14: 142
A15: 211 | B15: 8 | C15: | | D15: 161 | E15: 53 | F15: | | G15: 111 | H15: 98 | I15: | | J15: 61 | K15: 143
A16: 210 | B16: 9 | C16: | | D16: 160 | E16: 54 | F16: | | G16: 110 | H16: 99 | I16: | | J16: 60 | K16: 144
A17: 209 | B17: 9 | C17: | | D17: 159 | E17: 54 | F17: | | G17: 109 | H17: 99 | I17: | | J17: 59 | K17: 144
A18: 208 | B18: 10 | C18: | | D18: 158 | E18: 55 | F18: | | G18: 108 | H18: 100 | I18: | | J18: 58 | K18: 145
A19: 207 | B19: 11 | C19: | | D19: 157 | E19: 56 | F19: | | G19: 107 | H19: 101 | I19: | | J19: 57 | K19: 146
A20: 206 | B20: 12 | C20: | | D20: 156 | E20: 57 | F20: | | G20: 106 | H20: 102 | I20: | | J20: 56 | K20: 147
A21: 205 | B21: 13 | C21: | | D21: 155 | E21: 58 | F21: | | G21: 105 | H21: 103 | I21: | | J21: 55 | K21: 148
A22: 204 | B22: 14 | C22: | | D22: 154 | E22: 59 | F22: | | G22: 104 | H22: 104 | I22: | | J22: 54 | K22: 149
A23: 203 | B23: 15 | C23: | | D23: 153 | E23: 60 | F23: | | G23: 103 | H23: 105 | I23: | | J23: 53 | K23: 150
A24: 202 | B24: 16 | C24: | | D24: 152 | E24: 61 | F24: | | G24: 102 | H24: 106 | I24: | | J24: 52 | K24: 151
A25: 201 | B25: 17 | C25: | | D25: 151 | E25: 62 | F25: | | G25: 101 | H25: 107 | I25: | | J25: 51 | K25: 152
A26: 200 | B26: 18 | C26: | | D26: 150 | E26: 63 | F26: | | G26: 100 | H26: 108 | I26: | | J26: 50 | K26: 153
A27: 199 | B27: 18 | C27: | | D27: 149 | E27: 63 | F27: | | G27: 99 | H27: 108 | I27: | | J27: 49 | K27: 153
A28: 198 | B28: 19 | C28: | | D28: 148 | E28: 64 | F28: | | G28: 98 | H28: 109 | I28: | | J28: 48 | K28: 154
A29: 197 | B29: 20 | C29: | | D29: 147 | E29: 65 | F29: | | G29: 97 | H29: 110 | I29: | | J29: 47 | K29: 155
A30: 196 | B30: 21 | C30: | | D30: 146 | E30: 66 | F30: | | G30: 96 | H30: 111 | I30: | | J30: 46 | K30: 156
A31: 195 | B31: 22 | C31: | | D31: 145 | E31: 67 | F31: | | G31: 95 | H31: 112 | I31: | | J31: 45 | K31: 157
A32: 194 | B32: 23 | C32: | | D32: 144 | E32: 68 | F32: | | G32: 94 | H32: 113 | I32: | | J32: 44 | K32: 158
A33: 193 | B33: 24 | C33: | | D33: 143 | E33: 69 | F33: | | G33: 93 | H33: 114 | I33: | | J33: 43 | K33: 159
A34: 192 | B34: 25 | C34: | | D34: 142 | E34: 70 | F34: | | G34: 92 | H34: 115 | I34: | | J34: 42 | K34: 160
A35: 191 | B35: 26 | C35: | | D35: 141 | E35: 71 | F35: | | G35: 91 | H35: 116 | I35: | | J35: 41 | K35: 161
A36: 190 | B36: 27 | C36: | | D36: 140 | E36: 72 | F36: | | G36: 90 | H36: 117 | I36: | | J36: 40 | K36: 162
A37: 189 | B37: 27 | C37: | | D37: 139 | E37: 72 | F37: | | G37: 89 | H37: 117 | I37: | | J37: 39 | K37: 162
A38: 188 | B38: 28 | C38: | | D38: 138 | E38: 73 | F38: | | G38: 88 | H38: 118 | I38: | | J38: 38 | K38: 163
A39: 187 | B39: 29 | C39: | | D39: 137 | E39: 74 | F39: | | G39: 87 | H39: 119 | I39: | | J39: 37 | K39: 164
A40: 186 | B40: 30 | C40: | | D40: 136 | E40: 75 | F40: | | G40: 86 | H40: 120 | I40: | | J40: 36 | K40: 165
A41: 185 | B41: 31 | C41: | | D41: 135 | E41: 76 | F41: | | G41: 85 | H41: 121 | I41: | | J41: 35 | K41: 166
A42: 184 | B42: 32 | C42: | | D42: 134 | E42: 77 | F42: | | G42: 84 | H42: 122 | I42: | | J42: 34 | K42: 167
A43: 183 | B43: 33 | C43: | | D43: 133 | E43: 78 | F43: | | G43: 83 | H43: 123 | I43: | | J43: 33 | K43: 168
A44: 182 | B44: 34 | C44: | | D44: 132 | E44: 79 | F44: | | G44: 82 | H44: 124 | I44: | | J44: 32 | K44: 169
A45: 181 | B45: 35 | C45: | | D45: 131 | E45: 80 | F45: | | G45: 81 | H45: 125 | I45: | | J45: 31 | K45: 170
A46: 180 | B46: 36 | C46: | | D46: 130 | E46: 81 | F46: | | G46: 80 | H46: 126 | I46: | | J46: 30 | K46: 171
A47: 179 | B47: 36 | C47: | | D47: 129 | E47: 81 | F47: | | G47: 79 | H47: 126 | I47: | | J47: 29 | K47: 171
A48: 178 | B48: 37 | C48: | | D48: 128 | E48: 82 | F48: | | G48: 78 | H48: 127 | I48: | | J48: 28 | K48: 172
A49: 177 | B49: 38 | C49: | | D49: 127 | E49: 83 | F49: | | G49: 77 | H49: 128 | I49: | | J49: 27 | K49: 173
A50: 176 | B50: 39 | C50: | | D50: 126 | E50: 84 | F50: | | G50: 76 | H50: 129 | I50: | | J50: 26 | K50: 174
A51: 175 | B51: 40 | C51: | | D51: 125 | E51: 85 | F51: | | G51: 75 | H51: 130 | I51: | | J51: 25 | K51: 175
A52: 174 | B52: 41 | C52: | | D52: 124 | E52: 86 | F52: | | G52: 74 | H52: 131 | I52: | | J52: 24 | K52: 176
A53: 173 | B53: 42 | C53: | | D53: 123 | E53: 87 | F53: | | G53: 73 | H53: 132 | I53: | | J53: 23 | K53: 177
A54: 172 | B54: 43 | C54: | | D54: 122 | E54: 88 | F54: | | G54: 72 | H54: 133 | I54: | | J54: 22 | K54: 178
A55: 171 | B55: 44 | C55: | | D55: 121 | E55: 89 | F55: | | G55: 71 | H55: 134 | I55: | | J55: 21 | K55: 179

Sheet UTL1
B1: Wednesday Fun Fours 2023-2024
B3: =NOW() -> 2024-04-13T17:23:21.080 | C3: <Today's date & time
A5: ============================
A6: 6 over after #games | C6: 12
A7: book average #games | C7: 9
A8: handicap after #games | C8: 9
A9: Merit Awards after #gms | C9: 12
A10: ============================
A11: Handicap base | C11: 230
A12: Handicap % | C12: 90%
A13: ============================
A14: wk No.: | B14: (Put an X in the C column for the current week) | V14: =MAX(C15:E44) -> 30 | W14: =MAX(V15:X44) -> 0
A15: 1 | B15: 2023-09-06 | D15: =IF(TRIM(C15)="X",A15,"") -> 
A16: 2 | B16: 2023-09-13 | D16: =IF(TRIM(C16)="X",A16,"") -> 
A17: 3 | B17: 2023-09-20
A18: 4 | B18: 2023-09-27
A19: 5 | B19: 2023-10-04
A20: 6 | B20: 2023-10-11
A21: 7 | B21: 2023-10-18
A22: 8 | B22: 2023-10-25
A23: 9 | B23: 2023-11-01
A24: 10 | B24: 2023-11-08
A25: 11 | B25: 2023-11-15
A26: 12 | B26: 2023-11-29
A27: 13 | B27: 2023-12-06
A28: 14 | B28: 2023-12-13
A29: 15 | B29: 2023-12-20
A30: 16 | B30: 2024-01-03
A31: 17 | B31: 2024-01-10
A32: 18 | B32: 2024-01-17
A33: 19 | B33: 2024-01-24
A34: 20 | B34: 2024-01-31
A35: 21 | B35: 2024-02-07
A36: 22 | B36: 2024-02-14
A37: 23 | B37: 2024-02-21
A38: 24 | B38: 2024-02-28
A39: 25 | B39: 2024-03-06
A40: 26 | B40: 2024-03-13
A41: 27 | B41: 2024-03-20
A42: 28 | B42: 2024-03-27
A43: 29 | B43: 2024-04-03
A44: 30 | B44: 2024-04-10 | C44: x | D44: 30
A45: 31
A46: 32
A47: 33
A48: 34
A49: 35
A50: 36
A51: 37
A52: 38
A53: 39
A54: 40

Sheet UTL2-PA
C1: Perfect | D1: PA | F1: 6 over | G1: 6 over
B2: Name: | C2: Attendance | D2: status | F2: Average | G2: start Wk
B3: Name must match the sheet name:
A4: 1 | B4: Roxanne Wolff | C4: =INDIRECT("'" & B4 & "'!" & "$J$3") -> NO | D4: =INDIRECT("'" & B4 & "'!" & "$k$3") ->  | F4: =IF(COUNT(INDIRECT("'" & B4 & "'!" & "$S$2"))=1,"YES","") ->  | G4: =INDIRECT("'" & B4 & "'!" & "$s$2") -> 
A5: 2 | B5: Jake Dorfman | C5: =INDIRECT("'" & B5 & "'!" & "$J$3") -> NO | D5: =INDIRECT("'" & B5 & "'!" & "$k$3") ->  | F5: =IF(COUNT(INDIRECT("'" & B5 & "'!" & "$S$2"))=1,"YES","") -> YES | G5: =INDIRECT("'" & B5 & "'!" & "$s$2") -> 21
A6: 3 | B6: Gregor Gonzales | C6: =INDIRECT("'" & B6 & "'!" & "$J$3") -> NO | D6: =INDIRECT("'" & B6 & "'!" & "$k$3") ->  | F6: =IF(COUNT(INDIRECT("'" & B6 & "'!" & "$S$2"))=1,"YES","") ->  | G6: =INDIRECT("'" & B6 & "'!" & "$s$2") ->  | I6: Edit or Add to the B Column (names) only
A7: 4 | B7: Greg Gonzales | C7: =INDIRECT("'" & B7 & "'!" & "$J$3") -> NO | D7: =INDIRECT("'" & B7 & "'!" & "$k$3") ->  | G7: =INDIRECT("'" & B7 & "'!" & "$s$2") ->  | I7: (Names must match the Sheet Name)
A8: 5 | B8: Jasmine Brady | C8: =INDIRECT("'" & B8 & "'!" & "$J$3") -> NO | D8: =INDIRECT("'" & B8 & "'!" & "$k$3") ->  | F8: YES | G8: =INDIRECT("'" & B8 & "'!" & "$s$2") -> 5
A9: 6 | B9: Tim Brady | C9: =INDIRECT("'" & B9 & "'!" & "$J$3") -> NO | D9: =INDIRECT("'" & B9 & "'!" & "$k$3") ->  | G9: =INDIRECT("'" & B9 & "'!" & "$s$2") -> 
A10: 7 | B10: Jenna Perkins | C10: =INDIRECT("'" & B10 & "'!" & "$J$3") -> NO | D10: =INDIRECT("'" & B10 & "'!" & "$k$3") ->  | F10: YES | G10: =INDIRECT("'" & B10 & "'!" & "$s$2") -> 7
A11: 8 | B11: Russ Perkins | C11: =INDIRECT("'" & B11 & "'!" & "$J$3") -> NO | D11: =INDIRECT("'" & B11 & "'!" & "$k$3") ->  | G11: =INDIRECT("'" & B11 & "'!" & "$s$2") -> 
A12: 9 | B12: Tammy Lang | C12: =INDIRECT("'" & B12 & "'!" & "$J$3") -> NO | D12: =INDIRECT("'" & B12 & "'!" & "$k$3") ->  | G12: =INDIRECT("'" & B12 & "'!" & "$s$2") -> 
A13: 10 | B13: Andy Thomson | C13: =INDIRECT("'" & B13 & "'!" & "$J$3") -> NO | D13: =INDIRECT("'" & B13 & "'!" & "$k$3") ->  | F13: YES | G13: =INDIRECT("'" & B13 & "'!" & "$s$2") -> 19
B14: Scott Hovland | C14: =INDIRECT("'" & B14 & "'!" & "$J$3") -> NO | D14: =INDIRECT("'" & B14 & "'!" & "$k$3") ->  | G14: =INDIRECT("'" & B14 & "'!" & "$s$2") -> 
A15: 11 | B15: Mike Doyel | C15: =INDIRECT("'" & B15 & "'!" & "$J$3") -> YES | D15: =INDIRECT("'" & B15 & "'!" & "$k$3") -> Good | G15: =INDIRECT("'" & B15 & "'!" & "$s$2") -> 
A16: 12 | B16: Brandon Souvannasay | C16: =INDIRECT("'" & B16 & "'!" & "$J$3") -> YES | D16: =INDIRECT("'" & B16 & "'!" & "$k$3") -> Good | G16: =INDIRECT("'" & B16 & "'!" & "$s$2") -> 
A17: 13 | B17: LaDainian Kuok | C17: =INDIRECT("'" & B17 & "'!" & "$J$3") -> YES | D17: =INDIRECT("'" & B17 & "'!" & "$k$3") -> Good | F17: YES | G17: =INDIRECT("'" & B17 & "'!" & "$s$2") -> 14
A18: 14 | B18: Marcus Kuok | C18: =INDIRECT("'" & B18 & "'!" & "$J$3") -> YES | D18: =INDIRECT("'" & B18 & "'!" & "$k$3") -> Good | F18: YES | G18: =INDIRECT("'" & B18 & "'!" & "$s$2") -> 14
A19: 15 | B19: Michael Slinsen | C19: =INDIRECT("'" & B19 & "'!" & "$J$3") -> NO | D19: =INDIRECT("'" & B19 & "'!" & "$k$3") ->  | G19: =INDIRECT("'" & B19 & "'!" & "$s$2") -> 
A20: 16 | B20: Kyle Roarick | C20: =INDIRECT("'" & B20 & "'!" & "$J$3") -> YES | D20: =INDIRECT("'" & B20 & "'!" & "$k$3") -> Good | F20: =IF(COUNT(INDIRECT("'" & B20 & "'!" & "$S$2"))=1,"YES","") ->  | G20: =INDIRECT("'" & B20 & "'!" & "$s$2") -> 
A21: 17 | B21: Earl King Jr | C21: =INDIRECT("'" & B21 & "'!" & "$J$3") -> NO | D21: =INDIRECT("'" & B21 & "'!" & "$k$3") ->  | F21: =IF(COUNT(INDIRECT("'" & B21 & "'!" & "$S$2"))=1,"YES","") -> YES | G21: =INDIRECT("'" & B21 & "'!" & "$s$2") -> 5
A22: 18 | B22: Juan Ceja | C22: =INDIRECT("'" & B22 & "'!" & "$J$3") -> NO | D22: =INDIRECT("'" & B22 & "'!" & "$k$3") ->  | F22: =IF(COUNT(INDIRECT("'" & B22 & "'!" & "$S$2"))=1,"YES","") ->  | G22: =INDIRECT("'" & B22 & "'!" & "$s$2") -> 
A23: 19 | B23: Tre Thompkins | C23: =INDIRECT("'" & B23 & "'!" & "$J$3") -> YES | D23: =INDIRECT("'" & B23 & "'!" & "$k$3") -> Good | F23: =IF(COUNT(INDIRECT("'" & B23 & "'!" & "$S$2"))=1,"YES","") -> YES | G23: =INDIRECT("'" & B23 & "'!" & "$s$2") -> 18
A24: 20 | B24: Ray Kummer | C24: =INDIRECT("'" & B24 & "'!" & "$J$3") -> NO | D24: =INDIRECT("'" & B24 & "'!" & "$k$3") ->  | G24: =INDIRECT("'" & B24 & "'!" & "$s$2") -> 
A25: 21 | B25: Sara Nerius | C25: =INDIRECT("'" & B25 & "'!" & "$J$3") -> NO | D25: =INDIRECT("'" & B25 & "'!" & "$k$3") ->  | G25: =INDIRECT("'" & B25 & "'!" & "$s$2") -> 
A26: 22 | B26: Dustin Campana | C26: =INDIRECT("'" & B26 & "'!" & "$J$3") -> NO | D26: =INDIRECT("'" & B26 & "'!" & "$k$3") ->  | G26: =INDIRECT("'" & B26 & "'!" & "$s$2") -> 
A27: 23 | B27: Tim Sikes | C27: =INDIRECT("'" & B27 & "'!" & "$J$3") -> NO | D27: =INDIRECT("'" & B27 & "'!" & "$k$3") ->  | G27: =INDIRECT("'" & B27 & "'!" & "$s$2") -> 
B28: Dan Torres | C28: =INDIRECT("'" & B28 & "'!" & "$J$3") -> NO | D28: =INDIRECT("'" & B28 & "'!" & "$k$3") ->  | F28: =IF(COUNT(INDIRECT("'" & B28 & "'!" & "$S$2"))=1,"YES","") ->  | G28: =INDIRECT("'" & B28 & "'!" & "$s$2") -> 
A29: 24 | B29: Josie Bisler | C29: =INDIRECT("'" & B29 & "'!" & "$J$3") -> NO | D29: =INDIRECT("'" & B29 & "'!" & "$k$3") ->  | G29: =INDIRECT("'" & B29 & "'!" & "$s$2") -> 
A30: 25 | B30: John Diricco | C30: =INDIRECT("'" & B30 & "'!" & "$J$3") -> NO | D30: =INDIRECT("'" & B30 & "'!" & "$k$3") ->  | G30: =INDIRECT("'" & B30 & "'!" & "$s$2") -> 
A31: 26 | B31: Jenny Carretero | C31: =INDIRECT("'" & B31 & "'!" & "$J$3") -> NO | D31: =INDIRECT("'" & B31 & "'!" & "$k$3") ->  | G31: =INDIRECT("'" & B31 & "'!" & "$s$2") -> 
A32: 27 | B32: Ronnie Carretero | C32: =INDIRECT("'" & B32 & "'!" & "$J$3") -> NO | D32: =INDIRECT("'" & B32 & "'!" & "$k$3") ->  | F32: YES | G32: =INDIRECT("'" & B32 & "'!" & "$s$2") -> 16
A33: 28 | B33: Marilyn Thomson | C33: =INDIRECT("'" & B33 & "'!" & "$J$3") -> NO | D33: =INDIRECT("'" & B33 & "'!" & "$k$3") ->  | G33: =INDIRECT("'" & B33 & "'!" & "$s$2") -> 
A34: 29 | B34: John Orcutt | C34: =INDIRECT("'" & B34 & "'!" & "$J$3") -> YES | D34: =INDIRECT("'" & B34 & "'!" & "$k$3") -> Good | F34: YES | G34: =INDIRECT("'" & B34 & "'!" & "$s$2") -> 12
A35: 30 | B35: Morgn Thomas | C35: =INDIRECT("'" & B35 & "'!" & "$J$3") -> NO | D35: =INDIRECT("'" & B35 & "'!" & "$k$3") ->  | F35: YES | G35: =INDIRECT("'" & B35 & "'!" & "$s$2") -> 8
A36: 31 | B36: Mike Schirman | C36: =INDIRECT("'" & B36 & "'!" & "$J$3") -> YES | D36: =INDIRECT("'" & B36 & "'!" & "$k$3") -> Good | G36: =INDIRECT("'" & B36 & "'!" & "$s$2") -> 
A37: 32 | B37: Bernard OCop | C37: =INDIRECT("'" & B37 & "'!" & "$J$3") -> NO | D37: =INDIRECT("'" & B37 & "'!" & "$k$3") ->  | G37: =INDIRECT("'" & B37 & "'!" & "$s$2") -> 
A38: 33 | B38: Ken Hanover | C38: =INDIRECT("'" & B38 & "'!" & "$J$3") -> NO | D38: =INDIRECT("'" & B38 & "'!" & "$k$3") ->  | F38: YES | G38: =INDIRECT("'" & B38 & "'!" & "$s$2") -> 5
B39: Anthony Farnsworth | C39: =INDIRECT("'" & B39 & "'!" & "$J$3") -> NO | D39: =INDIRECT("'" & B39 & "'!" & "$k$3") ->  | G39: =INDIRECT("'" & B39 & "'!" & "$s$2") -> 
A40: 35 | B40: Dom Mata | C40: =INDIRECT("'" & B40 & "'!" & "$J$3") -> NO | D40: =INDIRECT("'" & B40 & "'!" & "$k$3") ->  | G40: =INDIRECT("'" & B40 & "'!" & "$s$2") -> 
A41: 36 | B41: Mat Hanover | C41: =INDIRECT("'" & B41 & "'!" & "$J$3") -> NO | D41: =INDIRECT("'" & B41 & "'!" & "$k$3") ->  | G41: =INDIRECT("'" & B41 & "'!" & "$s$2") -> 
A42: 37 | B42: Tom Woodard | C42: =INDIRECT("'" & B42 & "'!" & "$J$3") -> NO | D42: =INDIRECT("'" & B42 & "'!" & "$k$3") ->  | G42: =INDIRECT("'" & B42 & "'!" & "$s$2") -> 
A43: 38 | B43: Patty Green | C43: =INDIRECT("'" & B43 & "'!" & "$J$3") -> NO | D43: =INDIRECT("'" & B43 & "'!" & "$k$3") ->  | G43: =INDIRECT("'" & B43 & "'!" & "$s$2") -> 
A44: 39 | B44: Ron Plasse | C44: =INDIRECT("'" & B44 & "'!" & "$J$3") -> NO | D44: =INDIRECT("'" & B44 & "'!" & "$k$3") ->  | G44: =INDIRECT("'" & B44 & "'!" & "$s$2") -> 
A45: 40 | B45: Dick Harkey | C45: =INDIRECT("'" & B45 & "'!" & "$J$3") -> NO | D45: =INDIRECT("'" & B45 & "'!" & "$k$3") ->  | G45: =INDIRECT("'" & B45 & "'!" & "$s$2") -> 
A46: 41 | B46: Carole Huygen | C46: =INDIRECT("'" & B46 & "'!" & "$J$3") -> NO | D46: =INDIRECT("'" & B46 & "'!" & "$k$3") ->  | G46: =INDIRECT("'" & B46 & "'!" & "$s$2") -> 
A47: 42 | B47: Jan Askew | C47: =INDIRECT("'" & B47 & "'!" & "$J$3") -> NO | D47: =INDIRECT("'" & B47 & "'!" & "$k$3") ->  | G47: =INDIRECT("'" & B47 & "'!" & "$s$2") -> 
A48: 43 | B48: Cindy McElrath | C48: =INDIRECT("'" & B48 & "'!" & "$J$3") -> NO | D48: =INDIRECT("'" & B48 & "'!" & "$k$3") ->  | G48: =INDIRECT("'" & B48 & "'!" & "$s$2") -> 
A49: 44 | B49: Matt Clark | C49: =INDIRECT("'" & B49 & "'!" & "$J$3") -> NO | D49: =INDIRECT("'" & B49 & "'!" & "$k$3") ->  | G49: =INDIRECT("'" & B49 & "'!" & "$s$2") -> 
A50: 45 | B50: Tim Lewallen | C50: =INDIRECT("'" & B50 & "'!" & "$J$3") -> NO | D50: =INDIRECT("'" & B50 & "'!" & "$k$3") ->  | G50: =INDIRECT("'" & B50 & "'!" & "$s$2") -> 
A51: 46 | B51: Tammy Kummer | C51: =INDIRECT("'" & B51 & "'!" & "$J$3") -> NO | D51: =INDIRECT("'" & B51 & "'!" & "$k$3") ->  | F51: YES | G51: =INDIRECT("'" & B51 & "'!" & "$s$2") -> 11
A52: 47 | B52: Brian Wibben | C52: =INDIRECT("'" & B52 & "'!" & "$J$3") -> NO | D52: =INDIRECT("'" & B52 & "'!" & "$k$3") ->  | F52: YES | G52: =INDIRECT("'" & B52 & "'!" & "$s$2") -> 10
A53: 48 | B53: Tyler Hunt | C53: =INDIRECT("'" & B53 & "'!" & "$J$3") -> NO | D53: =INDIRECT("'" & B53 & "'!" & "$k$3") ->  | F53: YES | G53: =INDIRECT("'" & B53 & "'!" & "$s$2") -> 10
A54: 49 | B54: Kaliq Cooper | C54: =INDIRECT("'" & B54 & "'!" & "$J$3") -> NO | D54: =INDIRECT("'" & B54 & "'!" & "$k$3") ->  | F54: YES | G54: =INDIRECT("'" & B54 & "'!" & "$s$2") -> 20
A55: 50 | B55: Victor Carreno | C55: =INDIRECT("'" & B55 & "'!" & "$J$3") -> NO | D55: =INDIRECT("'" & B55 & "'!" & "$k$3") ->  | G55: =INDIRECT("'" & B55 & "'!" & "$s$2") -> 
A56: 51 | B56: Alan Hernandez | C56: =INDIRECT("'" & B56 & "'!" & "$J$3") -> NO | D56: =INDIRECT("'" & B56 & "'!" & "$k$3") ->  | F56: YES | G56: =INDIRECT("'" & B56 & "'!" & "$s$2") -> 26
A57: 52 | B57: Devi Sharma | C57: =INDIRECT("'" & B57 & "'!" & "$J$3") -> NO | D57: =INDIRECT("'" & B57 & "'!" & "$k$3") ->  | G57: =INDIRECT("'" & B57 & "'!" & "$s$2") -> 
A58: 53 | B58: Susan Gabler | C58: =INDIRECT("'" & B58 & "'!" & "$J$3") -> NO | D58: =INDIRECT("'" & B58 & "'!" & "$k$3") ->  | F58: YES | G58: =INDIRECT("'" & B58 & "'!" & "$s$2") -> 15
A59: 54 | B59: Amy Ruhl | C59: =INDIRECT("'" & B59 & "'!" & "$J$3") -> NO | D59: =INDIRECT("'" & B59 & "'!" & "$k$3") ->  | G59: =INDIRECT("'" & B59 & "'!" & "$s$2") -> 
A60: 55 | B60: Ginny Ruhl | C60: =INDIRECT("'" & B60 & "'!" & "$J$3") -> NO | D60: =INDIRECT("'" & B60 & "'!" & "$k$3") ->  | G60: =INDIRECT("'" & B60 & "'!" & "$s$2") -> 
A61: 56 | B61: Lauren Ruhl | C61: =INDIRECT("'" & B61 & "'!" & "$J$3") -> NO | D61: =INDIRECT("'" & B61 & "'!" & "$k$3") ->  | G61: =INDIRECT("'" & B61 & "'!" & "$s$2") -> 
A62: 57 | B62: Bailey Nelson | C62: =INDIRECT("'" & B62 & "'!" & "$J$3") -> NO | D62: =INDIRECT("'" & B62 & "'!" & "$k$3") ->  | F62: YES | G62: =INDIRECT("'" & B62 & "'!" & "$s$2") -> 18
A63: 58 | B63: Jenn McFarlane | C63: =INDIRECT("'" & B63 & "'!" & "$J$3") -> NO | D63: =INDIRECT("'" & B63 & "'!" & "$k$3") ->  | F63: YES | G63: =INDIRECT("'" & B63 & "'!" & "$s$2") -> 27
A64: 59 | B64: James Nelson | C64: =INDIRECT("'" & B64 & "'!" & "$J$3") -> NO | D64: =INDIRECT("'" & B64 & "'!" & "$k$3") ->  | F64: YES | G64: =INDIRECT("'" & B64 & "'!" & "$s$2") -> 28
A65: 60 | B65: Matt McFarlane | C65: =INDIRECT("'" & B65 & "'!" & "$J$3") -> NO | D65: =INDIRECT("'" & B65 & "'!" & "$k$3") ->  | F65: YES | G65: =INDIRECT("'" & B65 & "'!" & "$s$2") -> 6
A66: 61 | B66: Rebecca Walters | C66: =INDIRECT("'" & B66 & "'!" & "$J$3") -> NO | D66: =INDIRECT("'" & B66 & "'!" & "$k$3") ->  | G66: =INDIRECT("'" & B66 & "'!" & "$s$2") -> 
A67: 62 | B67: Kyle Kent | C67: =INDIRECT("'" & B67 & "'!" & "$J$3") -> NO | D67: =INDIRECT("'" & B67 & "'!" & "$k$3") ->  | G67: =INDIRECT("'" & B67 & "'!" & "$s$2") -> 
A68: 63 | B68: Dorian Hahs | C68: =INDIRECT("'" & B68 & "'!" & "$J$3") -> NO | D68: =INDIRECT("'" & B68 & "'!" & "$k$3") ->  | G68: =INDIRECT("'" & B68 & "'!" & "$s$2") -> 
A69: 64 | C69: =INDIRECT("'" & B69 & "'!" & "$J$3") ->  | D69: =INDIRECT("'" & B69 & "'!" & "$k$3") ->  | G69: =INDIRECT("'" & B69 & "'!" & "$s$2") -> 
A70: 65 | C70: =INDIRECT("'" & B70 & "'!" & "$J$3") ->  | D70: =INDIRECT("'" & B70 & "'!" & "$k$3") ->  | G70: =INDIRECT("'" & B70 & "'!" & "$s$2") -> 
A71: 66 | C71: =INDIRECT("'" & B71 & "'!" & "$J$3") ->  | D71: =INDIRECT("'" & B71 & "'!" & "$k$3") ->  | G71: =INDIRECT("'" & B71 & "'!" & "$s$2") -> 
A72: 67 | C72: =INDIRECT("'" & B72 & "'!" & "$J$3") ->  | D72: =INDIRECT("'" & B72 & "'!" & "$k$3") ->  | F72: =IF(COUNT(INDIRECT("'" & B72 & "'!" & "$S$2"))=1,"YES","") ->  | G72: =INDIRECT("'" & B72 & "'!" & "$s$2") -> 
A73: 68 | C73: =INDIRECT("'" & B73 & "'!" & "$J$3") ->  | D73: =INDIRECT("'" & B73 & "'!" & "$k$3") ->  | G73: =INDIRECT("'" & B73 & "'!" & "$s$2") -> 
A74: 69 | C74: =INDIRECT("'" & B74 & "'!" & "$J$3") ->  | D74: =INDIRECT("'" & B74 & "'!" & "$k$3") ->  | G74: =INDIRECT("'" & B74 & "'!" & "$s$2") -> 
A75: 70 | C75: =INDIRECT("'" & B75 & "'!" & "$J$3") ->  | D75: =INDIRECT("'" & B75 & "'!" & "$k$3") ->  | G75: =INDIRECT("'" & B75 & "'!" & "$s$2") -> 
A76: 71 | C76: =INDIRECT("'" & B76 & "'!" & "$J$3") ->  | D76: =INDIRECT("'" & B76 & "'!" & "$k$3") ->  | G76: =INDIRECT("'" & B76 & "'!" & "$s$2") -> 
A77: 72 | C77: =INDIRECT("'" & B77 & "'!" & "$J$3") ->  | D77: =INDIRECT("'" & B77 & "'!" & "$k$3") ->  | G77: =INDIRECT("'" & B77 & "'!" & "$s$2") -> 
A78: 73 | C78: =INDIRECT("'" & B78 & "'!" & "$J$3") ->  | D78: =INDIRECT("'" & B78 & "'!" & "$k$3") ->  | G78: =INDIRECT("'" & B78 & "'!" & "$s$2") -> 
A79: 74 | C79: =INDIRECT("'" & B79 & "'!" & "$J$3") ->  | D79: =INDIRECT("'" & B79 & "'!" & "$k$3") ->  | G79: =INDIRECT("'" & B79 & "'!" & "$s$2") -> 
A80: 75 | C80: =INDIRECT("'" & B80 & "'!" & "$J$3") ->  | D80: =INDIRECT("'" & B80 & "'!" & "$k$3") ->  | G80: =INDIRECT("'" & B80 & "'!" & "$s$2") -> 
A81: 76 | C81: =INDIRECT("'" & B81 & "'!" & "$J$3") ->  | D81: =INDIRECT("'" & B81 & "'!" & "$k$3") ->  | G81: =INDIRECT("'" & B81 & "'!" & "$s$2") -> 
A82: 77 | C82: =INDIRECT("'" & B82 & "'!" & "$J$3") ->  | D82: =INDIRECT("'" & B82 & "'!" & "$k$3") ->  | G82: =INDIRECT("'" & B82 & "'!" & "$s$2") -> 
A83: 78 | C83: =INDIRECT("'" & B83 & "'!" & "$J$3") ->  | D83: =INDIRECT("'" & B83 & "'!" & "$k$3") ->  | G83: =INDIRECT("'" & B83 & "'!" & "$s$2") -> 
A84: 79 | C84: =INDIRECT("'" & B84 & "'!" & "$J$3") ->  | D84: =INDIRECT("'" & B84 & "'!" & "$k$3") ->  | G84: =INDIRECT("'" & B84 & "'!" & "$s$2") -> 
A85: 80 | C85: =INDIRECT("'" & B85 & "'!" & "$J$3") ->  | D85: =INDIRECT("'" & B85 & "'!" & "$k$3") ->  | G85: =INDIRECT("'" & B85 & "'!" & "$s$2") -> 
C86: =COUNTIF(C4:C85,"YES") -> 8 | F86: =COUNTIF(F4:F85,"YES") -> 22

Sheet UTLMA
C1: Games | G1: Series
C2: upper | D2: average | G2: average | H2: upper
B3: Award | C3: limit | D3: or less | F3: Award | G3: or less | H3: Limit
B4: 125 | C4: 150 | D4: 100 | F4: 300 | G4: 85 | H4: 400
B5: 150 | C5: 175 | D5: 120 | F5: 400 | G5: 115 | H5: 500
B6: 175 | C6: 200 | D6: 140 | F6: 500 | G6: 145 | H6: 600
B7: 200 | C7: 225 | D7: 165 | F7: 600 | G7: 170 | H7: 700
B8: 225 | C8: 250 | D8: 190 | F8: 700 | G8: 300 | H8: 800
B9: 250 | C9: 275 | D9: 215
B10: 275 | C10: 300 | D10: 300 | F10: 140 | G10: <over ser
B11: 75 | C11: <Over avg
B13: other awards
B14: 11-in-a-row
B15: Dutch 200
B16: All spare Game
B17: Big 4 split
B18: 1-7 split

Sheet Blank
F1: =Title1 -> Wednesday Fun Fours 2023-2024
A2: wk# | B2: =MAX(Z7:Z36) -> 0 | O2: 6 Over week: | S2: =IF(MIN(AA7:AA36)<1,"",MIN(AA7:AA36)) ->  | AB2: Note:
A3: Name: | G3: Perfect Attendance: | J3: =_xlfn.IFS(MAX(PA)>B2,"NO",SUM(Q7:Q36)=B2,"YES",SUM(Q7:Q36)<>B2,"NO") -> NO | K3: =_xlfn.IFS(MAX(PA)>B2,"",AND(SUM(Q7:Q36)<30,SUM(Q7:Q36)=B2),"So Far",SUM(Q7:Q36)=30,"Good",SUM(Q7:Q36)<>B2,"") ->  | AB3: For Games scores, Copy/Paste; Don't cut/paste games
A4: Bk Avg: | W4: Hi.series> | X4: =MAX(I7:I36) -> 0
C5: bk or | D5: old | I5: wky | J5: wky | K5: Hcp | L5: hcp | O5: new | P5: start | R5: high | S5: high | T5: high hcp | U5: high hcp | W5: hi.game> | X5: =MAX(E7:G36) -> 0 | AB5: Only write/input in the rectangled areas
A6: wk no. | C6: old avg | D6: hdcp | E6: -1- | F6: -2- | G6: -3- | I6: total | J6: avg | K6: total | L6: t2 hc | M6: Pins | N6: Gms | O6: avg | P6: week | Q6: startB | R6: series | S6: game | T6: series | U6: game | W6: h.hcp.g> | X6: =MAX(W7:Y36) -> 0 | Z6: wk#
A7: 1 | B7: =Date1 -> 2023-09-06 | C7: =_xlfn.IFS(Q7<>1,"",AND($B$4>=1,COUNT($E$7:G7)<=bkng),$B$4,P7=1,TRUNC(AVERAGE(E7:G7),0),COUNT($Q$7:Q7)=2,TRUNC(AVERAGE($E6:G$7),0),COUNT($Q$7:Q7)>=3,TRUNC(AVERAGE($E6:G$7),0)) ->  | D7: =_xlfn.IFS(Q7<>1,"",Q7=1,TRUNC((HCPB-C7)*HCPPC)) ->  | I7: =IF(Q7=1,SUM(E7:G7),"") ->  | J7: =IF(Q7=1,TRUNC(AVERAGE(E7:G7),0),"") ->  | K7: =_xlfn.IFS(Q7<>1,"",Q7=1,I7+(3*D7)) ->  | L7: =_xlfn.IFS(Q7<>1,"",COUNT($E$7:G7)<=hcpng,"",COUNT($E$7:G7)>=hcpng,K7) ->  | M7: =_xlfn.IFS(Q7=1,SUM($E$7:G7),Q7<>1,"") ->  | N7: =_xlfn.IFS(Q7=1,COUNT($E$7:G7),Q7<>1,"") ->  | O7: =IF(Q7=1,ROUND(AVERAGE($E$7:G7),2),"") ->  | P7: =_xlfn.IFS(Q7<>1,"",SUM($Q$7:Q7)=1,1,SUM($Q$7:Q7)<>1,"") ->  | Q7: =IF(MAX(E7:G7)<1,"",1) ->  | R7: =IF(I7=$X$4,I7,"") ->  | S7: =_xlfn.IFS(E7=$X$5,E7,F7=$X$5,F7,G7=$X$5,G7,$A$7=1,"") -> 0 | T7: =IF(L7=MAX($L$7:$L$36),L7,"") ->  | U7: =_xlfn.IFS(W7=$X$6,W7,X7=$X$6,X7,Y7=$X$6,Y7,$A$7=1,"") ->  | W7: =_xlfn.IFS(AND(Q7=1,COUNT($E$7:G7)>hcpng),E7+D7,$A$7=1," ") ->  | X7: =_xlfn.IFS(AND(Q7=1,COUNT($E$7:G7)>hcpng),F7+D7,$A$7=1," ") ->  | Y7: =_xlfn.IFS(AND(Q7=1,COUNT($E$7:G7)>hcpng),G7+D7,$A$7=1," ") ->  | Z7: =IF(Q7=1,A7,0) -> 0 | AA7: =_xlfn.IFS(COUNTIFS(H7,"#",H6,"#"),A6,COUNTIFS(H7,2,H6,"#"),A6,$A$7=1,"") ->  | AB7: Edit page Title; on the UTL1 sheet
A8: 2 | B8: 2023-09-13 | C8: =_xlfn.IFS(Q8<>1,"",AND($B$4>=1,COUNT($E$7:G8)<=bkng),$B$4,P8=1,TRUNC(AVERAGE(E8:G8),0),COUNT($Q$7:Q8)=2,TRUNC(AVERAGE($E7:G$7),0),COUNT($Q$7:Q8)>=3,TRUNC(AVERAGE($E7:G$7),0)) ->  | D8: =_xlfn.IFS(Q8<>1,"",Q8=1,TRUNC((HCPB-C8)*HCPPC)) ->  | H8: =_xlfn.IFS(COUNT(E8:G8)<1,"",AND(E8>C8,F8>C8,G8>C8,COUNT($E$7:G8)>sixng),"#",AND(E8>C7,F8>C7,G8>C7,COUNT($E$7:G8)>sixng,COUNTIF(H7,"#")=1),"2",$A$7=1,"") ->  | I8: =IF(Q8=1,SUM(E8:G8),"") ->  | J8: =IF(Q8=1,TRUNC(AVERAGE(E8:G8),0),"") ->  | K8: =_xlfn.IFS(Q8<>1,"",Q8=1,I8+(3*D8)) ->  | L8: =_xlfn.IFS(Q8<>1,"",COUNT($E$7:G8)<=hcpng,"",COUNT($E$7:G8)>=hcpng,K8) ->  | M8: =_xlfn.IFS(Q8=1,SUM($E$7:G8),Q8<>1,"") ->  | N8: =_xlfn.IFS(Q8=1,COUNT($E$7:G8),Q8<>1,"") ->  | O8: =IF(Q8=1,ROUND(AVERAGE($E$7:G8),2),"") ->  | P8: =_xlfn.IFS(Q8<>1,"",SUM($Q$7:Q8)=1,1,SUM($Q$7:Q8)<>1,"") ->  | Q8: =IF(MAX(E8:G8)<1,"",1) ->  | R8: =IF(I8=$X$4,I8,"") ->  | S8: =_xlfn.IFS(E8=$X$5,E8,F8=$X$5,F8,G8=$X$5,G8,$A$7=1,"") -> 0 | T8: =IF(L8=MAX($L$7:$L$36),L8,"") ->  | U8: =_xlfn.IFS(W8=$X$6,W8,X8=$X$6,X8,Y8=$X$6,Y8,$A$7=1,"") ->  | W8: =_xlfn.IFS(AND(Q8=1,COUNT($E$7:G8)>hcpng),E8+D8,$A$7=1," ") ->  | X8: =_xlfn.IFS(AND(Q8=1,COUNT($E$7:G8)>hcpng),F8+D8,$A$7=1," ") ->  | Y8: =_xlfn.IFS(AND(Q8=1,COUNT($E$7:G8)>hcpng),G8+D8,$A$7=1," ") ->  | Z8: =IF(Q8=1,A8,0) -> 0 | AA8: =_xlfn.IFS(COUNTIFS(H8,"#",H7,"#"),A7,COUNTIFS(H8,2,H7,"#"),A7,$A$7=1,"") -> 
A9: 3 | B9: 2023-09-20 | C9: =_xlfn.IFS(Q9<>1,"",AND($B$4>=1,COUNT($E$7:G9)<=bkng),$B$4,P9=1,TRUNC(AVERAGE(E9:G9),0),COUNT($Q$7:Q9)=2,TRUNC(AVERAGE($E$7:G8),0),COUNT($Q$7:Q9)>=3,TRUNC(AVERAGE($E$7:G8),0)) ->  | D9: =_xlfn.IFS(Q9<>1,"",Q9=1,TRUNC((HCPB-C9)*HCPPC)) ->  | H9: =_xlfn.IFS(COUNT(E9:G9)<1,"",AND(E9>C9,F9>C9,G9>C9,COUNT($E$7:G9)>sixng),"#",AND(E9>C8,F9>C8,G9>C8,COUNT($E$7:G9)>sixng,COUNTIF(H8,"#")=1),"2",$A$7=1,"") ->  | K9: =_xlfn.IFS(Q9<>1,"",Q9=1,I9+(3*D9)) ->  | L9: =_xlfn.IFS(Q9<>1,"",COUNT($E$7:G9)<=hcpng,"",COUNT($E$7:G9)>=hcpng,K9) ->  | M9: =_xlfn.IFS(Q9=1,SUM($E$7:G9),Q9<>1,"") ->  | N9: =_xlfn.IFS(Q9=1,COUNT($E$7:G9),Q9<>1,"") ->  | O9: =IF(Q9=1,ROUND(AVERAGE($E$7:G9),2),"") ->  | P9: =_xlfn.IFS(Q9<>1,"",SUM($Q$7:Q9)=1,1,SUM($Q$7:Q9)<>1,"") ->  | Q9: =IF(MAX(E9:G9)<1,"",1) ->  | S9: =_xlfn.IFS(E9=$X$5,E9,F9=$X$5,F9,G9=$X$5,G9,$A$7=1,"") -> 0 | U9: =_xlfn.IFS(W9=$X$6,W9,X9=$X$6,X9,Y9=$X$6,Y9,$A$7=1,"") ->  | W9: =_xlfn.IFS(AND(Q9=1,COUNT($E$7:G9)>hcpng),E9+D9,$A$7=1," ") ->  | X9: =_xlfn.IFS(AND(Q9=1,COUNT($E$7:G9)>hcpng),F9+D9,$A$7=1," ") ->  | Y9: =_xlfn.IFS(AND(Q9=1,COUNT($E$7:G9)>hcpng),G9+D9,$A$7=1," ") ->  | Z9: 0 | AA9: =_xlfn.IFS(COUNTIFS(H9,"#",H8,"#"),A8,COUNTIFS(H9,2,H8,"#"),A8,$A$7=1,"") ->  | AB9: Make sure the current week is selected on the UTL1 sheet
A10: 4 | B10: 2023-09-27 | C10: =_xlfn.IFS(Q10<>1,"",AND($B$4>=1,COUNT($E$7:G10)<=bkng),$B$4,P10=1,TRUNC(AVERAGE(E10:G10),0),COUNT($Q$7:Q10)=2,TRUNC(AVERAGE($E$7:G9),0),COUNT($Q$7:Q10)>=3,TRUNC(AVERAGE($E$7:G9),0)) ->  | D10: =_xlfn.IFS(Q10<>1,"",Q10=1,TRUNC((HCPB-C10)*HCPPC)) ->  | H10: =_xlfn.IFS(COUNT(E10:G10)<1,"",AND(E10>C10,F10>C10,G10>C10,COUNT($E$7:G10)>sixng),"#",AND(E10>C9,F10>C9,G10>C9,COUNT($E$7:G10)>sixng,COUNTIF(H9,"#")=1),"2",$A$7=1,"") ->  | K10: =_xlfn.IFS(Q10<>1,"",Q10=1,I10+(3*D10)) ->  | L10: =_xlfn.IFS(Q10<>1,"",COUNT($E$7:G10)<=hcpng,"",COUNT($E$7:G10)>=hcpng,K10) ->  | M10: =_xlfn.IFS(Q10=1,SUM($E$7:G10),Q10<>1,"") ->  | N10: =_xlfn.IFS(Q10=1,COUNT($E$7:G10),Q10<>1,"") ->  | O10: =IF(Q10=1,ROUND(AVERAGE($E$7:G10),2),"") ->  | P10: =_xlfn.IFS(Q10<>1,"",SUM($Q$7:Q10)=1,1,SUM($Q$7:Q10)<>1,"") ->  | Q10: =IF(MAX(E10:G10)<1,"",1) ->  | S10: =_xlfn.IFS(E10=$X$5,E10,F10=$X$5,F10,G10=$X$5,G10,$A$7=1,"") -> 0 | U10: =_xlfn.IFS(W10=$X$6,W10,X10=$X$6,X10,Y10=$X$6,Y10,$A$7=1,"") ->  | W10: =_xlfn.IFS(AND(Q10=1,COUNT($E$7:G10)>hcpng),E10+D10,$A$7=1," ") ->  | X10: =_xlfn.IFS(AND(Q10=1,COUNT($E$7:G10)>hcpng),F10+D10,$A$7=1," ") ->  | Y10: =_xlfn.IFS(AND(Q10=1,COUNT($E$7:G10)>hcpng),G10+D10,$A$7=1," ") ->  | Z10: 0 | AA10: =_xlfn.IFS(COUNTIFS(H10,"#",H9,"#"),A9,COUNTIFS(H10,2,H9,"#"),A9,$A$7=1,"") -> 
A11: 5 | B11: 2023-10-04 | C11: =_xlfn.IFS(Q11<>1,"",AND($B$4>=1,COUNT($E$7:G11)<=bkng),$B$4,P11=1,TRUNC(AVERAGE(E11:G11),0),COUNT($Q$7:Q11)=2,TRUNC(AVERAGE($E$7:G10),0),COUNT($Q$7:Q11)>=3,TRUNC(AVERAGE($E$7:G10),0)) ->  | D11: =_xlfn.IFS(Q11<>1,"",Q11=1,TRUNC((HCPB-C11)*HCPPC)) ->  | H11: =_xlfn.IFS(COUNT(E11:G11)<1,"",AND(E11>C11,F11>C11,G11>C11,COUNT($E$7:G11)>sixng),"#",AND(E11>C10,F11>C10,G11>C10,COUNT($E$7:G11)>sixng,COUNTIF(H10,"#")=1),"2",$A$7=1,"") ->  | K11: =_xlfn.IFS(Q11<>1,"",Q11=1,I11+(3*D11)) ->  | L11: =_xlfn.IFS(Q11<>1,"",COUNT($E$7:G11)<=hcpng,"",COUNT($E$7:G11)>=hcpng,K11) ->  | M11: =_xlfn.IFS(Q11=1,SUM($E$7:G11),Q11<>1,"") ->  | N11: =_xlfn.IFS(Q11=1,COUNT($E$7:G11),Q11<>1,"") ->  | O11: =IF(Q11=1,ROUND(AVERAGE($E$7:G11),2),"") ->  | P11: =_xlfn.IFS(Q11<>1,"",SUM($Q$7:Q11)=1,1,SUM($Q$7:Q11)<>1,"") ->  | S11: =_xlfn.IFS(E11=$X$5,E11,F11=$X$5,F11,G11=$X$5,G11,$A$7=1,"") -> 0 | U11: =_xlfn.IFS(W11=$X$6,W11,X11=$X$6,X11,Y11=$X$6,Y11,$A$7=1,"") ->  | W11: =_xlfn.IFS(AND(Q11=1,COUNT($E$7:G11)>hcpng),E11+D11,$A$7=1," ") ->  | X11: =_xlfn.IFS(AND(Q11=1,COUNT($E$7:G11)>hcpng),F11+D11,$A$7=1," ") ->  | Y11: =_xlfn.IFS(AND(Q11=1,COUNT($E$7:G11)>hcpng),G11+D11,$A$7=1," ") ->  | Z11: 0 | AA11: =_xlfn.IFS(COUNTIFS(H11,"#",H10,"#"),A10,COUNTIFS(H11,2,H10,"#"),A10,$A$7=1,"") ->  | AB11: Define the following items using the UTL1 sheet:
A12: 6 | B12: 2023-10-11 | C12: =_xlfn.IFS(Q12<>1,"",AND($B$4>=1,COUNT($E$7:G12)<=bkng),$B$4,P12=1,TRUNC(AVERAGE(E12:G12),0),COUNT($Q$7:Q12)=2,TRUNC(AVERAGE($E$7:G11),0),COUNT($Q$7:Q12)>=3,TRUNC(AVERAGE($E$7:G11),0)) ->  | D12: =_xlfn.IFS(Q12<>1,"",Q12=1,TRUNC((HCPB-C12)*HCPPC)) ->  | H12: =_xlfn.IFS(COUNT(E12:G12)<1,"",AND(E12>C12,F12>C12,G12>C12,COUNT($E$7:G12)>sixng),"#",AND(E12>C11,F12>C11,G12>C11,COUNT($E$7:G12)>sixng,COUNTIF(H11,"#")=1),"2",$A$7=1,"") ->  | K12: =_xlfn.IFS(Q12<>1,"",Q12=1,I12+(3*D12)) ->  | L12: =_xlfn.IFS(Q12<>1,"",COUNT($E$7:G12)<=hcpng,"",COUNT($E$7:G12)>=hcpng,K12) ->  | M12: =_xlfn.IFS(Q12=1,SUM($E$7:G12),Q12<>1,"") ->  | N12: =_xlfn.IFS(Q12=1,COUNT($E$7:G12),Q12<>1,"") ->  | O12: =IF(Q12=1,ROUND(AVERAGE($E$7:G12),2),"") ->  | P12: =_xlfn.IFS(Q12<>1,"",SUM($Q$7:Q12)=1,1,SUM($Q$7:Q12)<>1,"") ->  | S12: =_xlfn.IFS(E12=$X$5,E12,F12=$X$5,F12,G12=$X$5,G12,$A$7=1,"") -> 0 | U12: =_xlfn.IFS(W12=$X$6,W12,X12=$X$6,X12,Y12=$X$6,Y12,$A$7=1,"") ->  | W12: =_xlfn.IFS(AND(Q12=1,COUNT($E$7:G12)>hcpng),E12+D12,$A$7=1," ") ->  | X12: =_xlfn.IFS(AND(Q12=1,COUNT($E$7:G12)>hcpng),F12+D12,$A$7=1," ") ->  | Y12: =_xlfn.IFS(AND(Q12=1,COUNT($E$7:G12)>hcpng),G12+D12,$A$7=1," ") ->  | Z12: 0 | AA12: =_xlfn.IFS(COUNTIFS(H12,"#",H11,"#"),A11,COUNTIFS(H12,2,H11,"#"),A11,$A$7=1,"") ->  | AB12: 6 over after number of games
A13: 7 | B13: 2023-10-18 | C13: =_xlfn.IFS(Q13<>1,"",AND($B$4>=1,COUNT($E$7:G13)<=bkng),$B$4,P13=1,TRUNC(AVERAGE(E13:G13),0),COUNT($Q$7:Q13)=2,TRUNC(AVERAGE($E$7:G12),0),COUNT($Q$7:Q13)>=3,TRUNC(AVERAGE($E$7:G12),0)) ->  | D13: =_xlfn.IFS(Q13<>1,"",Q13=1,TRUNC((HCPB-C13)*HCPPC)) ->  | H13: =_xlfn.IFS(COUNT(E13:G13)<1,"",AND(E13>C13,F13>C13,G13>C13,COUNT($E$7:G13)>sixng),"#",AND(E13>C12,F13>C12,G13>C12,COUNT($E$7:G13)>sixng,COUNTIF(H12,"#")=1),"2",$A$7=1,"") ->  | K13: =_xlfn.IFS(Q13<>1,"",Q13=1,I13+(3*D13)) ->  | L13: =_xlfn.IFS(Q13<>1,"",COUNT($E$7:G13)<=hcpng,"",COUNT($E$7:G13)>=hcpng,K13) ->  | M13: =_xlfn.IFS(Q13=1,SUM($E$7:G13),Q13<>1,"") ->  | N13: =_xlfn.IFS(Q13=1,COUNT($E$7:G13),Q13<>1,"") ->  | O13: =IF(Q13=1,ROUND(AVERAGE($E$7:G13),2),"") ->  | P13: =_xlfn.IFS(Q13<>1,"",SUM($Q$7:Q13)=1,1,SUM($Q$7:Q13)<>1,"") ->  | S13: =_xlfn.IFS(E13=$X$5,E13,F13=$X$5,F13,G13=$X$5,G13,$A$7=1,"") -> 0 | U13: =_xlfn.IFS(W13=$X$6,W13,X13=$X$6,X13,Y13=$X$6,Y13,$A$7=1,"") ->  | W13: =_xlfn.IFS(AND(Q13=1,COUNT($E$7:G13)>hcpng),E13+D13,$A$7=1," ") ->  | X13: =_xlfn.IFS(AND(Q13=1,COUNT($E$7:G13)>hcpng),F13+D13,$A$7=1," ") ->  | Y13: =_xlfn.IFS(AND(Q13=1,COUNT($E$7:G13)>hcpng),G13+D13,$A$7=1," ") ->  | Z13: 0 | AA13: =_xlfn.IFS(COUNTIFS(H13,"#",H12,"#"),A12,COUNTIFS(H13,2,H12,"#"),A12,$A$7=1,"") ->  | AB13: book average number of games
A14: 8 | B14: 2023-10-25 | C14: =_xlfn.IFS(Q14<>1,"",AND($B$4>=1,COUNT($E$7:G14)<=bkng),$B$4,P14=1,TRUNC(AVERAGE(E14:G14),0),COUNT($Q$7:Q14)=2,TRUNC(AVERAGE($E$7:G13),0),COUNT($Q$7:Q14)>=3,TRUNC(AVERAGE($E$7:G13),0)) ->  | D14: =_xlfn.IFS(Q14<>1,"",Q14=1,TRUNC((HCPB-C14)*HCPPC)) ->  | H14: =_xlfn.IFS(COUNT(E14:G14)<1,"",AND(E14>C14,F14>C14,G14>C14,COUNT($E$7:G14)>sixng),"#",AND(E14>C13,F14>C13,G14>C13,COUNT($E$7:G14)>sixng,COUNTIF(H13,"#")=1),"2",$A$7=1,"") ->  | K14: =_xlfn.IFS(Q14<>1,"",Q14=1,I14+(3*D14)) ->  | L14: =_xlfn.IFS(Q14<>1,"",COUNT($E$7:G14)<=hcpng,"",COUNT($E$7:G14)>=hcpng,K14) ->  | M14: =_xlfn.IFS(Q14=1,SUM($E$7:G14),Q14<>1,"") ->  | N14: =_xlfn.IFS(Q14=1,COUNT($E$7:G14),Q14<>1,"") ->  | O14: =IF(Q14=1,ROUND(AVERAGE($E$7:G14),2),"") ->  | P14: =_xlfn.IFS(Q14<>1,"",SUM($Q$7:Q14)=1,1,SUM($Q$7:Q14)<>1,"") ->  | S14: =_xlfn.IFS(E14=$X$5,E14,F14=$X$5,F14,G14=$X$5,G14,$A$7=1,"") -> 0 | U14: =_xlfn.IFS(W14=$X$6,W14,X14=$X$6,X14,Y14=$X$6,Y14,$A$7=1,"") ->  | W14: =_xlfn.IFS(AND(Q14=1,COUNT($E$7:G14)>hcpng),E14+D14,$A$7=1," ") ->  | X14: =_xlfn.IFS(AND(Q14=1,COUNT($E$7:G14)>hcpng),F14+D14,$A$7=1," ") ->  | Y14: =_xlfn.IFS(AND(Q14=1,COUNT($E$7:G14)>hcpng),G14+D14,$A$7=1," ") ->  | Z14: 0 | AA14: =_xlfn.IFS(COUNTIFS(H14,"#",H13,"#"),A13,COUNTIFS(H14,2,H13,"#"),A13,$A$7=1,"") ->  | AB14: handicap after number of games
A15: 9 | B15: 2023-11-01 | C15: =_xlfn.IFS(Q15<>1,"",AND($B$4>=1,COUNT($E$7:G15)<=bkng),$B$4,P15=1,TRUNC(AVERAGE(E15:G15),0),COUNT($Q$7:Q15)=2,TRUNC(AVERAGE($E$7:G14),0),COUNT($Q$7:Q15)>=3,TRUNC(AVERAGE($E$7:G14),0)) ->  | D15: =_xlfn.IFS(Q15<>1,"",Q15=1,TRUNC((HCPB-C15)*HCPPC)) ->  | H15: =_xlfn.IFS(COUNT(E15:G15)<1,"",AND(E15>C15,F15>C15,G15>C15,COUNT($E$7:G15)>sixng),"#",AND(E15>C14,F15>C14,G15>C14,COUNT($E$7:G15)>sixng,COUNTIF(H14,"#")=1),"2",$A$7=1,"") ->  | K15: =_xlfn.IFS(Q15<>1,"",Q15=1,I15+(3*D15)) ->  | L15: =_xlfn.IFS(Q15<>1,"",COUNT($E$7:G15)<=hcpng,"",COUNT($E$7:G15)>=hcpng,K15) ->  | M15: =_xlfn.IFS(Q15=1,SUM($E$7:G15),Q15<>1,"") ->  | N15: =_xlfn.IFS(Q15=1,COUNT($E$7:G15),Q15<>1,"") ->  | O15: =IF(Q15=1,ROUND(AVERAGE($E$7:G15),2),"") ->  | P15: =_xlfn.IFS(Q15<>1,"",SUM($Q$7:Q15)=1,1,SUM($Q$7:Q15)<>1,"") ->  | S15: =_xlfn.IFS(E15=$X$5,E15,F15=$X$5,F15,G15=$X$5,G15,$A$7=1,"") -> 0 | U15: =_xlfn.IFS(W15=$X$6,W15,X15=$X$6,X15,Y15=$X$6,Y15,$A$7=1,"") ->  | W15: =_xlfn.IFS(AND(Q15=1,COUNT($E$7:G15)>hcpng),E15+D15,$A$7=1," ") ->  | X15: =_xlfn.IFS(AND(Q15=1,COUNT($E$7:G15)>hcpng),F15+D15,$A$7=1," ") ->  | Y15: =_xlfn.IFS(AND(Q15=1,COUNT($E$7:G15)>hcpng),G15+D15,$A$7=1," ") ->  | Z15: 0 | AA15: =_xlfn.IFS(COUNTIFS(H15,"#",H14,"#"),A14,COUNTIFS(H15,2,H14,"#"),A14,$A$7=1,"") ->  | AB15: Merit Awards based on avg. after number of games
A16: 10 | B16: 2023-11-08 | C16: =_xlfn.IFS(Q16<>1,"",AND($B$4>=1,COUNT($E$7:G16)<=bkng),$B$4,P16=1,TRUNC(AVERAGE(E16:G16),0),COUNT($Q$7:Q16)=2,TRUNC(AVERAGE($E$7:G15),0),COUNT($Q$7:Q16)>=3,TRUNC(AVERAGE($E$7:G15),0)) ->  | D16: =_xlfn.IFS(Q16<>1,"",Q16=1,TRUNC((HCPB-C16)*HCPPC)) ->  | H16: =_xlfn.IFS(COUNT(E16:G16)<1,"",AND(E16>C16,F16>C16,G16>C16,COUNT($E$7:G16)>sixng),"#",AND(E16>C15,F16>C15,G16>C15,COUNT($E$7:G16)>sixng,COUNTIF(H15,"#")=1),"2",$A$7=1,"") ->  | K16: =_xlfn.IFS(Q16<>1,"",Q16=1,I16+(3*D16)) ->  | L16: =_xlfn.IFS(Q16<>1,"",COUNT($E$7:G16)<=hcpng,"",COUNT($E$7:G16)>=hcpng,K16) ->  | M16: =_xlfn.IFS(Q16=1,SUM($E$7:G16),Q16<>1,"") ->  | N16: =_xlfn.IFS(Q16=1,COUNT($E$7:G16),Q16<>1,"") ->  | O16: =IF(Q16=1,ROUND(AVERAGE($E$7:G16),2),"") ->  | P16: =_xlfn.IFS(Q16<>1,"",SUM($Q$7:Q16)=1,1,SUM($Q$7:Q16)<>1,"") ->  | S16: =_xlfn.IFS(E16=$X$5,E16,F16=$X$5,F16,G16=$X$5,G16,$A$7=1,"") -> 0 | U16: =_xlfn.IFS(W16=$X$6,W16,X16=$X$6,X16,Y16=$X$6,Y16,$A$7=1,"") ->  | W16: =_xlfn.IFS(AND(Q16=1,COUNT($E$7:G16)>hcpng),E16+D16,$A$7=1," ") ->  | X16: =_xlfn.IFS(AND(Q16=1,COUNT($E$7:G16)>hcpng),F16+D16,$A$7=1," ") ->  | Y16: =_xlfn.IFS(AND(Q16=1,COUNT($E$7:G16)>hcpng),G16+D16,$A$7=1," ") ->  | Z16: 0 | AA16: =_xlfn.IFS(COUNTIFS(H16,"#",H15,"#"),A15,COUNTIFS(H16,2,H15,"#"),A15,$A$7=1,"") -> 
A17: 11 | B17: 2023-11-15 | C17: =_xlfn.IFS(Q17<>1,"",AND($B$4>=1,COUNT($E$7:G17)<=bkng),$B$4,P17=1,TRUNC(AVERAGE(E17:G17),0),COUNT($Q$7:Q17)=2,TRUNC(AVERAGE($E$7:G16),0),COUNT($Q$7:Q17)>=3,TRUNC(AVERAGE($E$7:G16),0)) ->  | D17: =_xlfn.IFS(Q17<>1,"",Q17=1,TRUNC((HCPB-C17)*HCPPC)) ->  | H17: =_xlfn.IFS(COUNT(E17:G17)<1,"",AND(E17>C17,F17>C17,G17>C17,COUNT($E$7:G17)>sixng),"#",AND(E17>C16,F17>C16,G17>C16,COUNT($E$7:G17)>sixng,COUNTIF(H16,"#")=1),"2",$A$7=1,"") ->  | K17: =_xlfn.IFS(Q17<>1,"",Q17=1,I17+(3*D17)) ->  | L17: =_xlfn.IFS(Q17<>1,"",COUNT($E$7:G17)<=hcpng,"",COUNT($E$7:G17)>=hcpng,K17) ->  | M17: =_xlfn.IFS(Q17=1,SUM($E$7:G17),Q17<>1,"") ->  | N17: =_xlfn.IFS(Q17=1,COUNT($E$7:G17),Q17<>1,"") ->  | O17: =IF(Q17=1,ROUND(AVERAGE($E$7:G17),2),"") ->  | P17: =_xlfn.IFS(Q17<>1,"",SUM($Q$7:Q17)=1,1,SUM($Q$7:Q17)<>1,"") ->  | S17: =_xlfn.IFS(E17=$X$5,E17,F17=$X$5,F17,G17=$X$5,G17,$A$7=1,"") -> 0 | U17: =_xlfn.IFS(W17=$X$6,W17,X17=$X$6,X17,Y17=$X$6,Y17,$A$7=1,"") ->  | W17: =_xlfn.IFS(AND(Q17=1,COUNT($E$7:G17)>hcpng),E17+D17,$A$7=1," ") ->  | X17: =_xlfn.IFS(AND(Q17=1,COUNT($E$7:G17)>hcpng),F17+D17,$A$7=1," ") ->  | Y17: =_xlfn.IFS(AND(Q17=1,COUNT($E$7:G17)>hcpng),G17+D17,$A$7=1," ") ->  | Z17: 0 | AA17: =_xlfn.IFS(COUNTIFS(H17,"#",H16,"#"),A16,COUNTIFS(H17,2,H16,"#"),A16,$A$7=1,"") ->  | AB17: Handicap base
A18: 12 | B18: 2023-11-29 | C18: =_xlfn.IFS(Q18<>1,"",AND($B$4>=1,COUNT($E$7:G18)<=bkng),$B$4,P18=1,TRUNC(AVERAGE(E18:G18),0),COUNT($Q$7:Q18)=2,TRUNC(AVERAGE($E$7:G17),0),COUNT($Q$7:Q18)>=3,TRUNC(AVERAGE($E$7:G17),0)) ->  | D18: =_xlfn.IFS(Q18<>1,"",Q18=1,TRUNC((HCPB-C18)*HCPPC)) ->  | H18: =_xlfn.IFS(COUNT(E18:G18)<1,"",AND(E18>C18,F18>C18,G18>C18,COUNT($E$7:G18)>sixng),"#",AND(E18>C17,F18>C17,G18>C17,COUNT($E$7:G18)>sixng,COUNTIF(H17,"#")=1),"2",$A$7=1,"") ->  | K18: =_xlfn.IFS(Q18<>1,"",Q18=1,I18+(3*D18)) ->  | L18: =_xlfn.IFS(Q18<>1,"",COUNT($E$7:G18)<=hcpng,"",COUNT($E$7:G18)>=hcpng,K18) ->  | M18: =_xlfn.IFS(Q18=1,SUM($E$7:G18),Q18<>1,"") ->  | N18: =_xlfn.IFS(Q18=1,COUNT($E$7:G18),Q18<>1,"") ->  | O18: =IF(Q18=1,ROUND(AVERAGE($E$7:G18),2),"") ->  | P18: =_xlfn.IFS(Q18<>1,"",SUM($Q$7:Q18)=1,1,SUM($Q$7:Q18)<>1,"") ->  | S18: =_xlfn.IFS(E18=$X$5,E18,F18=$X$5,F18,G18=$X$5,G18,$A$7=1,"") -> 0 | U18: =_xlfn.IFS(W18=$X$6,W18,X18=$X$6,X18,Y18=$X$6,Y18,$A$7=1,"") ->  | W18: =_xlfn.IFS(AND(Q18=1,COUNT($E$7:G18)>hcpng),E18+D18,$A$7=1," ") ->  | X18: =_xlfn.IFS(AND(Q18=1,COUNT($E$7:G18)>hcpng),F18+D18,$A$7=1," ") ->  | Y18: =_xlfn.IFS(AND(Q18=1,COUNT($E$7:G18)>hcpng),G18+D18,$A$7=1," ") ->  | Z18: 0 | AA18: =_xlfn.IFS(COUNTIFS(H18,"#",H17,"#"),A17,COUNTIFS(H18,2,H17,"#"),A17,$A$7=1,"") ->  | AB18: Handicap %
A19: 13 | B19: 2023-12-06 | C19: =_xlfn.IFS(Q19<>1,"",AND($B$4>=1,COUNT($E$7:G19)<=bkng),$B$4,P19=1,TRUNC(AVERAGE(E19:G19),0),COUNT($Q$7:Q19)=2,TRUNC(AVERAGE($E$7:G18),0),COUNT($Q$7:Q19)>=3,TRUNC(AVERAGE($E$7:G18),0)) ->  | D19: =_xlfn.IFS(Q19<>1,"",Q19=1,TRUNC((HCPB-C19)*HCPPC)) ->  | H19: =_xlfn.IFS(COUNT(E19:G19)<1,"",AND(E19>C19,F19>C19,G19>C19,COUNT($E$7:G19)>sixng),"#",AND(E19>C18,F19>C18,G19>C18,COUNT($E$7:G19)>sixng,COUNTIF(H18,"#")=1),"2",$A$7=1,"") ->  | K19: =_xlfn.IFS(Q19<>1,"",Q19=1,I19+(3*D19)) ->  | L19: =_xlfn.IFS(Q19<>1,"",COUNT($E$7:G19)<=hcpng,"",COUNT($E$7:G19)>=hcpng,K19) ->  | M19: =_xlfn.IFS(Q19=1,SUM($E$7:G19),Q19<>1,"") ->  | N19: =_xlfn.IFS(Q19=1,COUNT($E$7:G19),Q19<>1,"") ->  | O19: =IF(Q19=1,ROUND(AVERAGE($E$7:G19),2),"") ->  | P19: =_xlfn.IFS(Q19<>1,"",SUM($Q$7:Q19)=1,1,SUM($Q$7:Q19)<>1,"") ->  | S19: =_xlfn.IFS(E19=$X$5,E19,F19=$X$5,F19,G19=$X$5,G19,$A$7=1,"") -> 0 | U19: =_xlfn.IFS(W19=$X$6,W19,X19=$X$6,X19,Y19=$X$6,Y19,$A$7=1,"") ->  | W19: =_xlfn.IFS(AND(Q19=1,COUNT($E$7:G19)>hcpng),E19+D19,$A$7=1," ") ->  | X19: =_xlfn.IFS(AND(Q19=1,COUNT($E$7:G19)>hcpng),F19+D19,$A$7=1," ") ->  | Y19: =_xlfn.IFS(AND(Q19=1,COUNT($E$7:G19)>hcpng),G19+D19,$A$7=1," ") ->  | Z19: 0 | AA19: =_xlfn.IFS(COUNTIFS(H19,"#",H18,"#"),A18,COUNTIFS(H19,2,H18,"#"),A18,$A$7=1,"") -> 
A20: 14 | B20: 2023-12-13 | C20: =_xlfn.IFS(Q20<>1,"",AND($B$4>=1,COUNT($E$7:G20)<=bkng),$B$4,P20=1,TRUNC(AVERAGE(E20:G20),0),COUNT($Q$7:Q20)=2,TRUNC(AVERAGE($E$7:G19),0),COUNT($Q$7:Q20)>=3,TRUNC(AVERAGE($E$7:G19),0)) ->  | D20: =_xlfn.IFS(Q20<>1,"",Q20=1,TRUNC((HCPB-C20)*HCPPC)) ->  | H20: =_xlfn.IFS(COUNT(E20:G20)<1,"",AND(E20>C20,F20>C20,G20>C20,COUNT($E$7:G20)>sixng),"#",AND(E20>C19,F20>C19,G20>C19,COUNT($E$7:G20)>sixng,COUNTIF(H19,"#")=1),"2",$A$7=1,"") ->  | K20: =_xlfn.IFS(Q20<>1,"",Q20=1,I20+(3*D20)) ->  | L20: =_xlfn.IFS(Q20<>1,"",COUNT($E$7:G20)<=hcpng,"",COUNT($E$7:G20)>=hcpng,K20) ->  | M20: =_xlfn.IFS(Q20=1,SUM($E$7:G20),Q20<>1,"") ->  | N20: =_xlfn.IFS(Q20=1,COUNT($E$7:G20),Q20<>1,"") ->  | O20: =IF(Q20=1,ROUND(AVERAGE($E$7:G20),2),"") ->  | P20: =_xlfn.IFS(Q20<>1,"",SUM($Q$7:Q20)=1,1,SUM($Q$7:Q20)<>1,"") ->  | S20: =_xlfn.IFS(E20=$X$5,E20,F20=$X$5,F20,G20=$X$5,G20,$A$7=1,"") -> 0 | U20: =_xlfn.IFS(W20=$X$6,W20,X20=$X$6,X20,Y20=$X$6,Y20,$A$7=1,"") ->  | W20: =_xlfn.IFS(AND(Q20=1,COUNT($E$7:G20)>hcpng),E20+D20,$A$7=1," ") ->  | X20: =_xlfn.IFS(AND(Q20=1,COUNT($E$7:G20)>hcpng),F20+D20,$A$7=1," ") ->  | Y20: =_xlfn.IFS(AND(Q20=1,COUNT($E$7:G20)>hcpng),G20+D20,$A$7=1," ") ->  | Z20: 0 | AA20: =_xlfn.IFS(COUNTIFS(H20,"#",H19,"#"),A19,COUNTIFS(H20,2,H19,"#"),A19,$A$7=1,"") ->  | AB20: Define the USBC Merit awards items using the UTLMA sheet:
A21: 15 | B21: 2023-12-20 | C21: =_xlfn.IFS(Q21<>1,"",AND($B$4>=1,COUNT($E$7:G21)<=bkng),$B$4,P21=1,TRUNC(AVERAGE(E21:G21),0),COUNT($Q$7:Q21)=2,TRUNC(AVERAGE($E$7:G20),0),COUNT($Q$7:Q21)>=3,TRUNC(AVERAGE($E$7:G20),0)) ->  | D21: =_xlfn.IFS(Q21<>1,"",Q21=1,TRUNC((HCPB-C21)*HCPPC)) ->  | H21: =_xlfn.IFS(COUNT(E21:G21)<1,"",AND(E21>C21,F21>C21,G21>C21,COUNT($E$7:G21)>sixng),"#",AND(E21>C20,F21>C20,G21>C20,COUNT($E$7:G21)>sixng,COUNTIF(H20,"#")=1),"2",$A$7=1,"") ->  | K21: =_xlfn.IFS(Q21<>1,"",Q21=1,I21+(3*D21)) ->  | L21: =_xlfn.IFS(Q21<>1,"",COUNT($E$7:G21)<=hcpng,"",COUNT($E$7:G21)>=hcpng,K21) ->  | M21: =_xlfn.IFS(Q21=1,SUM($E$7:G21),Q21<>1,"") ->  | N21: =_xlfn.IFS(Q21=1,COUNT($E$7:G21),Q21<>1,"") ->  | O21: =IF(Q21=1,ROUND(AVERAGE($E$7:G21),2),"") ->  | P21: =_xlfn.IFS(Q21<>1,"",SUM($Q$7:Q21)=1,1,SUM($Q$7:Q21)<>1,"") ->  | S21: =_xlfn.IFS(E21=$X$5,E21,F21=$X$5,F21,G21=$X$5,G21,$A$7=1,"") -> 0 | U21: =_xlfn.IFS(W21=$X$6,W21,X21=$X$6,X21,Y21=$X$6,Y21,$A$7=1,"") ->  | W21: =_xlfn.IFS(AND(Q21=1,COUNT($E$7:G21)>hcpng),E21+D21,$A$7=1," ") ->  | X21: =_xlfn.IFS(AND(Q21=1,COUNT($E$7:G21)>hcpng),F21+D21,$A$7=1," ") ->  | Y21: =_xlfn.IFS(AND(Q21=1,COUNT($E$7:G21)>hcpng),G21+D21,$A$7=1," ") ->  | Z21: 0 | AA21: =_xlfn.IFS(COUNTIFS(H21,"#",H20,"#"),A20,COUNTIFS(H21,2,H20,"#"),A20,$A$7=1,"") -> 
A22: 16 | B22: 2024-01-03 | C22: =_xlfn.IFS(Q22<>1,"",AND($B$4>=1,COUNT($E$7:G22)<=bkng),$B$4,P22=1,TRUNC(AVERAGE(E22:G22),0),COUNT($Q$7:Q22)=2,TRUNC(AVERAGE($E$7:G21),0),COUNT($Q$7:Q22)>=3,TRUNC(AVERAGE($E$7:G21),0)) ->  | D22: =_xlfn.IFS(Q22<>1,"",Q22=1,TRUNC((HCPB-C22)*HCPPC)) ->  | H22: =_xlfn.IFS(COUNT(E22:G22)<1,"",AND(E22>C22,F22>C22,G22>C22,COUNT($E$7:G22)>sixng),"#",AND(E22>C21,F22>C21,G22>C21,COUNT($E$7:G22)>sixng,COUNTIF(H21,"#")=1),"2",$A$7=1,"") ->  | K22: =_xlfn.IFS(Q22<>1,"",Q22=1,I22+(3*D22)) ->  | L22: =_xlfn.IFS(Q22<>1,"",COUNT($E$7:G22)<=hcpng,"",COUNT($E$7:G22)>=hcpng,K22) ->  | M22: =_xlfn.IFS(Q22=1,SUM($E$7:G22),Q22<>1,"") ->  | N22: =_xlfn.IFS(Q22=1,COUNT($E$7:G22),Q22<>1,"") ->  | O22: =IF(Q22=1,ROUND(AVERAGE($E$7:G22),2),"") ->  | P22: =_xlfn.IFS(Q22<>1,"",SUM($Q$7:Q22)=1,1,SUM($Q$7:Q22)<>1,"") ->  | S22: =_xlfn.IFS(E22=$X$5,E22,F22=$X$5,F22,G22=$X$5,G22,$A$7=1,"") -> 0 | U22: =_xlfn.IFS(W22=$X$6,W22,X22=$X$6,X22,Y22=$X$6,Y22,$A$7=1,"") ->  | W22: =_xlfn.IFS(AND(Q22=1,COUNT($E$7:G22)>hcpng),E22+D22,$A$7=1," ") ->  | X22: =_xlfn.IFS(AND(Q22=1,COUNT($E$7:G22)>hcpng),F22+D22,$A$7=1," ") ->  | Y22: =_xlfn.IFS(AND(Q22=1,COUNT($E$7:G22)>hcpng),G22+D22,$A$7=1," ") ->  | Z22: 0 | AA22: =_xlfn.IFS(COUNTIFS(H22,"#",H21,"#"),A21,COUNTIFS(H22,2,H21,"#"),A21,$A$7=1,"") ->  | AB22: To add new bowlers right click on "Blank" sheet select "move or copy", "(move to end)"
A23: 17 | B23: 2024-01-10 | C23: =_xlfn.IFS(Q23<>1,"",AND($B$4>=1,COUNT($E$7:G23)<=bkng),$B$4,P23=1,TRUNC(AVERAGE(E23:G23),0),COUNT($Q$7:Q23)=2,TRUNC(AVERAGE($E$7:G22),0),COUNT($Q$7:Q23)>=3,TRUNC(AVERAGE($E$7:G22),0)) ->  | D23: =_xlfn.IFS(Q23<>1,"",Q23=1,TRUNC((HCPB-C23)*HCPPC)) ->  | H23: =_xlfn.IFS(COUNT(E23:G23)<1,"",AND(E23>C23,F23>C23,G23>C23,COUNT($E$7:G23)>sixng),"#",AND(E23>C22,F23>C22,G23>C22,COUNT($E$7:G23)>sixng,COUNTIF(H22,"#")=1),"2",$A$7=1,"") ->  | K23: =_xlfn.IFS(Q23<>1,"",Q23=1,I23+(3*D23)) ->  | L23: =_xlfn.IFS(Q23<>1,"",COUNT($E$7:G23)<=hcpng,"",COUNT($E$7:G23)>=hcpng,K23) ->  | M23: =_xlfn.IFS(Q23=1,SUM($E$7:G23),Q23<>1,"") ->  | N23: =_xlfn.IFS(Q23=1,COUNT($E$7:G23),Q23<>1,"") ->  | O23: =IF(Q23=1,ROUND(AVERAGE($E$7:G23),2),"") ->  | P23: =_xlfn.IFS(Q23<>1,"",SUM($Q$7:Q23)=1,1,SUM($Q$7:Q23)<>1,"") ->  | S23: =_xlfn.IFS(E23=$X$5,E23,F23=$X$5,F23,G23=$X$5,G23,$A$7=1,"") -> 0 | U23: =_xlfn.IFS(W23=$X$6,W23,X23=$X$6,X23,Y23=$X$6,Y23,$A$7=1,"") ->  | W23: =_xlfn.IFS(AND(Q23=1,COUNT($E$7:G23)>hcpng),E23+D23,$A$7=1," ") ->  | X23: =_xlfn.IFS(AND(Q23=1,COUNT($E$7:G23)>hcpng),F23+D23,$A$7=1," ") ->  | Y23: =_xlfn.IFS(AND(Q23=1,COUNT($E$7:G23)>hcpng),G23+D23,$A$7=1," ") ->  | Z23: 0 | AA23: =_xlfn.IFS(COUNTIFS(H23,"#",H22,"#"),A22,COUNTIFS(H23,2,H22,"#"),A22,$A$7=1,"") ->  | AB23: and "check create a copy". Note: you can click and hold to move a sheet left or right.
A24: 18 | B24: 2024-01-17 | C24: =_xlfn.IFS(Q24<>1,"",AND($B$4>=1,COUNT($E$7:G24)<=bkng),$B$4,P24=1,TRUNC(AVERAGE(E24:G24),0),COUNT($Q$7:Q24)=2,TRUNC(AVERAGE($E$7:G23),0),COUNT($Q$7:Q24)>=3,TRUNC(AVERAGE($E$7:G23),0)) ->  | D24: =_xlfn.IFS(Q24<>1,"",Q24=1,TRUNC((HCPB-C24)*HCPPC)) ->  | H24: =_xlfn.IFS(COUNT(E24:G24)<1,"",AND(E24>C24,F24>C24,G24>C24,COUNT($E$7:G24)>sixng),"#",AND(E24>C23,F24>C23,G24>C23,COUNT($E$7:G24)>sixng,COUNTIF(H23,"#")=1),"2",$A$7=1,"") ->  | K24: =_xlfn.IFS(Q24<>1,"",Q24=1,I24+(3*D24)) ->  | L24: =_xlfn.IFS(Q24<>1,"",COUNT($E$7:G24)<=hcpng,"",COUNT($E$7:G24)>=hcpng,K24) ->  | M24: =_xlfn.IFS(Q24=1,SUM($E$7:G24),Q24<>1,"") ->  | N24: =_xlfn.IFS(Q24=1,COUNT($E$7:G24),Q24<>1,"") ->  | O24: =IF(Q24=1,ROUND(AVERAGE($E$7:G24),2),"") ->  | P24: =_xlfn.IFS(Q24<>1,"",SUM($Q$7:Q24)=1,1,SUM($Q$7:Q24)<>1,"") ->  | S24: =_xlfn.IFS(E24=$X$5,E24,F24=$X$5,F24,G24=$X$5,G24,$A$7=1,"") -> 0 | U24: =_xlfn.IFS(W24=$X$6,W24,X24=$X$6,X24,Y24=$X$6,Y24,$A$7=1,"") ->  | W24: =_xlfn.IFS(AND(Q24=1,COUNT($E$7:G24)>hcpng),E24+D24,$A$7=1," ") ->  | X24: =_xlfn.IFS(AND(Q24=1,COUNT($E$7:G24)>hcpng),F24+D24,$A$7=1," ") ->  | Y24: =_xlfn.IFS(AND(Q24=1,COUNT($E$7:G24)>hcpng),G24+D24,$A$7=1," ") ->  | Z24: 0 | AA24: =_xlfn.IFS(COUNTIFS(H24,"#",H23,"#"),A23,COUNTIFS(H24,2,H23,"#"),A23,$A$7=1,"") ->  | AB24: Rename the "Blank (x)" sheet name to the bowler's name you want
A25: 19 | B25: 2024-01-24 | C25: =_xlfn.IFS(Q25<>1,"",AND($B$4>=1,COUNT($E$7:G25)<=bkng),$B$4,P25=1,TRUNC(AVERAGE(E25:G25),0),COUNT($Q$7:Q25)=2,TRUNC(AVERAGE($E$7:G24),0),COUNT($Q$7:Q25)>=3,TRUNC(AVERAGE($E$7:G24),0)) ->  | D25: =_xlfn.IFS(Q25<>1,"",Q25=1,TRUNC((HCPB-C25)*HCPPC)) ->  | H25: =_xlfn.IFS(COUNT(E25:G25)<1,"",AND(E25>C25,F25>C25,G25>C25,COUNT($E$7:G25)>sixng),"#",AND(E25>C24,F25>C24,G25>C24,COUNT($E$7:G25)>sixng,COUNTIF(H24,"#")=1),"2",$A$7=1,"") ->  | K25: =_xlfn.IFS(Q25<>1,"",Q25=1,I25+(3*D25)) ->  | L25: =_xlfn.IFS(Q25<>1,"",COUNT($E$7:G25)<=hcpng,"",COUNT($E$7:G25)>=hcpng,K25) ->  | M25: =_xlfn.IFS(Q25=1,SUM($E$7:G25),Q25<>1,"") ->  | N25: =_xlfn.IFS(Q25=1,COUNT($E$7:G25),Q25<>1,"") ->  | O25: =IF(Q25=1,ROUND(AVERAGE($E$7:G25),2),"") ->  | P25: =_xlfn.IFS(Q25<>1,"",SUM($Q$7:Q25)=1,1,SUM($Q$7:Q25)<>1,"") ->  | S25: =_xlfn.IFS(E25=$X$5,E25,F25=$X$5,F25,G25=$X$5,G25,$A$7=1,"") -> 0 | U25: =_xlfn.IFS(W25=$X$6,W25,X25=$X$6,X25,Y25=$X$6,Y25,$A$7=1,"") ->  | W25: =_xlfn.IFS(AND(Q25=1,COUNT($E$7:G25)>hcpng),E25+D25,$A$7=1," ") ->  | X25: =_xlfn.IFS(AND(Q25=1,COUNT($E$7:G25)>hcpng),F25+D25,$A$7=1," ") ->  | Y25: =_xlfn.IFS(AND(Q25=1,COUNT($E$7:G25)>hcpng),G25+D25,$A$7=1," ") ->  | Z25: 0 | AA25: =_xlfn.IFS(COUNTIFS(H25,"#",H24,"#"),A24,COUNTIFS(H25,2,H24,"#"),A24,$A$7=1,"") -> 
A26: 20 | B26: 2024-01-31 | C26: =_xlfn.IFS(Q26<>1,"",AND($B$4>=1,COUNT($E$7:G26)<=bkng),$B$4,P26=1,TRUNC(AVERAGE(E26:G26),0),COUNT($Q$7:Q26)=2,TRUNC(AVERAGE($E$7:G25),0),COUNT($Q$7:Q26)>=3,TRUNC(AVERAGE($E$7:G25),0)) ->  | D26: =_xlfn.IFS(Q26<>1,"",Q26=1,TRUNC((HCPB-C26)*HCPPC)) ->  | H26: =_xlfn.IFS(COUNT(E26:G26)<1,"",AND(E26>C26,F26>C26,G26>C26,COUNT($E$7:G26)>sixng),"#",AND(E26>C25,F26>C25,G26>C25,COUNT($E$7:G26)>sixng,COUNTIF(H25,"#")=1),"2",$A$7=1,"") ->  | K26: =_xlfn.IFS(Q26<>1,"",Q26=1,I26+(3*D26)) ->  | L26: =_xlfn.IFS(Q26<>1,"",COUNT($E$7:G26)<=hcpng,"",COUNT($E$7:G26)>=hcpng,K26) ->  | M26: =_xlfn.IFS(Q26=1,SUM($E$7:G26),Q26<>1,"") ->  | N26: =_xlfn.IFS(Q26=1,COUNT($E$7:G26),Q26<>1,"") ->  | O26: =IF(Q26=1,ROUND(AVERAGE($E$7:G26),2),"") ->  | P26: =_xlfn.IFS(Q26<>1,"",SUM($Q$7:Q26)=1,1,SUM($Q$7:Q26)<>1,"") ->  | S26: =_xlfn.IFS(E26=$X$5,E26,F26=$X$5,F26,G26=$X$5,G26,$A$7=1,"") -> 0 | U26: =_xlfn.IFS(W26=$X$6,W26,X26=$X$6,X26,Y26=$X$6,Y26,$A$7=1,"") ->  | W26: =_xlfn.IFS(AND(Q26=1,COUNT($E$7:G26)>hcpng),E26+D26,$A$7=1," ") ->  | X26: =_xlfn.IFS(AND(Q26=1,COUNT($E$7:G26)>hcpng),F26+D26,$A$7=1," ") ->  | Y26: =_xlfn.IFS(AND(Q26=1,COUNT($E$7:G26)>hcpng),G26+D26,$A$7=1," ") ->  | Z26: 0 | AA26: =_xlfn.IFS(COUNTIFS(H26,"#",H25,"#"),A25,COUNTIFS(H26,2,H25,"#"),A25,$A$7=1,"") ->  | AB26: You can Hide or Unhide "Sheets" by select one and right clicking on it and select hide.
A27: 21 | B27: 2024-02-07 | C27: =_xlfn.IFS(Q27<>1,"",AND($B$4>=1,COUNT($E$7:G27)<=bkng),$B$4,P27=1,TRUNC(AVERAGE(E27:G27),0),COUNT($Q$7:Q27)=2,TRUNC(AVERAGE($E$7:G26),0),COUNT($Q$7:Q27)>=3,TRUNC(AVERAGE($E$7:G26),0)) ->  | D27: =_xlfn.IFS(Q27<>1,"",Q27=1,TRUNC((HCPB-C27)*HCPPC)) ->  | H27: =_xlfn.IFS(COUNT(E27:G27)<1,"",AND(E27>C27,F27>C27,G27>C27,COUNT($E$7:G27)>sixng),"#",AND(E27>C26,F27>C26,G27>C26,COUNT($E$7:G27)>sixng,COUNTIF(H26,"#")=1),"2",$A$7=1,"") ->  | K27: =_xlfn.IFS(Q27<>1,"",Q27=1,I27+(3*D27)) ->  | L27: =_xlfn.IFS(Q27<>1,"",COUNT($E$7:G27)<=hcpng,"",COUNT($E$7:G27)>=hcpng,K27) ->  | M27: =_xlfn.IFS(Q27=1,SUM($E$7:G27),Q27<>1,"") ->  | N27: =_xlfn.IFS(Q27=1,COUNT($E$7:G27),Q27<>1,"") ->  | O27: =IF(Q27=1,ROUND(AVERAGE($E$7:G27),2),"") ->  | P27: =_xlfn.IFS(Q27<>1,"",SUM($Q$7:Q27)=1,1,SUM($Q$7:Q27)<>1,"") ->  | S27: =_xlfn.IFS(E27=$X$5,E27,F27=$X$5,F27,G27=$X$5,G27,$A$7=1,"") -> 0 | U27: =_xlfn.IFS(W27=$X$6,W27,X27=$X$6,X27,Y27=$X$6,Y27,$A$7=1,"") ->  | W27: =_xlfn.IFS(AND(Q27=1,COUNT($E$7:G27)>hcpng),E27+D27,$A$7=1," ") ->  | X27: =_xlfn.IFS(AND(Q27=1,COUNT($E$7:G27)>hcpng),F27+D27,$A$7=1," ") ->  | Y27: =_xlfn.IFS(AND(Q27=1,COUNT($E$7:G27)>hcpng),G27+D27,$A$7=1," ") ->  | Z27: 0 | AA27: =_xlfn.IFS(COUNTIFS(H27,"#",H26,"#"),A26,COUNTIFS(H27,2,H26,"#"),A26,$A$7=1,"") ->  | AB27: To unhide any sheet right click on any sheet and select unhide and pick the sheet to unhide.
A28: 22 | B28: 2024-02-14 | C28: =_xlfn.IFS(Q28<>1,"",AND($B$4>=1,COUNT($E$7:G28)<=bkng),$B$4,P28=1,TRUNC(AVERAGE(E28:G28),0),COUNT($Q$7:Q28)=2,TRUNC(AVERAGE($E$7:G27),0),COUNT($Q$7:Q28)>=3,TRUNC(AVERAGE($E$7:G27),0)) ->  | D28: =_xlfn.IFS(Q28<>1,"",Q28=1,TRUNC((HCPB-C28)*HCPPC)) ->  | H28: =_xlfn.IFS(COUNT(E28:G28)<1,"",AND(E28>C28,F28>C28,G28>C28,COUNT($E$7:G28)>sixng),"#",AND(E28>C27,F28>C27,G28>C27,COUNT($E$7:G28)>sixng,COUNTIF(H27,"#")=1),"2",$A$7=1,"") ->  | K28: =_xlfn.IFS(Q28<>1,"",Q28=1,I28+(3*D28)) ->  | L28: =_xlfn.IFS(Q28<>1,"",COUNT($E$7:G28)<=hcpng,"",COUNT($E$7:G28)>=hcpng,K28) ->  | M28: =_xlfn.IFS(Q28=1,SUM($E$7:G28),Q28<>1,"") ->  | N28: =_xlfn.IFS(Q28=1,COUNT($E$7:G28),Q28<>1,"") ->  | O28: =IF(Q28=1,ROUND(AVERAGE($E$7:G28),2),"") ->  | P28: =_xlfn.IFS(Q28<>1,"",SUM($Q$7:Q28)=1,1,SUM($Q$7:Q28)<>1,"") ->  | S28: =_xlfn.IFS(E28=$X$5,E28,F28=$X$5,F28,G28=$X$5,G28,$A$7=1,"") -> 0 | U28: =_xlfn.IFS(W28=$X$6,W28,X28=$X$6,X28,Y28=$X$6,Y28,$A$7=1,"") ->  | W28: =_xlfn.IFS(AND(Q28=1,COUNT($E$7:G28)>hcpng),E28+D28,$A$7=1," ") ->  | X28: =_xlfn.IFS(AND(Q28=1,COUNT($E$7:G28)>hcpng),F28+D28,$A$7=1," ") ->  | Y28: =_xlfn.IFS(AND(Q28=1,COUNT($E$7:G28)>hcpng),G28+D28,$A$7=1," ") ->  | Z28: 0 | AA28: =_xlfn.IFS(COUNTIFS(H28,"#",H27,"#"),A27,COUNTIFS(H28,2,H27,"#"),A27,$A$7=1,"") -> 
A29: 23 | B29: 2024-02-21 | C29: =_xlfn.IFS(Q29<>1,"",AND($B$4>=1,COUNT($E$7:G29)<=bkng),$B$4,P29=1,TRUNC(AVERAGE(E29:G29),0),COUNT($Q$7:Q29)=2,TRUNC(AVERAGE($E$7:G28),0),COUNT($Q$7:Q29)>=3,TRUNC(AVERAGE($E$7:G28),0)) ->  | D29: =_xlfn.IFS(Q29<>1,"",Q29=1,TRUNC((HCPB-C29)*HCPPC)) ->  | H29: =_xlfn.IFS(COUNT(E29:G29)<1,"",AND(E29>C29,F29>C29,G29>C29,COUNT($E$7:G29)>sixng),"#",AND(E29>C28,F29>C28,G29>C28,COUNT($E$7:G29)>sixng,COUNTIF(H28,"#")=1),"2",$A$7=1,"") ->  | K29: =_xlfn.IFS(Q29<>1,"",Q29=1,I29+(3*D29)) ->  | L29: =_xlfn.IFS(Q29<>1,"",COUNT($E$7:G29)<=hcpng,"",COUNT($E$7:G29)>=hcpng,K29) ->  | M29: =_xlfn.IFS(Q29=1,SUM($E$7:G29),Q29<>1,"") ->  | N29: =_xlfn.IFS(Q29=1,COUNT($E$7:G29),Q29<>1,"") ->  | O29: =IF(Q29=1,ROUND(AVERAGE($E$7:G29),2),"") ->  | P29: =_xlfn.IFS(Q29<>1,"",SUM($Q$7:Q29)=1,1,SUM($Q$7:Q29)<>1,"") ->  | S29: =_xlfn.IFS(E29=$X$5,E29,F29=$X$5,F29,G29=$X$5,G29,$A$7=1,"") -> 0 | U29: =_xlfn.IFS(W29=$X$6,W29,X29=$X$6,X29,Y29=$X$6,Y29,$A$7=1,"") ->  | W29: =_xlfn.IFS(AND(Q29=1,COUNT($E$7:G29)>hcpng),E29+D29,$A$7=1," ") ->  | X29: =_xlfn.IFS(AND(Q29=1,COUNT($E$7:G29)>hcpng),F29+D29,$A$7=1," ") ->  | Y29: =_xlfn.IFS(AND(Q29=1,COUNT($E$7:G29)>hcpng),G29+D29,$A$7=1," ") ->  | Z29: 0 | AA29: =_xlfn.IFS(COUNTIFS(H29,"#",H28,"#"),A28,COUNTIFS(H29,2,H28,"#"),A28,$A$7=1,"") -> 
A30: 24 | B30: 2024-02-28 | C30: =_xlfn.IFS(Q30<>1,"",AND($B$4>=1,COUNT($E$7:G30)<=bkng),$B$4,P30=1,TRUNC(AVERAGE(E30:G30),0),COUNT($Q$7:Q30)=2,TRUNC(AVERAGE($E$7:G29),0),COUNT($Q$7:Q30)>=3,TRUNC(AVERAGE($E$7:G29),0)) ->  | D30: =_xlfn.IFS(Q30<>1,"",Q30=1,TRUNC((HCPB-C30)*HCPPC)) ->  | H30: =_xlfn.IFS(COUNT(E30:G30)<1,"",AND(E30>C30,F30>C30,G30>C30,COUNT($E$7:G30)>sixng),"#",AND(E30>C29,F30>C29,G30>C29,COUNT($E$7:G30)>sixng,COUNTIF(H29,"#")=1),"2",$A$7=1,"") ->  | K30: =_xlfn.IFS(Q30<>1,"",Q30=1,I30+(3*D30)) ->  | L30: =_xlfn.IFS(Q30<>1,"",COUNT($E$7:G30)<=hcpng,"",COUNT($E$7:G30)>=hcpng,K30) ->  | M30: =_xlfn.IFS(Q30=1,SUM($E$7:G30),Q30<>1,"") ->  | N30: =_xlfn.IFS(Q30=1,COUNT($E$7:G30),Q30<>1,"") ->  | O30: =IF(Q30=1,ROUND(AVERAGE($E$7:G30),2),"") ->  | P30: =_xlfn.IFS(Q30<>1,"",SUM($Q$7:Q30)=1,1,SUM($Q$7:Q30)<>1,"") ->  | S30: =_xlfn.IFS(E30=$X$5,E30,F30=$X$5,F30,G30=$X$5,G30,$A$7=1,"") -> 0 | U30: =_xlfn.IFS(W30=$X$6,W30,X30=$X$6,X30,Y30=$X$6,Y30,$A$7=1,"") ->  | W30: =_xlfn.IFS(AND(Q30=1,COUNT($E$7:G30)>hcpng),E30+D30,$A$7=1," ") ->  | X30: =_xlfn.IFS(AND(Q30=1,COUNT($E$7:G30)>hcpng),F30+D30,$A$7=1," ") ->  | Y30: =_xlfn.IFS(AND(Q30=1,COUNT($E$7:G30)>hcpng),G30+D30,$A$7=1," ") ->  | Z30: 0 | AA30: =_xlfn.IFS(COUNTIFS(H30,"#",H29,"#"),A29,COUNTIFS(H30,2,H29,"#"),A29,$A$7=1,"") -> 
A31: 25 | B31: 2024-03-06 | C31: =_xlfn.IFS(Q31<>1,"",AND($B$4>=1,COUNT($E$7:G31)<=bkng),$B$4,P31=1,TRUNC(AVERAGE(E31:G31),0),COUNT($Q$7:Q31)=2,TRUNC(AVERAGE($E$7:G30),0),COUNT($Q$7:Q31)>=3,TRUNC(AVERAGE($E$7:G30),0)) ->  | D31: =_xlfn.IFS(Q31<>1,"",Q31=1,TRUNC((HCPB-C31)*HCPPC)) ->  | H31: =_xlfn.IFS(COUNT(E31:G31)<1,"",AND(E31>C31,F31>C31,G31>C31,COUNT($E$7:G31)>sixng),"#",AND(E31>C30,F31>C30,G31>C30,COUNT($E$7:G31)>sixng,COUNTIF(H30,"#")=1),"2",$A$7=1,"") ->  | K31: =_xlfn.IFS(Q31<>1,"",Q31=1,I31+(3*D31)) ->  | L31: =_xlfn.IFS(Q31<>1,"",COUNT($E$7:G31)<=hcpng,"",COUNT($E$7:G31)>=hcpng,K31) ->  | M31: =_xlfn.IFS(Q31=1,SUM($E$7:G31),Q31<>1,"") ->  | N31: =_xlfn.IFS(Q31=1,COUNT($E$7:G31),Q31<>1,"") ->  | O31: =IF(Q31=1,ROUND(AVERAGE($E$7:G31),2),"") ->  | P31: =_xlfn.IFS(Q31<>1,"",SUM($Q$7:Q31)=1,1,SUM($Q$7:Q31)<>1,"") ->  | S31: =_xlfn.IFS(E31=$X$5,E31,F31=$X$5,F31,G31=$X$5,G31,$A$7=1,"") -> 0 | U31: =_xlfn.IFS(W31=$X$6,W31,X31=$X$6,X31,Y31=$X$6,Y31,$A$7=1,"") ->  | W31: =_xlfn.IFS(AND(Q31=1,COUNT($E$7:G31)>hcpng),E31+D31,$A$7=1," ") ->  | X31: =_xlfn.IFS(AND(Q31=1,COUNT($E$7:G31)>hcpng),F31+D31,$A$7=1," ") ->  | Y31: =_xlfn.IFS(AND(Q31=1,COUNT($E$7:G31)>hcpng),G31+D31,$A$7=1," ") ->  | Z31: 0 | AA31: =_xlfn.IFS(COUNTIFS(H31,"#",H30,"#"),A30,COUNTIFS(H31,2,H30,"#"),A30,$A$7=1,"") -> 
A32: 26 | B32: 2024-03-13 | C32: =_xlfn.IFS(Q32<>1,"",AND($B$4>=1,COUNT($E$7:G32)<=bkng),$B$4,P32=1,TRUNC(AVERAGE(E32:G32),0),COUNT($Q$7:Q32)=2,TRUNC(AVERAGE($E$7:G31),0),COUNT($Q$7:Q32)>=3,TRUNC(AVERAGE($E$7:G31),0)) ->  | D32: =_xlfn.IFS(Q32<>1,"",Q32=1,TRUNC((HCPB-C32)*HCPPC)) ->  | H32: =_xlfn.IFS(COUNT(E32:G32)<1,"",AND(E32>C32,F32>C32,G32>C32,COUNT($E$7:G32)>sixng),"#",AND(E32>C31,F32>C31,G32>C31,COUNT($E$7:G32)>sixng,COUNTIF(H31,"#")=1),"2",$A$7=1,"") ->  | K32: =_xlfn.IFS(Q32<>1,"",Q32=1,I32+(3*D32)) ->  | L32: =_xlfn.IFS(Q32<>1,"",COUNT($E$7:G32)<=hcpng,"",COUNT($E$7:G32)>=hcpng,K32) ->  | M32: =_xlfn.IFS(Q32=1,SUM($E$7:G32),Q32<>1,"") ->  | N32: =_xlfn.IFS(Q32=1,COUNT($E$7:G32),Q32<>1,"") ->  | O32: =IF(Q32=1,ROUND(AVERAGE($E$7:G32),2),"") ->  | P32: =_xlfn.IFS(Q32<>1,"",SUM($Q$7:Q32)=1,1,SUM($Q$7:Q32)<>1,"") ->  | S32: =_xlfn.IFS(E32=$X$5,E32,F32=$X$5,F32,G32=$X$5,G32,$A$7=1,"") -> 0 | U32: =_xlfn.IFS(W32=$X$6,W32,X32=$X$6,X32,Y32=$X$6,Y32,$A$7=1,"") ->  | W32: =_xlfn.IFS(AND(Q32=1,COUNT($E$7:G32)>hcpng),E32+D32,$A$7=1," ") ->  | X32: =_xlfn.IFS(AND(Q32=1,COUNT($E$7:G32)>hcpng),F32+D32,$A$7=1," ") ->  | Y32: =_xlfn.IFS(AND(Q32=1,COUNT($E$7:G32)>hcpng),G32+D32,$A$7=1," ") ->  | Z32: 0 | AA32: =_xlfn.IFS(COUNTIFS(H32,"#",H31,"#"),A31,COUNTIFS(H32,2,H31,"#"),A31,$A$7=1,"") -> 
A33: 27 | B33: 2024-03-20 | C33: =_xlfn.IFS(Q33<>1,"",AND($B$4>=1,COUNT($E$7:G33)<=bkng),$B$4,P33=1,TRUNC(AVERAGE(E33:G33),0),COUNT($Q$7:Q33)=2,TRUNC(AVERAGE($E$7:G32),0),COUNT($Q$7:Q33)>=3,TRUNC(AVERAGE($E$7:G32),0)) ->  | D33: =_xlfn.IFS(Q33<>1,"",Q33=1,TRUNC((HCPB-C33)*HCPPC)) ->  | H33: =_xlfn.IFS(COUNT(E33:G33)<1,"",AND(E33>C33,F33>C33,G33>C33,COUNT($E$7:G33)>sixng),"#",AND(E33>C32,F33>C32,G33>C32,COUNT($E$7:G33)>sixng,COUNTIF(H32,"#")=1),"2",$A$7=1,"") ->  | K33: =_xlfn.IFS(Q33<>1,"",Q33=1,I33+(3*D33)) ->  | L33: =_xlfn.IFS(Q33<>1,"",COUNT($E$7:G33)<=hcpng,"",COUNT($E$7:G33)>=hcpng,K33) ->  | M33: =_xlfn.IFS(Q33=1,SUM($E$7:G33),Q33<>1,"") ->  | N33: =_xlfn.IFS(Q33=1,COUNT($E$7:G33),Q33<>1,"") ->  | O33: =IF(Q33=1,ROUND(AVERAGE($E$7:G33),2),"") ->  | P33: =_xlfn.IFS(Q33<>1,"",SUM($Q$7:Q33)=1,1,SUM($Q$7:Q33)<>1,"") ->  | S33: =_xlfn.IFS(E33=$X$5,E33,F33=$X$5,F33,G33=$X$5,G33,$A$7=1,"") -> 0 | U33: =_xlfn.IFS(W33=$X$6,W33,X33=$X$6,X33,Y33=$X$6,Y33,$A$7=1,"") ->  | W33: =_xlfn.IFS(AND(Q33=1,COUNT($E$7:G33)>hcpng),E33+D33,$A$7=1," ") ->  | X33: =_xlfn.IFS(AND(Q33=1,COUNT($E$7:G33)>hcpng),F33+D33,$A$7=1," ") ->  | Y33: =_xlfn.IFS(AND(Q33=1,COUNT($E$7:G33)>hcpng),G33+D33,$A$7=1," ") ->  | Z33: 0 | AA33: =_xlfn.IFS(COUNTIFS(H33,"#",H32,"#"),A32,COUNTIFS(H33,2,H32,"#"),A32,$A$7=1,"") -> 
A34: 28 | B34: 2024-03-27 | C34: =_xlfn.IFS(Q34<>1,"",AND($B$4>=1,COUNT($E$7:G34)<=bkng),$B$4,P34=1,TRUNC(AVERAGE(E34:G34),0),COUNT($Q$7:Q34)=2,TRUNC(AVERAGE($E$7:G33),0),COUNT($Q$7:Q34)>=3,TRUNC(AVERAGE($E$7:G33),0)) ->  | D34: =_xlfn.IFS(Q34<>1,"",Q34=1,TRUNC((HCPB-C34)*HCPPC)) ->  | H34: =_xlfn.IFS(COUNT(E34:G34)<1,"",AND(E34>C34,F34>C34,G34>C34,COUNT($E$7:G34)>sixng),"#",AND(E34>C33,F34>C33,G34>C33,COUNT($E$7:G34)>sixng,COUNTIF(H33,"#")=1),"2",$A$7=1,"") ->  | K34: =_xlfn.IFS(Q34<>1,"",Q34=1,I34+(3*D34)) ->  | L34: =_xlfn.IFS(Q34<>1,"",COUNT($E$7:G34)<=hcpng,"",COUNT($E$7:G34)>=hcpng,K34) ->  | M34: =_xlfn.IFS(Q34=1,SUM($E$7:G34),Q34<>1,"") ->  | N34: =_xlfn.IFS(Q34=1,COUNT($E$7:G34),Q34<>1,"") ->  | O34: =IF(Q34=1,ROUND(AVERAGE($E$7:G34),2),"") ->  | P34: =_xlfn.IFS(Q34<>1,"",SUM($Q$7:Q34)=1,1,SUM($Q$7:Q34)<>1,"") ->  | S34: =_xlfn.IFS(E34=$X$5,E34,F34=$X$5,F34,G34=$X$5,G34,$A$7=1,"") -> 0 | U34: =_xlfn.IFS(W34=$X$6,W34,X34=$X$6,X34,Y34=$X$6,Y34,$A$7=1,"") ->  | W34: =_xlfn.IFS(AND(Q34=1,COUNT($E$7:G34)>hcpng),E34+D34,$A$7=1," ") ->  | X34: =_xlfn.IFS(AND(Q34=1,COUNT($E$7:G34)>hcpng),F34+D34,$A$7=1," ") ->  | Y34: =_xlfn.IFS(AND(Q34=1,COUNT($E$7:G34)>hcpng),G34+D34,$A$7=1," ") ->  | Z34: 0 | AA34: =_xlfn.IFS(COUNTIFS(H34,"#",H33,"#"),A33,COUNTIFS(H34,2,H33,"#"),A33,$A$7=1,"") -> 
A35: 29 | B35: 2024-04-03 | C35: =_xlfn.IFS(Q35<>1,"",AND($B$4>=1,COUNT($E$7:G35)<=bkng),$B$4,P35=1,TRUNC(AVERAGE(E35:G35),0),COUNT($Q$7:Q35)=2,TRUNC(AVERAGE($E$7:G34),0),COUNT($Q$7:Q35)>=3,TRUNC(AVERAGE($E$7:G34),0)) ->  | D35: =_xlfn.IFS(Q35<>1,"",Q35=1,TRUNC((HCPB-C35)*HCPPC)) ->  | H35: =_xlfn.IFS(COUNT(E35:G35)<1,"",AND(E35>C35,F35>C35,G35>C35,COUNT($E$7:G35)>sixng),"#",AND(E35>C34,F35>C34,G35>C34,COUNT($E$7:G35)>sixng,COUNTIF(H34,"#")=1),"2",$A$7=1,"") ->  | K35: =_xlfn.IFS(Q35<>1,"",Q35=1,I35+(3*D35)) ->  | L35: =_xlfn.IFS(Q35<>1,"",COUNT($E$7:G35)<=hcpng,"",COUNT($E$7:G35)>=hcpng,K35) ->  | M35: =_xlfn.IFS(Q35=1,SUM($E$7:G35),Q35<>1,"") ->  | N35: =_xlfn.IFS(Q35=1,COUNT($E$7:G35),Q35<>1,"") ->  | O35: =IF(Q35=1,ROUND(AVERAGE($E$7:G35),2),"") ->  | P35: =_xlfn.IFS(Q35<>1,"",SUM($Q$7:Q35)=1,1,SUM($Q$7:Q35)<>1,"") ->  | S35: =_xlfn.IFS(E35=$X$5,E35,F35=$X$5,F35,G35=$X$5,G35,$A$7=1,"") -> 0 | U35: =_xlfn.IFS(W35=$X$6,W35,X35=$X$6,X35,Y35=$X$6,Y35,$A$7=1,"") ->  | W35: =_xlfn.IFS(AND(Q35=1,COUNT($E$7:G35)>hcpng),E35+D35,$A$7=1," ") ->  | X35: =_xlfn.IFS(AND(Q35=1,COUNT($E$7:G35)>hcpng),F35+D35,$A$7=1," ") ->  | Y35: =_xlfn.IFS(AND(Q35=1,COUNT($E$7:G35)>hcpng),G35+D35,$A$7=1," ") ->  | Z35: 0 | AA35: =_xlfn.IFS(COUNTIFS(H35,"#",H34,"#"),A34,COUNTIFS(H35,2,H34,"#"),A34,$A$7=1,"") -> 
A36: 30 | B36: 2024-04-10 | C36: =_xlfn.IFS(Q36<>1,"",AND($B$4>=1,COUNT($E$7:G36)<=bkng),$B$4,P36=1,TRUNC(AVERAGE(E36:G36),0),COUNT($Q$7:Q36)=2,TRUNC(AVERAGE($E$7:G35),0),COUNT($Q$7:Q36)>=3,TRUNC(AVERAGE($E$7:G35),0)) ->  | D36: =_xlfn.IFS(Q36<>1,"",Q36=1,TRUNC((HCPB-C36)*HCPPC)) ->  | H36: =_xlfn.IFS(COUNT(E36:G36)<1,"",AND(E36>C36,F36>C36,G36>C36,COUNT($E$7:G36)>sixng),"#",AND(E36>C35,F36>C35,G36>C35,COUNT($E$7:G36)>sixng,COUNTIF(H35,"#")=1),"2",$A$7=1,"") ->  | K36: =_xlfn.IFS(Q36<>1,"",Q36=1,I36+(3*D36)) ->  | L36: =_xlfn.IFS(Q36<>1,"",COUNT($E$7:G36)<=hcpng,"",COUNT($E$7:G36)>=hcpng,K36) ->  | M36: =_xlfn.IFS(Q36=1,SUM($E$7:G36),Q36<>1,"") ->  | N36: =_xlfn.IFS(Q36=1,COUNT($E$7:G36),Q36<>1,"") ->  | O36: =IF(Q36=1,ROUND(AVERAGE($E$7:G36),2),"") ->  | P36: =_xlfn.IFS(Q36<>1,"",SUM($Q$7:Q36)=1,1,SUM($Q$7:Q36)<>1,"") ->  | S36: =_xlfn.IFS(E36=$X$5,E36,F36=$X$5,F36,G36=$X$5,G36,$A$7=1,"") -> 0 | U36: =_xlfn.IFS(W36=$X$6,W36,X36=$X$6,X36,Y36=$X$6,Y36,$A$7=1,"") ->  | W36: =_xlfn.IFS(AND(Q36=1,COUNT($E$7:G36)>hcpng),E36+D36,$A$7=1," ") ->  | X36: =_xlfn.IFS(AND(Q36=1,COUNT($E$7:G36)>hcpng),F36+D36,$A$7=1," ") ->  | Y36: =_xlfn.IFS(AND(Q36=1,COUNT($E$7:G36)>hcpng),G36+D36,$A$7=1," ") ->  | Z36: 0 | AA36: =_xlfn.IFS(COUNTIFS(H36,"#",H35,"#"),A35,COUNTIFS(H36,2,H35,"#"),A35,$A$7=1,"") -> 
E37: =IF(COUNT(E7:E36)>=1,ROUND(SUM(E7:E36)/COUNT(E7:E36),2),"") ->  | F37: =IF(COUNT(F7:F36)>=1,ROUND(SUM(F7:F36)/COUNT(F7:F36),2),"") ->  | G37: =IF(COUNT(G7:G36)>=1,ROUND(SUM(G7:G36)/COUNT(G7:G36),2),"") -> 
E39: CSCUSBC ACHIEVEMENT AWARDS 2023-2024
F40: (each award can be earned one time only)(per season)
E41: games | O41: series
C42: 125 | D42: 150 | E42: 175 | F42: 200 | G42: 225 | I42: 250 | J42: 275 | K42: 75og | M42: 300 | N42: 400 | O42: 500 | R42: 600 | S42: 700 | T42: 140os
A43: 1 | B43: =Date2 -> 2023-09-06 | C43: =_xlfn.IFS(COUNT($E$7:$G7)<=hcpma,"",AND(OR(AND($E7>=G125L,$E7<G125U),AND($F7>=G125L,$F7<G125U),AND($G7>=G125L,$G7<G125U)),$C7<=G125AL),"X",10<11,"") ->  | D43: =_xlfn.IFS(COUNT($E$7:$G7)<=hcpma,"",AND(OR(AND($E7>=G150L,$E7<G150U),AND($F7>=G150L,$F7<G150U),AND($G7>=G150L,$G7<G150U)),$C7<=G150AL),"X",10<11,"") ->  | E43: =_xlfn.IFS(COUNT($E$7:$G7)<=hcpma,"",AND(OR(AND($E7>=G175L,$E7<G175U),AND($F7>=G175L,$F7<G175U),AND($G7>=G175L,$G7<G175U)),$C7<=G175AL),"X",10<11,"") ->  | F43: =_xlfn.IFS(COUNT($E$7:$G7)<=hcpma,"",AND(OR(AND($E7>=G200L,$E7<G200U),AND($F7>=G200L,$F7<G200U),AND($G7>=G200L,$G7<G200U)),$C7<=G200AL),"X",10<11,"") ->  | G43: =_xlfn.IFS(COUNT($E$7:$G7)<=hcpma,"",AND(OR(AND($E7>=G225L,$E7<G225U),AND($F7>=G225L,$F7<G225U),AND($G7>=G225L,$G7<G225U)),$C7<=G225AL),"X",10<11,"") ->  | I43: =_xlfn.IFS(COUNT($E$7:$G7)<=hcpma,"",AND(OR(AND($E7>=G250L,$E7<G250U),AND($F7>=G250L,$F7<G250U),AND($G7>=G250L,$G7<G250U)),$C7<=G250AL),"X",10<11,"") ->  | J43: =_xlfn.IFS(COUNT($E$7:$G7)<=hcpma,"",AND(OR(AND($E7>=G275L,$E7<=G275U),AND($F7>=G275L,$F7<=G275U),AND($G7>=G275L,$G7<=G275U)),$C7<=G275AL),"X",10<11,"") ->  | K43: =_xlfn.IFS(COUNT(E7:G7)<=0,"",AND(COUNT($E$7:$G7)>hcpma,OR(E7>=(C7+G75OV),F7>=(C7+G75OV),G7>=(C7+G75OV))),"X",10<11,"") ->  | M43: =_xlfn.IFS(COUNT($E$7:$G7)<=hcpma,"",AND( AND($I7>=S300L,$I7<S300U), $C7<=S300AL),"X",10<11,"") ->  | N43: =_xlfn.IFS(COUNT($E$7:$G7)<=hcpma,"",AND( AND($I7>=S400L,$I7<S400U), $C7<=S400AL),"X",10<11,"") ->  | O43: =_xlfn.IFS(COUNT($E$7:$G7)<=hcpma,"",AND( AND($I7>=S500L,$I7<S500U), $C7<=S500AL),"X",10<11,"") ->  | R43: =_xlfn.IFS(COUNT($E$7:$G7)<=hcpma,"",AND( AND($I7>=S600L,$I7<S600U), $C7<=S600AL),"X",10<11,"") ->  | S43: =_xlfn.IFS(COUNT($E$7:$G7)<=hcpma,"",AND( AND($I7>=S700L,$I7<S700U), $C7<=S700AL),"X",10<11,"") ->  | T43: =_xlfn.IFS(COUNT($E$7:$G7)<=hcpma,"",SUM($E7:$G7)<1,"",$I7>=3*$C7+S140ov,"X",10<11,"") -> 
A44: 2 | B44: 2023-09-13 | C44: =_xlfn.IFS(COUNT($E$7:$G8)<=hcpma,"",AND(OR(AND($E8>=G125L,$E8<G125U),AND($F8>=G125L,$F8<G125U),AND($G8>=G125L,$G8<G125U)),$C8<=G125AL),"X",10<11,"") ->  | D44: =_xlfn.IFS(COUNT($E$7:$G8)<=hcpma,"",AND(OR(AND($E8>=G150L,$E8<G150U),AND($F8>=G150L,$F8<G150U),AND($G8>=G150L,$G8<G150U)),$C8<=G150AL),"X",10<11,"") ->  | E44: =_xlfn.IFS(COUNT($E$7:$G8)<=hcpma,"",AND(OR(AND($E8>=G175L,$E8<G175U),AND($F8>=G175L,$F8<G175U),AND($G8>=G175L,$G8<G175U)),$C8<=G175AL),"X",10<11,"") ->  | F44: =_xlfn.IFS(COUNT($E$7:$G8)<=hcpma,"",AND(OR(AND($E8>=G200L,$E8<G200U),AND($F8>=G200L,$F8<G200U),AND($G8>=G200L,$G8<G200U)),$C8<=G200AL),"X",10<11,"") ->  | G44: =_xlfn.IFS(COUNT($E$7:$G8)<=hcpma,"",AND(OR(AND($E8>=G225L,$E8<G225U),AND($F8>=G225L,$F8<G225U),AND($G8>=G225L,$G8<G225U)),$C8<=G225AL),"X",10<11,"") ->  | I44: =_xlfn.IFS(COUNT($E$7:$G8)<=hcpma,"",AND(OR(AND($E8>=G250L,$E8<G250U),AND($F8>=G250L,$F8<G250U),AND($G8>=G250L,$G8<G250U)),$C8<=G250AL),"X",10<11,"") ->  | J44: =_xlfn.IFS(COUNT($E$7:$G8)<=hcpma,"",AND(OR(AND($E8>=G275L,$E8<=G275U),AND($F8>=G275L,$F8<=G275U),AND($G8>=G275L,$G8<=G275U)),$C8<=G275AL),"X",10<11,"") ->  | K44: =_xlfn.IFS(COUNT(E8:G8)<=0,"",AND(COUNT($E$7:$G8)>hcpma,OR(E8>=(C8+G75OV),F8>=(C8+G75OV),G8>=(C8+G75OV))),"X",10<11,"") ->  | M44: =_xlfn.IFS(COUNT($E$7:$G8)<=hcpma,"",AND( AND($I8>=S300L,$I8<S300U), $C8<=S300AL),"X",10<11,"") ->  | N44: =_xlfn.IFS(COUNT($E$7:$G8)<=hcpma,"",AND( AND($I8>=S400L,$I8<S400U), $C8<=S400AL),"X",10<11,"") ->  | O44: =_xlfn.IFS(COUNT($E$7:$G8)<=hcpma,"",AND( AND($I8>=S500L,$I8<S500U), $C8<=S500AL),"X",10<11,"") ->  | R44: =_xlfn.IFS(COUNT($E$7:$G8)<=hcpma,"",AND( AND($I8>=S600L,$I8<S600U), $C8<=S600AL),"X",10<11,"") ->  | S44: =_xlfn.IFS(COUNT($E$7:$G8)<=hcpma,"",AND( AND($I8>=S700L,$I8<S700U), $C8<=S700AL),"X",10<11,"") ->  | T44: =_xlfn.IFS(COUNT($E$7:$G8)<=hcpma,"",SUM($E8:$G8)<1,"",$I8>=3*$C8+S140ov,"X",10<11,"") -> 
A45: 3 | B45: 2023-09-20 | C45: =_xlfn.IFS(COUNT($E$7:$G9)<=hcpma,"",AND(OR(AND($E9>=G125L,$E9<G125U),AND($F9>=G125L,$F9<G125U),AND($G9>=G125L,$G9<G125U)),$C9<=G125AL),"X",10<11,"") ->  | D45: =_xlfn.IFS(COUNT($E$7:$G9)<=hcpma,"",AND(OR(AND($E9>=G150L,$E9<G150U),AND($F9>=G150L,$F9<G150U),AND($G9>=G150L,$G9<G150U)),$C9<=G150AL),"X",10<11,"") ->  | E45: =_xlfn.IFS(COUNT($E$7:$G9)<=hcpma,"",AND(OR(AND($E9>=G175L,$E9<G175U),AND($F9>=G175L,$F9<G175U),AND($G9>=G175L,$G9<G175U)),$C9<=G175AL),"X",10<11,"") ->  | F45: =_xlfn.IFS(COUNT($E$7:$G9)<=hcpma,"",AND(OR(AND($E9>=G200L,$E9<G200U),AND($F9>=G200L,$F9<G200U),AND($G9>=G200L,$G9<G200U)),$C9<=G200AL),"X",10<11,"") ->  | G45: =_xlfn.IFS(COUNT($E$7:$G9)<=hcpma,"",AND(OR(AND($E9>=G225L,$E9<G225U),AND($F9>=G225L,$F9<G225U),AND($G9>=G225L,$G9<G225U)),$C9<=G225AL),"X",10<11,"") ->  | I45: =_xlfn.IFS(COUNT($E$7:$G9)<=hcpma,"",AND(OR(AND($E9>=G250L,$E9<G250U),AND($F9>=G250L,$F9<G250U),AND($G9>=G250L,$G9<G250U)),$C9<=G250AL),"X",10<11,"") ->  | J45: =_xlfn.IFS(COUNT($E$7:$G9)<=hcpma,"",AND(OR(AND($E9>=G275L,$E9<=G275U),AND($F9>=G275L,$F9<=G275U),AND($G9>=G275L,$G9<=G275U)),$C9<=G275AL),"X",10<11,"") ->  | K45: =_xlfn.IFS(COUNT(E9:G9)<=0,"",AND(COUNT($E$7:$G9)>hcpma,OR(E9>=(C9+G75OV),F9>=(C9+G75OV),G9>=(C9+G75OV))),"X",10<11,"") ->  | M45: =_xlfn.IFS(COUNT($E$7:$G9)<=hcpma,"",AND( AND($I9>=S300L,$I9<S300U), $C9<=S300AL),"X",10<11,"") ->  | N45: =_xlfn.IFS(COUNT($E$7:$G9)<=hcpma,"",AND( AND($I9>=S400L,$I9<S400U), $C9<=S400AL),"X",10<11,"") ->  | O45: =_xlfn.IFS(COUNT($E$7:$G9)<=hcpma,"",AND( AND($I9>=S500L,$I9<S500U), $C9<=S500AL),"X",10<11,"") ->  | R45: =_xlfn.IFS(COUNT($E$7:$G9)<=hcpma,"",AND( AND($I9>=S600L,$I9<S600U), $C9<=S600AL),"X",10<11,"") ->  | S45: =_xlfn.IFS(COUNT($E$7:$G9)<=hcpma,"",AND( AND($I9>=S700L,$I9<S700U), $C9<=S700AL),"X",10<11,"") ->  | T45: =_xlfn.IFS(COUNT($E$7:$G9)<=hcpma,"",SUM($E9:$G9)<1,"",$I9>=3*$C9+S140ov,"X",10<11,"") -> 
A46: 4 | B46: 2023-09-27 | C46: =_xlfn.IFS(COUNT($E$7:$G10)<=hcpma,"",AND(OR(AND($E10>=G125L,$E10<G125U),AND($F10>=G125L,$F10<G125U),AND($G10>=G125L,$G10<G125U)),$C10<=G125AL),"X",10<11,"") ->  | D46: =_xlfn.IFS(COUNT($E$7:$G10)<=hcpma,"",AND(OR(AND($E10>=G150L,$E10<G150U),AND($F10>=G150L,$F10<G150U),AND($G10>=G150L,$G10<G150U)),$C10<=G150AL),"X",10<11,"") ->  | E46: =_xlfn.IFS(COUNT($E$7:$G10)<=hcpma,"",AND(OR(AND($E10>=G175L,$E10<G175U),AND($F10>=G175L,$F10<G175U),AND($G10>=G175L,$G10<G175U)),$C10<=G175AL),"X",10<11,"") ->  | F46: =_xlfn.IFS(COUNT($E$7:$G10)<=hcpma,"",AND(OR(AND($E10>=G200L,$E10<G200U),AND($F10>=G200L,$F10<G200U),AND($G10>=G200L,$G10<G200U)),$C10<=G200AL),"X",10<11,"") ->  | G46: =_xlfn.IFS(COUNT($E$7:$G10)<=hcpma,"",AND(OR(AND($E10>=G225L,$E10<G225U),AND($F10>=G225L,$F10<G225U),AND($G10>=G225L,$G10<G225U)),$C10<=G225AL),"X",10<11,"") ->  | I46: =_xlfn.IFS(COUNT($E$7:$G10)<=hcpma,"",AND(OR(AND($E10>=G250L,$E10<G250U),AND($F10>=G250L,$F10<G250U),AND($G10>=G250L,$G10<G250U)),$C10<=G250AL),"X",10<11,"") ->  | J46: =_xlfn.IFS(COUNT($E$7:$G10)<=hcpma,"",AND(OR(AND($E10>=G275L,$E10<=G275U),AND($F10>=G275L,$F10<=G275U),AND($G10>=G275L,$G10<=G275U)),$C10<=G275AL),"X",10<11,"") ->  | K46: =_xlfn.IFS(COUNT(E10:G10)<=0,"",AND(COUNT($E$7:$G10)>hcpma,OR(E10>=(C10+G75OV),F10>=(C10+G75OV),G10>=(C10+G75OV))),"X",10<11,"") ->  | M46: =_xlfn.IFS(COUNT($E$7:$G10)<=hcpma,"",AND( AND($I10>=S300L,$I10<S300U), $C10<=S300AL),"X",10<11,"") ->  | N46: =_xlfn.IFS(COUNT($E$7:$G10)<=hcpma,"",AND( AND($I10>=S400L,$I10<S400U), $C10<=S400AL),"X",10<11,"") ->  | O46: =_xlfn.IFS(COUNT($E$7:$G10)<=hcpma,"",AND( AND($I10>=S500L,$I10<S500U), $C10<=S500AL),"X",10<11,"") ->  | R46: =_xlfn.IFS(COUNT($E$7:$G10)<=hcpma,"",AND( AND($I10>=S600L,$I10<S600U), $C10<=S600AL),"X",10<11,"") ->  | S46: =_xlfn.IFS(COUNT($E$7:$G10)<=hcpma,"",AND( AND($I10>=S700L,$I10<S700U), $C10<=S700AL),"X",10<11,"") ->  | T46: =_xlfn.IFS(COUNT($E$7:$G10)<=hcpma,"",SUM($E10:$G10)<1,"",$I10>=3*$C10+S140ov,"X",10<11,"") -> 
A47: 5 | B47: 2023-10-04 | C47: =_xlfn.IFS(COUNT($E$7:$G11)<=hcpma,"",AND(OR(AND($E11>=G125L,$E11<G125U),AND($F11>=G125L,$F11<G125U),AND($G11>=G125L,$G11<G125U)),$C11<=G125AL),"X",10<11,"") ->  | D47: =_xlfn.IFS(COUNT($E$7:$G11)<=hcpma,"",AND(OR(AND($E11>=G150L,$E11<G150U),AND($F11>=G150L,$F11<G150U),AND($G11>=G150L,$G11<G150U)),$C11<=G150AL),"X",10<11,"") ->  | E47: =_xlfn.IFS(COUNT($E$7:$G11)<=hcpma,"",AND(OR(AND($E11>=G175L,$E11<G175U),AND($F11>=G175L,$F11<G175U),AND($G11>=G175L,$G11<G175U)),$C11<=G175AL),"X",10<11,"") ->  | F47: =_xlfn.IFS(COUNT($E$7:$G11)<=hcpma,"",AND(OR(AND($E11>=G200L,$E11<G200U),AND($F11>=G200L,$F11<G200U),AND($G11>=G200L,$G11<G200U)),$C11<=G200AL),"X",10<11,"") ->  | G47: =_xlfn.IFS(COUNT($E$7:$G11)<=hcpma,"",AND(OR(AND($E11>=G225L,$E11<G225U),AND($F11>=G225L,$F11<G225U),AND($G11>=G225L,$G11<G225U)),$C11<=G225AL),"X",10<11,"") ->  | I47: =_xlfn.IFS(COUNT($E$7:$G11)<=hcpma,"",AND(OR(AND($E11>=G250L,$E11<G250U),AND($F11>=G250L,$F11<G250U),AND($G11>=G250L,$G11<G250U)),$C11<=G250AL),"X",10<11,"") ->  | J47: =_xlfn.IFS(COUNT($E$7:$G11)<=hcpma,"",AND(OR(AND($E11>=G275L,$E11<=G275U),AND($F11>=G275L,$F11<=G275U),AND($G11>=G275L,$G11<=G275U)),$C11<=G275AL),"X",10<11,"") ->  | K47: =_xlfn.IFS(COUNT(E11:G11)<=0,"",AND(COUNT($E$7:$G11)>hcpma,OR(E11>=(C11+G75OV),F11>=(C11+G75OV),G11>=(C11+G75OV))),"X",10<11,"") ->  | M47: =_xlfn.IFS(COUNT($E$7:$G11)<=hcpma,"",AND( AND($I11>=S300L,$I11<S300U), $C11<=S300AL),"X",10<11,"") ->  | N47: =_xlfn.IFS(COUNT($E$7:$G11)<=hcpma,"",AND( AND($I11>=S400L,$I11<S400U), $C11<=S400AL),"X",10<11,"") ->  | O47: =_xlfn.IFS(COUNT($E$7:$G11)<=hcpma,"",AND( AND($I11>=S500L,$I11<S500U), $C11<=S500AL),"X",10<11,"") ->  | R47: =_xlfn.IFS(COUNT($E$7:$G11)<=hcpma,"",AND( AND($I11>=S600L,$I11<S600U), $C11<=S600AL),"X",10<11,"") ->  | S47: =_xlfn.IFS(COUNT($E$7:$G11)<=hcpma,"",AND( AND($I11>=S700L,$I11<S700U), $C11<=S700AL),"X",10<11,"") ->  | T47: =_xlfn.IFS(COUNT($E$7:$G11)<=hcpma,"",SUM($E11:$G11)<1,"",$I11>=3*$C11+S140ov,"X",10<11,"") -> 
A48: 6 | B48: 2023-10-11 | C48: =_xlfn.IFS(COUNT($E$7:$G12)<=hcpma,"",AND(OR(AND($E12>=G125L,$E12<G125U),AND($F12>=G125L,$F12<G125U),AND($G12>=G125L,$G12<G125U)),$C12<=G125AL),"X",10<11,"") ->  | D48: =_xlfn.IFS(COUNT($E$7:$G12)<=hcpma,"",AND(OR(AND($E12>=G150L,$E12<G150U),AND($F12>=G150L,$F12<G150U),AND($G12>=G150L,$G12<G150U)),$C12<=G150AL),"X",10<11,"") ->  | E48: =_xlfn.IFS(COUNT($E$7:$G12)<=hcpma,"",AND(OR(AND($E12>=G175L,$E12<G175U),AND($F12>=G175L,$F12<G175U),AND($G12>=G175L,$G12<G175U)),$C12<=G175AL),"X",10<11,"") ->  | F48: =_xlfn.IFS(COUNT($E$7:$G12)<=hcpma,"",AND(OR(AND($E12>=G200L,$E12<G200U),AND($F12>=G200L,$F12<G200U),AND($G12>=G200L,$G12<G200U)),$C12<=G200AL),"X",10<11,"") ->  | G48: =_xlfn.IFS(COUNT($E$7:$G12)<=hcpma,"",AND(OR(AND($E12>=G225L,$E12<G225U),AND($F12>=G225L,$F12<G225U),AND($G12>=G225L,$G12<G225U)),$C12<=G225AL),"X",10<11,"") ->  | I48: =_xlfn.IFS(COUNT($E$7:$G12)<=hcpma,"",AND(OR(AND($E12>=G250L,$E12<G250U),AND($F12>=G250L,$F12<G250U),AND($G12>=G250L,$G12<G250U)),$C12<=G250AL),"X",10<11,"") ->  | J48: =_xlfn.IFS(COUNT($E$7:$G12)<=hcpma,"",AND(OR(AND($E12>=G275L,$E12<=G275U),AND($F12>=G275L,$F12<=G275U),AND($G12>=G275L,$G12<=G275U)),$C12<=G275AL),"X",10<11,"") ->  | K48: =_xlfn.IFS(COUNT(E12:G12)<=0,"",AND(COUNT($E$7:$G12)>hcpma,OR(E12>=(C12+G75OV),F12>=(C12+G75OV),G12>=(C12+G75OV))),"X",10<11,"") ->  | M48: =_xlfn.IFS(COUNT($E$7:$G12)<=hcpma,"",AND( AND($I12>=S300L,$I12<S300U), $C12<=S300AL),"X",10<11,"") ->  | N48: =_xlfn.IFS(COUNT($E$7:$G12)<=hcpma,"",AND( AND($I12>=S400L,$I12<S400U), $C12<=S400AL),"X",10<11,"") ->  | O48: =_xlfn.IFS(COUNT($E$7:$G12)<=hcpma,"",AND( AND($I12>=S500L,$I12<S500U), $C12<=S500AL),"X",10<11,"") ->  | R48: =_xlfn.IFS(COUNT($E$7:$G12)<=hcpma,"",AND( AND($I12>=S600L,$I12<S600U), $C12<=S600AL),"X",10<11,"") ->  | S48: =_xlfn.IFS(COUNT($E$7:$G12)<=hcpma,"",AND( AND($I12>=S700L,$I12<S700U), $C12<=S700AL),"X",10<11,"") ->  | T48: =_xlfn.IFS(COUNT($E$7:$G12)<=hcpma,"",SUM($E12:$G12)<1,"",$I12>=3*$C12+S140ov,"X",10<11,"") -> 
A49: 7 | B49: 2023-10-18 | C49: =_xlfn.IFS(COUNT($E$7:$G13)<=hcpma,"",AND(OR(AND($E13>=G125L,$E13<G125U),AND($F13>=G125L,$F13<G125U),AND($G13>=G125L,$G13<G125U)),$C13<=G125AL),"X",10<11,"") ->  | D49: =_xlfn.IFS(COUNT($E$7:$G13)<=hcpma,"",AND(OR(AND($E13>=G150L,$E13<G150U),AND($F13>=G150L,$F13<G150U),AND($G13>=G150L,$G13<G150U)),$C13<=G150AL),"X",10<11,"") ->  | E49: =_xlfn.IFS(COUNT($E$7:$G13)<=hcpma,"",AND(OR(AND($E13>=G175L,$E13<G175U),AND($F13>=G175L,$F13<G175U),AND($G13>=G175L,$G13<G175U)),$C13<=G175AL),"X",10<11,"") ->  | F49: =_xlfn.IFS(COUNT($E$7:$G13)<=hcpma,"",AND(OR(AND($E13>=G200L,$E13<G200U),AND($F13>=G200L,$F13<G200U),AND($G13>=G200L,$G13<G200U)),$C13<=G200AL),"X",10<11,"") ->  | G49: =_xlfn.IFS(COUNT($E$7:$G13)<=hcpma,"",AND(OR(AND($E13>=G225L,$E13<G225U),AND($F13>=G225L,$F13<G225U),AND($G13>=G225L,$G13<G225U)),$C13<=G225AL),"X",10<11,"") ->  | I49: =_xlfn.IFS(COUNT($E$7:$G13)<=hcpma,"",AND(OR(AND($E13>=G250L,$E13<G250U),AND($F13>=G250L,$F13<G250U),AND($G13>=G250L,$G13<G250U)),$C13<=G250AL),"X",10<11,"") ->  | J49: =_xlfn.IFS(COUNT($E$7:$G13)<=hcpma,"",AND(OR(AND($E13>=G275L,$E13<=G275U),AND($F13>=G275L,$F13<=G275U),AND($G13>=G275L,$G13<=G275U)),$C13<=G275AL),"X",10<11,"") ->  | K49: =_xlfn.IFS(COUNT(E13:G13)<=0,"",AND(COUNT($E$7:$G13)>hcpma,OR(E13>=(C13+G75OV),F13>=(C13+G75OV),G13>=(C13+G75OV))),"X",10<11,"") ->  | M49: =_xlfn.IFS(COUNT($E$7:$G13)<=hcpma,"",AND( AND($I13>=S300L,$I13<S300U), $C13<=S300AL),"X",10<11,"") ->  | N49: =_xlfn.IFS(COUNT($E$7:$G13)<=hcpma,"",AND( AND($I13>=S400L,$I13<S400U), $C13<=S400AL),"X",10<11,"") ->  | O49: =_xlfn.IFS(COUNT($E$7:$G13)<=hcpma,"",AND( AND($I13>=S500L,$I13<S500U), $C13<=S500AL),"X",10<11,"") ->  | R49: =_xlfn.IFS(COUNT($E$7:$G13)<=hcpma,"",AND( AND($I13>=S600L,$I13<S600U), $C13<=S600AL),"X",10<11,"") ->  | S49: =_xlfn.IFS(COUNT($E$7:$G13)<=hcpma,"",AND( AND($I13>=S700L,$I13<S700U), $C13<=S700AL),"X",10<11,"") ->  | T49: =_xlfn.IFS(COUNT($E$7:$G13)<=hcpma,"",SUM($E13:$G13)<1,"",$I13>=3*$C13+S140ov,"X",10<11,"") -> 
A50: 8 | B50: 2023-10-25 | C50: =_xlfn.IFS(COUNT($E$7:$G14)<=hcpma,"",AND(OR(AND($E14>=G125L,$E14<G125U),AND($F14>=G125L,$F14<G125U),AND($G14>=G125L,$G14<G125U)),$C14<=G125AL),"X",10<11,"") ->  | D50: =_xlfn.IFS(COUNT($E$7:$G14)<=hcpma,"",AND(OR(AND($E14>=G150L,$E14<G150U),AND($F14>=G150L,$F14<G150U),AND($G14>=G150L,$G14<G150U)),$C14<=G150AL),"X",10<11,"") ->  | E50: =_xlfn.IFS(COUNT($E$7:$G14)<=hcpma,"",AND(OR(AND($E14>=G175L,$E14<G175U),AND($F14>=G175L,$F14<G175U),AND($G14>=G175L,$G14<G175U)),$C14<=G175AL),"X",10<11,"") ->  | F50: =_xlfn.IFS(COUNT($E$7:$G14)<=hcpma,"",AND(OR(AND($E14>=G200L,$E14<G200U),AND($F14>=G200L,$F14<G200U),AND($G14>=G200L,$G14<G200U)),$C14<=G200AL),"X",10<11,"") ->  | G50: =_xlfn.IFS(COUNT($E$7:$G14)<=hcpma,"",AND(OR(AND($E14>=G225L,$E14<G225U),AND($F14>=G225L,$F14<G225U),AND($G14>=G225L,$G14<G225U)),$C14<=G225AL),"X",10<11,"") ->  | I50: =_xlfn.IFS(COUNT($E$7:$G14)<=hcpma,"",AND(OR(AND($E14>=G250L,$E14<G250U),AND($F14>=G250L,$F14<G250U),AND($G14>=G250L,$G14<G250U)),$C14<=G250AL),"X",10<11,"") ->  | J50: =_xlfn.IFS(COUNT($E$7:$G14)<=hcpma,"",AND(OR(AND($E14>=G275L,$E14<=G275U),AND($F14>=G275L,$F14<=G275U),AND($G14>=G275L,$G14<=G275U)),$C14<=G275AL),"X",10<11,"") ->  | K50: =_xlfn.IFS(COUNT(E14:G14)<=0,"",AND(COUNT($E$7:$G14)>hcpma,OR(E14>=(C14+G75OV),F14>=(C14+G75OV),G14>=(C14+G75OV))),"X",10<11,"") ->  | M50: =_xlfn.IFS(COUNT($E$7:$G14)<=hcpma,"",AND( AND($I14>=S300L,$I14<S300U), $C14<=S300AL),"X",10<11,"") ->  | N50: =_xlfn.IFS(COUNT($E$7:$G14)<=hcpma,"",AND( AND($I14>=S400L,$I14<S400U), $C14<=S400AL),"X",10<11,"") ->  | O50: =_xlfn.IFS(COUNT($E$7:$G14)<=hcpma,"",AND( AND($I14>=S500L,$I14<S500U), $C14<=S500AL),"X",10<11,"") ->  | R50: =_xlfn.IFS(COUNT($E$7:$G14)<=hcpma,"",AND( AND($I14>=S600L,$I14<S600U), $C14<=S600AL),"X",10<11,"") ->  | S50: =_xlfn.IFS(COUNT($E$7:$G14)<=hcpma,"",AND( AND($I14>=S700L,$I14<S700U), $C14<=S700AL),"X",10<11,"") ->  | T50: =_xlfn.IFS(COUNT($E$7:$G14)<=hcpma,"",SUM($E14:$G14)<1,"",$I14>=3*$C14+S140ov,"X",10<11,"") -> 
A51: 9 | B51: 2023-11-01 | C51: =_xlfn.IFS(COUNT($E$7:$G15)<=hcpma,"",AND(OR(AND($E15>=G125L,$E15<G125U),AND($F15>=G125L,$F15<G125U),AND($G15>=G125L,$G15<G125U)),$C15<=G125AL),"X",10<11,"") ->  | D51: =_xlfn.IFS(COUNT($E$7:$G15)<=hcpma,"",AND(OR(AND($E15>=G150L,$E15<G150U),AND($F15>=G150L,$F15<G150U),AND($G15>=G150L,$G15<G150U)),$C15<=G150AL),"X",10<11,"") ->  | E51: =_xlfn.IFS(COUNT($E$7:$G15)<=hcpma,"",AND(OR(AND($E15>=G175L,$E15<G175U),AND($F15>=G175L,$F15<G175U),AND($G15>=G175L,$G15<G175U)),$C15<=G175AL),"X",10<11,"") ->  | F51: =_xlfn.IFS(COUNT($E$7:$G15)<=hcpma,"",AND(OR(AND($E15>=G200L,$E15<G200U),AND($F15>=G200L,$F15<G200U),AND($G15>=G200L,$G15<G200U)),$C15<=G200AL),"X",10<11,"") ->  | G51: =_xlfn.IFS(COUNT($E$7:$G15)<=hcpma,"",AND(OR(AND($E15>=G225L,$E15<G225U),AND($F15>=G225L,$F15<G225U),AND($G15>=G225L,$G15<G225U)),$C15<=G225AL),"X",10<11,"") ->  | I51: =_xlfn.IFS(COUNT($E$7:$G15)<=hcpma,"",AND(OR(AND($E15>=G250L,$E15<G250U),AND($F15>=G250L,$F15<G250U),AND($G15>=G250L,$G15<G250U)),$C15<=G250AL),"X",10<11,"") ->  | J51: =_xlfn.IFS(COUNT($E$7:$G15)<=hcpma,"",AND(OR(AND($E15>=G275L,$E15<=G275U),AND($F15>=G275L,$F15<=G275U),AND($G15>=G275L,$G15<=G275U)),$C15<=G275AL),"X",10<11,"") ->  | K51: =_xlfn.IFS(COUNT(E15:G15)<=0,"",AND(COUNT($E$7:$G15)>hcpma,OR(E15>=(C15+G75OV),F15>=(C15+G75OV),G15>=(C15+G75OV))),"X",10<11,"") ->  | M51: =_xlfn.IFS(COUNT($E$7:$G15)<=hcpma,"",AND( AND($I15>=S300L,$I15<S300U), $C15<=S300AL),"X",10<11,"") ->  | N51: =_xlfn.IFS(COUNT($E$7:$G15)<=hcpma,"",AND( AND($I15>=S400L,$I15<S400U), $C15<=S400AL),"X",10<11,"") ->  | O51: =_xlfn.IFS(COUNT($E$7:$G15)<=hcpma,"",AND( AND($I15>=S500L,$I15<S500U), $C15<=S500AL),"X",10<11,"") ->  | R51: =_xlfn.IFS(COUNT($E$7:$G15)<=hcpma,"",AND( AND($I15>=S600L,$I15<S600U), $C15<=S600AL),"X",10<11,"") ->  | S51: =_xlfn.IFS(COUNT($E$7:$G15)<=hcpma,"",AND( AND($I15>=S700L,$I15<S700U), $C15<=S700AL),"X",10<11,"") ->  | T51: =_xlfn.IFS(COUNT($E$7:$G15)<=hcpma,"",SUM($E15:$G15)<1,"",$I15>=3*$C15+S140ov,"X",10<11,"") -> 
A52: 10 | B52: 2023-11-08 | C52: =_xlfn.IFS(COUNT($E$7:$G16)<=hcpma,"",AND(OR(AND($E16>=G125L,$E16<G125U),AND($F16>=G125L,$F16<G125U),AND($G16>=G125L,$G16<G125U)),$C16<=G125AL),"X",10<11,"") ->  | D52: =_xlfn.IFS(COUNT($E$7:$G16)<=hcpma,"",AND(OR(AND($E16>=G150L,$E16<G150U),AND($F16>=G150L,$F16<G150U),AND($G16>=G150L,$G16<G150U)),$C16<=G150AL),"X",10<11,"") ->  | E52: =_xlfn.IFS(COUNT($E$7:$G16)<=hcpma,"",AND(OR(AND($E16>=G175L,$E16<G175U),AND($F16>=G175L,$F16<G175U),AND($G16>=G175L,$G16<G175U)),$C16<=G175AL),"X",10<11,"") ->  | F52: =_xlfn.IFS(COUNT($E$7:$G16)<=hcpma,"",AND(OR(AND($E16>=G200L,$E16<G200U),AND($F16>=G200L,$F16<G200U),AND($G16>=G200L,$G16<G200U)),$C16<=G200AL),"X",10<11,"") ->  | G52: =_xlfn.IFS(COUNT($E$7:$G16)<=hcpma,"",AND(OR(AND($E16>=G225L,$E16<G225U),AND($F16>=G225L,$F16<G225U),AND($G16>=G225L,$G16<G225U)),$C16<=G225AL),"X",10<11,"") ->  | I52: =_xlfn.IFS(COUNT($E$7:$G16)<=hcpma,"",AND(OR(AND($E16>=G250L,$E16<G250U),AND($F16>=G250L,$F16<G250U),AND($G16>=G250L,$G16<G250U)),$C16<=G250AL),"X",10<11,"") ->  | J52: =_xlfn.IFS(COUNT($E$7:$G16)<=hcpma,"",AND(OR(AND($E16>=G275L,$E16<=G275U),AND($F16>=G275L,$F16<=G275U),AND($G16>=G275L,$G16<=G275U)),$C16<=G275AL),"X",10<11,"") ->  | K52: =_xlfn.IFS(COUNT(E16:G16)<=0,"",AND(COUNT($E$7:$G16)>hcpma,OR(E16>=(C16+G75OV),F16>=(C16+G75OV),G16>=(C16+G75OV))),"X",10<11,"") ->  | M52: =_xlfn.IFS(COUNT($E$7:$G16)<=hcpma,"",AND( AND($I16>=S300L,$I16<S300U), $C16<=S300AL),"X",10<11,"") ->  | N52: =_xlfn.IFS(COUNT($E$7:$G16)<=hcpma,"",AND( AND($I16>=S400L,$I16<S400U), $C16<=S400AL),"X",10<11,"") ->  | O52: =_xlfn.IFS(COUNT($E$7:$G16)<=hcpma,"",AND( AND($I16>=S500L,$I16<S500U), $C16<=S500AL),"X",10<11,"") ->  | R52: =_xlfn.IFS(COUNT($E$7:$G16)<=hcpma,"",AND( AND($I16>=S600L,$I16<S600U), $C16<=S600AL),"X",10<11,"") ->  | S52: =_xlfn.IFS(COUNT($E$7:$G16)<=hcpma,"",AND( AND($I16>=S700L,$I16<S700U), $C16<=S700AL),"X",10<11,"") ->  | T52: =_xlfn.IFS(COUNT($E$7:$G16)<=hcpma,"",SUM($E16:$G16)<1,"",$I16>=3*$C16+S140ov,"X",10<11,"") -> 
A53: 11 | B53: 2023-11-15 | C53: =_xlfn.IFS(COUNT($E$7:$G17)<=hcpma,"",AND(OR(AND($E17>=G125L,$E17<G125U),AND($F17>=G125L,$F17<G125U),AND($G17>=G125L,$G17<G125U)),$C17<=G125AL),"X",10<11,"") ->  | D53: =_xlfn.IFS(COUNT($E$7:$G17)<=hcpma,"",AND(OR(AND($E17>=G150L,$E17<G150U),AND($F17>=G150L,$F17<G150U),AND($G17>=G150L,$G17<G150U)),$C17<=G150AL),"X",10<11,"") ->  | E53: =_xlfn.IFS(COUNT($E$7:$G17)<=hcpma,"",AND(OR(AND($E17>=G175L,$E17<G175U),AND($F17>=G175L,$F17<G175U),AND($G17>=G175L,$G17<G175U)),$C17<=G175AL),"X",10<11,"") ->  | F53: =_xlfn.IFS(COUNT($E$7:$G17)<=hcpma,"",AND(OR(AND($E17>=G200L,$E17<G200U),AND($F17>=G200L,$F17<G200U),AND($G17>=G200L,$G17<G200U)),$C17<=G200AL),"X",10<11,"") ->  | G53: =_xlfn.IFS(COUNT($E$7:$G17)<=hcpma,"",AND(OR(AND($E17>=G225L,$E17<G225U),AND($F17>=G225L,$F17<G225U),AND($G17>=G225L,$G17<G225U)),$C17<=G225AL),"X",10<11,"") ->  | I53: =_xlfn.IFS(COUNT($E$7:$G17)<=hcpma,"",AND(OR(AND($E17>=G250L,$E17<G250U),AND($F17>=G250L,$F17<G250U),AND($G17>=G250L,$G17<G250U)),$C17<=G250AL),"X",10<11,"") ->  | J53: =_xlfn.IFS(COUNT($E$7:$G17)<=hcpma,"",AND(OR(AND($E17>=G275L,$E17<=G275U),AND($F17>=G275L,$F17<=G275U),AND($G17>=G275L,$G17<=G275U)),$C17<=G275AL),"X",10<11,"") ->  | K53: =_xlfn.IFS(COUNT(E17:G17)<=0,"",AND(COUNT($E$7:$G17)>hcpma,OR(E17>=(C17+G75OV),F17>=(C17+G75OV),G17>=(C17+G75OV))),"X",10<11,"") ->  | M53: =_xlfn.IFS(COUNT($E$7:$G17)<=hcpma,"",AND( AND($I17>=S300L,$I17<S300U), $C17<=S300AL),"X",10<11,"") ->  | N53: =_xlfn.IFS(COUNT($E$7:$G17)<=hcpma,"",AND( AND($I17>=S400L,$I17<S400U), $C17<=S400AL),"X",10<11,"") ->  | O53: =_xlfn.IFS(COUNT($E$7:$G17)<=hcpma,"",AND( AND($I17>=S500L,$I17<S500U), $C17<=S500AL),"X",10<11,"") ->  | R53: =_xlfn.IFS(COUNT($E$7:$G17)<=hcpma,"",AND( AND($I17>=S600L,$I17<S600U), $C17<=S600AL),"X",10<11,"") ->  | S53: =_xlfn.IFS(COUNT($E$7:$G17)<=hcpma,"",AND( AND($I17>=S700L,$I17<S700U), $C17<=S700AL),"X",10<11,"") ->  | T53: =_xlfn.IFS(COUNT($E$7:$G17)<=hcpma,"",SUM($E17:$G17)<1,"",$I17>=3*$C17+S140ov,"X",10<11,"") -> 
A54: 12 | B54: 2023-11-29 | C54: =_xlfn.IFS(COUNT($E$7:$G18)<=hcpma,"",AND(OR(AND($E18>=G125L,$E18<G125U),AND($F18>=G125L,$F18<G125U),AND($G18>=G125L,$G18<G125U)),$C18<=G125AL),"X",10<11,"") ->  | D54: =_xlfn.IFS(COUNT($E$7:$G18)<=hcpma,"",AND(OR(AND($E18>=G150L,$E18<G150U),AND($F18>=G150L,$F18<G150U),AND($G18>=G150L,$G18<G150U)),$C18<=G150AL),"X",10<11,"") ->  | E54: =_xlfn.IFS(COUNT($E$7:$G18)<=hcpma,"",AND(OR(AND($E18>=G175L,$E18<G175U),AND($F18>=G175L,$F18<G175U),AND($G18>=G175L,$G18<G175U)),$C18<=G175AL),"X",10<11,"") ->  | F54: =_xlfn.IFS(COUNT($E$7:$G18)<=hcpma,"",AND(OR(AND($E18>=G200L,$E18<G200U),AND($F18>=G200L,$F18<G200U),AND($G18>=G200L,$G18<G200U)),$C18<=G200AL),"X",10<11,"") ->  | G54: =_xlfn.IFS(COUNT($E$7:$G18)<=hcpma,"",AND(OR(AND($E18>=G225L,$E18<G225U),AND($F18>=G225L,$F18<G225U),AND($G18>=G225L,$G18<G225U)),$C18<=G225AL),"X",10<11,"") ->  | I54: =_xlfn.IFS(COUNT($E$7:$G18)<=hcpma,"",AND(OR(AND($E18>=G250L,$E18<G250U),AND($F18>=G250L,$F18<G250U),AND($G18>=G250L,$G18<G250U)),$C18<=G250AL),"X",10<11,"") ->  | J54: =_xlfn.IFS(COUNT($E$7:$G18)<=hcpma,"",AND(OR(AND($E18>=G275L,$E18<=G275U),AND($F18>=G275L,$F18<=G275U),AND($G18>=G275L,$G18<=G275U)),$C18<=G275AL),"X",10<11,"") ->  | K54: =_xlfn.IFS(COUNT(E18:G18)<=0,"",AND(COUNT($E$7:$G18)>hcpma,OR(E18>=(C18+G75OV),F18>=(C18+G75OV),G18>=(C18+G75OV))),"X",10<11,"") ->  | M54: =_xlfn.IFS(COUNT($E$7:$G18)<=hcpma,"",AND( AND($I18>=S300L,$I18<S300U), $C18<=S300AL),"X",10<11,"") ->  | N54: =_xlfn.IFS(COUNT($E$7:$G18)<=hcpma,"",AND( AND($I18>=S400L,$I18<S400U), $C18<=S400AL),"X",10<11,"") ->  | O54: =_xlfn.IFS(COUNT($E$7:$G18)<=hcpma,"",AND( AND($I18>=S500L,$I18<S500U), $C18<=S500AL),"X",10<11,"") ->  | R54: =_xlfn.IFS(COUNT($E$7:$G18)<=hcpma,"",AND( AND($I18>=S600L,$I18<S600U), $C18<=S600AL),"X",10<11,"") ->  | S54: =_xlfn.IFS(COUNT($E$7:$G18)<=hcpma,"",AND( AND($I18>=S700L,$I18<S700U), $C18<=S700AL),"X",10<11,"") ->  | T54: =_xlfn.IFS(COUNT($E$7:$G18)<=hcpma,"",SUM($E18:$G18)<1,"",$I18>=3*$C18+S140ov,"X",10<11,"") -> 
A55: 13 | B55: 2023-12-06 | C55: =_xlfn.IFS(COUNT($E$7:$G19)<=hcpma,"",AND(OR(AND($E19>=G125L,$E19<G125U),AND($F19>=G125L,$F19<G125U),AND($G19>=G125L,$G19<G125U)),$C19<=G125AL),"X",10<11,"") ->  | D55: =_xlfn.IFS(COUNT($E$7:$G19)<=hcpma,"",AND(OR(AND($E19>=G150L,$E19<G150U),AND($F19>=G150L,$F19<G150U),AND($G19>=G150L,$G19<G150U)),$C19<=G150AL),"X",10<11,"") ->  | E55: =_xlfn.IFS(COUNT($E$7:$G19)<=hcpma,"",AND(OR(AND($E19>=G175L,$E19<G175U),AND($F19>=G175L,$F19<G175U),AND($G19>=G175L,$G19<G175U)),$C19<=G175AL),"X",10<11,"") ->  | F55: =_xlfn.IFS(COUNT($E$7:$G19)<=hcpma,"",AND(OR(AND($E19>=G200L,$E19<G200U),AND($F19>=G200L,$F19<G200U),AND($G19>=G200L,$G19<G200U)),$C19<=G200AL),"X",10<11,"") ->  | G55: =_xlfn.IFS(COUNT($E$7:$G19)<=hcpma,"",AND(OR(AND($E19>=G225L,$E19<G225U),AND($F19>=G225L,$F19<G225U),AND($G19>=G225L,$G19<G225U)),$C19<=G225AL),"X",10<11,"") ->  | I55: =_xlfn.IFS(COUNT($E$7:$G19)<=hcpma,"",AND(OR(AND($E19>=G250L,$E19<G250U),AND($F19>=G250L,$F19<G250U),AND($G19>=G250L,$G19<G250U)),$C19<=G250AL),"X",10<11,"") ->  | J55: =_xlfn.IFS(COUNT($E$7:$G19)<=hcpma,"",AND(OR(AND($E19>=G275L,$E19<=G275U),AND($F19>=G275L,$F19<=G275U),AND($G19>=G275L,$G19<=G275U)),$C19<=G275AL),"X",10<11,"") ->  | K55: =_xlfn.IFS(COUNT(E19:G19)<=0,"",AND(COUNT($E$7:$G19)>hcpma,OR(E19>=(C19+G75OV),F19>=(C19+G75OV),G19>=(C19+G75OV))),"X",10<11,"") ->  | M55: =_xlfn.IFS(COUNT($E$7:$G19)<=hcpma,"",AND( AND($I19>=S300L,$I19<S300U), $C19<=S300AL),"X",10<11,"") ->  | N55: =_xlfn.IFS(COUNT($E$7:$G19)<=hcpma,"",AND( AND($I19>=S400L,$I19<S400U), $C19<=S400AL),"X",10<11,"") ->  | O55: =_xlfn.IFS(COUNT($E$7:$G19)<=hcpma,"",AND( AND($I19>=S500L,$I19<S500U), $C19<=S500AL),"X",10<11,"") ->  | R55: =_xlfn.IFS(COUNT($E$7:$G19)<=hcpma,"",AND( AND($I19>=S600L,$I19<S600U), $C19<=S600AL),"X",10<11,"") ->  | S55: =_xlfn.IFS(COUNT($E$7:$G19)<=hcpma,"",AND( AND($I19>=S700L,$I19<S700U), $C19<=S700AL),"X",10<11,"") ->  | T55: =_xlfn.IFS(COUNT($E$7:$G19)<=hcpma,"",SUM($E19:$G19)<1,"",$I19>=3*$C19+S140ov,"X",10<11,"") -> 
A56: 14 | B56: 2023-12-13 | C56: =_xlfn.IFS(COUNT($E$7:$G20)<=hcpma,"",AND(OR(AND($E20>=G125L,$E20<G125U),AND($F20>=G125L,$F20<G125U),AND($G20>=G125L,$G20<G125U)),$C20<=G125AL),"X",10<11,"") ->  | D56: =_xlfn.IFS(COUNT($E$7:$G20)<=hcpma,"",AND(OR(AND($E20>=G150L,$E20<G150U),AND($F20>=G150L,$F20<G150U),AND($G20>=G150L,$G20<G150U)),$C20<=G150AL),"X",10<11,"") ->  | E56: =_xlfn.IFS(COUNT($E$7:$G20)<=hcpma,"",AND(OR(AND($E20>=G175L,$E20<G175U),AND($F20>=G175L,$F20<G175U),AND($G20>=G175L,$G20<G175U)),$C20<=G175AL),"X",10<11,"") ->  | F56: =_xlfn.IFS(COUNT($E$7:$G20)<=hcpma,"",AND(OR(AND($E20>=G200L,$E20<G200U),AND($F20>=G200L,$F20<G200U),AND($G20>=G200L,$G20<G200U)),$C20<=G200AL),"X",10<11,"") ->  | G56: =_xlfn.IFS(COUNT($E$7:$G20)<=hcpma,"",AND(OR(AND($E20>=G225L,$E20<G225U),AND($F20>=G225L,$F20<G225U),AND($G20>=G225L,$G20<G225U)),$C20<=G225AL),"X",10<11,"") ->  | I56: =_xlfn.IFS(COUNT($E$7:$G20)<=hcpma,"",AND(OR(AND($E20>=G250L,$E20<G250U),AND($F20>=G250L,$F20<G250U),AND($G20>=G250L,$G20<G250U)),$C20<=G250AL),"X",10<11,"") ->  | J56: =_xlfn.IFS(COUNT($E$7:$G20)<=hcpma,"",AND(OR(AND($E20>=G275L,$E20<=G275U),AND($F20>=G275L,$F20<=G275U),AND($G20>=G275L,$G20<=G275U)),$C20<=G275AL),"X",10<11,"") ->  | K56: =_xlfn.IFS(COUNT(E20:G20)<=0,"",AND(COUNT($E$7:$G20)>hcpma,OR(E20>=(C20+G75OV),F20>=(C20+G75OV),G20>=(C20+G75OV))),"X",10<11,"") ->  | M56: =_xlfn.IFS(COUNT($E$7:$G20)<=hcpma,"",AND( AND($I20>=S300L,$I20<S300U), $C20<=S300AL),"X",10<11,"") ->  | N56: =_xlfn.IFS(COUNT($E$7:$G20)<=hcpma,"",AND( AND($I20>=S400L,$I20<S400U), $C20<=S400AL),"X",10<11,"") ->  | O56: =_xlfn.IFS(COUNT($E$7:$G20)<=hcpma,"",AND( AND($I20>=S500L,$I20<S500U), $C20<=S500AL),"X",10<11,"") ->  | R56: =_xlfn.IFS(COUNT($E$7:$G20)<=hcpma,"",AND( AND($I20>=S600L,$I20<S600U), $C20<=S600AL),"X",10<11,"") ->  | S56: =_xlfn.IFS(COUNT($E$7:$G20)<=hcpma,"",AND( AND($I20>=S700L,$I20<S700U), $C20<=S700AL),"X",10<11,"") ->  | T56: =_xlfn.IFS(COUNT($E$7:$G20)<=hcpma,"",SUM($E20:$G20)<1,"",$I20>=3*$C20+S140ov,"X",10<11,"") -> 
A57: 15 | B57: 2023-12-20 | C57: =_xlfn.IFS(COUNT($E$7:$G21)<=hcpma,"",AND(OR(AND($E21>=G125L,$E21<G125U),AND($F21>=G125L,$F21<G125U),AND($G21>=G125L,$G21<G125U)),$C21<=G125AL),"X",10<11,"") ->  | D57: =_xlfn.IFS(COUNT($E$7:$G21)<=hcpma,"",AND(OR(AND($E21>=G150L,$E21<G150U),AND($F21>=G150L,$F21<G150U),AND($G21>=G150L,$G21<G150U)),$C21<=G150AL),"X",10<11,"") ->  | E57: =_xlfn.IFS(COUNT($E$7:$G21)<=hcpma,"",AND(OR(AND($E21>=G175L,$E21<G175U),AND($F21>=G175L,$F21<G175U),AND($G21>=G175L,$G21<G175U)),$C21<=G175AL),"X",10<11,"") ->  | F57: =_xlfn.IFS(COUNT($E$7:$G21)<=hcpma,"",AND(OR(AND($E21>=G200L,$E21<G200U),AND($F21>=G200L,$F21<G200U),AND($G21>=G200L,$G21<G200U)),$C21<=G200AL),"X",10<11,"") ->  | G57: =_xlfn.IFS(COUNT($E$7:$G21)<=hcpma,"",AND(OR(AND($E21>=G225L,$E21<G225U),AND($F21>=G225L,$F21<G225U),AND($G21>=G225L,$G21<G225U)),$C21<=G225AL),"X",10<11,"") ->  | I57: =_xlfn.IFS(COUNT($E$7:$G21)<=hcpma,"",AND(OR(AND($E21>=G250L,$E21<G250U),AND($F21>=G250L,$F21<G250U),AND($G21>=G250L,$G21<G250U)),$C21<=G250AL),"X",10<11,"") ->  | J57: =_xlfn.IFS(COUNT($E$7:$G21)<=hcpma,"",AND(OR(AND($E21>=G275L,$E21<=G275U),AND($F21>=G275L,$F21<=G275U),AND($G21>=G275L,$G21<=G275U)),$C21<=G275AL),"X",10<11,"") ->  | K57: =_xlfn.IFS(COUNT(E21:G21)<=0,"",AND(COUNT($E$7:$G21)>hcpma,OR(E21>=(C21+G75OV),F21>=(C21+G75OV),G21>=(C21+G75OV))),"X",10<11,"") ->  | M57: =_xlfn.IFS(COUNT($E$7:$G21)<=hcpma,"",AND( AND($I21>=S300L,$I21<S300U), $C21<=S300AL),"X",10<11,"") ->  | N57: =_xlfn.IFS(COUNT($E$7:$G21)<=hcpma,"",AND( AND($I21>=S400L,$I21<S400U), $C21<=S400AL),"X",10<11,"") ->  | O57: =_xlfn.IFS(COUNT($E$7:$G21)<=hcpma,"",AND( AND($I21>=S500L,$I21<S500U), $C21<=S500AL),"X",10<11,"") ->  | R57: =_xlfn.IFS(COUNT($E$7:$G21)<=hcpma,"",AND( AND($I21>=S600L,$I21<S600U), $C21<=S600AL),"X",10<11,"") ->  | S57: =_xlfn.IFS(COUNT($E$7:$G21)<=hcpma,"",AND( AND($I21>=S700L,$I21<S700U), $C21<=S700AL),"X",10<11,"") ->  | T57: =_xlfn.IFS(COUNT($E$7:$G21)<=hcpma,"",SUM($E21:$G21)<1,"",$I21>=3*$C21+S140ov,"X",10<11,"") -> 
A58: 16 | B58: 2024-01-03 | C58: =_xlfn.IFS(COUNT($E$7:$G22)<=hcpma,"",AND(OR(AND($E22>=G125L,$E22<G125U),AND($F22>=G125L,$F22<G125U),AND($G22>=G125L,$G22<G125U)),$C22<=G125AL),"X",10<11,"") ->  | D58: =_xlfn.IFS(COUNT($E$7:$G22)<=hcpma,"",AND(OR(AND($E22>=G150L,$E22<G150U),AND($F22>=G150L,$F22<G150U),AND($G22>=G150L,$G22<G150U)),$C22<=G150AL),"X",10<11,"") ->  | E58: =_xlfn.IFS(COUNT($E$7:$G22)<=hcpma,"",AND(OR(AND($E22>=G175L,$E22<G175U),AND($F22>=G175L,$F22<G175U),AND($G22>=G175L,$G22<G175U)),$C22<=G175AL),"X",10<11,"") ->  | F58: =_xlfn.IFS(COUNT($E$7:$G22)<=hcpma,"",AND(OR(AND($E22>=G200L,$E22<G200U),AND($F22>=G200L,$F22<G200U),AND($G22>=G200L,$G22<G200U)),$C22<=G200AL),"X",10<11,"") ->  | G58: =_xlfn.IFS(COUNT($E$7:$G22)<=hcpma,"",AND(OR(AND($E22>=G225L,$E22<G225U),AND($F22>=G225L,$F22<G225U),AND($G22>=G225L,$G22<G225U)),$C22<=G225AL),"X",10<11,"") ->  | I58: =_xlfn.IFS(COUNT($E$7:$G22)<=hcpma,"",AND(OR(AND($E22>=G250L,$E22<G250U),AND($F22>=G250L,$F22<G250U),AND($G22>=G250L,$G22<G250U)),$C22<=G250AL),"X",10<11,"") ->  | J58: =_xlfn.IFS(COUNT($E$7:$G22)<=hcpma,"",AND(OR(AND($E22>=G275L,$E22<=G275U),AND($F22>=G275L,$F22<=G275U),AND($G22>=G275L,$G22<=G275U)),$C22<=G275AL),"X",10<11,"") ->  | K58: =_xlfn.IFS(COUNT(E22:G22)<=0,"",AND(COUNT($E$7:$G22)>hcpma,OR(E22>=(C22+G75OV),F22>=(C22+G75OV),G22>=(C22+G75OV))),"X",10<11,"") ->  | M58: =_xlfn.IFS(COUNT($E$7:$G22)<=hcpma,"",AND( AND($I22>=S300L,$I22<S300U), $C22<=S300AL),"X",10<11,"") ->  | N58: =_xlfn.IFS(COUNT($E$7:$G22)<=hcpma,"",AND( AND($I22>=S400L,$I22<S400U), $C22<=S400AL),"X",10<11,"") ->  | O58: =_xlfn.IFS(COUNT($E$7:$G22)<=hcpma,"",AND( AND($I22>=S500L,$I22<S500U), $C22<=S500AL),"X",10<11,"") ->  | R58: =_xlfn.IFS(COUNT($E$7:$G22)<=hcpma,"",AND( AND($I22>=S600L,$I22<S600U), $C22<=S600AL),"X",10<11,"") ->  | S58: =_xlfn.IFS(COUNT($E$7:$G22)<=hcpma,"",AND( AND($I22>=S700L,$I22<S700U), $C22<=S700AL),"X",10<11,"") ->  | T58: =_xlfn.IFS(COUNT($E$7:$G22)<=hcpma,"",SUM($E22:$G22)<1,"",$I22>=3*$C22+S140ov,"X",10<11,"") -> 
A59: 17 | B59: 2024-01-10 | C59: =_xlfn.IFS(COUNT($E$7:$G23)<=hcpma,"",AND(OR(AND($E23>=G125L,$E23<G125U),AND($F23>=G125L,$F23<G125U),AND($G23>=G125L,$G23<G125U)),$C23<=G125AL),"X",10<11,"") ->  | D59: =_xlfn.IFS(COUNT($E$7:$G23)<=hcpma,"",AND(OR(AND($E23>=G150L,$E23<G150U),AND($F23>=G150L,$F23<G150U),AND($G23>=G150L,$G23<G150U)),$C23<=G150AL),"X",10<11,"") ->  | E59: =_xlfn.IFS(COUNT($E$7:$G23)<=hcpma,"",AND(OR(AND($E23>=G175L,$E23<G175U),AND($F23>=G175L,$F23<G175U),AND($G23>=G175L,$G23<G175U)),$C23<=G175AL),"X",10<11,"") ->  | F59: =_xlfn.IFS(COUNT($E$7:$G23)<=hcpma,"",AND(OR(AND($E23>=G200L,$E23<G200U),AND($F23>=G200L,$F23<G200U),AND($G23>=G200L,$G23<G200U)),$C23<=G200AL),"X",10<11,"") ->  | G59: =_xlfn.IFS(COUNT($E$7:$G23)<=hcpma,"",AND(OR(AND($E23>=G225L,$E23<G225U),AND($F23>=G225L,$F23<G225U),AND($G23>=G225L,$G23<G225U)),$C23<=G225AL),"X",10<11,"") ->  | I59: =_xlfn.IFS(COUNT($E$7:$G23)<=hcpma,"",AND(OR(AND($E23>=G250L,$E23<G250U),AND($F23>=G250L,$F23<G250U),AND($G23>=G250L,$G23<G250U)),$C23<=G250AL),"X",10<11,"") ->  | J59: =_xlfn.IFS(COUNT($E$7:$G23)<=hcpma,"",AND(OR(AND($E23>=G275L,$E23<=G275U),AND($F23>=G275L,$F23<=G275U),AND($G23>=G275L,$G23<=G275U)),$C23<=G275AL),"X",10<11,"") ->  | K59: =_xlfn.IFS(COUNT(E23:G23)<=0,"",AND(COUNT($E$7:$G23)>hcpma,OR(E23>=(C23+G75OV),F23>=(C23+G75OV),G23>=(C23+G75OV))),"X",10<11,"") ->  | M59: =_xlfn.IFS(COUNT($E$7:$G23)<=hcpma,"",AND( AND($I23>=S300L,$I23<S300U), $C23<=S300AL),"X",10<11,"") ->  | N59: =_xlfn.IFS(COUNT($E$7:$G23)<=hcpma,"",AND( AND($I23>=S400L,$I23<S400U), $C23<=S400AL),"X",10<11,"") ->  | O59: =_xlfn.IFS(COUNT($E$7:$G23)<=hcpma,"",AND( AND($I23>=S500L,$I23<S500U), $C23<=S500AL),"X",10<11,"") ->  | R59: =_xlfn.IFS(COUNT($E$7:$G23)<=hcpma,"",AND( AND($I23>=S600L,$I23<S600U), $C23<=S600AL),"X",10<11,"") ->  | S59: =_xlfn.IFS(COUNT($E$7:$G23)<=hcpma,"",AND( AND($I23>=S700L,$I23<S700U), $C23<=S700AL),"X",10<11,"") ->  | T59: =_xlfn.IFS(COUNT($E$7:$G23)<=hcpma,"",SUM($E23:$G23)<1,"",$I23>=3*$C23+S140ov,"X",10<11,"") -> 
A60: 18 | B60: 2024-01-17 | C60: =_xlfn.IFS(COUNT($E$7:$G24)<=hcpma,"",AND(OR(AND($E24>=G125L,$E24<G125U),AND($F24>=G125L,$F24<G125U),AND($G24>=G125L,$G24<G125U)),$C24<=G125AL),"X",10<11,"") ->  | D60: =_xlfn.IFS(COUNT($E$7:$G24)<=hcpma,"",AND(OR(AND($E24>=G150L,$E24<G150U),AND($F24>=G150L,$F24<G150U),AND($G24>=G150L,$G24<G150U)),$C24<=G150AL),"X",10<11,"") ->  | E60: =_xlfn.IFS(COUNT($E$7:$G24)<=hcpma,"",AND(OR(AND($E24>=G175L,$E24<G175U),AND($F24>=G175L,$F24<G175U),AND($G24>=G175L,$G24<G175U)),$C24<=G175AL),"X",10<11,"") ->  | F60: =_xlfn.IFS(COUNT($E$7:$G24)<=hcpma,"",AND(OR(AND($E24>=G200L,$E24<G200U),AND($F24>=G200L,$F24<G200U),AND($G24>=G200L,$G24<G200U)),$C24<=G200AL),"X",10<11,"") ->  | G60: =_xlfn.IFS(COUNT($E$7:$G24)<=hcpma,"",AND(OR(AND($E24>=G225L,$E24<G225U),AND($F24>=G225L,$F24<G225U),AND($G24>=G225L,$G24<G225U)),$C24<=G225AL),"X",10<11,"") ->  | I60: =_xlfn.IFS(COUNT($E$7:$G24)<=hcpma,"",AND(OR(AND($E24>=G250L,$E24<G250U),AND($F24>=G250L,$F24<G250U),AND($G24>=G250L,$G24<G250U)),$C24<=G250AL),"X",10<11,"") ->  | J60: =_xlfn.IFS(COUNT($E$7:$G24)<=hcpma,"",AND(OR(AND($E24>=G275L,$E24<=G275U),AND($F24>=G275L,$F24<=G275U),AND($G24>=G275L,$G24<=G275U)),$C24<=G275AL),"X",10<11,"") ->  | K60: =_xlfn.IFS(COUNT(E24:G24)<=0,"",AND(COUNT($E$7:$G24)>hcpma,OR(E24>=(C24+G75OV),F24>=(C24+G75OV),G24>=(C24+G75OV))),"X",10<11,"") ->  | M60: =_xlfn.IFS(COUNT($E$7:$G24)<=hcpma,"",AND( AND($I24>=S300L,$I24<S300U), $C24<=S300AL),"X",10<11,"") ->  | N60: =_xlfn.IFS(COUNT($E$7:$G24)<=hcpma,"",AND( AND($I24>=S400L,$I24<S400U), $C24<=S400AL),"X",10<11,"") ->  | O60: =_xlfn.IFS(COUNT($E$7:$G24)<=hcpma,"",AND( AND($I24>=S500L,$I24<S500U), $C24<=S500AL),"X",10<11,"") ->  | R60: =_xlfn.IFS(COUNT($E$7:$G24)<=hcpma,"",AND( AND($I24>=S600L,$I24<S600U), $C24<=S600AL),"X",10<11,"") ->  | S60: =_xlfn.IFS(COUNT($E$7:$G24)<=hcpma,"",AND( AND($I24>=S700L,$I24<S700U), $C24<=S700AL),"X",10<11,"") ->  | T60: =_xlfn.IFS(COUNT($E$7:$G24)<=hcpma,"",SUM($E24:$G24)<1,"",$I24>=3*$C24+S140ov,"X",10<11,"") -> 
A61: 19 | B61: 2024-01-24 | C61: =_xlfn.IFS(COUNT($E$7:$G25)<=hcpma,"",AND(OR(AND($E25>=G125L,$E25<G125U),AND($F25>=G125L,$F25<G125U),AND($G25>=G125L,$G25<G125U)),$C25<=G125AL),"X",10<11,"") ->  | D61: =_xlfn.IFS(COUNT($E$7:$G25)<=hcpma,"",AND(OR(AND($E25>=G150L,$E25<G150U),AND($F25>=G150L,$F25<G150U),AND($G25>=G150L,$G25<G150U)),$C25<=G150AL),"X",10<11,"") ->  | E61: =_xlfn.IFS(COUNT($E$7:$G25)<=hcpma,"",AND(OR(AND($E25>=G175L,$E25<G175U),AND($F25>=G175L,$F25<G175U),AND($G25>=G175L,$G25<G175U)),$C25<=G175AL),"X",10<11,"") ->  | F61: =_xlfn.IFS(COUNT($E$7:$G25)<=hcpma,"",AND(OR(AND($E25>=G200L,$E25<G200U),AND($F25>=G200L,$F25<G200U),AND($G25>=G200L,$G25<G200U)),$C25<=G200AL),"X",10<11,"") ->  | G61: =_xlfn.IFS(COUNT($E$7:$G25)<=hcpma,"",AND(OR(AND($E25>=G225L,$E25<G225U),AND($F25>=G225L,$F25<G225U),AND($G25>=G225L,$G25<G225U)),$C25<=G225AL),"X",10<11,"") ->  | I61: =_xlfn.IFS(COUNT($E$7:$G25)<=hcpma,"",AND(OR(AND($E25>=G250L,$E25<G250U),AND($F25>=G250L,$F25<G250U),AND($G25>=G250L,$G25<G250U)),$C25<=G250AL),"X",10<11,"") ->  | J61: =_xlfn.IFS(COUNT($E$7:$G25)<=hcpma,"",AND(OR(AND($E25>=G275L,$E25<=G275U),AND($F25>=G275L,$F25<=G275U),AND($G25>=G275L,$G25<=G275U)),$C25<=G275AL),"X",10<11,"") ->  | K61: =_xlfn.IFS(COUNT(E25:G25)<=0,"",AND(COUNT($E$7:$G25)>hcpma,OR(E25>=(C25+G75OV),F25>=(C25+G75OV),G25>=(C25+G75OV))),"X",10<11,"") ->  | M61: =_xlfn.IFS(COUNT($E$7:$G25)<=hcpma,"",AND( AND($I25>=S300L,$I25<S300U), $C25<=S300AL),"X",10<11,"") ->  | N61: =_xlfn.IFS(COUNT($E$7:$G25)<=hcpma,"",AND( AND($I25>=S400L,$I25<S400U), $C25<=S400AL),"X",10<11,"") ->  | O61: =_xlfn.IFS(COUNT($E$7:$G25)<=hcpma,"",AND( AND($I25>=S500L,$I25<S500U), $C25<=S500AL),"X",10<11,"") ->  | R61: =_xlfn.IFS(COUNT($E$7:$G25)<=hcpma,"",AND( AND($I25>=S600L,$I25<S600U), $C25<=S600AL),"X",10<11,"") ->  | S61: =_xlfn.IFS(COUNT($E$7:$G25)<=hcpma,"",AND( AND($I25>=S700L,$I25<S700U), $C25<=S700AL),"X",10<11,"") ->  | T61: =_xlfn.IFS(COUNT($E$7:$G25)<=hcpma,"",SUM($E25:$G25)<1,"",$I25>=3*$C25+S140ov,"X",10<11,"") -> 
A62: 20 | B62: 2024-01-31 | C62: =_xlfn.IFS(COUNT($E$7:$G26)<=hcpma,"",AND(OR(AND($E26>=G125L,$E26<G125U),AND($F26>=G125L,$F26<G125U),AND($G26>=G125L,$G26<G125U)),$C26<=G125AL),"X",10<11,"") ->  | D62: =_xlfn.IFS(COUNT($E$7:$G26)<=hcpma,"",AND(OR(AND($E26>=G150L,$E26<G150U),AND($F26>=G150L,$F26<G150U),AND($G26>=G150L,$G26<G150U)),$C26<=G150AL),"X",10<11,"") ->  | E62: =_xlfn.IFS(COUNT($E$7:$G26)<=hcpma,"",AND(OR(AND($E26>=G175L,$E26<G175U),AND($F26>=G175L,$F26<G175U),AND($G26>=G175L,$G26<G175U)),$C26<=G175AL),"X",10<11,"") ->  | F62: =_xlfn.IFS(COUNT($E$7:$G26)<=hcpma,"",AND(OR(AND($E26>=G200L,$E26<G200U),AND($F26>=G200L,$F26<G200U),AND($G26>=G200L,$G26<G200U)),$C26<=G200AL),"X",10<11,"") ->  | G62: =_xlfn.IFS(COUNT($E$7:$G26)<=hcpma,"",AND(OR(AND($E26>=G225L,$E26<G225U),AND($F26>=G225L,$F26<G225U),AND($G26>=G225L,$G26<G225U)),$C26<=G225AL),"X",10<11,"") ->  | I62: =_xlfn.IFS(COUNT($E$7:$G26)<=hcpma,"",AND(OR(AND($E26>=G250L,$E26<G250U),AND($F26>=G250L,$F26<G250U),AND($G26>=G250L,$G26<G250U)),$C26<=G250AL),"X",10<11,"") ->  | J62: =_xlfn.IFS(COUNT($E$7:$G26)<=hcpma,"",AND(OR(AND($E26>=G275L,$E26<=G275U),AND($F26>=G275L,$F26<=G275U),AND($G26>=G275L,$G26<=G275U)),$C26<=G275AL),"X",10<11,"") ->  | K62: =_xlfn.IFS(COUNT(E26:G26)<=0,"",AND(COUNT($E$7:$G26)>hcpma,OR(E26>=(C26+G75OV),F26>=(C26+G75OV),G26>=(C26+G75OV))),"X",10<11,"") ->  | M62: =_xlfn.IFS(COUNT($E$7:$G26)<=hcpma,"",AND( AND($I26>=S300L,$I26<S300U), $C26<=S300AL),"X",10<11,"") ->  | N62: =_xlfn.IFS(COUNT($E$7:$G26)<=hcpma,"",AND( AND($I26>=S400L,$I26<S400U), $C26<=S400AL),"X",10<11,"") ->  | O62: =_xlfn.IFS(COUNT($E$7:$G26)<=hcpma,"",AND( AND($I26>=S500L,$I26<S500U), $C26<=S500AL),"X",10<11,"") ->  | R62: =_xlfn.IFS(COUNT($E$7:$G26)<=hcpma,"",AND( AND($I26>=S600L,$I26<S600U), $C26<=S600AL),"X",10<11,"") ->  | S62: =_xlfn.IFS(COUNT($E$7:$G26)<=hcpma,"",AND( AND($I26>=S700L,$I26<S700U), $C26<=S700AL),"X",10<11,"") ->  | T62: =_xlfn.IFS(COUNT($E$7:$G26)<=hcpma,"",SUM($E26:$G26)<1,"",$I26>=3*$C26+S140ov,"X",10<11,"") -> 
A63: 21 | B63: 2024-02-07 | C63: =_xlfn.IFS(COUNT($E$7:$G27)<=hcpma,"",AND(OR(AND($E27>=G125L,$E27<G125U),AND($F27>=G125L,$F27<G125U),AND($G27>=G125L,$G27<G125U)),$C27<=G125AL),"X",10<11,"") ->  | D63: =_xlfn.IFS(COUNT($E$7:$G27)<=hcpma,"",AND(OR(AND($E27>=G150L,$E27<G150U),AND($F27>=G150L,$F27<G150U),AND($G27>=G150L,$G27<G150U)),$C27<=G150AL),"X",10<11,"") ->  | E63: =_xlfn.IFS(COUNT($E$7:$G27)<=hcpma,"",AND(OR(AND($E27>=G175L,$E27<G175U),AND($F27>=G175L,$F27<G175U),AND($G27>=G175L,$G27<G175U)),$C27<=G175AL),"X",10<11,"") ->  | F63: =_xlfn.IFS(COUNT($E$7:$G27)<=hcpma,"",AND(OR(AND($E27>=G200L,$E27<G200U),AND($F27>=G200L,$F27<G200U),AND($G27>=G200L,$G27<G200U)),$C27<=G200AL),"X",10<11,"") ->  | G63: =_xlfn.IFS(COUNT($E$7:$G27)<=hcpma,"",AND(OR(AND($E27>=G225L,$E27<G225U),AND($F27>=G225L,$F27<G225U),AND($G27>=G225L,$G27<G225U)),$C27<=G225AL),"X",10<11,"") ->  | I63: =_xlfn.IFS(COUNT($E$7:$G27)<=hcpma,"",AND(OR(AND($E27>=G250L,$E27<G250U),AND($F27>=G250L,$F27<G250U),AND($G27>=G250L,$G27<G250U)),$C27<=G250AL),"X",10<11,"") ->  | J63: =_xlfn.IFS(COUNT($E$7:$G27)<=hcpma,"",AND(OR(AND($E27>=G275L,$E27<=G275U),AND($F27>=G275L,$F27<=G275U),AND($G27>=G275L,$G27<=G275U)),$C27<=G275AL),"X",10<11,"") ->  | K63: =_xlfn.IFS(COUNT(E27:G27)<=0,"",AND(COUNT($E$7:$G27)>hcpma,OR(E27>=(C27+G75OV),F27>=(C27+G75OV),G27>=(C27+G75OV))),"X",10<11,"") ->  | M63: =_xlfn.IFS(COUNT($E$7:$G27)<=hcpma,"",AND( AND($I27>=S300L,$I27<S300U), $C27<=S300AL),"X",10<11,"") ->  | N63: =_xlfn.IFS(COUNT($E$7:$G27)<=hcpma,"",AND( AND($I27>=S400L,$I27<S400U), $C27<=S400AL),"X",10<11,"") ->  | O63: =_xlfn.IFS(COUNT($E$7:$G27)<=hcpma,"",AND( AND($I27>=S500L,$I27<S500U), $C27<=S500AL),"X",10<11,"") ->  | R63: =_xlfn.IFS(COUNT($E$7:$G27)<=hcpma,"",AND( AND($I27>=S600L,$I27<S600U), $C27<=S600AL),"X",10<11,"") ->  | S63: =_xlfn.IFS(COUNT($E$7:$G27)<=hcpma,"",AND( AND($I27>=S700L,$I27<S700U), $C27<=S700AL),"X",10<11,"") ->  | T63: =_xlfn.IFS(COUNT($E$7:$G27)<=hcpma,"",SUM($E27:$G27)<1,"",$I27>=3*$C27+S140ov,"X",10<11,"") -> 
A64: 22 | B64: 2024-02-14 | C64: =_xlfn.IFS(COUNT($E$7:$G28)<=hcpma,"",AND(OR(AND($E28>=G125L,$E28<G125U),AND($F28>=G125L,$F28<G125U),AND($G28>=G125L,$G28<G125U)),$C28<=G125AL),"X",10<11,"") ->  | D64: =_xlfn.IFS(COUNT($E$7:$G28)<=hcpma,"",AND(OR(AND($E28>=G150L,$E28<G150U),AND($F28>=G150L,$F28<G150U),AND($G28>=G150L,$G28<G150U)),$C28<=G150AL),"X",10<11,"") ->  | E64: =_xlfn.IFS(COUNT($E$7:$G28)<=hcpma,"",AND(OR(AND($E28>=G175L,$E28<G175U),AND($F28>=G175L,$F28<G175U),AND($G28>=G175L,$G28<G175U)),$C28<=G175AL),"X",10<11,"") ->  | F64: =_xlfn.IFS(COUNT($E$7:$G28)<=hcpma,"",AND(OR(AND($E28>=G200L,$E28<G200U),AND($F28>=G200L,$F28<G200U),AND($G28>=G200L,$G28<G200U)),$C28<=G200AL),"X",10<11,"") ->  | G64: =_xlfn.IFS(COUNT($E$7:$G28)<=hcpma,"",AND(OR(AND($E28>=G225L,$E28<G225U),AND($F28>=G225L,$F28<G225U),AND($G28>=G225L,$G28<G225U)),$C28<=G225AL),"X",10<11,"") ->  | I64: =_xlfn.IFS(COUNT($E$7:$G28)<=hcpma,"",AND(OR(AND($E28>=G250L,$E28<G250U),AND($F28>=G250L,$F28<G250U),AND($G28>=G250L,$G28<G250U)),$C28<=G250AL),"X",10<11,"") ->  | J64: =_xlfn.IFS(COUNT($E$7:$G28)<=hcpma,"",AND(OR(AND($E28>=G275L,$E28<=G275U),AND($F28>=G275L,$F28<=G275U),AND($G28>=G275L,$G28<=G275U)),$C28<=G275AL),"X",10<11,"") ->  | K64: =_xlfn.IFS(COUNT(E28:G28)<=0,"",AND(COUNT($E$7:$G28)>hcpma,OR(E28>=(C28+G75OV),F28>=(C28+G75OV),G28>=(C28+G75OV))),"X",10<11,"") ->  | M64: =_xlfn.IFS(COUNT($E$7:$G28)<=hcpma,"",AND( AND($I28>=S300L,$I28<S300U), $C28<=S300AL),"X",10<11,"") ->  | N64: =_xlfn.IFS(COUNT($E$7:$G28)<=hcpma,"",AND( AND($I28>=S400L,$I28<S400U), $C28<=S400AL),"X",10<11,"") ->  | O64: =_xlfn.IFS(COUNT($E$7:$G28)<=hcpma,"",AND( AND($I28>=S500L,$I28<S500U), $C28<=S500AL),"X",10<11,"") ->  | R64: =_xlfn.IFS(COUNT($E$7:$G28)<=hcpma,"",AND( AND($I28>=S600L,$I28<S600U), $C28<=S600AL),"X",10<11,"") ->  | S64: =_xlfn.IFS(COUNT($E$7:$G28)<=hcpma,"",AND( AND($I28>=S700L,$I28<S700U), $C28<=S700AL),"X",10<11,"") ->  | T64: =_xlfn.IFS(COUNT($E$7:$G28)<=hcpma,"",SUM($E28:$G28)<1,"",$I28>=3*$C28+S140ov,"X",10<11,"") -> 
A65: 23 | B65: 2024-02-21 | C65: =_xlfn.IFS(COUNT($E$7:$G29)<=hcpma,"",AND(OR(AND($E29>=G125L,$E29<G125U),AND($F29>=G125L,$F29<G125U),AND($G29>=G125L,$G29<G125U)),$C29<=G125AL),"X",10<11,"") ->  | D65: =_xlfn.IFS(COUNT($E$7:$G29)<=hcpma,"",AND(OR(AND($E29>=G150L,$E29<G150U),AND($F29>=G150L,$F29<G150U),AND($G29>=G150L,$G29<G150U)),$C29<=G150AL),"X",10<11,"") ->  | E65: =_xlfn.IFS(COUNT($E$7:$G29)<=hcpma,"",AND(OR(AND($E29>=G175L,$E29<G175U),AND($F29>=G175L,$F29<G175U),AND($G29>=G175L,$G29<G175U)),$C29<=G175AL),"X",10<11,"") ->  | F65: =_xlfn.IFS(COUNT($E$7:$G29)<=hcpma,"",AND(OR(AND($E29>=G200L,$E29<G200U),AND($F29>=G200L,$F29<G200U),AND($G29>=G200L,$G29<G200U)),$C29<=G200AL),"X",10<11,"") ->  | G65: =_xlfn.IFS(COUNT($E$7:$G29)<=hcpma,"",AND(OR(AND($E29>=G225L,$E29<G225U),AND($F29>=G225L,$F29<G225U),AND($G29>=G225L,$G29<G225U)),$C29<=G225AL),"X",10<11,"") ->  | I65: =_xlfn.IFS(COUNT($E$7:$G29)<=hcpma,"",AND(OR(AND($E29>=G250L,$E29<G250U),AND($F29>=G250L,$F29<G250U),AND($G29>=G250L,$G29<G250U)),$C29<=G250AL),"X",10<11,"") ->  | J65: =_xlfn.IFS(COUNT($E$7:$G29)<=hcpma,"",AND(OR(AND($E29>=G275L,$E29<=G275U),AND($F29>=G275L,$F29<=G275U),AND($G29>=G275L,$G29<=G275U)),$C29<=G275AL),"X",10<11,"") ->  | K65: =_xlfn.IFS(COUNT(E29:G29)<=0,"",AND(COUNT($E$7:$G29)>hcpma,OR(E29>=(C29+G75OV),F29>=(C29+G75OV),G29>=(C29+G75OV))),"X",10<11,"") ->  | M65: =_xlfn.IFS(COUNT($E$7:$G29)<=hcpma,"",AND( AND($I29>=S300L,$I29<S300U), $C29<=S300AL),"X",10<11,"") ->  | N65: =_xlfn.IFS(COUNT($E$7:$G29)<=hcpma,"",AND( AND($I29>=S400L,$I29<S400U), $C29<=S400AL),"X",10<11,"") ->  | O65: =_xlfn.IFS(COUNT($E$7:$G29)<=hcpma,"",AND( AND($I29>=S500L,$I29<S500U), $C29<=S500AL),"X",10<11,"") ->  | R65: =_xlfn.IFS(COUNT($E$7:$G29)<=hcpma,"",AND( AND($I29>=S600L,$I29<S600U), $C29<=S600AL),"X",10<11,"") ->  | S65: =_xlfn.IFS(COUNT($E$7:$G29)<=hcpma,"",AND( AND($I29>=S700L,$I29<S700U), $C29<=S700AL),"X",10<11,"") ->  | T65: =_xlfn.IFS(COUNT($E$7:$G29)<=hcpma,"",SUM($E29:$G29)<1,"",$I29>=3*$C29+S140ov,"X",10<11,"") -> 
A66: 24 | B66: 2024-02-28 | C66: =_xlfn.IFS(COUNT($E$7:$G30)<=hcpma,"",AND(OR(AND($E30>=G125L,$E30<G125U),AND($F30>=G125L,$F30<G125U),AND($G30>=G125L,$G30<G125U)),$C30<=G125AL),"X",10<11,"") ->  | D66: =_xlfn.IFS(COUNT($E$7:$G30)<=hcpma,"",AND(OR(AND($E30>=G150L,$E30<G150U),AND($F30>=G150L,$F30<G150U),AND($G30>=G150L,$G30<G150U)),$C30<=G150AL),"X",10<11,"") ->  | E66: =_xlfn.IFS(COUNT($E$7:$G30)<=hcpma,"",AND(OR(AND($E30>=G175L,$E30<G175U),AND($F30>=G175L,$F30<G175U),AND($G30>=G175L,$G30<G175U)),$C30<=G175AL),"X",10<11,"") ->  | F66: =_xlfn.IFS(COUNT($E$7:$G30)<=hcpma,"",AND(OR(AND($E30>=G200L,$E30<G200U),AND($F30>=G200L,$F30<G200U),AND($G30>=G200L,$G30<G200U)),$C30<=G200AL),"X",10<11,"") ->  | G66: =_xlfn.IFS(COUNT($E$7:$G30)<=hcpma,"",AND(OR(AND($E30>=G225L,$E30<G225U),AND($F30>=G225L,$F30<G225U),AND($G30>=G225L,$G30<G225U)),$C30<=G225AL),"X",10<11,"") ->  | I66: =_xlfn.IFS(COUNT($E$7:$G30)<=hcpma,"",AND(OR(AND($E30>=G250L,$E30<G250U),AND($F30>=G250L,$F30<G250U),AND($G30>=G250L,$G30<G250U)),$C30<=G250AL),"X",10<11,"") ->  | J66: =_xlfn.IFS(COUNT($E$7:$G30)<=hcpma,"",AND(OR(AND($E30>=G275L,$E30<=G275U),AND($F30>=G275L,$F30<=G275U),AND($G30>=G275L,$G30<=G275U)),$C30<=G275AL),"X",10<11,"") ->  | K66: =_xlfn.IFS(COUNT(E30:G30)<=0,"",AND(COUNT($E$7:$G30)>hcpma,OR(E30>=(C30+G75OV),F30>=(C30+G75OV),G30>=(C30+G75OV))),"X",10<11,"") ->  | M66: =_xlfn.IFS(COUNT($E$7:$G30)<=hcpma,"",AND( AND($I30>=S300L,$I30<S300U), $C30<=S300AL),"X",10<11,"") ->  | N66: =_xlfn.IFS(COUNT($E$7:$G30)<=hcpma,"",AND( AND($I30>=S400L,$I30<S400U), $C30<=S400AL),"X",10<11,"") ->  | O66: =_xlfn.IFS(COUNT($E$7:$G30)<=hcpma,"",AND( AND($I30>=S500L,$I30<S500U), $C30<=S500AL),"X",10<11,"") ->  | R66: =_xlfn.IFS(COUNT($E$7:$G30)<=hcpma,"",AND( AND($I30>=S600L,$I30<S600U), $C30<=S600AL),"X",10<11,"") ->  | S66: =_xlfn.IFS(COUNT($E$7:$G30)<=hcpma,"",AND( AND($I30>=S700L,$I30<S700U), $C30<=S700AL),"X",10<11,"") ->  | T66: =_xlfn.IFS(COUNT($E$7:$G30)<=hcpma,"",SUM($E30:$G30)<1,"",$I30>=3*$C30+S140ov,"X",10<11,"") -> 
A67: 25 | B67: 2024-03-06 | C67: =_xlfn.IFS(COUNT($E$7:$G31)<=hcpma,"",AND(OR(AND($E31>=G125L,$E31<G125U),AND($F31>=G125L,$F31<G125U),AND($G31>=G125L,$G31<G125U)),$C31<=G125AL),"X",10<11,"") ->  | D67: =_xlfn.IFS(COUNT($E$7:$G31)<=hcpma,"",AND(OR(AND($E31>=G150L,$E31<G150U),AND($F31>=G150L,$F31<G150U),AND($G31>=G150L,$G31<G150U)),$C31<=G150AL),"X",10<11,"") ->  | E67: =_xlfn.IFS(COUNT($E$7:$G31)<=hcpma,"",AND(OR(AND($E31>=G175L,$E31<G175U),AND($F31>=G175L,$F31<G175U),AND($G31>=G175L,$G31<G175U)),$C31<=G175AL),"X",10<11,"") ->  | F67: =_xlfn.IFS(COUNT($E$7:$G31)<=hcpma,"",AND(OR(AND($E31>=G200L,$E31<G200U),AND($F31>=G200L,$F31<G200U),AND($G31>=G200L,$G31<G200U)),$C31<=G200AL),"X",10<11,"") ->  | G67: =_xlfn.IFS(COUNT($E$7:$G31)<=hcpma,"",AND(OR(AND($E31>=G225L,$E31<G225U),AND($F31>=G225L,$F31<G225U),AND($G31>=G225L,$G31<G225U)),$C31<=G225AL),"X",10<11,"") ->  | I67: =_xlfn.IFS(COUNT($E$7:$G31)<=hcpma,"",AND(OR(AND($E31>=G250L,$E31<G250U),AND($F31>=G250L,$F31<G250U),AND($G31>=G250L,$G31<G250U)),$C31<=G250AL),"X",10<11,"") ->  | J67: =_xlfn.IFS(COUNT($E$7:$G31)<=hcpma,"",AND(OR(AND($E31>=G275L,$E31<=G275U),AND($F31>=G275L,$F31<=G275U),AND($G31>=G275L,$G31<=G275U)),$C31<=G275AL),"X",10<11,"") ->  | K67: =_xlfn.IFS(COUNT(E31:G31)<=0,"",AND(COUNT($E$7:$G31)>hcpma,OR(E31>=(C31+G75OV),F31>=(C31+G75OV),G31>=(C31+G75OV))),"X",10<11,"") ->  | M67: =_xlfn.IFS(COUNT($E$7:$G31)<=hcpma,"",AND( AND($I31>=S300L,$I31<S300U), $C31<=S300AL),"X",10<11,"") ->  | N67: =_xlfn.IFS(COUNT($E$7:$G31)<=hcpma,"",AND( AND($I31>=S400L,$I31<S400U), $C31<=S400AL),"X",10<11,"") ->  | O67: =_xlfn.IFS(COUNT($E$7:$G31)<=hcpma,"",AND( AND($I31>=S500L,$I31<S500U), $C31<=S500AL),"X",10<11,"") ->  | R67: =_xlfn.IFS(COUNT($E$7:$G31)<=hcpma,"",AND( AND($I31>=S600L,$I31<S600U), $C31<=S600AL),"X",10<11,"") ->  | S67: =_xlfn.IFS(COUNT($E$7:$G31)<=hcpma,"",AND( AND($I31>=S700L,$I31<S700U), $C31<=S700AL),"X",10<11,"") ->  | T67: =_xlfn.IFS(COUNT($E$7:$G31)<=hcpma,"",SUM($E31:$G31)<1,"",$I31>=3*$C31+S140ov,"X",10<11,"") -> 
A68: 26 | B68: 2024-03-13 | C68: =_xlfn.IFS(COUNT($E$7:$G32)<=hcpma,"",AND(OR(AND($E32>=G125L,$E32<G125U),AND($F32>=G125L,$F32<G125U),AND($G32>=G125L,$G32<G125U)),$C32<=G125AL),"X",10<11,"") ->  | D68: =_xlfn.IFS(COUNT($E$7:$G32)<=hcpma,"",AND(OR(AND($E32>=G150L,$E32<G150U),AND($F32>=G150L,$F32<G150U),AND($G32>=G150L,$G32<G150U)),$C32<=G150AL),"X",10<11,"") ->  | E68: =_xlfn.IFS(COUNT($E$7:$G32)<=hcpma,"",AND(OR(AND($E32>=G175L,$E32<G175U),AND($F32>=G175L,$F32<G175U),AND($G32>=G175L,$G32<G175U)),$C32<=G175AL),"X",10<11,"") ->  | F68: =_xlfn.IFS(COUNT($E$7:$G32)<=hcpma,"",AND(OR(AND($E32>=G200L,$E32<G200U),AND($F32>=G200L,$F32<G200U),AND($G32>=G200L,$G32<G200U)),$C32<=G200AL),"X",10<11,"") ->  | G68: =_xlfn.IFS(COUNT($E$7:$G32)<=hcpma,"",AND(OR(AND($E32>=G225L,$E32<G225U),AND($F32>=G225L,$F32<G225U),AND($G32>=G225L,$G32<G225U)),$C32<=G225AL),"X",10<11,"") ->  | I68: =_xlfn.IFS(COUNT($E$7:$G32)<=hcpma,"",AND(OR(AND($E32>=G250L,$E32<G250U),AND($F32>=G250L,$F32<G250U),AND($G32>=G250L,$G32<G250U)),$C32<=G250AL),"X",10<11,"") ->  | J68: =_xlfn.IFS(COUNT($E$7:$G32)<=hcpma,"",AND(OR(AND($E32>=G275L,$E32<=G275U),AND($F32>=G275L,$F32<=G275U),AND($G32>=G275L,$G32<=G275U)),$C32<=G275AL),"X",10<11,"") ->  | K68: =_xlfn.IFS(COUNT(E32:G32)<=0,"",AND(COUNT($E$7:$G32)>hcpma,OR(E32>=(C32+G75OV),F32>=(C32+G75OV),G32>=(C32+G75OV))),"X",10<11,"") ->  | M68: =_xlfn.IFS(COUNT($E$7:$G32)<=hcpma,"",AND( AND($I32>=S300L,$I32<S300U), $C32<=S300AL),"X",10<11,"") ->  | N68: =_xlfn.IFS(COUNT($E$7:$G32)<=hcpma,"",AND( AND($I32>=S400L,$I32<S400U), $C32<=S400AL),"X",10<11,"") ->  | O68: =_xlfn.IFS(COUNT($E$7:$G32)<=hcpma,"",AND( AND($I32>=S500L,$I32<S500U), $C32<=S500AL),"X",10<11,"") ->  | R68: =_xlfn.IFS(COUNT($E$7:$G32)<=hcpma,"",AND( AND($I32>=S600L,$I32<S600U), $C32<=S600AL),"X",10<11,"") ->  | S68: =_xlfn.IFS(COUNT($E$7:$G32)<=hcpma,"",AND( AND($I32>=S700L,$I32<S700U), $C32<=S700AL),"X",10<11,"") ->  | T68: =_xlfn.IFS(COUNT($E$7:$G32)<=hcpma,"",SUM($E32:$G32)<1,"",$I32>=3*$C32+S140ov,"X",10<11,"") -> 
A69: 27 | B69: 2024-03-20 | C69: =_xlfn.IFS(COUNT($E$7:$G33)<=hcpma,"",AND(OR(AND($E33>=G125L,$E33<G125U),AND($F33>=G125L,$F33<G125U),AND($G33>=G125L,$G33<G125U)),$C33<=G125AL),"X",10<11,"") ->  | D69: =_xlfn.IFS(COUNT($E$7:$G33)<=hcpma,"",AND(OR(AND($E33>=G150L,$E33<G150U),AND($F33>=G150L,$F33<G150U),AND($G33>=G150L,$G33<G150U)),$C33<=G150AL),"X",10<11,"") ->  | E69: =_xlfn.IFS(COUNT($E$7:$G33)<=hcpma,"",AND(OR(AND($E33>=G175L,$E33<G175U),AND($F33>=G175L,$F33<G175U),AND($G33>=G175L,$G33<G175U)),$C33<=G175AL),"X",10<11,"") ->  | F69: =_xlfn.IFS(COUNT($E$7:$G33)<=hcpma,"",AND(OR(AND($E33>=G200L,$E33<G200U),AND($F33>=G200L,$F33<G200U),AND($G33>=G200L,$G33<G200U)),$C33<=G200AL),"X",10<11,"") ->  | G69: =_xlfn.IFS(COUNT($E$7:$G33)<=hcpma,"",AND(OR(AND($E33>=G225L,$E33<G225U),AND($F33>=G225L,$F33<G225U),AND($G33>=G225L,$G33<G225U)),$C33<=G225AL),"X",10<11,"") ->  | I69: =_xlfn.IFS(COUNT($E$7:$G33)<=hcpma,"",AND(OR(AND($E33>=G250L,$E33<G250U),AND($F33>=G250L,$F33<G250U),AND($G33>=G250L,$G33<G250U)),$C33<=G250AL),"X",10<11,"") ->  | J69: =_xlfn.IFS(COUNT($E$7:$G33)<=hcpma,"",AND(OR(AND($E33>=G275L,$E33<=G275U),AND($F33>=G275L,$F33<=G275U),AND($G33>=G275L,$G33<=G275U)),$C33<=G275AL),"X",10<11,"") ->  | K69: =_xlfn.IFS(COUNT(E33:G33)<=0,"",AND(COUNT($E$7:$G33)>hcpma,OR(E33>=(C33+G75OV),F33>=(C33+G75OV),G33>=(C33+G75OV))),"X",10<11,"") ->  | M69: =_xlfn.IFS(COUNT($E$7:$G33)<=hcpma,"",AND( AND($I33>=S300L,$I33<S300U), $C33<=S300AL),"X",10<11,"") ->  | N69: =_xlfn.IFS(COUNT($E$7:$G33)<=hcpma,"",AND( AND($I33>=S400L,$I33<S400U), $C33<=S400AL),"X",10<11,"") ->  | O69: =_xlfn.IFS(COUNT($E$7:$G33)<=hcpma,"",AND( AND($I33>=S500L,$I33<S500U), $C33<=S500AL),"X",10<11,"") ->  | R69: =_xlfn.IFS(COUNT($E$7:$G33)<=hcpma,"",AND( AND($I33>=S600L,$I33<S600U), $C33<=S600AL),"X",10<11,"") ->  | S69: =_xlfn.IFS(COUNT($E$7:$G33)<=hcpma,"",AND( AND($I33>=S700L,$I33<S700U), $C33<=S700AL),"X",10<11,"") ->  | T69: =_xlfn.IFS(COUNT($E$7:$G33)<=hcpma,"",SUM($E33:$G33)<1,"",$I33>=3*$C33+S140ov,"X",10<11,"") -> 
A70: 28 | B70: 2024-03-27 | C70: =_xlfn.IFS(COUNT($E$7:$G34)<=hcpma,"",AND(OR(AND($E34>=G125L,$E34<G125U),AND($F34>=G125L,$F34<G125U),AND($G34>=G125L,$G34<G125U)),$C34<=G125AL),"X",10<11,"") ->  | D70: =_xlfn.IFS(COUNT($E$7:$G34)<=hcpma,"",AND(OR(AND($E34>=G150L,$E34<G150U),AND($F34>=G150L,$F34<G150U),AND($G34>=G150L,$G34<G150U)),$C34<=G150AL),"X",10<11,"") ->  | E70: =_xlfn.IFS(COUNT($E$7:$G34)<=hcpma,"",AND(OR(AND($E34>=G175L,$E34<G175U),AND($F34>=G175L,$F34<G175U),AND($G34>=G175L,$G34<G175U)),$C34<=G175AL),"X",10<11,"") ->  | F70: =_xlfn.IFS(COUNT($E$7:$G34)<=hcpma,"",AND(OR(AND($E34>=G200L,$E34<G200U),AND($F34>=G200L,$F34<G200U),AND($G34>=G200L,$G34<G200U)),$C34<=G200AL),"X",10<11,"") ->  | G70: =_xlfn.IFS(COUNT($E$7:$G34)<=hcpma,"",AND(OR(AND($E34>=G225L,$E34<G225U),AND($F34>=G225L,$F34<G225U),AND($G34>=G225L,$G34<G225U)),$C34<=G225AL),"X",10<11,"") ->  | I70: =_xlfn.IFS(COUNT($E$7:$G34)<=hcpma,"",AND(OR(AND($E34>=G250L,$E34<G250U),AND($F34>=G250L,$F34<G250U),AND($G34>=G250L,$G34<G250U)),$C34<=G250AL),"X",10<11,"") ->  | J70: =_xlfn.IFS(COUNT($E$7:$G34)<=hcpma,"",AND(OR(AND($E34>=G275L,$E34<=G275U),AND($F34>=G275L,$F34<=G275U),AND($G34>=G275L,$G34<=G275U)),$C34<=G275AL),"X",10<11,"") ->  | K70: =_xlfn.IFS(COUNT(E34:G34)<=0,"",AND(COUNT($E$7:$G34)>hcpma,OR(E34>=(C34+G75OV),F34>=(C34+G75OV),G34>=(C34+G75OV))),"X",10<11,"") ->  | M70: =_xlfn.IFS(COUNT($E$7:$G34)<=hcpma,"",AND( AND($I34>=S300L,$I34<S300U), $C34<=S300AL),"X",10<11,"") ->  | N70: =_xlfn.IFS(COUNT($E$7:$G34)<=hcpma,"",AND( AND($I34>=S400L,$I34<S400U), $C34<=S400AL),"X",10<11,"") ->  | O70: =_xlfn.IFS(COUNT($E$7:$G34)<=hcpma,"",AND( AND($I34>=S500L,$I34<S500U), $C34<=S500AL),"X",10<11,"") ->  | R70: =_xlfn.IFS(COUNT($E$7:$G34)<=hcpma,"",AND( AND($I34>=S600L,$I34<S600U), $C34<=S600AL),"X",10<11,"") ->  | S70: =_xlfn.IFS(COUNT($E$7:$G34)<=hcpma,"",AND( AND($I34>=S700L,$I34<S700U), $C34<=S700AL),"X",10<11,"") ->  | T70: =_xlfn.IFS(COUNT($E$7:$G34)<=hcpma,"",SUM($E34:$G34)<1,"",$I34>=3*$C34+S140ov,"X",10<11,"") -> 
A71: 29 | B71: 2024-04-03 | C71: =_xlfn.IFS(COUNT($E$7:$G35)<=hcpma,"",AND(OR(AND($E35>=G125L,$E35<G125U),AND($F35>=G125L,$F35<G125U),AND($G35>=G125L,$G35<G125U)),$C35<=G125AL),"X",10<11,"") ->  | D71: =_xlfn.IFS(COUNT($E$7:$G35)<=hcpma,"",AND(OR(AND($E35>=G150L,$E35<G150U),AND($F35>=G150L,$F35<G150U),AND($G35>=G150L,$G35<G150U)),$C35<=G150AL),"X",10<11,"") ->  | E71: =_xlfn.IFS(COUNT($E$7:$G35)<=hcpma,"",AND(OR(AND($E35>=G175L,$E35<G175U),AND($F35>=G175L,$F35<G175U),AND($G35>=G175L,$G35<G175U)),$C35<=G175AL),"X",10<11,"") ->  | F71: =_xlfn.IFS(COUNT($E$7:$G35)<=hcpma,"",AND(OR(AND($E35>=G200L,$E35<G200U),AND($F35>=G200L,$F35<G200U),AND($G35>=G200L,$G35<G200U)),$C35<=G200AL),"X",10<11,"") ->  | G71: =_xlfn.IFS(COUNT($E$7:$G35)<=hcpma,"",AND(OR(AND($E35>=G225L,$E35<G225U),AND($F35>=G225L,$F35<G225U),AND($G35>=G225L,$G35<G225U)),$C35<=G225AL),"X",10<11,"") ->  | I71: =_xlfn.IFS(COUNT($E$7:$G35)<=hcpma,"",AND(OR(AND($E35>=G250L,$E35<G250U),AND($F35>=G250L,$F35<G250U),AND($G35>=G250L,$G35<G250U)),$C35<=G250AL),"X",10<11,"") ->  | J71: =_xlfn.IFS(COUNT($E$7:$G35)<=hcpma,"",AND(OR(AND($E35>=G275L,$E35<=G275U),AND($F35>=G275L,$F35<=G275U),AND($G35>=G275L,$G35<=G275U)),$C35<=G275AL),"X",10<11,"") ->  | K71: =_xlfn.IFS(COUNT(E35:G35)<=0,"",AND(COUNT($E$7:$G35)>hcpma,OR(E35>=(C35+G75OV),F35>=(C35+G75OV),G35>=(C35+G75OV))),"X",10<11,"") ->  | M71: =_xlfn.IFS(COUNT($E$7:$G35)<=hcpma,"",AND( AND($I35>=S300L,$I35<S300U), $C35<=S300AL),"X",10<11,"") ->  | N71: =_xlfn.IFS(COUNT($E$7:$G35)<=hcpma,"",AND( AND($I35>=S400L,$I35<S400U), $C35<=S400AL),"X",10<11,"") ->  | O71: =_xlfn.IFS(COUNT($E$7:$G35)<=hcpma,"",AND( AND($I35>=S500L,$I35<S500U), $C35<=S500AL),"X",10<11,"") ->  | R71: =_xlfn.IFS(COUNT($E$7:$G35)<=hcpma,"",AND( AND($I35>=S600L,$I35<S600U), $C35<=S600AL),"X",10<11,"") ->  | S71: =_xlfn.IFS(COUNT($E$7:$G35)<=hcpma,"",AND( AND($I35>=S700L,$I35<S700U), $C35<=S700AL),"X",10<11,"") ->  | T71: =_xlfn.IFS(COUNT($E$7:$G35)<=hcpma,"",SUM($E35:$G35)<1,"",$I35>=3*$C35+S140ov,"X",10<11,"") -> 
A72: 30 | B72: 2024-04-10 | C72: =_xlfn.IFS(COUNT($E$7:$G36)<=hcpma,"",AND(OR(AND($E36>=G125L,$E36<G125U),AND($F36>=G125L,$F36<G125U),AND($G36>=G125L,$G36<G125U)),$C36<=G125AL),"X",10<11,"") ->  | D72: =_xlfn.IFS(COUNT($E$7:$G36)<=hcpma,"",AND(OR(AND($E36>=G150L,$E36<G150U),AND($F36>=G150L,$F36<G150U),AND($G36>=G150L,$G36<G150U)),$C36<=G150AL),"X",10<11,"") ->  | E72: =_xlfn.IFS(COUNT($E$7:$G36)<=hcpma,"",AND(OR(AND($E36>=G175L,$E36<G175U),AND($F36>=G175L,$F36<G175U),AND($G36>=G175L,$G36<G175U)),$C36<=G175AL),"X",10<11,"") ->  | F72: =_xlfn.IFS(COUNT($E$7:$G36)<=hcpma,"",AND(OR(AND($E36>=G200L,$E36<G200U),AND($F36>=G200L,$F36<G200U),AND($G36>=G200L,$G36<G200U)),$C36<=G200AL),"X",10<11,"") ->  | G72: =_xlfn.IFS(COUNT($E$7:$G36)<=hcpma,"",AND(OR(AND($E36>=G225L,$E36<G225U),AND($F36>=G225L,$F36<G225U),AND($G36>=G225L,$G36<G225U)),$C36<=G225AL),"X",10<11,"") ->  | I72: =_xlfn.IFS(COUNT($E$7:$G36)<=hcpma,"",AND(OR(AND($E36>=G250L,$E36<G250U),AND($F36>=G250L,$F36<G250U),AND($G36>=G250L,$G36<G250U)),$C36<=G250AL),"X",10<11,"") ->  | J72: =_xlfn.IFS(COUNT($E$7:$G36)<=hcpma,"",AND(OR(AND($E36>=G275L,$E36<=G275U),AND($F36>=G275L,$F36<=G275U),AND($G36>=G275L,$G36<=G275U)),$C36<=G275AL),"X",10<11,"") ->  | K72: =_xlfn.IFS(COUNT(E36:G36)<=0,"",AND(COUNT($E$7:$G36)>hcpma,OR(E36>=(C36+G75OV),F36>=(C36+G75OV),G36>=(C36+G75OV))),"X",10<11,"") ->  | M72: =_xlfn.IFS(COUNT($E$7:$G36)<=hcpma,"",AND( AND($I36>=S300L,$I36<S300U), $C36<=S300AL),"X",10<11,"") ->  | N72: =_xlfn.IFS(COUNT($E$7:$G36)<=hcpma,"",AND( AND($I36>=S400L,$I36<S400U), $C36<=S400AL),"X",10<11,"") ->  | O72: =_xlfn.IFS(COUNT($E$7:$G36)<=hcpma,"",AND( AND($I36>=S500L,$I36<S500U), $C36<=S500AL),"X",10<11,"") ->  | R72: =_xlfn.IFS(COUNT($E$7:$G36)<=hcpma,"",AND( AND($I36>=S600L,$I36<S600U), $C36<=S600AL),"X",10<11,"") ->  | S72: =_xlfn.IFS(COUNT($E$7:$G36)<=hcpma,"",AND( AND($I36>=S700L,$I36<S700U), $C36<=S700AL),"X",10<11,"") ->  | T72: =_xlfn.IFS(COUNT($E$7:$G36)<=hcpma,"",SUM($E36:$G36)<1,"",$I36>=3*$C36+S140ov,"X",10<11,"") -> 
M73: =_xlfn.IFS(COUNT($E$7:$G37)<=hcpma,"",AND( AND($I37>=S300L,$I37<S300U), $I37<=S300AL),"X",10<11,"") -> 

Sheet Roxanne Wolff
F1: =Title1 -> Wednesday Fun Fours 2023-2024
A2: wk# | B2: =MAX(Z7:Z36) -> 30 | O2: 6 Over week: | S2: =IF(MIN(AA7:AA36)<1,"",MIN(AA7:AA36)) ->  | AB2: Note:
A3: Name: | B3: Roxanne Wolff | G3: Perfect Attendance: | J3: =_xlfn.IFS(MAX(PA)>B2,"NO",SUM(Q7:Q36)=B2,"YES",SUM(Q7:Q36)<>B2,"NO") -> NO | K3: =_xlfn.IFS(MAX(PA)>B2,"",AND(SUM(Q7:Q36)<30,SUM(Q7:Q36)=B2),"So Far",SUM(Q7:Q36)=30,"Good",SUM(Q7:Q36)<>B2,"") ->  | AB3: For Games scores, Copy/Paste; Don't cut/paste games
A4: Bk Avg: | W4: Hi.series> | X4: =MAX(I7:I36) -> 389
C5: bk or | D5: old | I5: wky | J5: wky | K5: Hcp | L5: hcp | O5: new | P5: start | R5: high | S5: high | T5: high hcp | U5: high hcp | W5: hi.game> | X5: =MAX(E7:G36) -> 169 | AB5: Only write/input in the rectangled areas
A6: wk no. | C6: old avg | D6: hdcp | E6: -1- | F6: -2- | G6: -3- | I6: total | J6: avg | K6: total | L6: t2 hc | M6: Pins | N6: Gms | O6: avg | P6: week | Q6: startB | R6: series | S6: game | T6: series | U6: game | W6: h.hcp.g> | X6: =MAX(W7:Y36) -> 285 | Z6: wk#
A7: 1 | B7: =Date1 -> 2023-09-06 | C7: =_xlfn.IFS(Q7<>1,"",AND($B$4>=1,COUNT($E$7:G7)<=bkng),$B$4,P7=1,TRUNC(AVERAGE(E7:G7),0),COUNT($Q$7:Q7)=2,TRUNC(AVERAGE($E6:G$7),0),COUNT($Q$7:Q7)>=3,TRUNC(AVERAGE($E6:G$7),0)) -> 108 | D7: =_xlfn.IFS(Q7<>1,"",Q7=1,TRUNC((HCPB-C7)*HCPPC)) -> 109 | E7: 90 | F7: 149 | G7: 86 | I7: =IF(Q7=1,SUM(E7:G7),"") -> 325 | J7: =IF(Q7=1,TRUNC(AVERAGE(E7:G7),0),"") -> 108 | K7: =_xlfn.IFS(Q7<>1,"",Q7=1,I7+(3*D7)) -> 652 | L7: =_xlfn.IFS(Q7<>1,"",COUNT($E$7:G7)<=hcpng,"",COUNT($E$7:G7)>=hcpng,K7) ->  | M7: =_xlfn.IFS(Q7=1,SUM($E$7:G7),Q7<>1,"") -> 325 | N7: =_xlfn.IFS(Q7=1,COUNT($E$7:G7),Q7<>1,"") -> 3 | O7: =IF(Q7=1,ROUND(AVERAGE($E$7:G7),2),"") -> 108.33 | P7: =_xlfn.IFS(Q7<>1,"",SUM($Q$7:Q7)=1,1,SUM($Q$7:Q7)<>1,"") -> 1 | Q7: =IF(MAX(E7:G7)<1,"",1) -> 1 | R7: =IF(I7=$X$4,I7,"") ->  | S7: =_xlfn.IFS(E7=$X$5,E7,F7=$X$5,F7,G7=$X$5,G7,$A$7=1,"") ->  | T7: =IF(L7=MAX($L$7:$L$36),L7,"") ->  | U7: =_xlfn.IFS(W7=$X$6,W7,X7=$X$6,X7,Y7=$X$6,Y7,$A$7=1,"") ->  | W7: =_xlfn.IFS(AND(Q7=1,COUNT($E$7:G7)>hcpng),E7+D7,$A$7=1," ") ->  | X7: =_xlfn.IFS(AND(Q7=1,COUNT($E$7:G7)>hcpng),F7+D7,$A$7=1," ") ->  | Y7: =_xlfn.IFS(AND(Q7=1,COUNT($E$7:G7)>hcpng),G7+D7,$A$7=1," ") ->  | Z7: =IF(Q7=1,A7,0) -> 1 | AA7: =_xlfn.IFS(COUNTIFS(H7,"#",H6,"#"),A6,COUNTIFS(H7,2,H6,"#"),A6,$A$7=1,"") ->  | AB7: Edit page Title; on the UTL1 sheet
A8: 2 | B8: 2023-09-13 | C8: =_xlfn.IFS(Q8<>1,"",AND($B$4>=1,COUNT($E$7:G8)<=bkng),$B$4,P8=1,TRUNC(AVERAGE(E8:G8),0),COUNT($Q$7:Q8)=2,TRUNC(AVERAGE($E7:G$7),0),COUNT($Q$7:Q8)>=3,TRUNC(AVERAGE($E7:G$7),0)) -> 108 | D8: =_xlfn.IFS(Q8<>1,"",Q8=1,TRUNC((HCPB-C8)*HCPPC)) -> 109 | E8: 68 | F8: 123 | G8: 110 | H8: =_xlfn.IFS(COUNT(E8:G8)<1,"",AND(E8>C8,F8>C8,G8>C8,COUNT($E$7:G8)>sixng),"#",AND(E8>C7,F8>C7,G8>C7,COUNT($E$7:G8)>sixng,COUNTIF(H7,"#")=1),"2",$A$7=1,"") ->  | I8: =IF(Q8=1,SUM(E8:G8),"") -> 301 | J8: =IF(Q8=1,TRUNC(AVERAGE(E8:G8),0),"") -> 100 | K8: =_xlfn.IFS(Q8<>1,"",Q8=1,I8+(3*D8)) -> 628 | L8: =_xlfn.IFS(Q8<>1,"",COUNT($E$7:G8)<=hcpng,"",COUNT($E$7:G8)>=hcpng,K8) ->  | M8: =_xlfn.IFS(Q8=1,SUM($E$7:G8),Q8<>1,"") -> 626 | N8: =_xlfn.IFS(Q8=1,COUNT($E$7:G8),Q8<>1,"") -> 6 | O8: =IF(Q8=1,ROUND(AVERAGE($E$7:G8),2),"") -> 104.33 | P8: =_xlfn.IFS(Q8<>1,"",SUM($Q$7:Q8)=1,1,SUM($Q$7:Q8)<>1,"") ->  | Q8: =IF(MAX(E8:G8)<1,"",1) -> 1 | R8: =IF(I8=$X$4,I8,"") ->  | S8: =_xlfn.IFS(E8=$X$5,E8,F8=$X$5,F8,G8=$X$5,G8,$A$7=1,"") ->  | T8: =IF(L8=MAX($L$7:$L$36),L8,"") ->  | U8: =_xlfn.IFS(W8=$X$6,W8,X8=$X$6,X8,Y8=$X$6,Y8,$A$7=1,"") ->  | W8: =_xlfn.IFS(AND(Q8=1,COUNT($E$7:G8)>hcpng),E8+D8,$A$7=1," ") ->  | X8: =_xlfn.IFS(AND(Q8=1,COUNT($E$7:G8)>hcpng),F8+D8,$A$7=1," ") ->  | Y8: =_xlfn.IFS(AND(Q8=1,COUNT($E$7:G8)>hcpng),G8+D8,$A$7=1," ") ->  | Z8: =IF(Q8=1,A8,0) -> 2 | AA8: =_xlfn.IFS(COUNTIFS(H8,"#",H7,"#"),A7,COUNTIFS(H8,2,H7,"#"),A7,$A$7=1,"") -> 
A9: 3 | B9: 2023-09-20 | C9: =_xlfn.IFS(Q9<>1,"",AND($B$4>=1,COUNT($E$7:G9)<=bkng),$B$4,P9=1,TRUNC(AVERAGE(E9:G9),0),COUNT($Q$7:Q9)=2,TRUNC(AVERAGE($E$7:G8),0),COUNT($Q$7:Q9)>=3,TRUNC(AVERAGE($E$7:G8),0)) -> 104 | D9: =_xlfn.IFS(Q9<>1,"",Q9=1,TRUNC((HCPB-C9)*HCPPC)) -> 113 | E9: 97 | F9: 91 | G9: 104 | H9: =_xlfn.IFS(COUNT(E9:G9)<1,"",AND(E9>C9,F9>C9,G9>C9,COUNT($E$7:G9)>sixng),"#",AND(E9>C8,F9>C8,G9>C8,COUNT($E$7:G9)>sixng,COUNTIF(H8,"#")=1),"2",$A$7=1,"") ->  | I9: 292 | J9: 97 | K9: =_xlfn.IFS(Q9<>1,"",Q9=1,I9+(3*D9)) -> 631 | L9: =_xlfn.IFS(Q9<>1,"",COUNT($E$7:G9)<=hcpng,"",COUNT($E$7:G9)>=hcpng,K9) ->  | M9: =_xlfn.IFS(Q9=1,SUM($E$7:G9),Q9<>1,"") -> 918 | N9: =_xlfn.IFS(Q9=1,COUNT($E$7:G9),Q9<>1,"") -> 9 | O9: =IF(Q9=1,ROUND(AVERAGE($E$7:G9),2),"") -> 102 | P9: =_xlfn.IFS(Q9<>1,"",SUM($Q$7:Q9)=1,1,SUM($Q$7:Q9)<>1,"") ->  | Q9: =IF(MAX(E9:G9)<1,"",1) -> 1 | S9: =_xlfn.IFS(E9=$X$5,E9,F9=$X$5,F9,G9=$X$5,G9,$A$7=1,"") ->  | U9: =_xlfn.IFS(W9=$X$6,W9,X9=$X$6,X9,Y9=$X$6,Y9,$A$7=1,"") ->  | W9: =_xlfn.IFS(AND(Q9=1,COUNT($E$7:G9)>hcpng),E9+D9,$A$7=1," ") ->  | X9: =_xlfn.IFS(AND(Q9=1,COUNT($E$7:G9)>hcpng),F9+D9,$A$7=1," ") ->  | Y9: =_xlfn.IFS(AND(Q9=1,COUNT($E$7:G9)>hcpng),G9+D9,$A$7=1," ") ->  | Z9: 3 | AA9: =_xlfn.IFS(COUNTIFS(H9,"#",H8,"#"),A8,COUNTIFS(H9,2,H8,"#"),A8,$A$7=1,"") ->  | AB9: Make sure the current week is selected on the UTL1 sheet
A10: 4 | B10: 2023-09-27 | C10: =_xlfn.IFS(Q10<>1,"",AND($B$4>=1,COUNT($E$7:G10)<=bkng),$B$4,P10=1,TRUNC(AVERAGE(E10:G10),0),COUNT($Q$7:Q10)=2,TRUNC(AVERAGE($E$7:G9),0),COUNT($Q$7:Q10)>=3,TRUNC(AVERAGE($E$7:G9),0)) ->  | D10: =_xlfn.IFS(Q10<>1,"",Q10=1,TRUNC((HCPB-C10)*HCPPC)) ->  | H10: =_xlfn.IFS(COUNT(E10:G10)<1,"",AND(E10>C10,F10>C10,G10>C10,COUNT($E$7:G10)>sixng),"#",AND(E10>C9,F10>C9,G10>C9,COUNT($E$7:G10)>sixng,COUNTIF(H9,"#")=1),"2",$A$7=1,"") ->  | K10: =_xlfn.IFS(Q10<>1,"",Q10=1,I10+(3*D10)) ->  | L10: =_xlfn.IFS(Q10<>1,"",COUNT($E$7:G10)<=hcpng,"",COUNT($E$7:G10)>=hcpng,K10) ->  | M10: =_xlfn.IFS(Q10=1,SUM($E$7:G10),Q10<>1,"") ->  | N10: =_xlfn.IFS(Q10=1,COUNT($E$7:G10),Q10<>1,"") ->  | O10: =IF(Q10=1,ROUND(AVERAGE($E$7:G10),2),"") ->  | P10: =_xlfn.IFS(Q10<>1,"",SUM($Q$7:Q10)=1,1,SUM($Q$7:Q10)<>1,"") ->  | Q10: =IF(MAX(E10:G10)<1,"",1) ->  | S10: =_xlfn.IFS(E10=$X$5,E10,F10=$X$5,F10,G10=$X$5,G10,$A$7=1,"") ->  | U10: =_xlfn.IFS(W10=$X$6,W10,X10=$X$6,X10,Y10=$X$6,Y10,$A$7=1,"") ->  | W10: =_xlfn.IFS(AND(Q10=1,COUNT($E$7:G10)>hcpng),E10+D10,$A$7=1," ") ->  | X10: =_xlfn.IFS(AND(Q10=1,COUNT($E$7:G10)>hcpng),F10+D10,$A$7=1," ") ->  | Y10: =_xlfn.IFS(AND(Q10=1,COUNT($E$7:G10)>hcpng),G10+D10,$A$7=1," ") ->  | Z10: 0 | AA10: =_xlfn.IFS(COUNTIFS(H10,"#",H9,"#"),A9,COUNTIFS(H10,2,H9,"#"),A9,$A$7=1,"") -> 
A11: 5 | B11: 2023-10-04 | C11: =_xlfn.IFS(Q11<>1,"",AND($B$4>=1,COUNT($E$7:G11)<=bkng),$B$4,P11=1,TRUNC(AVERAGE(E11:G11),0),COUNT($Q$7:Q11)=2,TRUNC(AVERAGE($E$7:G10),0),COUNT($Q$7:Q11)>=3,TRUNC(AVERAGE($E$7:G10),0)) -> 102 | D11: =_xlfn.IFS(Q11<>1,"",Q11=1,TRUNC((HCPB-C11)*HCPPC)) -> 115 | E11: 85 | F11: 99 | G11: 123 | H11: =_xlfn.IFS(COUNT(E11:G11)<1,"",AND(E11>C11,F11>C11,G11>C11,COUNT($E$7:G11)>sixng),"#",AND(E11>C10,F11>C10,G11>C10,COUNT($E$7:G11)>sixng,COUNTIF(H10,"#")=1),"2",$A$7=1,"") ->  | I11: 307 | J11: 102 | K11: =_xlfn.IFS(Q11<>1,"",Q11=1,I11+(3*D11)) -> 652 | L11: =_xlfn.IFS(Q11<>1,"",COUNT($E$7:G11)<=hcpng,"",COUNT($E$7:G11)>=hcpng,K11) -> 652 | M11: =_xlfn.IFS(Q11=1,SUM($E$7:G11),Q11<>1,"") -> 1225 | N11: =_xlfn.IFS(Q11=1,COUNT($E$7:G11),Q11<>1,"") -> 12 | O11: =IF(Q11=1,ROUND(AVERAGE($E$7:G11),2),"") -> 102.08 | P11: =_xlfn.IFS(Q11<>1,"",SUM($Q$7:Q11)=1,1,SUM($Q$7:Q11)<>1,"") ->  | Q11: 1 | S11: =_xlfn.IFS(E11=$X$5,E11,F11=$X$5,F11,G11=$X$5,G11,$A$7=1,"") ->  | U11: =_xlfn.IFS(W11=$X$6,W11,X11=$X$6,X11,Y11=$X$6,Y11,$A$7=1,"") ->  | W11: =_xlfn.IFS(AND(Q11=1,COUNT($E$7:G11)>hcpng),E11+D11,$A$7=1," ") -> 200 | X11: =_xlfn.IFS(AND(Q11=1,COUNT($E$7:G11)>hcpng),F11+D11,$A$7=1," ") -> 214 | Y11: =_xlfn.IFS(AND(Q11=1,COUNT($E$7:G11)>hcpng),G11+D11,$A$7=1," ") -> 238 | Z11: 5 | AA11: =_xlfn.IFS(COUNTIFS(H11,"#",H10,"#"),A10,COUNTIFS(H11,2,H10,"#"),A10,$A$7=1,"") ->  | AB11: Define the following items using the UTL1 sheet:
A12: 6 | B12: 2023-10-11 | C12: =_xlfn.IFS(Q12<>1,"",AND($B$4>=1,COUNT($E$7:G12)<=bkng),$B$4,P12=1,TRUNC(AVERAGE(E12:G12),0),COUNT($Q$7:Q12)=2,TRUNC(AVERAGE($E$7:G11),0),COUNT($Q$7:Q12)>=3,TRUNC(AVERAGE($E$7:G11),0)) ->  | D12: =_xlfn.IFS(Q12<>1,"",Q12=1,TRUNC((HCPB-C12)*HCPPC)) ->  | H12: =_xlfn.IFS(COUNT(E12:G12)<1,"",AND(E12>C12,F12>C12,G12>C12,COUNT($E$7:G12)>sixng),"#",AND(E12>C11,F12>C11,G12>C11,COUNT($E$7:G12)>sixng,COUNTIF(H11,"#")=1),"2",$A$7=1,"") ->  | K12: =_xlfn.IFS(Q12<>1,"",Q12=1,I12+(3*D12)) ->  | L12: =_xlfn.IFS(Q12<>1,"",COUNT($E$7:G12)<=hcpng,"",COUNT($E$7:G12)>=hcpng,K12) ->  | M12: =_xlfn.IFS(Q12=1,SUM($E$7:G12),Q12<>1,"") ->  | N12: =_xlfn.IFS(Q12=1,COUNT($E$7:G12),Q12<>1,"") ->  | O12: =IF(Q12=1,ROUND(AVERAGE($E$7:G12),2),"") ->  | P12: =_xlfn.IFS(Q12<>1,"",SUM($Q$7:Q12)=1,1,SUM($Q$7:Q12)<>1,"") ->  | S12: =_xlfn.IFS(E12=$X$5,E12,F12=$X$5,F12,G12=$X$5,G12,$A$7=1,"") ->  | U12: =_xlfn.IFS(W12=$X$6,W12,X12=$X$6,X12,Y12=$X$6,Y12,$A$7=1,"") ->  | W12: =_xlfn.IFS(AND(Q12=1,COUNT($E$7:G12)>hcpng),E12+D12,$A$7=1," ") ->  | X12: =_xlfn.IFS(AND(Q12=1,COUNT($E$7:G12)>hcpng),F12+D12,$A$7=1," ") ->  | Y12: =_xlfn.IFS(AND(Q12=1,COUNT($E$7:G12)>hcpng),G12+D12,$A$7=1," ") ->  | Z12: 0 | AA12: =_xlfn.IFS(COUNTIFS(H12,"#",H11,"#"),A11,COUNTIFS(H12,2,H11,"#"),A11,$A$7=1,"") ->  | AB12: 6 over after number of games
A13: 7 | B13: 2023-10-18 | C13: =_xlfn.IFS(Q13<>1,"",AND($B$4>=1,COUNT($E$7:G13)<=bkng),$B$4,P13=1,TRUNC(AVERAGE(E13:G13),0),COUNT($Q$7:Q13)=2,TRUNC(AVERAGE($E$7:G12),0),COUNT($Q$7:Q13)>=3,TRUNC(AVERAGE($E$7:G12),0)) -> 102 | D13: =_xlfn.IFS(Q13<>1,"",Q13=1,TRUNC((HCPB-C13)*HCPPC)) -> 115 | E13: 121 | F13: 98 | G13: 96 | H13: =_xlfn.IFS(COUNT(E13:G13)<1,"",AND(E13>C13,F13>C13,G13>C13,COUNT($E$7:G13)>sixng),"#",AND(E13>C12,F13>C12,G13>C12,COUNT($E$7:G13)>sixng,COUNTIF(H12,"#")=1),"2",$A$7=1,"") ->  | I13: 315 | J13: 105 | K13: =_xlfn.IFS(Q13<>1,"",Q13=1,I13+(3*D13)) -> 660 | L13: =_xlfn.IFS(Q13<>1,"",COUNT($E$7:G13)<=hcpng,"",COUNT($E$7:G13)>=hcpng,K13) -> 660 | M13: =_xlfn.IFS(Q13=1,SUM($E$7:G13),Q13<>1,"") -> 1540 | N13: =_xlfn.IFS(Q13=1,COUNT($E$7:G13),Q13<>1,"") -> 15 | O13: =IF(Q13=1,ROUND(AVERAGE($E$7:G13),2),"") -> 102.67 | P13: =_xlfn.IFS(Q13<>1,"",SUM($Q$7:Q13)=1,1,SUM($Q$7:Q13)<>1,"") ->  | Q13: 1 | S13: =_xlfn.IFS(E13=$X$5,E13,F13=$X$5,F13,G13=$X$5,G13,$A$7=1,"") ->  | U13: =_xlfn.IFS(W13=$X$6,W13,X13=$X$6,X13,Y13=$X$6,Y13,$A$7=1,"") ->  | W13: =_xlfn.IFS(AND(Q13=1,COUNT($E$7:G13)>hcpng),E13+D13,$A$7=1," ") -> 236 | X13: =_xlfn.IFS(AND(Q13=1,COUNT($E$7:G13)>hcpng),F13+D13,$A$7=1," ") -> 213 | Y13: =_xlfn.IFS(AND(Q13=1,COUNT($E$7:G13)>hcpng),G13+D13,$A$7=1," ") -> 211 | Z13: 7 | AA13: =_xlfn.IFS(COUNTIFS(H13,"#",H12,"#"),A12,COUNTIFS(H13,2,H12,"#"),A12,$A$7=1,"") ->  | AB13: book average number of games
A14: 8 | B14: 2023-10-25 | C14: =_xlfn.IFS(Q14<>1,"",AND($B$4>=1,COUNT($E$7:G14)<=bkng),$B$4,P14=1,TRUNC(AVERAGE(E14:G14),0),COUNT($Q$7:Q14)=2,TRUNC(AVERAGE($E$7:G13),0),COUNT($Q$7:Q14)>=3,TRUNC(AVERAGE($E$7:G13),0)) ->  | D14: =_xlfn.IFS(Q14<>1,"",Q14=1,TRUNC((HCPB-C14)*HCPPC)) ->  | H14: =_xlfn.IFS(COUNT(E14:G14)<1,"",AND(E14>C14,F14>C14,G14>C14,COUNT($E$7:G14)>sixng),"#",AND(E14>C13,F14>C13,G14>C13,COUNT($E$7:G14)>sixng,COUNTIF(H13,"#")=1),"2",$A$7=1,"") ->  | K14: =_xlfn.IFS(Q14<>1,"",Q14=1,I14+(3*D14)) ->  | L14: =_xlfn.IFS(Q14<>1,"",COUNT($E$7:G14)<=hcpng,"",COUNT($E$7:G14)>=hcpng,K14) ->  | M14: =_xlfn.IFS(Q14=1,SUM($E$7:G14),Q14<>1,"") ->  | N14: =_xlfn.IFS(Q14=1,COUNT($E$7:G14),Q14<>1,"") ->  | O14: =IF(Q14=1,ROUND(AVERAGE($E$7:G14),2),"") ->  | P14: =_xlfn.IFS(Q14<>1,"",SUM($Q$7:Q14)=1,1,SUM($Q$7:Q14)<>1,"") ->  | S14: =_xlfn.IFS(E14=$X$5,E14,F14=$X$5,F14,G14=$X$5,G14,$A$7=1,"") ->  | U14: =_xlfn.IFS(W14=$X$6,W14,X14=$X$6,X14,Y14=$X$6,Y14,$A$7=1,"") ->  | W14: =_xlfn.IFS(AND(Q14=1,COUNT($E$7:G14)>hcpng),E14+D14,$A$7=1," ") ->  | X14: =_xlfn.IFS(AND(Q14=1,COUNT($E$7:G14)>hcpng),F14+D14,$A$7=1," ") ->  | Y14: =_xlfn.IFS(AND(Q14=1,COUNT($E$7:G14)>hcpng),G14+D14,$A$7=1," ") ->  | Z14: 0 | AA14: =_xlfn.IFS(COUNTIFS(H14,"#",H13,"#"),A13,COUNTIFS(H14,2,H13,"#"),A13,$A$7=1,"") ->  | AB14: handicap after number of games
A15: 9 | B15: 2023-11-01 | C15: =_xlfn.IFS(Q15<>1,"",AND($B$4>=1,COUNT($E$7:G15)<=bkng),$B$4,P15=1,TRUNC(AVERAGE(E15:G15),0),COUNT($Q$7:Q15)=2,TRUNC(AVERAGE($E$7:G14),0),COUNT($Q$7:Q15)>=3,TRUNC(AVERAGE($E$7:G14),0)) -> 102 | D15: =_xlfn.IFS(Q15<>1,"",Q15=1,TRUNC((HCPB-C15)*HCPPC)) -> 115 | E15: 97 | F15: 106 | G15: 100 | H15: =_xlfn.IFS(COUNT(E15:G15)<1,"",AND(E15>C15,F15>C15,G15>C15,COUNT($E$7:G15)>sixng),"#",AND(E15>C14,F15>C14,G15>C14,COUNT($E$7:G15)>sixng,COUNTIF(H14,"#")=1),"2",$A$7=1,"") ->  | I15: 303 | J15: 101 | K15: =_xlfn.IFS(Q15<>1,"",Q15=1,I15+(3*D15)) -> 648 | L15: =_xlfn.IFS(Q15<>1,"",COUNT($E$7:G15)<=hcpng,"",COUNT($E$7:G15)>=hcpng,K15) -> 648 | M15: =_xlfn.IFS(Q15=1,SUM($E$7:G15),Q15<>1,"") -> 1843 | N15: =_xlfn.IFS(Q15=1,COUNT($E$7:G15),Q15<>1,"") -> 18 | O15: =IF(Q15=1,ROUND(AVERAGE($E$7:G15),2),"") -> 102.39 | P15: =_xlfn.IFS(Q15<>1,"",SUM($Q$7:Q15)=1,1,SUM($Q$7:Q15)<>1,"") ->  | Q15: 1 | S15: =_xlfn.IFS(E15=$X$5,E15,F15=$X$5,F15,G15=$X$5,G15,$A$7=1,"") ->  | U15: =_xlfn.IFS(W15=$X$6,W15,X15=$X$6,X15,Y15=$X$6,Y15,$A$7=1,"") ->  | W15: =_xlfn.IFS(AND(Q15=1,COUNT($E$7:G15)>hcpng),E15+D15,$A$7=1," ") -> 212 | X15: =_xlfn.IFS(AND(Q15=1,COUNT($E$7:G15)>hcpng),F15+D15,$A$7=1," ") -> 221 | Y15: =_xlfn.IFS(AND(Q15=1,COUNT($E$7:G15)>hcpng),G15+D15,$A$7=1," ") -> 215 | Z15: 9 | AA15: =_xlfn.IFS(COUNTIFS(H15,"#",H14,"#"),A14,COUNTIFS(H15,2,H14,"#"),A14,$A$7=1,"") ->  | AB15: hcp Merit Awards number of games
A16: 10 | B16: 2023-11-08 | C16: =_xlfn.IFS(Q16<>1,"",AND($B$4>=1,COUNT($E$7:G16)<=bkng),$B$4,P16=1,TRUNC(AVERAGE(E16:G16),0),COUNT($Q$7:Q16)=2,TRUNC(AVERAGE($E$7:G15),0),COUNT($Q$7:Q16)>=3,TRUNC(AVERAGE($E$7:G15),0)) -> 102 | D16: =_xlfn.IFS(Q16<>1,"",Q16=1,TRUNC((HCPB-C16)*HCPPC)) -> 115 | E16: 86 | F16: 112 | G16: 92 | H16: =_xlfn.IFS(COUNT(E16:G16)<1,"",AND(E16>C16,F16>C16,G16>C16,COUNT($E$7:G16)>sixng),"#",AND(E16>C15,F16>C15,G16>C15,COUNT($E$7:G16)>sixng,COUNTIF(H15,"#")=1),"2",$A$7=1,"") ->  | I16: 290 | J16: 96 | K16: =_xlfn.IFS(Q16<>1,"",Q16=1,I16+(3*D16)) -> 635 | L16: =_xlfn.IFS(Q16<>1,"",COUNT($E$7:G16)<=hcpng,"",COUNT($E$7:G16)>=hcpng,K16) -> 635 | M16: =_xlfn.IFS(Q16=1,SUM($E$7:G16),Q16<>1,"") -> 2133 | N16: =_xlfn.IFS(Q16=1,COUNT($E$7:G16),Q16<>1,"") -> 21 | O16: =IF(Q16=1,ROUND(AVERAGE($E$7:G16),2),"") -> 101.57 | P16: =_xlfn.IFS(Q16<>1,"",SUM($Q$7:Q16)=1,1,SUM($Q$7:Q16)<>1,"") ->  | Q16: 1 | S16: =_xlfn.IFS(E16=$X$5,E16,F16=$X$5,F16,G16=$X$5,G16,$A$7=1,"") ->  | U16: =_xlfn.IFS(W16=$X$6,W16,X16=$X$6,X16,Y16=$X$6,Y16,$A$7=1,"") ->  | W16: =_xlfn.IFS(AND(Q16=1,COUNT($E$7:G16)>hcpng),E16+D16,$A$7=1," ") -> 201 | X16: =_xlfn.IFS(AND(Q16=1,COUNT($E$7:G16)>hcpng),F16+D16,$A$7=1," ") -> 227 | Y16: =_xlfn.IFS(AND(Q16=1,COUNT($E$7:G16)>hcpng),G16+D16,$A$7=1," ") -> 207 | Z16: 10 | AA16: =_xlfn.IFS(COUNTIFS(H16,"#",H15,"#"),A15,COUNTIFS(H16,2,H15,"#"),A15,$A$7=1,"") -> 
A17: 11 | B17: 2023-11-15 | C17: =_xlfn.IFS(Q17<>1,"",AND($B$4>=1,COUNT($E$7:G17)<=bkng),$B$4,P17=1,TRUNC(AVERAGE(E17:G17),0),COUNT($Q$7:Q17)=2,TRUNC(AVERAGE($E$7:G16),0),COUNT($Q$7:Q17)>=3,TRUNC(AVERAGE($E$7:G16),0)) -> 101 | D17: =_xlfn.IFS(Q17<>1,"",Q17=1,TRUNC((HCPB-C17)*HCPPC)) -> 116 | E17: 71 | F17: 98 | G17: 110 | H17: =_xlfn.IFS(COUNT(E17:G17)<1,"",AND(E17>C17,F17>C17,G17>C17,COUNT($E$7:G17)>sixng),"#",AND(E17>C16,F17>C16,G17>C16,COUNT($E$7:G17)>sixng,COUNTIF(H16,"#")=1),"2",$A$7=1,"") ->  | I17: 279 | J17: 93 | K17: =_xlfn.IFS(Q17<>1,"",Q17=1,I17+(3*D17)) -> 627 | L17: =_xlfn.IFS(Q17<>1,"",COUNT($E$7:G17)<=hcpng,"",COUNT($E$7:G17)>=hcpng,K17) -> 627 | M17: =_xlfn.IFS(Q17=1,SUM($E$7:G17),Q17<>1,"") -> 2412 | N17: =_xlfn.IFS(Q17=1,COUNT($E$7:G17),Q17<>1,"") -> 24 | O17: =IF(Q17=1,ROUND(AVERAGE($E$7:G17),2),"") -> 100.5 | P17: =_xlfn.IFS(Q17<>1,"",SUM($Q$7:Q17)=1,1,SUM($Q$7:Q17)<>1,"") ->  | Q17: 1 | S17: =_xlfn.IFS(E17=$X$5,E17,F17=$X$5,F17,G17=$X$5,G17,$A$7=1,"") ->  | U17: =_xlfn.IFS(W17=$X$6,W17,X17=$X$6,X17,Y17=$X$6,Y17,$A$7=1,"") ->  | W17: =_xlfn.IFS(AND(Q17=1,COUNT($E$7:G17)>hcpng),E17+D17,$A$7=1," ") -> 187 | X17: =_xlfn.IFS(AND(Q17=1,COUNT($E$7:G17)>hcpng),F17+D17,$A$7=1," ") -> 214 | Y17: =_xlfn.IFS(AND(Q17=1,COUNT($E$7:G17)>hcpng),G17+D17,$A$7=1," ") -> 226 | Z17: 11 | AA17: =_xlfn.IFS(COUNTIFS(H17,"#",H16,"#"),A16,COUNTIFS(H17,2,H16,"#"),A16,$A$7=1,"") ->  | AB17: Handicap base
A18: 12 | B18: 2023-11-29 | C18: =_xlfn.IFS(Q18<>1,"",AND($B$4>=1,COUNT($E$7:G18)<=bkng),$B$4,P18=1,TRUNC(AVERAGE(E18:G18),0),COUNT($Q$7:Q18)=2,TRUNC(AVERAGE($E$7:G17),0),COUNT($Q$7:Q18)>=3,TRUNC(AVERAGE($E$7:G17),0)) -> 100 | D18: =_xlfn.IFS(Q18<>1,"",Q18=1,TRUNC((HCPB-C18)*HCPPC)) -> 117 | E18: 87 | F18: 115 | G18: 85 | H18: =_xlfn.IFS(COUNT(E18:G18)<1,"",AND(E18>C18,F18>C18,G18>C18,COUNT($E$7:G18)>sixng),"#",AND(E18>C17,F18>C17,G18>C17,COUNT($E$7:G18)>sixng,COUNTIF(H17,"#")=1),"2",$A$7=1,"") ->  | I18: 287 | J18: 95 | K18: =_xlfn.IFS(Q18<>1,"",Q18=1,I18+(3*D18)) -> 638 | L18: =_xlfn.IFS(Q18<>1,"",COUNT($E$7:G18)<=hcpng,"",COUNT($E$7:G18)>=hcpng,K18) -> 638 | M18: =_xlfn.IFS(Q18=1,SUM($E$7:G18),Q18<>1,"") -> 2699 | N18: =_xlfn.IFS(Q18=1,COUNT($E$7:G18),Q18<>1,"") -> 27 | O18: =IF(Q18=1,ROUND(AVERAGE($E$7:G18),2),"") -> 99.96 | P18: =_xlfn.IFS(Q18<>1,"",SUM($Q$7:Q18)=1,1,SUM($Q$7:Q18)<>1,"") ->  | Q18: 1 | S18: =_xlfn.IFS(E18=$X$5,E18,F18=$X$5,F18,G18=$X$5,G18,$A$7=1,"") ->  | U18: =_xlfn.IFS(W18=$X$6,W18,X18=$X$6,X18,Y18=$X$6,Y18,$A$7=1,"") ->  | W18: =_xlfn.IFS(AND(Q18=1,COUNT($E$7:G18)>hcpng),E18+D18,$A$7=1," ") -> 204 | X18: =_xlfn.IFS(AND(Q18=1,COUNT($E$7:G18)>hcpng),F18+D18,$A$7=1," ") -> 232 | Y18: =_xlfn.IFS(AND(Q18=1,COUNT($E$7:G18)>hcpng),G18+D18,$A$7=1," ") -> 202 | Z18: 12 | AA18: =_xlfn.IFS(COUNTIFS(H18,"#",H17,"#"),A17,COUNTIFS(H18,2,H17,"#"),A17,$A$7=1,"") ->  | AB18: Handicap %
A19: 13 | B19: 2023-12-06 | C19: =_xlfn.IFS(Q19<>1,"",AND($B$4>=1,COUNT($E$7:G19)<=bkng),$B$4,P19=1,TRUNC(AVERAGE(E19:G19),0),COUNT($Q$7:Q19)=2,TRUNC(AVERAGE($E$7:G18),0),COUNT($Q$7:Q19)>=3,TRUNC(AVERAGE($E$7:G18),0)) -> 99 | D19: =_xlfn.IFS(Q19<>1,"",Q19=1,TRUNC((HCPB-C19)*HCPPC)) -> 117 | E19: 111 | F19: 85 | G19: 96 | H19: =_xlfn.IFS(COUNT(E19:G19)<1,"",AND(E19>C19,F19>C19,G19>C19,COUNT($E$7:G19)>sixng),"#",AND(E19>C18,F19>C18,G19>C18,COUNT($E$7:G19)>sixng,COUNTIF(H18,"#")=1),"2",$A$7=1,"") ->  | I19: 292 | J19: 97 | K19: =_xlfn.IFS(Q19<>1,"",Q19=1,I19+(3*D19)) -> 643 | L19: =_xlfn.IFS(Q19<>1,"",COUNT($E$7:G19)<=hcpng,"",COUNT($E$7:G19)>=hcpng,K19) -> 643 | M19: =_xlfn.IFS(Q19=1,SUM($E$7:G19),Q19<>1,"") -> 2991 | N19: =_xlfn.IFS(Q19=1,COUNT($E$7:G19),Q19<>1,"") -> 30 | O19: =IF(Q19=1,ROUND(AVERAGE($E$7:G19),2),"") -> 99.7 | P19: =_xlfn.IFS(Q19<>1,"",SUM($Q$7:Q19)=1,1,SUM($Q$7:Q19)<>1,"") ->  | Q19: 1 | S19: =_xlfn.IFS(E19=$X$5,E19,F19=$X$5,F19,G19=$X$5,G19,$A$7=1,"") ->  | U19: =_xlfn.IFS(W19=$X$6,W19,X19=$X$6,X19,Y19=$X$6,Y19,$A$7=1,"") ->  | W19: =_xlfn.IFS(AND(Q19=1,COUNT($E$7:G19)>hcpng),E19+D19,$A$7=1," ") -> 228 | X19: =_xlfn.IFS(AND(Q19=1,COUNT($E$7:G19)>hcpng),F19+D19,$A$7=1," ") -> 202 | Y19: =_xlfn.IFS(AND(Q19=1,COUNT($E$7:G19)>hcpng),G19+D19,$A$7=1," ") -> 213 | Z19: 13 | AA19: =_xlfn.IFS(COUNTIFS(H19,"#",H18,"#"),A18,COUNTIFS(H19,2,H18,"#"),A18,$A$7=1,"") -> 
A20: 14 | B20: 2023-12-13 | C20: =_xlfn.IFS(Q20<>1,"",AND($B$4>=1,COUNT($E$7:G20)<=bkng),$B$4,P20=1,TRUNC(AVERAGE(E20:G20),0),COUNT($Q$7:Q20)=2,TRUNC(AVERAGE($E$7:G19),0),COUNT($Q$7:Q20)>=3,TRUNC(AVERAGE($E$7:G19),0)) -> 99 | D20: =_xlfn.IFS(Q20<>1,"",Q20=1,TRUNC((HCPB-C20)*HCPPC)) -> 117 | E20: 91 | F20: 114 | G20: 81 | H20: =_xlfn.IFS(COUNT(E20:G20)<1,"",AND(E20>C20,F20>C20,G20>C20,COUNT($E$7:G20)>sixng),"#",AND(E20>C19,F20>C19,G20>C19,COUNT($E$7:G20)>sixng,COUNTIF(H19,"#")=1),"2",$A$7=1,"") ->  | I20: 286 | J20: 95 | K20: =_xlfn.IFS(Q20<>1,"",Q20=1,I20+(3*D20)) -> 637 | L20: =_xlfn.IFS(Q20<>1,"",COUNT($E$7:G20)<=hcpng,"",COUNT($E$7:G20)>=hcpng,K20) -> 637 | M20: =_xlfn.IFS(Q20=1,SUM($E$7:G20),Q20<>1,"") -> 3277 | N20: =_xlfn.IFS(Q20=1,COUNT($E$7:G20),Q20<>1,"") -> 33 | O20: =IF(Q20=1,ROUND(AVERAGE($E$7:G20),2),"") -> 99.3 | P20: =_xlfn.IFS(Q20<>1,"",SUM($Q$7:Q20)=1,1,SUM($Q$7:Q20)<>1,"") ->  | Q20: 1 | S20: =_xlfn.IFS(E20=$X$5,E20,F20=$X$5,F20,G20=$X$5,G20,$A$7=1,"") ->  | U20: =_xlfn.IFS(W20=$X$6,W20,X20=$X$6,X20,Y20=$X$6,Y20,$A$7=1,"") ->  | W20: =_xlfn.IFS(AND(Q20=1,COUNT($E$7:G20)>hcpng),E20+D20,$A$7=1," ") -> 208 | X20: =_xlfn.IFS(AND(Q20=1,COUNT($E$7:G20)>hcpng),F20+D20,$A$7=1," ") -> 231 | Y20: =_xlfn.IFS(AND(Q20=1,COUNT($E$7:G20)>hcpng),G20+D20,$A$7=1," ") -> 198 | Z20: 14 | AA20: =_xlfn.IFS(COUNTIFS(H20,"#",H19,"#"),A19,COUNTIFS(H20,2,H19,"#"),A19,$A$7=1,"") ->  | AB20: Define the USBC Merit awards items using the UTLMA sheet:
A21: 15 | B21: 2023-12-20 | C21: =_xlfn.IFS(Q21<>1,"",AND($B$4>=1,COUNT($E$7:G21)<=bkng),$B$4,P21=1,TRUNC(AVERAGE(E21:G21),0),COUNT($Q$7:Q21)=2,TRUNC(AVERAGE($E$7:G20),0),COUNT($Q$7:Q21)>=3,TRUNC(AVERAGE($E$7:G20),0)) -> 99 | D21: =_xlfn.IFS(Q21<>1,"",Q21=1,TRUNC((HCPB-C21)*HCPPC)) -> 117 | E21: 102 | F21: 102 | G21: 86 | H21: =_xlfn.IFS(COUNT(E21:G21)<1,"",AND(E21>C21,F21>C21,G21>C21,COUNT($E$7:G21)>sixng),"#",AND(E21>C20,F21>C20,G21>C20,COUNT($E$7:G21)>sixng,COUNTIF(H20,"#")=1),"2",$A$7=1,"") ->  | I21: 290 | J21: 96 | K21: =_xlfn.IFS(Q21<>1,"",Q21=1,I21+(3*D21)) -> 641 | L21: =_xlfn.IFS(Q21<>1,"",COUNT($E$7:G21)<=hcpng,"",COUNT($E$7:G21)>=hcpng,K21) -> 641 | M21: =_xlfn.IFS(Q21=1,SUM($E$7:G21),Q21<>1,"") -> 3567 | N21: =_xlfn.IFS(Q21=1,COUNT($E$7:G21),Q21<>1,"") -> 36 | O21: =IF(Q21=1,ROUND(AVERAGE($E$7:G21),2),"") -> 99.08 | P21: =_xlfn.IFS(Q21<>1,"",SUM($Q$7:Q21)=1,1,SUM($Q$7:Q21)<>1,"") ->  | Q21: 1 | S21: =_xlfn.IFS(E21=$X$5,E21,F21=$X$5,F21,G21=$X$5,G21,$A$7=1,"") ->  | U21: =_xlfn.IFS(W21=$X$6,W21,X21=$X$6,X21,Y21=$X$6,Y21,$A$7=1,"") ->  | W21: =_xlfn.IFS(AND(Q21=1,COUNT($E$7:G21)>hcpng),E21+D21,$A$7=1," ") -> 219 | X21: =_xlfn.IFS(AND(Q21=1,COUNT($E$7:G21)>hcpng),F21+D21,$A$7=1," ") -> 219 | Y21: =_xlfn.IFS(AND(Q21=1,COUNT($E$7:G21)>hcpng),G21+D21,$A$7=1," ") -> 203 | Z21: 15 | AA21: =_xlfn.IFS(COUNTIFS(H21,"#",H20,"#"),A20,COUNTIFS(H21,2,H20,"#"),A20,$A$7=1,"") -> 
A22: 16 | B22: 2024-01-03 | C22: =_xlfn.IFS(Q22<>1,"",AND($B$4>=1,COUNT($E$7:G22)<=bkng),$B$4,P22=1,TRUNC(AVERAGE(E22:G22),0),COUNT($Q$7:Q22)=2,TRUNC(AVERAGE($E$7:G21),0),COUNT($Q$7:Q22)>=3,TRUNC(AVERAGE($E$7:G21),0)) -> 99 | D22: =_xlfn.IFS(Q22<>1,"",Q22=1,TRUNC((HCPB-C22)*HCPPC)) -> 117 | E22: 99 | F22: 129 | G22: 95 | H22: =_xlfn.IFS(COUNT(E22:G22)<1,"",AND(E22>C22,F22>C22,G22>C22,COUNT($E$7:G22)>sixng),"#",AND(E22>C21,F22>C21,G22>C21,COUNT($E$7:G22)>sixng,COUNTIF(H21,"#")=1),"2",$A$7=1,"") ->  | I22: 323 | J22: 107 | K22: =_xlfn.IFS(Q22<>1,"",Q22=1,I22+(3*D22)) -> 674 | L22: =_xlfn.IFS(Q22<>1,"",COUNT($E$7:G22)<=hcpng,"",COUNT($E$7:G22)>=hcpng,K22) -> 674 | M22: =_xlfn.IFS(Q22=1,SUM($E$7:G22),Q22<>1,"") -> 3890 | N22: =_xlfn.IFS(Q22=1,COUNT($E$7:G22),Q22<>1,"") -> 39 | O22: =IF(Q22=1,ROUND(AVERAGE($E$7:G22),2),"") -> 99.74 | P22: =_xlfn.IFS(Q22<>1,"",SUM($Q$7:Q22)=1,1,SUM($Q$7:Q22)<>1,"") ->  | Q22: 1 | S22: =_xlfn.IFS(E22=$X$5,E22,F22=$X$5,F22,G22=$X$5,G22,$A$7=1,"") ->  | U22: =_xlfn.IFS(W22=$X$6,W22,X22=$X$6,X22,Y22=$X$6,Y22,$A$7=1,"") ->  | W22: =_xlfn.IFS(AND(Q22=1,COUNT($E$7:G22)>hcpng),E22+D22,$A$7=1," ") -> 216 | X22: =_xlfn.IFS(AND(Q22=1,COUNT($E$7:G22)>hcpng),F22+D22,$A$7=1," ") -> 246 | Y22: =_xlfn.IFS(AND(Q22=1,COUNT($E$7:G22)>hcpng),G22+D22,$A$7=1," ") -> 212 | Z22: 16 | AA22: =_xlfn.IFS(COUNTIFS(H22,"#",H21,"#"),A21,COUNTIFS(H22,2,H21,"#"),A21,$A$7=1,"") -> 
A23: 17 | B23: 2024-01-10 | C23: =_xlfn.IFS(Q23<>1,"",AND($B$4>=1,COUNT($E$7:G23)<=bkng),$B$4,P23=1,TRUNC(AVERAGE(E23:G23),0),COUNT($Q$7:Q23)=2,TRUNC(AVERAGE($E$7:G22),0),COUNT($Q$7:Q23)>=3,TRUNC(AVERAGE($E$7:G22),0)) -> 99 | D23: =_xlfn.IFS(Q23<>1,"",Q23=1,TRUNC((HCPB-C23)*HCPPC)) -> 117 | E23: 89 | F23: 99 | G23: 119 | H23: =_xlfn.IFS(COUNT(E23:G23)<1,"",AND(E23>C23,F23>C23,G23>C23,COUNT($E$7:G23)>sixng),"#",AND(E23>C22,F23>C22,G23>C22,COUNT($E$7:G23)>sixng,COUNTIF(H22,"#")=1),"2",$A$7=1,"") ->  | I23: 307 | J23: 102 | K23: =_xlfn.IFS(Q23<>1,"",Q23=1,I23+(3*D23)) -> 658 | L23: =_xlfn.IFS(Q23<>1,"",COUNT($E$7:G23)<=hcpng,"",COUNT($E$7:G23)>=hcpng,K23) -> 658 | M23: =_xlfn.IFS(Q23=1,SUM($E$7:G23),Q23<>1,"") -> 4197 | N23: =_xlfn.IFS(Q23=1,COUNT($E$7:G23),Q23<>1,"") -> 42 | O23: =IF(Q23=1,ROUND(AVERAGE($E$7:G23),2),"") -> 99.93 | P23: =_xlfn.IFS(Q23<>1,"",SUM($Q$7:Q23)=1,1,SUM($Q$7:Q23)<>1,"") ->  | Q23: 1 | S23: =_xlfn.IFS(E23=$X$5,E23,F23=$X$5,F23,G23=$X$5,G23,$A$7=1,"") ->  | U23: =_xlfn.IFS(W23=$X$6,W23,X23=$X$6,X23,Y23=$X$6,Y23,$A$7=1,"") ->  | W23: =_xlfn.IFS(AND(Q23=1,COUNT($E$7:G23)>hcpng),E23+D23,$A$7=1," ") -> 206 | X23: =_xlfn.IFS(AND(Q23=1,COUNT($E$7:G23)>hcpng),F23+D23,$A$7=1," ") -> 216 | Y23: =_xlfn.IFS(AND(Q23=1,COUNT($E$7:G23)>hcpng),G23+D23,$A$7=1," ") -> 236 | Z23: 17 | AA23: =_xlfn.IFS(COUNTIFS(H23,"#",H22,"#"),A22,COUNTIFS(H23,2,H22,"#"),A22,$A$7=1,"") ->  | AB23: To add new bowlers right click on "Blank" sheet select "move or copy", "(move to end)"
A24: 18 | B24: 2024-01-17 | C24: =_xlfn.IFS(Q24<>1,"",AND($B$4>=1,COUNT($E$7:G24)<=bkng),$B$4,P24=1,TRUNC(AVERAGE(E24:G24),0),COUNT($Q$7:Q24)=2,TRUNC(AVERAGE($E$7:G23),0),COUNT($Q$7:Q24)>=3,TRUNC(AVERAGE($E$7:G23),0)) ->  | D24: =_xlfn.IFS(Q24<>1,"",Q24=1,TRUNC((HCPB-C24)*HCPPC)) ->  | H24: =_xlfn.IFS(COUNT(E24:G24)<1,"",AND(E24>C24,F24>C24,G24>C24,COUNT($E$7:G24)>sixng),"#",AND(E24>C23,F24>C23,G24>C23,COUNT($E$7:G24)>sixng,COUNTIF(H23,"#")=1),"2",$A$7=1,"") ->  | K24: =_xlfn.IFS(Q24<>1,"",Q24=1,I24+(3*D24)) ->  | L24: =_xlfn.IFS(Q24<>1,"",COUNT($E$7:G24)<=hcpng,"",COUNT($E$7:G24)>=hcpng,K24) ->  | M24: =_xlfn.IFS(Q24=1,SUM($E$7:G24),Q24<>1,"") ->  | N24: =_xlfn.IFS(Q24=1,COUNT($E$7:G24),Q24<>1,"") ->  | O24: =IF(Q24=1,ROUND(AVERAGE($E$7:G24),2),"") ->  | P24: =_xlfn.IFS(Q24<>1,"",SUM($Q$7:Q24)=1,1,SUM($Q$7:Q24)<>1,"") ->  | S24: =_xlfn.IFS(E24=$X$5,E24,F24=$X$5,F24,G24=$X$5,G24,$A$7=1,"") ->  | U24: =_xlfn.IFS(W24=$X$6,W24,X24=$X$6,X24,Y24=$X$6,Y24,$A$7=1,"") ->  | W24: =_xlfn.IFS(AND(Q24=1,COUNT($E$7:G24)>hcpng),E24+D24,$A$7=1," ") ->  | X24: =_xlfn.IFS(AND(Q24=1,COUNT($E$7:G24)>hcpng),F24+D24,$A$7=1," ") ->  | Y24: =_xlfn.IFS(AND(Q24=1,COUNT($E$7:G24)>hcpng),G24+D24,$A$7=1," ") ->  | Z24: 0 | AA24: =_xlfn.IFS(COUNTIFS(H24,"#",H23,"#"),A23,COUNTIFS(H24,2,H23,"#"),A23,$A$7=1,"") ->  | AB24: and "check create a copy". Note: you can click and hold to move a sheet left or right.
A25: 19 | B25: 2024-01-24 | C25: =_xlfn.IFS(Q25<>1,"",AND($B$4>=1,COUNT($E$7:G25)<=bkng),$B$4,P25=1,TRUNC(AVERAGE(E25:G25),0),COUNT($Q$7:Q25)=2,TRUNC(AVERAGE($E$7:G24),0),COUNT($Q$7:Q25)>=3,TRUNC(AVERAGE($E$7:G24),0)) -> 99 | D25: =_xlfn.IFS(Q25<>1,"",Q25=1,TRUNC((HCPB-C25)*HCPPC)) -> 117 | E25: 129 | F25: 91 | G25: 100 | H25: =_xlfn.IFS(COUNT(E25:G25)<1,"",AND(E25>C25,F25>C25,G25>C25,COUNT($E$7:G25)>sixng),"#",AND(E25>C24,F25>C24,G25>C24,COUNT($E$7:G25)>sixng,COUNTIF(H24,"#")=1),"2",$A$7=1,"") ->  | I25: 320 | J25: 106 | K25: =_xlfn.IFS(Q25<>1,"",Q25=1,I25+(3*D25)) -> 671 | L25: =_xlfn.IFS(Q25<>1,"",COUNT($E$7:G25)<=hcpng,"",COUNT($E$7:G25)>=hcpng,K25) -> 671 | M25: =_xlfn.IFS(Q25=1,SUM($E$7:G25),Q25<>1,"") -> 4517 | N25: =_xlfn.IFS(Q25=1,COUNT($E$7:G25),Q25<>1,"") -> 45 | O25: =IF(Q25=1,ROUND(AVERAGE($E$7:G25),2),"") -> 100.38 | P25: =_xlfn.IFS(Q25<>1,"",SUM($Q$7:Q25)=1,1,SUM($Q$7:Q25)<>1,"") ->  | Q25: 1 | S25: =_xlfn.IFS(E25=$X$5,E25,F25=$X$5,F25,G25=$X$5,G25,$A$7=1,"") ->  | U25: =_xlfn.IFS(W25=$X$6,W25,X25=$X$6,X25,Y25=$X$6,Y25,$A$7=1,"") ->  | W25: =_xlfn.IFS(AND(Q25=1,COUNT($E$7:G25)>hcpng),E25+D25,$A$7=1," ") -> 246 | X25: =_xlfn.IFS(AND(Q25=1,COUNT($E$7:G25)>hcpng),F25+D25,$A$7=1," ") -> 208 | Y25: =_xlfn.IFS(AND(Q25=1,COUNT($E$7:G25)>hcpng),G25+D25,$A$7=1," ") -> 217 | Z25: 19 | AA25: =_xlfn.IFS(COUNTIFS(H25,"#",H24,"#"),A24,COUNTIFS(H25,2,H24,"#"),A24,$A$7=1,"") -> 
A26: 20 | B26: 2024-01-31 | C26: =_xlfn.IFS(Q26<>1,"",AND($B$4>=1,COUNT($E$7:G26)<=bkng),$B$4,P26=1,TRUNC(AVERAGE(E26:G26),0),COUNT($Q$7:Q26)=2,TRUNC(AVERAGE($E$7:G25),0),COUNT($Q$7:Q26)>=3,TRUNC(AVERAGE($E$7:G25),0)) -> 100 | D26: =_xlfn.IFS(Q26<>1,"",Q26=1,TRUNC((HCPB-C26)*HCPPC)) -> 117 | E26: 108 | F26: 106 | G26: 98 | H26: =_xlfn.IFS(COUNT(E26:G26)<1,"",AND(E26>C26,F26>C26,G26>C26,COUNT($E$7:G26)>sixng),"#",AND(E26>C25,F26>C25,G26>C25,COUNT($E$7:G26)>sixng,COUNTIF(H25,"#")=1),"2",$A$7=1,"") ->  | I26: 312 | J26: 104 | K26: =_xlfn.IFS(Q26<>1,"",Q26=1,I26+(3*D26)) -> 663 | L26: =_xlfn.IFS(Q26<>1,"",COUNT($E$7:G26)<=hcpng,"",COUNT($E$7:G26)>=hcpng,K26) -> 663 | M26: =_xlfn.IFS(Q26=1,SUM($E$7:G26),Q26<>1,"") -> 4829 | N26: =_xlfn.IFS(Q26=1,COUNT($E$7:G26),Q26<>1,"") -> 48 | O26: =IF(Q26=1,ROUND(AVERAGE($E$7:G26),2),"") -> 100.6 | P26: =_xlfn.IFS(Q26<>1,"",SUM($Q$7:Q26)=1,1,SUM($Q$7:Q26)<>1,"") ->  | Q26: 1 | S26: =_xlfn.IFS(E26=$X$5,E26,F26=$X$5,F26,G26=$X$5,G26,$A$7=1,"") ->  | U26: =_xlfn.IFS(W26=$X$6,W26,X26=$X$6,X26,Y26=$X$6,Y26,$A$7=1,"") ->  | W26: =_xlfn.IFS(AND(Q26=1,COUNT($E$7:G26)>hcpng),E26+D26,$A$7=1," ") -> 225 | X26: =_xlfn.IFS(AND(Q26=1,COUNT($E$7:G26)>hcpng),F26+D26,$A$7=1," ") -> 223 | Y26: =_xlfn.IFS(AND(Q26=1,COUNT($E$7:G26)>hcpng),G26+D26,$A$7=1," ") -> 215 | Z26: 20 | AA26: =_xlfn.IFS(COUNTIFS(H26,"#",H25,"#"),A25,COUNTIFS(H26,2,H25,"#"),A25,$A$7=1,"") -> 
A27: 21 | B27: 2024-02-07 | C27: =_xlfn.IFS(Q27<>1,"",AND($B$4>=1,COUNT($E$7:G27)<=bkng),$B$4,P27=1,TRUNC(AVERAGE(E27:G27),0),COUNT($Q$7:Q27)=2,TRUNC(AVERAGE($E$7:G26),0),COUNT($Q$7:Q27)>=3,TRUNC(AVERAGE($E$7:G26),0)) -> 100 | D27: =_xlfn.IFS(Q27<>1,"",Q27=1,TRUNC((HCPB-C27)*HCPPC)) -> 117 | E27: 121 | F27: 120 | G27: 106 | H27: =_xlfn.IFS(COUNT(E27:G27)<1,"",AND(E27>C27,F27>C27,G27>C27,COUNT($E$7:G27)>sixng),"#",AND(E27>C26,F27>C26,G27>C26,COUNT($E$7:G27)>sixng,COUNTIF(H26,"#")=1),"2",$A$7=1,"") -> # | I27: 347 | J27: 115 | K27: =_xlfn.IFS(Q27<>1,"",Q27=1,I27+(3*D27)) -> 698 | L27: =_xlfn.IFS(Q27<>1,"",COUNT($E$7:G27)<=hcpng,"",COUNT($E$7:G27)>=hcpng,K27) -> 698 | M27: =_xlfn.IFS(Q27=1,SUM($E$7:G27),Q27<>1,"") -> 5176 | N27: =_xlfn.IFS(Q27=1,COUNT($E$7:G27),Q27<>1,"") -> 51 | O27: =IF(Q27=1,ROUND(AVERAGE($E$7:G27),2),"") -> 101.49 | P27: =_xlfn.IFS(Q27<>1,"",SUM($Q$7:Q27)=1,1,SUM($Q$7:Q27)<>1,"") ->  | Q27: 1 | S27: =_xlfn.IFS(E27=$X$5,E27,F27=$X$5,F27,G27=$X$5,G27,$A$7=1,"") ->  | U27: =_xlfn.IFS(W27=$X$6,W27,X27=$X$6,X27,Y27=$X$6,Y27,$A$7=1,"") ->  | W27: =_xlfn.IFS(AND(Q27=1,COUNT($E$7:G27)>hcpng),E27+D27,$A$7=1," ") -> 238 | X27: =_xlfn.IFS(AND(Q27=1,COUNT($E$7:G27)>hcpng),F27+D27,$A$7=1," ") -> 237 | Y27: =_xlfn.IFS(AND(Q27=1,COUNT($E$7:G27)>hcpng),G27+D27,$A$7=1," ") -> 223 | Z27: 21 | AA27: =_xlfn.IFS(COUNTIFS(H27,"#",H26,"#"),A26,COUNTIFS(H27,2,H26,"#"),A26,$A$7=1,"") -> 
A28: 22 | B28: 2024-02-14 | C28: =_xlfn.IFS(Q28<>1,"",AND($B$4>=1,COUNT($E$7:G28)<=bkng),$B$4,P28=1,TRUNC(AVERAGE(E28:G28),0),COUNT($Q$7:Q28)=2,TRUNC(AVERAGE($E$7:G27),0),COUNT($Q$7:Q28)>=3,TRUNC(AVERAGE($E$7:G27),0)) -> 101 | D28: =_xlfn.IFS(Q28<>1,"",Q28=1,TRUNC((HCPB-C28)*HCPPC)) -> 116 | E28: 109 | F28: 92 | G28: 88 | H28: =_xlfn.IFS(COUNT(E28:G28)<1,"",AND(E28>C28,F28>C28,G28>C28,COUNT($E$7:G28)>sixng),"#",AND(E28>C27,F28>C27,G28>C27,COUNT($E$7:G28)>sixng,COUNTIF(H27,"#")=1),"2",$A$7=1,"") ->  | I28: 289 | J28: 96 | K28: =_xlfn.IFS(Q28<>1,"",Q28=1,I28+(3*D28)) -> 637 | L28: =_xlfn.IFS(Q28<>1,"",COUNT($E$7:G28)<=hcpng,"",COUNT($E$7:G28)>=hcpng,K28) -> 637 | M28: =_xlfn.IFS(Q28=1,SUM($E$7:G28),Q28<>1,"") -> 5465 | N28: =_xlfn.IFS(Q28=1,COUNT($E$7:G28),Q28<>1,"") -> 54 | O28: =IF(Q28=1,ROUND(AVERAGE($E$7:G28),2),"") -> 101.2 | P28: =_xlfn.IFS(Q28<>1,"",SUM($Q$7:Q28)=1,1,SUM($Q$7:Q28)<>1,"") ->  | Q28: 1 | S28: =_xlfn.IFS(E28=$X$5,E28,F28=$X$5,F28,G28=$X$5,G28,$A$7=1,"") ->  | U28: =_xlfn.IFS(W28=$X$6,W28,X28=$X$6,X28,Y28=$X$6,Y28,$A$7=1,"") ->  | W28: =_xlfn.IFS(AND(Q28=1,COUNT($E$7:G28)>hcpng),E28+D28,$A$7=1," ") -> 225 | X28: =_xlfn.IFS(AND(Q28=1,COUNT($E$7:G28)>hcpng),F28+D28,$A$7=1," ") -> 208 | Y28: =_xlfn.IFS(AND(Q28=1,COUNT($E$7:G28)>hcpng),G28+D28,$A$7=1," ") -> 204 | Z28: 22 | AA28: =_xlfn.IFS(COUNTIFS(H28,"#",H27,"#"),A27,COUNTIFS(H28,2,H27,"#"),A27,$A$7=1,"") -> 
A29: 23 | B29: 2024-02-21 | C29: =_xlfn.IFS(Q29<>1,"",AND($B$4>=1,COUNT($E$7:G29)<=bkng),$B$4,P29=1,TRUNC(AVERAGE(E29:G29),0),COUNT($Q$7:Q29)=2,TRUNC(AVERAGE($E$7:G28),0),COUNT($Q$7:Q29)>=3,TRUNC(AVERAGE($E$7:G28),0)) -> 101 | D29: =_xlfn.IFS(Q29<>1,"",Q29=1,TRUNC((HCPB-C29)*HCPPC)) -> 116 | E29: 83 | F29: 103 | G29: 125 | H29: =_xlfn.IFS(COUNT(E29:G29)<1,"",AND(E29>C29,F29>C29,G29>C29,COUNT($E$7:G29)>sixng),"#",AND(E29>C28,F29>C28,G29>C28,COUNT($E$7:G29)>sixng,COUNTIF(H28,"#")=1),"2",$A$7=1,"") ->  | I29: 311 | J29: 103 | K29: =_xlfn.IFS(Q29<>1,"",Q29=1,I29+(3*D29)) -> 659 | L29: =_xlfn.IFS(Q29<>1,"",COUNT($E$7:G29)<=hcpng,"",COUNT($E$7:G29)>=hcpng,K29) -> 659 | M29: =_xlfn.IFS(Q29=1,SUM($E$7:G29),Q29<>1,"") -> 5776 | N29: =_xlfn.IFS(Q29=1,COUNT($E$7:G29),Q29<>1,"") -> 57 | O29: =IF(Q29=1,ROUND(AVERAGE($E$7:G29),2),"") -> 101.33 | P29: =_xlfn.IFS(Q29<>1,"",SUM($Q$7:Q29)=1,1,SUM($Q$7:Q29)<>1,"") ->  | Q29: 1 | S29: =_xlfn.IFS(E29=$X$5,E29,F29=$X$5,F29,G29=$X$5,G29,$A$7=1,"") ->  | U29: =_xlfn.IFS(W29=$X$6,W29,X29=$X$6,X29,Y29=$X$6,Y29,$A$7=1,"") ->  | W29: =_xlfn.IFS(AND(Q29=1,COUNT($E$7:G29)>hcpng),E29+D29,$A$7=1," ") -> 199 | X29: =_xlfn.IFS(AND(Q29=1,COUNT($E$7:G29)>hcpng),F29+D29,$A$7=1," ") -> 219 | Y29: =_xlfn.IFS(AND(Q29=1,COUNT($E$7:G29)>hcpng),G29+D29,$A$7=1," ") -> 241 | Z29: 23 | AA29: =_xlfn.IFS(COUNTIFS(H29,"#",H28,"#"),A28,COUNTIFS(H29,2,H28,"#"),A28,$A$7=1,"") -> 
A30: 24 | B30: 2024-02-28 | C30: =_xlfn.IFS(Q30<>1,"",AND($B$4>=1,COUNT($E$7:G30)<=bkng),$B$4,P30=1,TRUNC(AVERAGE(E30:G30),0),COUNT($Q$7:Q30)=2,TRUNC(AVERAGE($E$7:G29),0),COUNT($Q$7:Q30)>=3,TRUNC(AVERAGE($E$7:G29),0)) -> 101 | D30: =_xlfn.IFS(Q30<>1,"",Q30=1,TRUNC((HCPB-C30)*HCPPC)) -> 116 | E30: 118 | F30: 102 | G30: 169 | H30: =_xlfn.IFS(COUNT(E30:G30)<1,"",AND(E30>C30,F30>C30,G30>C30,COUNT($E$7:G30)>sixng),"#",AND(E30>C29,F30>C29,G30>C29,COUNT($E$7:G30)>sixng,COUNTIF(H29,"#")=1),"2",$A$7=1,"") -> # | I30: 389 | J30: 129 | K30: =_xlfn.IFS(Q30<>1,"",Q30=1,I30+(3*D30)) -> 737 | L30: =_xlfn.IFS(Q30<>1,"",COUNT($E$7:G30)<=hcpng,"",COUNT($E$7:G30)>=hcpng,K30) -> 737 | M30: =_xlfn.IFS(Q30=1,SUM($E$7:G30),Q30<>1,"") -> 6165 | N30: =_xlfn.IFS(Q30=1,COUNT($E$7:G30),Q30<>1,"") -> 60 | O30: =IF(Q30=1,ROUND(AVERAGE($E$7:G30),2),"") -> 102.75 | P30: =_xlfn.IFS(Q30<>1,"",SUM($Q$7:Q30)=1,1,SUM($Q$7:Q30)<>1,"") ->  | Q30: 1 | R30: 389 | S30: =_xlfn.IFS(E30=$X$5,E30,F30=$X$5,F30,G30=$X$5,G30,$A$7=1,"") -> 169 | T30: 737 | U30: =_xlfn.IFS(W30=$X$6,W30,X30=$X$6,X30,Y30=$X$6,Y30,$A$7=1,"") -> 285 | W30: =_xlfn.IFS(AND(Q30=1,COUNT($E$7:G30)>hcpng),E30+D30,$A$7=1," ") -> 234 | X30: =_xlfn.IFS(AND(Q30=1,COUNT($E$7:G30)>hcpng),F30+D30,$A$7=1," ") -> 218 | Y30: =_xlfn.IFS(AND(Q30=1,COUNT($E$7:G30)>hcpng),G30+D30,$A$7=1," ") -> 285 | Z30: 24 | AA30: =_xlfn.IFS(COUNTIFS(H30,"#",H29,"#"),A29,COUNTIFS(H30,2,H29,"#"),A29,$A$7=1,"") -> 
A31: 25 | B31: 2024-03-06 | C31: =_xlfn.IFS(Q31<>1,"",AND($B$4>=1,COUNT($E$7:G31)<=bkng),$B$4,P31=1,TRUNC(AVERAGE(E31:G31),0),COUNT($Q$7:Q31)=2,TRUNC(AVERAGE($E$7:G30),0),COUNT($Q$7:Q31)>=3,TRUNC(AVERAGE($E$7:G30),0)) -> 102 | D31: =_xlfn.IFS(Q31<>1,"",Q31=1,TRUNC((HCPB-C31)*HCPPC)) -> 115 | E31: 92 | F31: 87 | G31: 142 | H31: =_xlfn.IFS(COUNT(E31:G31)<1,"",AND(E31>C31,F31>C31,G31>C31,COUNT($E$7:G31)>sixng),"#",AND(E31>C30,F31>C30,G31>C30,COUNT($E$7:G31)>sixng,COUNTIF(H30,"#")=1),"2",$A$7=1,"") ->  | I31: 321 | J31: 107 | K31: =_xlfn.IFS(Q31<>1,"",Q31=1,I31+(3*D31)) -> 666 | L31: =_xlfn.IFS(Q31<>1,"",COUNT($E$7:G31)<=hcpng,"",COUNT($E$7:G31)>=hcpng,K31) -> 666 | M31: =_xlfn.IFS(Q31=1,SUM($E$7:G31),Q31<>1,"") -> 6486 | N31: =_xlfn.IFS(Q31=1,COUNT($E$7:G31),Q31<>1,"") -> 63 | O31: =IF(Q31=1,ROUND(AVERAGE($E$7:G31),2),"") -> 102.95 | P31: =_xlfn.IFS(Q31<>1,"",SUM($Q$7:Q31)=1,1,SUM($Q$7:Q31)<>1,"") ->  | Q31: 1 | S31: =_xlfn.IFS(E31=$X$5,E31,F31=$X$5,F31,G31=$X$5,G31,$A$7=1,"") ->  | U31: =_xlfn.IFS(W31=$X$6,W31,X31=$X$6,X31,Y31=$X$6,Y31,$A$7=1,"") ->  | W31: =_xlfn.IFS(AND(Q31=1,COUNT($E$7:G31)>hcpng),E31+D31,$A$7=1," ") -> 207 | X31: =_xlfn.IFS(AND(Q31=1,COUNT($E$7:G31)>hcpng),F31+D31,$A$7=1," ") -> 202 | Y31: =_xlfn.IFS(AND(Q31=1,COUNT($E$7:G31)>hcpng),G31+D31,$A$7=1," ") -> 257 | Z31: 25 | AA31: =_xlfn.IFS(COUNTIFS(H31,"#",H30,"#"),A30,COUNTIFS(H31,2,H30,"#"),A30,$A$7=1,"") -> 
A32: 26 | B32: 2024-03-13 | C32: =_xlfn.IFS(Q32<>1,"",AND($B$4>=1,COUNT($E$7:G32)<=bkng),$B$4,P32=1,TRUNC(AVERAGE(E32:G32),0),COUNT($Q$7:Q32)=2,TRUNC(AVERAGE($E$7:G31),0),COUNT($Q$7:Q32)>=3,TRUNC(AVERAGE($E$7:G31),0)) ->  | D32: =_xlfn.IFS(Q32<>1,"",Q32=1,TRUNC((HCPB-C32)*HCPPC)) ->  | H32: =_xlfn.IFS(COUNT(E32:G32)<1,"",AND(E32>C32,F32>C32,G32>C32,COUNT($E$7:G32)>sixng),"#",AND(E32>C31,F32>C31,G32>C31,COUNT($E$7:G32)>sixng,COUNTIF(H31,"#")=1),"2",$A$7=1,"") ->  | K32: =_xlfn.IFS(Q32<>1,"",Q32=1,I32+(3*D32)) ->  | L32: =_xlfn.IFS(Q32<>1,"",COUNT($E$7:G32)<=hcpng,"",COUNT($E$7:G32)>=hcpng,K32) ->  | M32: =_xlfn.IFS(Q32=1,SUM($E$7:G32),Q32<>1,"") ->  | N32: =_xlfn.IFS(Q32=1,COUNT($E$7:G32),Q32<>1,"") ->  | O32: =IF(Q32=1,ROUND(AVERAGE($E$7:G32),2),"") ->  | P32: =_xlfn.IFS(Q32<>1,"",SUM($Q$7:Q32)=1,1,SUM($Q$7:Q32)<>1,"") ->  | S32: =_xlfn.IFS(E32=$X$5,E32,F32=$X$5,F32,G32=$X$5,G32,$A$7=1,"") ->  | U32: =_xlfn.IFS(W32=$X$6,W32,X32=$X$6,X32,Y32=$X$6,Y32,$A$7=1,"") ->  | W32: =_xlfn.IFS(AND(Q32=1,COUNT($E$7:G32)>hcpng),E32+D32,$A$7=1," ") ->  | X32: =_xlfn.IFS(AND(Q32=1,COUNT($E$7:G32)>hcpng),F32+D32,$A$7=1," ") ->  | Y32: =_xlfn.IFS(AND(Q32=1,COUNT($E$7:G32)>hcpng),G32+D32,$A$7=1," ") ->  | Z32: 0 | AA32: =_xlfn.IFS(COUNTIFS(H32,"#",H31,"#"),A31,COUNTIFS(H32,2,H31,"#"),A31,$A$7=1,"") -> 
A33: 27 | B33: 2024-03-20 | C33: =_xlfn.IFS(Q33<>1,"",AND($B$4>=1,COUNT($E$7:G33)<=bkng),$B$4,P33=1,TRUNC(AVERAGE(E33:G33),0),COUNT($Q$7:Q33)=2,TRUNC(AVERAGE($E$7:G32),0),COUNT($Q$7:Q33)>=3,TRUNC(AVERAGE($E$7:G32),0)) ->  | D33: =_xlfn.IFS(Q33<>1,"",Q33=1,TRUNC((HCPB-C33)*HCPPC)) ->  | H33: =_xlfn.IFS(COUNT(E33:G33)<1,"",AND(E33>C33,F33>C33,G33>C33,COUNT($E$7:G33)>sixng),"#",AND(E33>C32,F33>C32,G33>C32,COUNT($E$7:G33)>sixng,COUNTIF(H32,"#")=1),"2",$A$7=1,"") ->  | K33: =_xlfn.IFS(Q33<>1,"",Q33=1,I33+(3*D33)) ->  | L33: =_xlfn.IFS(Q33<>1,"",COUNT($E$7:G33)<=hcpng,"",COUNT($E$7:G33)>=hcpng,K33) ->  | M33: =_xlfn.IFS(Q33=1,SUM($E$7:G33),Q33<>1,"") ->  | N33: =_xlfn.IFS(Q33=1,COUNT($E$7:G33),Q33<>1,"") ->  | O33: =IF(Q33=1,ROUND(AVERAGE($E$7:G33),2),"") ->  | P33: =_xlfn.IFS(Q33<>1,"",SUM($Q$7:Q33)=1,1,SUM($Q$7:Q33)<>1,"") ->  | S33: =_xlfn.IFS(E33=$X$5,E33,F33=$X$5,F33,G33=$X$5,G33,$A$7=1,"") ->  | U33: =_xlfn.IFS(W33=$X$6,W33,X33=$X$6,X33,Y33=$X$6,Y33,$A$7=1,"") ->  | W33: =_xlfn.IFS(AND(Q33=1,COUNT($E$7:G33)>hcpng),E33+D33,$A$7=1," ") ->  | X33: =_xlfn.IFS(AND(Q33=1,COUNT($E$7:G33)>hcpng),F33+D33,$A$7=1," ") ->  | Y33: =_xlfn.IFS(AND(Q33=1,COUNT($E$7:G33)>hcpng),G33+D33,$A$7=1," ") ->  | Z33: 0 | AA33: =_xlfn.IFS(COUNTIFS(H33,"#",H32,"#"),A32,COUNTIFS(H33,2,H32,"#"),A32,$A$7=1,"") -> 
A34: 28 | B34: 2024-03-27 | C34: =_xlfn.IFS(Q34<>1,"",AND($B$4>=1,COUNT($E$7:G34)<=bkng),$B$4,P34=1,TRUNC(AVERAGE(E34:G34),0),COUNT($Q$7:Q34)=2,TRUNC(AVERAGE($E$7:G33),0),COUNT($Q$7:Q34)>=3,TRUNC(AVERAGE($E$7:G33),0)) -> 102 | D34: =_xlfn.IFS(Q34<>1,"",Q34=1,TRUNC((HCPB-C34)*HCPPC)) -> 115 | E34: 106 | F34: 86 | G34: 93 | H34: =_xlfn.IFS(COUNT(E34:G34)<1,"",AND(E34>C34,F34>C34,G34>C34,COUNT($E$7:G34)>sixng),"#",AND(E34>C33,F34>C33,G34>C33,COUNT($E$7:G34)>sixng,COUNTIF(H33,"#")=1),"2",$A$7=1,"") ->  | I34: 285 | J34: 95 | K34: =_xlfn.IFS(Q34<>1,"",Q34=1,I34+(3*D34)) -> 630 | L34: =_xlfn.IFS(Q34<>1,"",COUNT($E$7:G34)<=hcpng,"",COUNT($E$7:G34)>=hcpng,K34) -> 630 | M34: =_xlfn.IFS(Q34=1,SUM($E$7:G34),Q34<>1,"") -> 6771 | N34: =_xlfn.IFS(Q34=1,COUNT($E$7:G34),Q34<>1,"") -> 66 | O34: =IF(Q34=1,ROUND(AVERAGE($E$7:G34),2),"") -> 102.59 | P34: =_xlfn.IFS(Q34<>1,"",SUM($Q$7:Q34)=1,1,SUM($Q$7:Q34)<>1,"") ->  | Q34: 1 | S34: =_xlfn.IFS(E34=$X$5,E34,F34=$X$5,F34,G34=$X$5,G34,$A$7=1,"") ->  | U34: =_xlfn.IFS(W34=$X$6,W34,X34=$X$6,X34,Y34=$X$6,Y34,$A$7=1,"") ->  | W34: =_xlfn.IFS(AND(Q34=1,COUNT($E$7:G34)>hcpng),E34+D34,$A$7=1," ") -> 221 | X34: =_xlfn.IFS(AND(Q34=1,COUNT($E$7:G34)>hcpng),F34+D34,$A$7=1," ") -> 201 | Y34: =_xlfn.IFS(AND(Q34=1,COUNT($E$7:G34)>hcpng),G34+D34,$A$7=1," ") -> 208 | Z34: 28 | AA34: =_xlfn.IFS(COUNTIFS(H34,"#",H33,"#"),A33,COUNTIFS(H34,2,H33,"#"),A33,$A$7=1,"") -> 
A35: 29 | B35: 2024-04-03 | C35: =_xlfn.IFS(Q35<>1,"",AND($B$4>=1,COUNT($E$7:G35)<=bkng),$B$4,P35=1,TRUNC(AVERAGE(E35:G35),0),COUNT($Q$7:Q35)=2,TRUNC(AVERAGE($E$7:G34),0),COUNT($Q$7:Q35)>=3,TRUNC(AVERAGE($E$7:G34),0)) -> 102 | D35: =_xlfn.IFS(Q35<>1,"",Q35=1,TRUNC((HCPB-C35)*HCPPC)) -> 115 | E35: 115 | F35: 96 | G35: 134 | H35: =_xlfn.IFS(COUNT(E35:G35)<1,"",AND(E35>C35,F35>C35,G35>C35,COUNT($E$7:G35)>sixng),"#",AND(E35>C34,F35>C34,G35>C34,COUNT($E$7:G35)>sixng,COUNTIF(H34,"#")=1),"2",$A$7=1,"") ->  | I35: 345 | J35: 115 | K35: =_xlfn.IFS(Q35<>1,"",Q35=1,I35+(3*D35)) -> 690 | L35: =_xlfn.IFS(Q35<>1,"",COUNT($E$7:G35)<=hcpng,"",COUNT($E$7:G35)>=hcpng,K35) -> 690 | M35: =_xlfn.IFS(Q35=1,SUM($E$7:G35),Q35<>1,"") -> 7116 | N35: =_xlfn.IFS(Q35=1,COUNT($E$7:G35),Q35<>1,"") -> 69 | O35: =IF(Q35=1,ROUND(AVERAGE($E$7:G35),2),"") -> 103.13 | P35: =_xlfn.IFS(Q35<>1,"",SUM($Q$7:Q35)=1,1,SUM($Q$7:Q35)<>1,"") ->  | Q35: 1 | S35: =_xlfn.IFS(E35=$X$5,E35,F35=$X$5,F35,G35=$X$5,G35,$A$7=1,"") ->  | U35: =_xlfn.IFS(W35=$X$6,W35,X35=$X$6,X35,Y35=$X$6,Y35,$A$7=1,"") ->  | W35: =_xlfn.IFS(AND(Q35=1,COUNT($E$7:G35)>hcpng),E35+D35,$A$7=1," ") -> 230 | X35: =_xlfn.IFS(AND(Q35=1,COUNT($E$7:G35)>hcpng),F35+D35,$A$7=1," ") -> 211 | Y35: =_xlfn.IFS(AND(Q35=1,COUNT($E$7:G35)>hcpng),G35+D35,$A$7=1," ") -> 249 | Z35: 29 | AA35: =_xlfn.IFS(COUNTIFS(H35,"#",H34,"#"),A34,COUNTIFS(H35,2,H34,"#"),A34,$A$7=1,"") -> 
A36: 30 | B36: 2024-04-10 | C36: =_xlfn.IFS(Q36<>1,"",AND($B$4>=1,COUNT($E$7:G36)<=bkng),$B$4,P36=1,TRUNC(AVERAGE(E36:G36),0),COUNT($Q$7:Q36)=2,TRUNC(AVERAGE($E$7:G35),0),COUNT($Q$7:Q36)>=3,TRUNC(AVERAGE($E$7:G35),0)) -> 103 | D36: =_xlfn.IFS(Q36<>1,"",Q36=1,TRUNC((HCPB-C36)*HCPPC)) -> 114 | E36: 110 | F36: 105 | G36: 121 | H36: =_xlfn.IFS(COUNT(E36:G36)<1,"",AND(E36>C36,F36>C36,G36>C36,COUNT($E$7:G36)>sixng),"#",AND(E36>C35,F36>C35,G36>C35,COUNT($E$7:G36)>sixng,COUNTIF(H35,"#")=1),"2",$A$7=1,"") -> # | I36: 336 | J36: 112 | K36: =_xlfn.IFS(Q36<>1,"",Q36=1,I36+(3*D36)) -> 678 | L36: =_xlfn.IFS(Q36<>1,"",COUNT($E$7:G36)<=hcpng,"",COUNT($E$7:G36)>=hcpng,K36) -> 678 | M36: =_xlfn.IFS(Q36=1,SUM($E$7:G36),Q36<>1,"") -> 7452 | N36: =_xlfn.IFS(Q36=1,COUNT($E$7:G36),Q36<>1,"") -> 72 | O36: =IF(Q36=1,ROUND(AVERAGE($E$7:G36),2),"") -> 103.5 | P36: =_xlfn.IFS(Q36<>1,"",SUM($Q$7:Q36)=1,1,SUM($Q$7:Q36)<>1,"") ->  | Q36: 1 | S36: =_xlfn.IFS(E36=$X$5,E36,F36=$X$5,F36,G36=$X$5,G36,$A$7=1,"") ->  | U36: =_xlfn.IFS(W36=$X$6,W36,X36=$X$6,X36,Y36=$X$6,Y36,$A$7=1,"") ->  | W36: =_xlfn.IFS(AND(Q36=1,COUNT($E$7:G36)>hcpng),E36+D36,$A$7=1," ") -> 224 | X36: =_xlfn.IFS(AND(Q36=1,COUNT($E$7:G36)>hcpng),F36+D36,$A$7=1," ") -> 219 | Y36: =_xlfn.IFS(AND(Q36=1,COUNT($E$7:G36)>hcpng),G36+D36,$A$7=1," ") -> 235 | Z36: 30 | AA36: =_xlfn.IFS(COUNTIFS(H36,"#",H35,"#"),A35,COUNTIFS(H36,2,H35,"#"),A35,$A$7=1,"") -> 
E37: =IF(COUNT(E7:E36)>=1,ROUND(SUM(E7:E36)/COUNT(E7:E36),2),"") -> 99.38 | F37: =IF(COUNT(F7:F36)>=1,ROUND(SUM(F7:F36)/COUNT(F7:F36),2),"") -> 104.50 | G37: =IF(COUNT(G7:G36)>=1,ROUND(SUM(G7:G36)/COUNT(G7:G36),2),"") -> 106.63
E39: CSCUSBC ACHIEVEMENT AWARDS 2023-2024
F40: (each award can be earned one time only)
E41: games | O41: series
C42: 125 | D42: 150 | E42: 175 | F42: 200 | G42: 225 | I42: 250 | J42: 275 | K42: 75og | M42: 300 | N42: 400 | O42: 500 | R42: 600 | S42: 700 | T42: 140os
A43: 1 | B43: =Date2 -> 2023-09-06 | C43: =_xlfn.IFS(COUNT($E$7:$G7)<=hcpma,"",AND(OR(AND($E7>=G125L,$E7<G125U),AND($F7>=G125L,$F7<G125U),AND($G7>=G125L,$G7<G125U)),$C7<=G125AL),"X",10<11,"") ->  | D43: =_xlfn.IFS(COUNT($E$7:$G7)<=hcpma,"",AND(OR(AND($E7>=G150L,$E7<G150U),AND($F7>=G150L,$F7<G150U),AND($G7>=G150L,$G7<G150U)),$C7<=G150AL),"X",10<11,"") ->  | E43: =_xlfn.IFS(COUNT($E$7:$G7)<=hcpma,"",AND(OR(AND($E7>=G175L,$E7<G175U),AND($F7>=G175L,$F7<G175U),AND($G7>=G175L,$G7<G175U)),$C7<=G175AL),"X",10<11,"") ->  | F43: =_xlfn.IFS(COUNT($E$7:$G7)<=hcpma,"",AND(OR(AND($E7>=G200L,$E7<G200U),AND($F7>=G200L,$F7<G200U),AND($G7>=G200L,$G7<G200U)),$C7<=G200AL),"X",10<11,"") ->  | G43: =_xlfn.IFS(COUNT($E$7:$G7)<=hcpma,"",AND(OR(AND($E7>=G225L,$E7<G225U),AND($F7>=G225L,$F7<G225U),AND($G7>=G225L,$G7<G225U)),$C7<=G225AL),"X",10<11,"") ->  | I43: =_xlfn.IFS(COUNT($E$7:$G7)<=hcpma,"",AND(OR(AND($E7>=G250L,$E7<G250U),AND($F7>=G250L,$F7<G250U),AND($G7>=G250L,$G7<G250U)),$C7<=G250AL),"X",10<11,"") ->  | J43: =_xlfn.IFS(COUNT($E$7:$G7)<=hcpma,"",AND(OR(AND($E7>=G275L,$E7<=G275U),AND($F7>=G275L,$F7<=G275U),AND($G7>=G275L,$G7<=G275U)),$C7<=G275AL),"X",10<11,"") ->  | K43: =_xlfn.IFS(COUNT(E7:G7)<=0,"",AND(COUNT($E$7:$G7)>=hcpma,OR(E7>=(C7+G75OV),F7>=(C7+G75OV),G7>=(C7+G75OV))),"X",10<11,"") ->  | M43: =_xlfn.IFS(COUNT($E$7:$G7)<=hcpma,"",AND( AND($I7>=S300L,$I7<S300U), $C7<=S300AL),"X",10<11,"") ->  | N43: =_xlfn.IFS(COUNT($E$7:$G7)<=hcpma,"",AND( AND($I7>=S400L,$I7<S400U), $C7<=S400AL),"X",10<11,"") ->  | O43: =_xlfn.IFS(COUNT($E$7:$G7)<=hcpma,"",AND( AND($I7>=S500L,$I7<S500U), $C7<=S500AL),"X",10<11,"") ->  | R43: =_xlfn.IFS(COUNT($E$7:$G7)<=hcpma,"",AND( AND($I7>=S600L,$I7<S600U), $C7<=S600AL),"X",10<11,"") ->  | S43: =_xlfn.IFS(COUNT($E$7:$G7)<=hcpma,"",AND( AND($I7>=S700L,$I7<S700U), $C7<=S700AL),"X",10<11,"") ->  | T43: =_xlfn.IFS(COUNT($E$7:$G7)<=hcpma,"",SUM($E7:$G7)<1,"",$I7>=3*$C7+S140ov,"X",10<11,"") -> 
A44: 2 | B44: 2023-09-13 | C44: =_xlfn.IFS(COUNT($E$7:$G8)<=hcpma,"",AND(OR(AND($E8>=G125L,$E8<G125U),AND($F8>=G125L,$F8<G125U),AND($G8>=G125L,$G8<G125U)),$C8<=G125AL),"X",10<11,"") ->  | D44: =_xlfn.IFS(COUNT($E$7:$G8)<=hcpma,"",AND(OR(AND($E8>=G150L,$E8<G150U),AND($F8>=G150L,$F8<G150U),AND($G8>=G150L,$G8<G150U)),$C8<=G150AL),"X",10<11,"") ->  | E44: =_xlfn.IFS(COUNT($E$7:$G8)<=hcpma,"",AND(OR(AND($E8>=G175L,$E8<G175U),AND($F8>=G175L,$F8<G175U),AND($G8>=G175L,$G8<G175U)),$C8<=G175AL),"X",10<11,"") ->  | F44: =_xlfn.IFS(COUNT($E$7:$G8)<=hcpma,"",AND(OR(AND($E8>=G200L,$E8<G200U),AND($F8>=G200L,$F8<G200U),AND($G8>=G200L,$G8<G200U)),$C8<=G200AL),"X",10<11,"") ->  | G44: =_xlfn.IFS(COUNT($E$7:$G8)<=hcpma,"",AND(OR(AND($E8>=G225L,$E8<G225U),AND($F8>=G225L,$F8<G225U),AND($G8>=G225L,$G8<G225U)),$C8<=G225AL),"X",10<11,"") ->  | I44: =_xlfn.IFS(COUNT($E$7:$G8)<=hcpma,"",AND(OR(AND($E8>=G250L,$E8<G250U),AND($F8>=G250L,$F8<G250U),AND($G8>=G250L,$G8<G250U)),$C8<=G250AL),"X",10<11,"") ->  | J44: =_xlfn.IFS(COUNT($E$7:$G8)<=hcpma,"",AND(OR(AND($E8>=G275L,$E8<=G275U),AND($F8>=G275L,$F8<=G275U),AND($G8>=G275L,$G8<=G275U)),$C8<=G275AL),"X",10<11,"") ->  | K44: =_xlfn.IFS(COUNT(E8:G8)<=0,"",AND(COUNT($E$7:$G8)>=hcpma,OR(E8>=(C8+G75OV),F8>=(C8+G75OV),G8>=(C8+G75OV))),"X",10<11,"") ->  | M44: =_xlfn.IFS(COUNT($E$7:$G8)<=hcpma,"",AND( AND($I8>=S300L,$I8<S300U), $C8<=S300AL),"X",10<11,"") ->  | N44: =_xlfn.IFS(COUNT($E$7:$G8)<=hcpma,"",AND( AND($I8>=S400L,$I8<S400U), $C8<=S400AL),"X",10<11,"") ->  | O44: =_xlfn.IFS(COUNT($E$7:$G8)<=hcpma,"",AND( AND($I8>=S500L,$I8<S500U), $C8<=S500AL),"X",10<11,"") ->  | R44: =_xlfn.IFS(COUNT($E$7:$G8)<=hcpma,"",AND( AND($I8>=S600L,$I8<S600U), $C8<=S600AL),"X",10<11,"") ->  | S44: =_xlfn.IFS(COUNT($E$7:$G8)<=hcpma,"",AND( AND($I8>=S700L,$I8<S700U), $C8<=S700AL),"X",10<11,"") ->  | T44: =_xlfn.IFS(COUNT($E$7:$G8)<=hcpma,"",SUM($E8:$G8)<1,"",$I8>=3*$C8+S140ov,"X",10<11,"") -> 
A45: 3 | B45: 2023-09-20 | C45: =_xlfn.IFS(COUNT($E$7:$G9)<=hcpma,"",AND(OR(AND($E9>=G125L,$E9<G125U),AND($F9>=G125L,$F9<G125U),AND($G9>=G125L,$G9<G125U)),$C9<=G125AL),"X",10<11,"") ->  | D45: =_xlfn.IFS(COUNT($E$7:$G9)<=hcpma,"",AND(OR(AND($E9>=G150L,$E9<G150U),AND($F9>=G150L,$F9<G150U),AND($G9>=G150L,$G9<G150U)),$C9<=G150AL),"X",10<11,"") ->  | E45: =_xlfn.IFS(COUNT($E$7:$G9)<=hcpma,"",AND(OR(AND($E9>=G175L,$E9<G175U),AND($F9>=G175L,$F9<G175U),AND($G9>=G175L,$G9<G175U)),$C9<=G175AL),"X",10<11,"") ->  | F45: =_xlfn.IFS(COUNT($E$7:$G9)<=hcpma,"",AND(OR(AND($E9>=G200L,$E9<G200U),AND($F9>=G200L,$F9<G200U),AND($G9>=G200L,$G9<G200U)),$C9<=G200AL),"X",10<11,"") ->  | G45: =_xlfn.IFS(COUNT($E$7:$G9)<=hcpma,"",AND(OR(AND($E9>=G225L,$E9<G225U),AND($F9>=G225L,$F9<G225U),AND($G9>=G225L,$G9<G225U)),$C9<=G225AL),"X",10<11,"") ->  | I45: =_xlfn.IFS(COUNT($E$7:$G9)<=hcpma,"",AND(OR(AND($E9>=G250L,$E9<G250U),AND($F9>=G250L,$F9<G250U),AND($G9>=G250L,$G9<G250U)),$C9<=G250AL),"X",10<11,"") ->  | J45: =_xlfn.IFS(COUNT($E$7:$G9)<=hcpma,"",AND(OR(AND($E9>=G275L,$E9<=G275U),AND($F9>=G275L,$F9<=G275U),AND($G9>=G275L,$G9<=G275U)),$C9<=G275AL),"X",10<11,"") ->  | K45: =_xlfn.IFS(COUNT(E9:G9)<=0,"",AND(COUNT($E$7:$G9)>=hcpma,OR(E9>=(C9+G75OV),F9>=(C9+G75OV),G9>=(C9+G75OV))),"X",10<11,"") ->  | M45: =_xlfn.IFS(COUNT($E$7:$G9)<=hcpma,"",AND( AND($I9>=S300L,$I9<S300U), $C9<=S300AL),"X",10<11,"") ->  | N45: =_xlfn.IFS(COUNT($E$7:$G9)<=hcpma,"",AND( AND($I9>=S400L,$I9<S400U), $C9<=S400AL),"X",10<11,"") ->  | O45: =_xlfn.IFS(COUNT($E$7:$G9)<=hcpma,"",AND( AND($I9>=S500L,$I9<S500U), $C9<=S500AL),"X",10<11,"") ->  | R45: =_xlfn.IFS(COUNT($E$7:$G9)<=hcpma,"",AND( AND($I9>=S600L,$I9<S600U), $C9<=S600AL),"X",10<11,"") ->  | S45: =_xlfn.IFS(COUNT($E$7:$G9)<=hcpma,"",AND( AND($I9>=S700L,$I9<S700U), $C9<=S700AL),"X",10<11,"") ->  | T45: =_xlfn.IFS(COUNT($E$7:$G9)<=hcpma,"",SUM($E9:$G9)<1,"",$I9>=3*$C9+S140ov,"X",10<11,"") -> 
A46: 4 | B46: 2023-09-27 | C46: =_xlfn.IFS(COUNT($E$7:$G10)<=hcpma,"",AND(OR(AND($E10>=G125L,$E10<G125U),AND($F10>=G125L,$F10<G125U),AND($G10>=G125L,$G10<G125U)),$C10<=G125AL),"X",10<11,"") ->  | D46: =_xlfn.IFS(COUNT($E$7:$G10)<=hcpma,"",AND(OR(AND($E10>=G150L,$E10<G150U),AND($F10>=G150L,$F10<G150U),AND($G10>=G150L,$G10<G150U)),$C10<=G150AL),"X",10<11,"") ->  | E46: =_xlfn.IFS(COUNT($E$7:$G10)<=hcpma,"",AND(OR(AND($E10>=G175L,$E10<G175U),AND($F10>=G175L,$F10<G175U),AND($G10>=G175L,$G10<G175U)),$C10<=G175AL),"X",10<11,"") ->  | F46: =_xlfn.IFS(COUNT($E$7:$G10)<=hcpma,"",AND(OR(AND($E10>=G200L,$E10<G200U),AND($F10>=G200L,$F10<G200U),AND($G10>=G200L,$G10<G200U)),$C10<=G200AL),"X",10<11,"") ->  | G46: =_xlfn.IFS(COUNT($E$7:$G10)<=hcpma,"",AND(OR(AND($E10>=G225L,$E10<G225U),AND($F10>=G225L,$F10<G225U),AND($G10>=G225L,$G10<G225U)),$C10<=G225AL),"X",10<11,"") ->  | I46: =_xlfn.IFS(COUNT($E$7:$G10)<=hcpma,"",AND(OR(AND($E10>=G250L,$E10<G250U),AND($F10>=G250L,$F10<G250U),AND($G10>=G250L,$G10<G250U)),$C10<=G250AL),"X",10<11,"") ->  | J46: =_xlfn.IFS(COUNT($E$7:$G10)<=hcpma,"",AND(OR(AND($E10>=G275L,$E10<=G275U),AND($F10>=G275L,$F10<=G275U),AND($G10>=G275L,$G10<=G275U)),$C10<=G275AL),"X",10<11,"") ->  | K46: =_xlfn.IFS(COUNT(E10:G10)<=0,"",AND(COUNT($E$7:$G10)>=hcpma,OR(E10>=(C10+G75OV),F10>=(C10+G75OV),G10>=(C10+G75OV))),"X",10<11,"") ->  | M46: =_xlfn.IFS(COUNT($E$7:$G10)<=hcpma,"",AND( AND($I10>=S300L,$I10<S300U), $C10<=S300AL),"X",10<11,"") ->  | N46: =_xlfn.IFS(COUNT($E$7:$G10)<=hcpma,"",AND( AND($I10>=S400L,$I10<S400U), $C10<=S400AL),"X",10<11,"") ->  | O46: =_xlfn.IFS(COUNT($E$7:$G10)<=hcpma,"",AND( AND($I10>=S500L,$I10<S500U), $C10<=S500AL),"X",10<11,"") ->  | R46: =_xlfn.IFS(COUNT($E$7:$G10)<=hcpma,"",AND( AND($I10>=S600L,$I10<S600U), $C10<=S600AL),"X",10<11,"") ->  | S46: =_xlfn.IFS(COUNT($E$7:$G10)<=hcpma,"",AND( AND($I10>=S700L,$I10<S700U), $C10<=S700AL),"X",10<11,"") ->  | T46: =_xlfn.IFS(COUNT($E$7:$G10)<=hcpma,"",SUM($E10:$G10)<1,"",$I10>=3*$C10+S140ov,"X",10<11,"") -> 
A47: 5 | B47: 2023-10-04 | C47: =_xlfn.IFS(COUNT($E$7:$G11)<=hcpma,"",AND(OR(AND($E11>=G125L,$E11<G125U),AND($F11>=G125L,$F11<G125U),AND($G11>=G125L,$G11<G125U)),$C11<=G125AL),"X",10<11,"") ->  | D47: =_xlfn.IFS(COUNT($E$7:$G11)<=hcpma,"",AND(OR(AND($E11>=G150L,$E11<G150U),AND($F11>=G150L,$F11<G150U),AND($G11>=G150L,$G11<G150U)),$C11<=G150AL),"X",10<11,"") ->  | E47: =_xlfn.IFS(COUNT($E$7:$G11)<=hcpma,"",AND(OR(AND($E11>=G175L,$E11<G175U),AND($F11>=G175L,$F11<G175U),AND($G11>=G175L,$G11<G175U)),$C11<=G175AL),"X",10<11,"") ->  | F47: =_xlfn.IFS(COUNT($E$7:$G11)<=hcpma,"",AND(OR(AND($E11>=G200L,$E11<G200U),AND($F11>=G200L,$F11<G200U),AND($G11>=G200L,$G11<G200U)),$C11<=G200AL),"X",10<11,"") ->  | G47: =_xlfn.IFS(COUNT($E$7:$G11)<=hcpma,"",AND(OR(AND($E11>=G225L,$E11<G225U),AND($F11>=G225L,$F11<G225U),AND($G11>=G225L,$G11<G225U)),$C11<=G225AL),"X",10<11,"") ->  | I47: =_xlfn.IFS(COUNT($E$7:$G11)<=hcpma,"",AND(OR(AND($E11>=G250L,$E11<G250U),AND($F11>=G250L,$F11<G250U),AND($G11>=G250L,$G11<G250U)),$C11<=G250AL),"X",10<11,"") ->  | J47: =_xlfn.IFS(COUNT($E$7:$G11)<=hcpma,"",AND(OR(AND($E11>=G275L,$E11<=G275U),AND($F11>=G275L,$F11<=G275U),AND($G11>=G275L,$G11<=G275U)),$C11<=G275AL),"X",10<11,"") ->  | K47: =_xlfn.IFS(COUNT(E11:G11)<=0,"",AND(COUNT($E$7:$G11)>=hcpma,OR(E11>=(C11+G75OV),F11>=(C11+G75OV),G11>=(C11+G75OV))),"X",10<11,"") ->  | M47: =_xlfn.IFS(COUNT($E$7:$G11)<=hcpma,"",AND( AND($I11>=S300L,$I11<S300U), $C11<=S300AL),"X",10<11,"") ->  | N47: =_xlfn.IFS(COUNT($E$7:$G11)<=hcpma,"",AND( AND($I11>=S400L,$I11<S400U), $C11<=S400AL),"X",10<11,"") ->  | O47: =_xlfn.IFS(COUNT($E$7:$G11)<=hcpma,"",AND( AND($I11>=S500L,$I11<S500U), $C11<=S500AL),"X",10<11,"") ->  | R47: =_xlfn.IFS(COUNT($E$7:$G11)<=hcpma,"",AND( AND($I11>=S600L,$I11<S600U), $C11<=S600AL),"X",10<11,"") ->  | S47: =_xlfn.IFS(COUNT($E$7:$G11)<=hcpma,"",AND( AND($I11>=S700L,$I11<S700U), $C11<=S700AL),"X",10<11,"") ->  | T47: =_xlfn.IFS(COUNT($E$7:$G11)<=hcpma,"",SUM($E11:$G11)<1,"",$I11>=3*$C11+S140ov,"X",10<11,"") -> 
A48: 6 | B48: 2023-10-11 | C48: =_xlfn.IFS(COUNT($E$7:$G12)<=hcpma,"",AND(OR(AND($E12>=G125L,$E12<G125U),AND($F12>=G125L,$F12<G125U),AND($G12>=G125L,$G12<G125U)),$C12<=G125AL),"X",10<11,"") ->  | D48: =_xlfn.IFS(COUNT($E$7:$G12)<=hcpma,"",AND(OR(AND($E12>=G150L,$E12<G150U),AND($F12>=G150L,$F12<G150U),AND($G12>=G150L,$G12<G150U)),$C12<=G150AL),"X",10<11,"") ->  | E48: =_xlfn.IFS(COUNT($E$7:$G12)<=hcpma,"",AND(OR(AND($E12>=G175L,$E12<G175U),AND($F12>=G175L,$F12<G175U),AND($G12>=G175L,$G12<G175U)),$C12<=G175AL),"X",10<11,"") ->  | F48: =_xlfn.IFS(COUNT($E$7:$G12)<=hcpma,"",AND(OR(AND($E12>=G200L,$E12<G200U),AND($F12>=G200L,$F12<G200U),AND($G12>=G200L,$G12<G200U)),$C12<=G200AL),"X",10<11,"") ->  | G48: =_xlfn.IFS(COUNT($E$7:$G12)<=hcpma,"",AND(OR(AND($E12>=G225L,$E12<G225U),AND($F12>=G225L,$F12<G225U),AND($G12>=G225L,$G12<G225U)),$C12<=G225AL),"X",10<11,"") ->  | I48: =_xlfn.IFS(COUNT($E$7:$G12)<=hcpma,"",AND(OR(AND($E12>=G250L,$E12<G250U),AND($F12>=G250L,$F12<G250U),AND($G12>=G250L,$G12<G250U)),$C12<=G250AL),"X",10<11,"") ->  | J48: =_xlfn.IFS(COUNT($E$7:$G12)<=hcpma,"",AND(OR(AND($E12>=G275L,$E12<=G275U),AND($F12>=G275L,$F12<=G275U),AND($G12>=G275L,$G12<=G275U)),$C12<=G275AL),"X",10<11,"") ->  | K48: =_xlfn.IFS(COUNT(E12:G12)<=0,"",AND(COUNT($E$7:$G12)>=hcpma,OR(E12>=(C12+G75OV),F12>=(C12+G75OV),G12>=(C12+G75OV))),"X",10<11,"") ->  | M48: =_xlfn.IFS(COUNT($E$7:$G12)<=hcpma,"",AND( AND($I12>=S300L,$I12<S300U), $C12<=S300AL),"X",10<11,"") ->  | N48: =_xlfn.IFS(COUNT($E$7:$G12)<=hcpma,"",AND( AND($I12>=S400L,$I12<S400U), $C12<=S400AL),"X",10<11,"") ->  | O48: =_xlfn.IFS(COUNT($E$7:$G12)<=hcpma,"",AND( AND($I12>=S500L,$I12<S500U), $C12<=S500AL),"X",10<11,"") ->  | R48: =_xlfn.IFS(COUNT($E$7:$G12)<=hcpma,"",AND( AND($I12>=S600L,$I12<S600U), $C12<=S600AL),"X",10<11,"") ->  | S48: =_xlfn.IFS(COUNT($E$7:$G12)<=hcpma,"",AND( AND($I12>=S700L,$I12<S700U), $C12<=S700AL),"X",10<11,"") ->  | T48: =_xlfn.IFS(COUNT($E$7:$G12)<=hcpma,"",SUM($E12:$G12)<1,"",$I12>=3*$C12+S140ov,"X",10<11,"") -> 
A49: 7 | B49: 2023-10-18 | C49: =_xlfn.IFS(COUNT($E$7:$G13)<=hcpma,"",AND(OR(AND($E13>=G125L,$E13<G125U),AND($F13>=G125L,$F13<G125U),AND($G13>=G125L,$G13<G125U)),$C13<=G125AL),"X",10<11,"") ->  | D49: =_xlfn.IFS(COUNT($E$7:$G13)<=hcpma,"",AND(OR(AND($E13>=G150L,$E13<G150U),AND($F13>=G150L,$F13<G150U),AND($G13>=G150L,$G13<G150U)),$C13<=G150AL),"X",10<11,"") ->  | E49: =_xlfn.IFS(COUNT($E$7:$G13)<=hcpma,"",AND(OR(AND($E13>=G175L,$E13<G175U),AND($F13>=G175L,$F13<G175U),AND($G13>=G175L,$G13<G175U)),$C13<=G175AL),"X",10<11,"") ->  | F49: =_xlfn.IFS(COUNT($E$7:$G13)<=hcpma,"",AND(OR(AND($E13>=G200L,$E13<G200U),AND($F13>=G200L,$F13<G200U),AND($G13>=G200L,$G13<G200U)),$C13<=G200AL),"X",10<11,"") ->  | G49: =_xlfn.IFS(COUNT($E$7:$G13)<=hcpma,"",AND(OR(AND($E13>=G225L,$E13<G225U),AND($F13>=G225L,$F13<G225U),AND($G13>=G225L,$G13<G225U)),$C13<=G225AL),"X",10<11,"") ->  | I49: =_xlfn.IFS(COUNT($E$7:$G13)<=hcpma,"",AND(OR(AND($E13>=G250L,$E13<G250U),AND($F13>=G250L,$F13<G250U),AND($G13>=G250L,$G13<G250U)),$C13<=G250AL),"X",10<11,"") ->  | J49: =_xlfn.IFS(COUNT($E$7:$G13)<=hcpma,"",AND(OR(AND($E13>=G275L,$E13<=G275U),AND($F13>=G275L,$F13<=G275U),AND($G13>=G275L,$G13<=G275U)),$C13<=G275AL),"X",10<11,"") ->  | K49: =_xlfn.IFS(COUNT(E13:G13)<=0,"",AND(COUNT($E$7:$G13)>=hcpma,OR(E13>=(C13+G75OV),F13>=(C13+G75OV),G13>=(C13+G75OV))),"X",10<11,"") ->  | M49: =_xlfn.IFS(COUNT($E$7:$G13)<=hcpma,"",AND( AND($I13>=S300L,$I13<S300U), $C13<=S300AL),"X",10<11,"") ->  | N49: =_xlfn.IFS(COUNT($E$7:$G13)<=hcpma,"",AND( AND($I13>=S400L,$I13<S400U), $C13<=S400AL),"X",10<11,"") ->  | O49: =_xlfn.IFS(COUNT($E$7:$G13)<=hcpma,"",AND( AND($I13>=S500L,$I13<S500U), $C13<=S500AL),"X",10<11,"") ->  | R49: =_xlfn.IFS(COUNT($E$7:$G13)<=hcpma,"",AND( AND($I13>=S600L,$I13<S600U), $C13<=S600AL),"X",10<11,"") ->  | S49: =_xlfn.IFS(COUNT($E$7:$G13)<=hcpma,"",AND( AND($I13>=S700L,$I13<S700U), $C13<=S700AL),"X",10<11,"") ->  | T49: =_xlfn.IFS(COUNT($E$7:$G13)<=hcpma,"",SUM($E13:$G13)<1,"",$I13>=3*$C13+S140ov,"X",10<11,"") -> 
A50: 8 | B50: 2023-10-25 | C50: =_xlfn.IFS(COUNT($E$7:$G14)<=hcpma,"",AND(OR(AND($E14>=G125L,$E14<G125U),AND($F14>=G125L,$F14<G125U),AND($G14>=G125L,$G14<G125U)),$C14<=G125AL),"X",10<11,"") ->  | D50: =_xlfn.IFS(COUNT($E$7:$G14)<=hcpma,"",AND(OR(AND($E14>=G150L,$E14<G150U),AND($F14>=G150L,$F14<G150U),AND($G14>=G150L,$G14<G150U)),$C14<=G150AL),"X",10<11,"") ->  | E50: =_xlfn.IFS(COUNT($E$7:$G14)<=hcpma,"",AND(OR(AND($E14>=G175L,$E14<G175U),AND($F14>=G175L,$F14<G175U),AND($G14>=G175L,$G14<G175U)),$C14<=G175AL),"X",10<11,"") ->  | F50: =_xlfn.IFS(COUNT($E$7:$G14)<=hcpma,"",AND(OR(AND($E14>=G200L,$E14<G200U),AND($F14>=G200L,$F14<G200U),AND($G14>=G200L,$G14<G200U)),$C14<=G200AL),"X",10<11,"") ->  | G50: =_xlfn.IFS(COUNT($E$7:$G14)<=hcpma,"",AND(OR(AND($E14>=G225L,$E14<G225U),AND($F14>=G225L,$F14<G225U),AND($G14>=G225L,$G14<G225U)),$C14<=G225AL),"X",10<11,"") ->  | I50: =_xlfn.IFS(COUNT($E$7:$G14)<=hcpma,"",AND(OR(AND($E14>=G250L,$E14<G250U),AND($F14>=G250L,$F14<G250U),AND($G14>=G250L,$G14<G250U)),$C14<=G250AL),"X",10<11,"") ->  | J50: =_xlfn.IFS(COUNT($E$7:$G14)<=hcpma,"",AND(OR(AND($E14>=G275L,$E14<=G275U),AND($F14>=G275L,$F14<=G275U),AND($G14>=G275L,$G14<=G275U)),$C14<=G275AL),"X",10<11,"") ->  | K50: =_xlfn.IFS(COUNT(E14:G14)<=0,"",AND(COUNT($E$7:$G14)>=hcpma,OR(E14>=(C14+G75OV),F14>=(C14+G75OV),G14>=(C14+G75OV))),"X",10<11,"") ->  | M50: =_xlfn.IFS(COUNT($E$7:$G14)<=hcpma,"",AND( AND($I14>=S300L,$I14<S300U), $C14<=S300AL),"X",10<11,"") ->  | N50: =_xlfn.IFS(COUNT($E$7:$G14)<=hcpma,"",AND( AND($I14>=S400L,$I14<S400U), $C14<=S400AL),"X",10<11,"") ->  | O50: =_xlfn.IFS(COUNT($E$7:$G14)<=hcpma,"",AND( AND($I14>=S500L,$I14<S500U), $C14<=S500AL),"X",10<11,"") ->  | R50: =_xlfn.IFS(COUNT($E$7:$G14)<=hcpma,"",AND( AND($I14>=S600L,$I14<S600U), $C14<=S600AL),"X",10<11,"") ->  | S50: =_xlfn.IFS(COUNT($E$7:$G14)<=hcpma,"",AND( AND($I14>=S700L,$I14<S700U), $C14<=S700AL),"X",10<11,"") ->  | T50: =_xlfn.IFS(COUNT($E$7:$G14)<=hcpma,"",SUM($E14:$G14)<1,"",$I14>=3*$C14+S140ov,"X",10<11,"") -> 
A51: 9 | B51: 2023-11-01 | C51: =_xlfn.IFS(COUNT($E$7:$G15)<=hcpma,"",AND(OR(AND($E15>=G125L,$E15<G125U),AND($F15>=G125L,$F15<G125U),AND($G15>=G125L,$G15<G125U)),$C15<=G125AL),"X",10<11,"") ->  | D51: =_xlfn.IFS(COUNT($E$7:$G15)<=hcpma,"",AND(OR(AND($E15>=G150L,$E15<G150U),AND($F15>=G150L,$F15<G150U),AND($G15>=G150L,$G15<G150U)),$C15<=G150AL),"X",10<11,"") ->  | E51: =_xlfn.IFS(COUNT($E$7:$G15)<=hcpma,"",AND(OR(AND($E15>=G175L,$E15<G175U),AND($F15>=G175L,$F15<G175U),AND($G15>=G175L,$G15<G175U)),$C15<=G175AL),"X",10<11,"") ->  | F51: =_xlfn.IFS(COUNT($E$7:$G15)<=hcpma,"",AND(OR(AND($E15>=G200L,$E15<G200U),AND($F15>=G200L,$F15<G200U),AND($G15>=G200L,$G15<G200U)),$C15<=G200AL),"X",10<11,"") ->  | G51: =_xlfn.IFS(COUNT($E$7:$G15)<=hcpma,"",AND(OR(AND($E15>=G225L,$E15<G225U),AND($F15>=G225L,$F15<G225U),AND($G15>=G225L,$G15<G225U)),$C15<=G225AL),"X",10<11,"") ->  | I51: =_xlfn.IFS(COUNT($E$7:$G15)<=hcpma,"",AND(OR(AND($E15>=G250L,$E15<G250U),AND($F15>=G250L,$F15<G250U),AND($G15>=G250L,$G15<G250U)),$C15<=G250AL),"X",10<11,"") ->  | J51: =_xlfn.IFS(COUNT($E$7:$G15)<=hcpma,"",AND(OR(AND($E15>=G275L,$E15<=G275U),AND($F15>=G275L,$F15<=G275U),AND($G15>=G275L,$G15<=G275U)),$C15<=G275AL),"X",10<11,"") ->  | K51: =_xlfn.IFS(COUNT(E15:G15)<=0,"",AND(COUNT($E$7:$G15)>=hcpma,OR(E15>=(C15+G75OV),F15>=(C15+G75OV),G15>=(C15+G75OV))),"X",10<11,"") ->  | M51: =_xlfn.IFS(COUNT($E$7:$G15)<=hcpma,"",AND( AND($I15>=S300L,$I15<S300U), $C15<=S300AL),"X",10<11,"") ->  | N51: =_xlfn.IFS(COUNT($E$7:$G15)<=hcpma,"",AND( AND($I15>=S400L,$I15<S400U), $C15<=S400AL),"X",10<11,"") ->  | O51: =_xlfn.IFS(COUNT($E$7:$G15)<=hcpma,"",AND( AND($I15>=S500L,$I15<S500U), $C15<=S500AL),"X",10<11,"") ->  | R51: =_xlfn.IFS(COUNT($E$7:$G15)<=hcpma,"",AND( AND($I15>=S600L,$I15<S600U), $C15<=S600AL),"X",10<11,"") ->  | S51: =_xlfn.IFS(COUNT($E$7:$G15)<=hcpma,"",AND( AND($I15>=S700L,$I15<S700U), $C15<=S700AL),"X",10<11,"") ->  | T51: =_xlfn.IFS(COUNT($E$7:$G15)<=hcpma,"",SUM($E15:$G15)<1,"",$I15>=3*$C15+S140ov,"X",10<11,"") -> 
A52: 10 | B52: 2023-11-08 | C52: =_xlfn.IFS(COUNT($E$7:$G16)<=hcpma,"",AND(OR(AND($E16>=G125L,$E16<G125U),AND($F16>=G125L,$F16<G125U),AND($G16>=G125L,$G16<G125U)),$C16<=G125AL),"X",10<11,"") ->  | D52: =_xlfn.IFS(COUNT($E$7:$G16)<=hcpma,"",AND(OR(AND($E16>=G150L,$E16<G150U),AND($F16>=G150L,$F16<G150U),AND($G16>=G150L,$G16<G150U)),$C16<=G150AL),"X",10<11,"") ->  | E52: =_xlfn.IFS(COUNT($E$7:$G16)<=hcpma,"",AND(OR(AND($E16>=G175L,$E16<G175U),AND($F16>=G175L,$F16<G175U),AND($G16>=G175L,$G16<G175U)),$C16<=G175AL),"X",10<11,"") ->  | F52: =_xlfn.IFS(COUNT($E$7:$G16)<=hcpma,"",AND(OR(AND($E16>=G200L,$E16<G200U),AND($F16>=G200L,$F16<G200U),AND($G16>=G200L,$G16<G200U)),$C16<=G200AL),"X",10<11,"") ->  | G52: =_xlfn.IFS(COUNT($E$7:$G16)<=hcpma,"",AND(OR(AND($E16>=G225L,$E16<G225U),AND($F16>=G225L,$F16<G225U),AND($G16>=G225L,$G16<G225U)),$C16<=G225AL),"X",10<11,"") ->  | I52: =_xlfn.IFS(COUNT($E$7:$G16)<=hcpma,"",AND(OR(AND($E16>=G250L,$E16<G250U),AND($F16>=G250L,$F16<G250U),AND($G16>=G250L,$G16<G250U)),$C16<=G250AL),"X",10<11,"") ->  | J52: =_xlfn.IFS(COUNT($E$7:$G16)<=hcpma,"",AND(OR(AND($E16>=G275L,$E16<=G275U),AND($F16>=G275L,$F16<=G275U),AND($G16>=G275L,$G16<=G275U)),$C16<=G275AL),"X",10<11,"") ->  | K52: =_xlfn.IFS(COUNT(E16:G16)<=0,"",AND(COUNT($E$7:$G16)>=hcpma,OR(E16>=(C16+G75OV),F16>=(C16+G75OV),G16>=(C16+G75OV))),"X",10<11,"") ->  | M52: =_xlfn.IFS(COUNT($E$7:$G16)<=hcpma,"",AND( AND($I16>=S300L,$I16<S300U), $C16<=S300AL),"X",10<11,"") ->  | N52: =_xlfn.IFS(COUNT($E$7:$G16)<=hcpma,"",AND( AND($I16>=S400L,$I16<S400U), $C16<=S400AL),"X",10<11,"") ->  | O52: =_xlfn.IFS(COUNT($E$7:$G16)<=hcpma,"",AND( AND($I16>=S500L,$I16<S500U), $C16<=S500AL),"X",10<11,"") ->  | R52: =_xlfn.IFS(COUNT($E$7:$G16)<=hcpma,"",AND( AND($I16>=S600L,$I16<S600U), $C16<=S600AL),"X",10<11,"") ->  | S52: =_xlfn.IFS(COUNT($E$7:$G16)<=hcpma,"",AND( AND($I16>=S700L,$I16<S700U), $C16<=S700AL),"X",10<11,"") ->  | T52: =_xlfn.IFS(COUNT($E$7:$G16)<=hcpma,"",SUM($E16:$G16)<1,"",$I16>=3*$C16+S140ov,"X",10<11,"") -> 
A53: 11 | B53: 2023-11-15 | C53: =_xlfn.IFS(COUNT($E$7:$G17)<=hcpma,"",AND(OR(AND($E17>=G125L,$E17<G125U),AND($F17>=G125L,$F17<G125U),AND($G17>=G125L,$G17<G125U)),$C17<=G125AL),"X",10<11,"") ->  | D53: =_xlfn.IFS(COUNT($E$7:$G17)<=hcpma,"",AND(OR(AND($E17>=G150L,$E17<G150U),AND($F17>=G150L,$F17<G150U),AND($G17>=G150L,$G17<G150U)),$C17<=G150AL),"X",10<11,"") ->  | E53: =_xlfn.IFS(COUNT($E$7:$G17)<=hcpma,"",AND(OR(AND($E17>=G175L,$E17<G175U),AND($F17>=G175L,$F17<G175U),AND($G17>=G175L,$G17<G175U)),$C17<=G175AL),"X",10<11,"") ->  | F53: =_xlfn.IFS(COUNT($E$7:$G17)<=hcpma,"",AND(OR(AND($E17>=G200L,$E17<G200U),AND($F17>=G200L,$F17<G200U),AND($G17>=G200L,$G17<G200U)),$C17<=G200AL),"X",10<11,"") ->  | G53: =_xlfn.IFS(COUNT($E$7:$G17)<=hcpma,"",AND(OR(AND($E17>=G225L,$E17<G225U),AND($F17>=G225L,$F17<G225U),AND($G17>=G225L,$G17<G225U)),$C17<=G225AL),"X",10<11,"") ->  | I53: =_xlfn.IFS(COUNT($E$7:$G17)<=hcpma,"",AND(OR(AND($E17>=G250L,$E17<G250U),AND($F17>=G250L,$F17<G250U),AND($G17>=G250L,$G17<G250U)),$C17<=G250AL),"X",10<11,"") ->  | J53: =_xlfn.IFS(COUNT($E$7:$G17)<=hcpma,"",AND(OR(AND($E17>=G275L,$E17<=G275U),AND($F17>=G275L,$F17<=G275U),AND($G17>=G275L,$G17<=G275U)),$C17<=G275AL),"X",10<11,"") ->  | K53: =_xlfn.IFS(COUNT(E17:G17)<=0,"",AND(COUNT($E$7:$G17)>=hcpma,OR(E17>=(C17+G75OV),F17>=(C17+G75OV),G17>=(C17+G75OV))),"X",10<11,"") ->  | M53: =_xlfn.IFS(COUNT($E$7:$G17)<=hcpma,"",AND( AND($I17>=S300L,$I17<S300U), $C17<=S300AL),"X",10<11,"") ->  | N53: =_xlfn.IFS(COUNT($E$7:$G17)<=hcpma,"",AND( AND($I17>=S400L,$I17<S400U), $C17<=S400AL),"X",10<11,"") ->  | O53: =_xlfn.IFS(COUNT($E$7:$G17)<=hcpma,"",AND( AND($I17>=S500L,$I17<S500U), $C17<=S500AL),"X",10<11,"") ->  | R53: =_xlfn.IFS(COUNT($E$7:$G17)<=hcpma,"",AND( AND($I17>=S600L,$I17<S600U), $C17<=S600AL),"X",10<11,"") ->  | S53: =_xlfn.IFS(COUNT($E$7:$G17)<=hcpma,"",AND( AND($I17>=S700L,$I17<S700U), $C17<=S700AL),"X",10<11,"") ->  | T53: =_xlfn.IFS(COUNT($E$7:$G17)<=hcpma,"",SUM($E17:$G17)<1,"",$I17>=3*$C17+S140ov,"X",10<11,"") -> 
A54: 12 | B54: 2023-11-29 | C54: =_xlfn.IFS(COUNT($E$7:$G18)<=hcpma,"",AND(OR(AND($E18>=G125L,$E18<G125U),AND($F18>=G125L,$F18<G125U),AND($G18>=G125L,$G18<G125U)),$C18<=G125AL),"X",10<11,"") ->  | D54: =_xlfn.IFS(COUNT($E$7:$G18)<=hcpma,"",AND(OR(AND($E18>=G150L,$E18<G150U),AND($F18>=G150L,$F18<G150U),AND($G18>=G150L,$G18<G150U)),$C18<=G150AL),"X",10<11,"") ->  | E54: =_xlfn.IFS(COUNT($E$7:$G18)<=hcpma,"",AND(OR(AND($E18>=G175L,$E18<G175U),AND($F18>=G175L,$F18<G175U),AND($G18>=G175L,$G18<G175U)),$C18<=G175AL),"X",10<11,"") ->  | F54: =_xlfn.IFS(COUNT($E$7:$G18)<=hcpma,"",AND(OR(AND($E18>=G200L,$E18<G200U),AND($F18>=G200L,$F18<G200U),AND($G18>=G200L,$G18<G200U)),$C18<=G200AL),"X",10<11,"") ->  | G54: =_xlfn.IFS(COUNT($E$7:$G18)<=hcpma,"",AND(OR(AND($E18>=G225L,$E18<G225U),AND($F18>=G225L,$F18<G225U),AND($G18>=G225L,$G18<G225U)),$C18<=G225AL),"X",10<11,"") ->  | I54: =_xlfn.IFS(COUNT($E$7:$G18)<=hcpma,"",AND(OR(AND($E18>=G250L,$E18<G250U),AND($F18>=G250L,$F18<G250U),AND($G18>=G250L,$G18<G250U)),$C18<=G250AL),"X",10<11,"") ->  | J54: =_xlfn.IFS(COUNT($E$7:$G18)<=hcpma,"",AND(OR(AND($E18>=G275L,$E18<=G275U),AND($F18>=G275L,$F18<=G275U),AND($G18>=G275L,$G18<=G275U)),$C18<=G275AL),"X",10<11,"") ->  | K54: =_xlfn.IFS(COUNT(E18:G18)<=0,"",AND(COUNT($E$7:$G18)>=hcpma,OR(E18>=(C18+G75OV),F18>=(C18+G75OV),G18>=(C18+G75OV))),"X",10<11,"") ->  | M54: =_xlfn.IFS(COUNT($E$7:$G18)<=hcpma,"",AND( AND($I18>=S300L,$I18<S300U), $C18<=S300AL),"X",10<11,"") ->  | N54: =_xlfn.IFS(COUNT($E$7:$G18)<=hcpma,"",AND( AND($I18>=S400L,$I18<S400U), $C18<=S400AL),"X",10<11,"") ->  | O54: =_xlfn.IFS(COUNT($E$7:$G18)<=hcpma,"",AND( AND($I18>=S500L,$I18<S500U), $C18<=S500AL),"X",10<11,"") ->  | R54: =_xlfn.IFS(COUNT($E$7:$G18)<=hcpma,"",AND( AND($I18>=S600L,$I18<S600U), $C18<=S600AL),"X",10<11,"") ->  | S54: =_xlfn.IFS(COUNT($E$7:$G18)<=hcpma,"",AND( AND($I18>=S700L,$I18<S700U), $C18<=S700AL),"X",10<11,"") ->  | T54: =_xlfn.IFS(COUNT($E$7:$G18)<=hcpma,"",SUM($E18:$G18)<1,"",$I18>=3*$C18+S140ov,"X",10<11,"") -> 
A55: 13 | B55: 2023-12-06 | C55: =_xlfn.IFS(COUNT($E$7:$G19)<=hcpma,"",AND(OR(AND($E19>=G125L,$E19<G125U),AND($F19>=G125L,$F19<G125U),AND($G19>=G125L,$G19<G125U)),$C19<=G125AL),"X",10<11,"") ->  | D55: =_xlfn.IFS(COUNT($E$7:$G19)<=hcpma,"",AND(OR(AND($E19>=G150L,$E19<G150U),AND($F19>=G150L,$F19<G150U),AND($G19>=G150L,$G19<G150U)),$C19<=G150AL),"X",10<11,"") ->  | E55: =_xlfn.IFS(COUNT($E$7:$G19)<=hcpma,"",AND(OR(AND($E19>=G175L,$E19<G175U),AND($F19>=G175L,$F19<G175U),AND($G19>=G175L,$G19<G175U)),$C19<=G175AL),"X",10<11,"") ->  | F55: =_xlfn.IFS(COUNT($E$7:$G19)<=hcpma,"",AND(OR(AND($E19>=G200L,$E19<G200U),AND($F19>=G200L,$F19<G200U),AND($G19>=G200L,$G19<G200U)),$C19<=G200AL),"X",10<11,"") ->  | G55: =_xlfn.IFS(COUNT($E$7:$G19)<=hcpma,"",AND(OR(AND($E19>=G225L,$E19<G225U),AND($F19>=G225L,$F19<G225U),AND($G19>=G225L,$G19<G225U)),$C19<=G225AL),"X",10<11,"") ->  | I55: =_xlfn.IFS(COUNT($E$7:$G19)<=hcpma,"",AND(OR(AND($E19>=G250L,$E19<G250U),AND($F19>=G250L,$F19<G250U),AND($G19>=G250L,$G19<G250U)),$C19<=G250AL),"X",10<11,"") ->  | J55: =_xlfn.IFS(COUNT($E$7:$G19)<=hcpma,"",AND(OR(AND($E19>=G275L,$E19<=G275U),AND($F19>=G275L,$F19<=G275U),AND($G19>=G275L,$G19<=G275U)),$C19<=G275AL),"X",10<11,"") ->  | K55: =_xlfn.IFS(COUNT(E19:G19)<=0,"",AND(COUNT($E$7:$G19)>=hcpma,OR(E19>=(C19+G75OV),F19>=(C19+G75OV),G19>=(C19+G75OV))),"X",10<11,"") ->  | M55: =_xlfn.IFS(COUNT($E$7:$G19)<=hcpma,"",AND( AND($I19>=S300L,$I19<S300U), $C19<=S300AL),"X",10<11,"") ->  | N55: =_xlfn.IFS(COUNT($E$7:$G19)<=hcpma,"",AND( AND($I19>=S400L,$I19<S400U), $C19<=S400AL),"X",10<11,"") ->  | O55: =_xlfn.IFS(COUNT($E$7:$G19)<=hcpma,"",AND( AND($I19>=S500L,$I19<S500U), $C19<=S500AL),"X",10<11,"") ->  | R55: =_xlfn.IFS(COUNT($E$7:$G19)<=hcpma,"",AND( AND($I19>=S600L,$I19<S600U), $C19<=S600AL),"X",10<11,"") ->  | S55: =_xlfn.IFS(COUNT($E$7:$G19)<=hcpma,"",AND( AND($I19>=S700L,$I19<S700U), $C19<=S700AL),"X",10<11,"") ->  | T55: =_xlfn.IFS(COUNT($E$7:$G19)<=hcpma,"",SUM($E19:$G19)<1,"",$I19>=3*$C19+S140ov,"X",10<11,"") -> 
A56: 14 | B56: 2023-12-13 | C56: =_xlfn.IFS(COUNT($E$7:$G20)<=hcpma,"",AND(OR(AND($E20>=G125L,$E20<G125U),AND($F20>=G125L,$F20<G125U),AND($G20>=G125L,$G20<G125U)),$C20<=G125AL),"X",10<11,"") ->  | D56: =_xlfn.IFS(COUNT($E$7:$G20)<=hcpma,"",AND(OR(AND($E20>=G150L,$E20<G150U),AND($F20>=G150L,$F20<G150U),AND($G20>=G150L,$G20<G150U)),$C20<=G150AL),"X",10<11,"") ->  | E56: =_xlfn.IFS(COUNT($E$7:$G20)<=hcpma,"",AND(OR(AND($E20>=G175L,$E20<G175U),AND($F20>=G175L,$F20<G175U),AND($G20>=G175L,$G20<G175U)),$C20<=G175AL),"X",10<11,"") ->  | F56: =_xlfn.IFS(COUNT($E$7:$G20)<=hcpma,"",AND(OR(AND($E20>=G200L,$E20<G200U),AND($F20>=G200L,$F20<G200U),AND($G20>=G200L,$G20<G200U)),$C20<=G200AL),"X",10<11,"") ->  | G56: =_xlfn.IFS(COUNT($E$7:$G20)<=hcpma,"",AND(OR(AND($E20>=G225L,$E20<G225U),AND($F20>=G225L,$F20<G225U),AND($G20>=G225L,$G20<G225U)),$C20<=G225AL),"X",10<11,"") ->  | I56: =_xlfn.IFS(COUNT($E$7:$G20)<=hcpma,"",AND(OR(AND($E20>=G250L,$E20<G250U),AND($F20>=G250L,$F20<G250U),AND($G20>=G250L,$G20<G250U)),$C20<=G250AL),"X",10<11,"") ->  | J56: =_xlfn.IFS(COUNT($E$7:$G20)<=hcpma,"",AND(OR(AND($E20>=G275L,$E20<=G275U),AND($F20>=G275L,$F20<=G275U),AND($G20>=G275L,$G20<=G275U)),$C20<=G275AL),"X",10<11,"") ->  | K56: =_xlfn.IFS(COUNT(E20:G20)<=0,"",AND(COUNT($E$7:$G20)>=hcpma,OR(E20>=(C20+G75OV),F20>=(C20+G75OV),G20>=(C20+G75OV))),"X",10<11,"") ->  | M56: =_xlfn.IFS(COUNT($E$7:$G20)<=hcpma,"",AND( AND($I20>=S300L,$I20<S300U), $C20<=S300AL),"X",10<11,"") ->  | N56: =_xlfn.IFS(COUNT($E$7:$G20)<=hcpma,"",AND( AND($I20>=S400L,$I20<S400U), $C20<=S400AL),"X",10<11,"") ->  | O56: =_xlfn.IFS(COUNT($E$7:$G20)<=hcpma,"",AND( AND($I20>=S500L,$I20<S500U), $C20<=S500AL),"X",10<11,"") ->  | R56: =_xlfn.IFS(COUNT($E$7:$G20)<=hcpma,"",AND( AND($I20>=S600L,$I20<S600U), $C20<=S600AL),"X",10<11,"") ->  | S56: =_xlfn.IFS(COUNT($E$7:$G20)<=hcpma,"",AND( AND($I20>=S700L,$I20<S700U), $C20<=S700AL),"X",10<11,"") ->  | T56: =_xlfn.IFS(COUNT($E$7:$G20)<=hcpma,"",SUM($E20:$G20)<1,"",$I20>=3*$C20+S140ov,"X",10<11,"") -> 
A57: 15 | B57: 2023-12-20 | C57: =_xlfn.IFS(COUNT($E$7:$G21)<=hcpma,"",AND(OR(AND($E21>=G125L,$E21<G125U),AND($F21>=G125L,$F21<G125U),AND($G21>=G125L,$G21<G125U)),$C21<=G125AL),"X",10<11,"") ->  | D57: =_xlfn.IFS(COUNT($E$7:$G21)<=hcpma,"",AND(OR(AND($E21>=G150L,$E21<G150U),AND($F21>=G150L,$F21<G150U),AND($G21>=G150L,$G21<G150U)),$C21<=G150AL),"X",10<11,"") ->  | E57: =_xlfn.IFS(COUNT($E$7:$G21)<=hcpma,"",AND(OR(AND($E21>=G175L,$E21<G175U),AND($F21>=G175L,$F21<G175U),AND($G21>=G175L,$G21<G175U)),$C21<=G175AL),"X",10<11,"") ->  | F57: =_xlfn.IFS(COUNT($E$7:$G21)<=hcpma,"",AND(OR(AND($E21>=G200L,$E21<G200U),AND($F21>=G200L,$F21<G200U),AND($G21>=G200L,$G21<G200U)),$C21<=G200AL),"X",10<11,"") ->  | G57: =_xlfn.IFS(COUNT($E$7:$G21)<=hcpma,"",AND(OR(AND($E21>=G225L,$E21<G225U),AND($F21>=G225L,$F21<G225U),AND($G21>=G225L,$G21<G225U)),$C21<=G225AL),"X",10<11,"") ->  | I57: =_xlfn.IFS(COUNT($E$7:$G21)<=hcpma,"",AND(OR(AND($E21>=G250L,$E21<G250U),AND($F21>=G250L,$F21<G250U),AND($G21>=G250L,$G21<G250U)),$C21<=G250AL),"X",10<11,"") ->  | J57: =_xlfn.IFS(COUNT($E$7:$G21)<=hcpma,"",AND(OR(AND($E21>=G275L,$E21<=G275U),AND($F21>=G275L,$F21<=G275U),AND($G21>=G275L,$G21<=G275U)),$C21<=G275AL),"X",10<11,"") ->  | K57: =_xlfn.IFS(COUNT(E21:G21)<=0,"",AND(COUNT($E$7:$G21)>=hcpma,OR(E21>=(C21+G75OV),F21>=(C21+G75OV),G21>=(C21+G75OV))),"X",10<11,"") ->  | M57: =_xlfn.IFS(COUNT($E$7:$G21)<=hcpma,"",AND( AND($I21>=S300L,$I21<S300U), $C21<=S300AL),"X",10<11,"") ->  | N57: =_xlfn.IFS(COUNT($E$7:$G21)<=hcpma,"",AND( AND($I21>=S400L,$I21<S400U), $C21<=S400AL),"X",10<11,"") ->  | O57: =_xlfn.IFS(COUNT($E$7:$G21)<=hcpma,"",AND( AND($I21>=S500L,$I21<S500U), $C21<=S500AL),"X",10<11,"") ->  | R57: =_xlfn.IFS(COUNT($E$7:$G21)<=hcpma,"",AND( AND($I21>=S600L,$I21<S600U), $C21<=S600AL),"X",10<11,"") ->  | S57: =_xlfn.IFS(COUNT($E$7:$G21)<=hcpma,"",AND( AND($I21>=S700L,$I21<S700U), $C21<=S700AL),"X",10<11,"") ->  | T57: =_xlfn.IFS(COUNT($E$7:$G21)<=hcpma,"",SUM($E21:$G21)<1,"",$I21>=3*$C21+S140ov,"X",10<11,"") -> 
A58: 16 | B58: 2024-01-03 | C58: =_xlfn.IFS(COUNT($E$7:$G22)<=hcpma,"",AND(OR(AND($E22>=G125L,$E22<G125U),AND($F22>=G125L,$F22<G125U),AND($G22>=G125L,$G22<G125U)),$C22<=G125AL),"X",10<11,"") -> X | D58: =_xlfn.IFS(COUNT($E$7:$G22)<=hcpma,"",AND(OR(AND($E22>=G150L,$E22<G150U),AND($F22>=G150L,$F22<G150U),AND($G22>=G150L,$G22<G150U)),$C22<=G150AL),"X",10<11,"") ->  | E58: =_xlfn.IFS(COUNT($E$7:$G22)<=hcpma,"",AND(OR(AND($E22>=G175L,$E22<G175U),AND($F22>=G175L,$F22<G175U),AND($G22>=G175L,$G22<G175U)),$C22<=G175AL),"X",10<11,"") ->  | F58: =_xlfn.IFS(COUNT($E$7:$G22)<=hcpma,"",AND(OR(AND($E22>=G200L,$E22<G200U),AND($F22>=G200L,$F22<G200U),AND($G22>=G200L,$G22<G200U)),$C22<=G200AL),"X",10<11,"") ->  | G58: =_xlfn.IFS(COUNT($E$7:$G22)<=hcpma,"",AND(OR(AND($E22>=G225L,$E22<G225U),AND($F22>=G225L,$F22<G225U),AND($G22>=G225L,$G22<G225U)),$C22<=G225AL),"X",10<11,"") ->  | I58: =_xlfn.IFS(COUNT($E$7:$G22)<=hcpma,"",AND(OR(AND($E22>=G250L,$E22<G250U),AND($F22>=G250L,$F22<G250U),AND($G22>=G250L,$G22<G250U)),$C22<=G250AL),"X",10<11,"") ->  | J58: =_xlfn.IFS(COUNT($E$7:$G22)<=hcpma,"",AND(OR(AND($E22>=G275L,$E22<=G275U),AND($F22>=G275L,$F22<=G275U),AND($G22>=G275L,$G22<=G275U)),$C22<=G275AL),"X",10<11,"") ->  | K58: =_xlfn.IFS(COUNT(E22:G22)<=0,"",AND(COUNT($E$7:$G22)>=hcpma,OR(E22>=(C22+G75OV),F22>=(C22+G75OV),G22>=(C22+G75OV))),"X",10<11,"") ->  | M58: =_xlfn.IFS(COUNT($E$7:$G22)<=hcpma,"",AND( AND($I22>=S300L,$I22<S300U), $C22<=S300AL),"X",10<11,"") ->  | N58: =_xlfn.IFS(COUNT($E$7:$G22)<=hcpma,"",AND( AND($I22>=S400L,$I22<S400U), $C22<=S400AL),"X",10<11,"") ->  | O58: =_xlfn.IFS(COUNT($E$7:$G22)<=hcpma,"",AND( AND($I22>=S500L,$I22<S500U), $C22<=S500AL),"X",10<11,"") ->  | R58: =_xlfn.IFS(COUNT($E$7:$G22)<=hcpma,"",AND( AND($I22>=S600L,$I22<S600U), $C22<=S600AL),"X",10<11,"") ->  | S58: =_xlfn.IFS(COUNT($E$7:$G22)<=hcpma,"",AND( AND($I22>=S700L,$I22<S700U), $C22<=S700AL),"X",10<11,"") ->  | T58: =_xlfn.IFS(COUNT($E$7:$G22)<=hcpma,"",SUM($E22:$G22)<1,"",$I22>=3*$C22+S140ov,"X",10<11,"") -> 
A59: 17 | B59: 2024-01-10 | C59: =_xlfn.IFS(COUNT($E$7:$G23)<=hcpma,"",AND(OR(AND($E23>=G125L,$E23<G125U),AND($F23>=G125L,$F23<G125U),AND($G23>=G125L,$G23<G125U)),$C23<=G125AL),"X",10<11,"") ->  | D59: =_xlfn.IFS(COUNT($E$7:$G23)<=hcpma,"",AND(OR(AND($E23>=G150L,$E23<G150U),AND($F23>=G150L,$F23<G150U),AND($G23>=G150L,$G23<G150U)),$C23<=G150AL),"X",10<11,"") ->  | E59: =_xlfn.IFS(COUNT($E$7:$G23)<=hcpma,"",AND(OR(AND($E23>=G175L,$E23<G175U),AND($F23>=G175L,$F23<G175U),AND($G23>=G175L,$G23<G175U)),$C23<=G175AL),"X",10<11,"") ->  | F59: =_xlfn.IFS(COUNT($E$7:$G23)<=hcpma,"",AND(OR(AND($E23>=G200L,$E23<G200U),AND($F23>=G200L,$F23<G200U),AND($G23>=G200L,$G23<G200U)),$C23<=G200AL),"X",10<11,"") ->  | G59: =_xlfn.IFS(COUNT($E$7:$G23)<=hcpma,"",AND(OR(AND($E23>=G225L,$E23<G225U),AND($F23>=G225L,$F23<G225U),AND($G23>=G225L,$G23<G225U)),$C23<=G225AL),"X",10<11,"") ->  | I59: =_xlfn.IFS(COUNT($E$7:$G23)<=hcpma,"",AND(OR(AND($E23>=G250L,$E23<G250U),AND($F23>=G250L,$F23<G250U),AND($G23>=G250L,$G23<G250U)),$C23<=G250AL),"X",10<11,"") ->  | J59: =_xlfn.IFS(COUNT($E$7:$G23)<=hcpma,"",AND(OR(AND($E23>=G275L,$E23<=G275U),AND($F23>=G275L,$F23<=G275U),AND($G23>=G275L,$G23<=G275U)),$C23<=G275AL),"X",10<11,"") ->  | K59: =_xlfn.IFS(COUNT(E23:G23)<=0,"",AND(COUNT($E$7:$G23)>=hcpma,OR(E23>=(C23+G75OV),F23>=(C23+G75OV),G23>=(C23+G75OV))),"X",10<11,"") ->  | M59: =_xlfn.IFS(COUNT($E$7:$G23)<=hcpma,"",AND( AND($I23>=S300L,$I23<S300U), $C23<=S300AL),"X",10<11,"") ->  | N59: =_xlfn.IFS(COUNT($E$7:$G23)<=hcpma,"",AND( AND($I23>=S400L,$I23<S400U), $C23<=S400AL),"X",10<11,"") ->  | O59: =_xlfn.IFS(COUNT($E$7:$G23)<=hcpma,"",AND( AND($I23>=S500L,$I23<S500U), $C23<=S500AL),"X",10<11,"") ->  | R59: =_xlfn.IFS(COUNT($E$7:$G23)<=hcpma,"",AND( AND($I23>=S600L,$I23<S600U), $C23<=S600AL),"X",10<11,"") ->  | S59: =_xlfn.IFS(COUNT($E$7:$G23)<=hcpma,"",AND( AND($I23>=S700L,$I23<S700U), $C23<=S700AL),"X",10<11,"") ->  | T59: =_xlfn.IFS(COUNT($E$7:$G23)<=hcpma,"",SUM($E23:$G23)<1,"",$I23>=3*$C23+S140ov,"X",10<11,"") -> 
A60: 18 | B60: 2024-01-17 | C60: =_xlfn.IFS(COUNT($E$7:$G24)<=hcpma,"",AND(OR(AND($E24>=G125L,$E24<G125U),AND($F24>=G125L,$F24<G125U),AND($G24>=G125L,$G24<G125U)),$C24<=G125AL),"X",10<11,"") ->  | D60: =_xlfn.IFS(COUNT($E$7:$G24)<=hcpma,"",AND(OR(AND($E24>=G150L,$E24<G150U),AND($F24>=G150L,$F24<G150U),AND($G24>=G150L,$G24<G150U)),$C24<=G150AL),"X",10<11,"") ->  | E60: =_xlfn.IFS(COUNT($E$7:$G24)<=hcpma,"",AND(OR(AND($E24>=G175L,$E24<G175U),AND($F24>=G175L,$F24<G175U),AND($G24>=G175L,$G24<G175U)),$C24<=G175AL),"X",10<11,"") ->  | F60: =_xlfn.IFS(COUNT($E$7:$G24)<=hcpma,"",AND(OR(AND($E24>=G200L,$E24<G200U),AND($F24>=G200L,$F24<G200U),AND($G24>=G200L,$G24<G200U)),$C24<=G200AL),"X",10<11,"") ->  | G60: =_xlfn.IFS(COUNT($E$7:$G24)<=hcpma,"",AND(OR(AND($E24>=G225L,$E24<G225U),AND($F24>=G225L,$F24<G225U),AND($G24>=G225L,$G24<G225U)),$C24<=G225AL),"X",10<11,"") ->  | I60: =_xlfn.IFS(COUNT($E$7:$G24)<=hcpma,"",AND(OR(AND($E24>=G250L,$E24<G250U),AND($F24>=G250L,$F24<G250U),AND($G24>=G250L,$G24<G250U)),$C24<=G250AL),"X",10<11,"") ->  | J60: =_xlfn.IFS(COUNT($E$7:$G24)<=hcpma,"",AND(OR(AND($E24>=G275L,$E24<=G275U),AND($F24>=G275L,$F24<=G275U),AND($G24>=G275L,$G24<=G275U)),$C24<=G275AL),"X",10<11,"") ->  | K60: =_xlfn.IFS(COUNT(E24:G24)<=0,"",AND(COUNT($E$7:$G24)>=hcpma,OR(E24>=(C24+G75OV),F24>=(C24+G75OV),G24>=(C24+G75OV))),"X",10<11,"") ->  | M60: =_xlfn.IFS(COUNT($E$7:$G24)<=hcpma,"",AND( AND($I24>=S300L,$I24<S300U), $C24<=S300AL),"X",10<11,"") ->  | N60: =_xlfn.IFS(COUNT($E$7:$G24)<=hcpma,"",AND( AND($I24>=S400L,$I24<S400U), $C24<=S400AL),"X",10<11,"") ->  | O60: =_xlfn.IFS(COUNT($E$7:$G24)<=hcpma,"",AND( AND($I24>=S500L,$I24<S500U), $C24<=S500AL),"X",10<11,"") ->  | R60: =_xlfn.IFS(COUNT($E$7:$G24)<=hcpma,"",AND( AND($I24>=S600L,$I24<S600U), $C24<=S600AL),"X",10<11,"") ->  | S60: =_xlfn.IFS(COUNT($E$7:$G24)<=hcpma,"",AND( AND($I24>=S700L,$I24<S700U), $C24<=S700AL),"X",10<11,"") ->  | T60: =_xlfn.IFS(COUNT($E$7:$G24)<=hcpma,"",SUM($E24:$G24)<1,"",$I24>=3*$C24+S140ov,"X",10<11,"") -> 
A61: 19 | B61: 2024-01-24 | C61: =_xlfn.IFS(COUNT($E$7:$G25)<=hcpma,"",AND(OR(AND($E25>=G125L,$E25<G125U),AND($F25>=G125L,$F25<G125U),AND($G25>=G125L,$G25<G125U)),$C25<=G125AL),"X",10<11,"") -> X | D61: =_xlfn.IFS(COUNT($E$7:$G25)<=hcpma,"",AND(OR(AND($E25>=G150L,$E25<G150U),AND($F25>=G150L,$F25<G150U),AND($G25>=G150L,$G25<G150U)),$C25<=G150AL),"X",10<11,"") ->  | E61: =_xlfn.IFS(COUNT($E$7:$G25)<=hcpma,"",AND(OR(AND($E25>=G175L,$E25<G175U),AND($F25>=G175L,$F25<G175U),AND($G25>=G175L,$G25<G175U)),$C25<=G175AL),"X",10<11,"") ->  | F61: =_xlfn.IFS(COUNT($E$7:$G25)<=hcpma,"",AND(OR(AND($E25>=G200L,$E25<G200U),AND($F25>=G200L,$F25<G200U),AND($G25>=G200L,$G25<G200U)),$C25<=G200AL),"X",10<11,"") ->  | G61: =_xlfn.IFS(COUNT($E$7:$G25)<=hcpma,"",AND(OR(AND($E25>=G225L,$E25<G225U),AND($F25>=G225L,$F25<G225U),AND($G25>=G225L,$G25<G225U)),$C25<=G225AL),"X",10<11,"") ->  | I61: =_xlfn.IFS(COUNT($E$7:$G25)<=hcpma,"",AND(OR(AND($E25>=G250L,$E25<G250U),AND($F25>=G250L,$F25<G250U),AND($G25>=G250L,$G25<G250U)),$C25<=G250AL),"X",10<11,"") ->  | J61: =_xlfn.IFS(COUNT($E$7:$G25)<=hcpma,"",AND(OR(AND($E25>=G275L,$E25<=G275U),AND($F25>=G275L,$F25<=G275U),AND($G25>=G275L,$G25<=G275U)),$C25<=G275AL),"X",10<11,"") ->  | K61: =_xlfn.IFS(COUNT(E25:G25)<=0,"",AND(COUNT($E$7:$G25)>=hcpma,OR(E25>=(C25+G75OV),F25>=(C25+G75OV),G25>=(C25+G75OV))),"X",10<11,"") ->  | M61: =_xlfn.IFS(COUNT($E$7:$G25)<=hcpma,"",AND( AND($I25>=S300L,$I25<S300U), $C25<=S300AL),"X",10<11,"") ->  | N61: =_xlfn.IFS(COUNT($E$7:$G25)<=hcpma,"",AND( AND($I25>=S400L,$I25<S400U), $C25<=S400AL),"X",10<11,"") ->  | O61: =_xlfn.IFS(COUNT($E$7:$G25)<=hcpma,"",AND( AND($I25>=S500L,$I25<S500U), $C25<=S500AL),"X",10<11,"") ->  | R61: =_xlfn.IFS(COUNT($E$7:$G25)<=hcpma,"",AND( AND($I25>=S600L,$I25<S600U), $C25<=S600AL),"X",10<11,"") ->  | S61: =_xlfn.IFS(COUNT($E$7:$G25)<=hcpma,"",AND( AND($I25>=S700L,$I25<S700U), $C25<=S700AL),"X",10<11,"") ->  | T61: =_xlfn.IFS(COUNT($E$7:$G25)<=hcpma,"",SUM($E25:$G25)<1,"",$I25>=3*$C25+S140ov,"X",10<11,"") -> 
A62: 20 | B62: 2024-01-31 | C62: =_xlfn.IFS(COUNT($E$7:$G26)<=hcpma,"",AND(OR(AND($E26>=G125L,$E26<G125U),AND($F26>=G125L,$F26<G125U),AND($G26>=G125L,$G26<G125U)),$C26<=G125AL),"X",10<11,"") ->  | D62: =_xlfn.IFS(COUNT($E$7:$G26)<=hcpma,"",AND(OR(AND($E26>=G150L,$E26<G150U),AND($F26>=G150L,$F26<G150U),AND($G26>=G150L,$G26<G150U)),$C26<=G150AL),"X",10<11,"") ->  | E62: =_xlfn.IFS(COUNT($E$7:$G26)<=hcpma,"",AND(OR(AND($E26>=G175L,$E26<G175U),AND($F26>=G175L,$F26<G175U),AND($G26>=G175L,$G26<G175U)),$C26<=G175AL),"X",10<11,"") ->  | F62: =_xlfn.IFS(COUNT($E$7:$G26)<=hcpma,"",AND(OR(AND($E26>=G200L,$E26<G200U),AND($F26>=G200L,$F26<G200U),AND($G26>=G200L,$G26<G200U)),$C26<=G200AL),"X",10<11,"") ->  | G62: =_xlfn.IFS(COUNT($E$7:$G26)<=hcpma,"",AND(OR(AND($E26>=G225L,$E26<G225U),AND($F26>=G225L,$F26<G225U),AND($G26>=G225L,$G26<G225U)),$C26<=G225AL),"X",10<11,"") ->  | I62: =_xlfn.IFS(COUNT($E$7:$G26)<=hcpma,"",AND(OR(AND($E26>=G250L,$E26<G250U),AND($F26>=G250L,$F26<G250U),AND($G26>=G250L,$G26<G250U)),$C26<=G250AL),"X",10<11,"") ->  | J62: =_xlfn.IFS(COUNT($E$7:$G26)<=hcpma,"",AND(OR(AND($E26>=G275L,$E26<=G275U),AND($F26>=G275L,$F26<=G275U),AND($G26>=G275L,$G26<=G275U)),$C26<=G275AL),"X",10<11,"") ->  | K62: =_xlfn.IFS(COUNT(E26:G26)<=0,"",AND(COUNT($E$7:$G26)>=hcpma,OR(E26>=(C26+G75OV),F26>=(C26+G75OV),G26>=(C26+G75OV))),"X",10<11,"") ->  | M62: =_xlfn.IFS(COUNT($E$7:$G26)<=hcpma,"",AND( AND($I26>=S300L,$I26<S300U), $C26<=S300AL),"X",10<11,"") ->  | N62: =_xlfn.IFS(COUNT($E$7:$G26)<=hcpma,"",AND( AND($I26>=S400L,$I26<S400U), $C26<=S400AL),"X",10<11,"") ->  | O62: =_xlfn.IFS(COUNT($E$7:$G26)<=hcpma,"",AND( AND($I26>=S500L,$I26<S500U), $C26<=S500AL),"X",10<11,"") ->  | R62: =_xlfn.IFS(COUNT($E$7:$G26)<=hcpma,"",AND( AND($I26>=S600L,$I26<S600U), $C26<=S600AL),"X",10<11,"") ->  | S62: =_xlfn.IFS(COUNT($E$7:$G26)<=hcpma,"",AND( AND($I26>=S700L,$I26<S700U), $C26<=S700AL),"X",10<11,"") ->  | T62: =_xlfn.IFS(COUNT($E$7:$G26)<=hcpma,"",SUM($E26:$G26)<1,"",$I26>=3*$C26+S140ov,"X",10<11,"") -> 
A63: 21 | B63: 2024-02-07 | C63: =_xlfn.IFS(COUNT($E$7:$G27)<=hcpma,"",AND(OR(AND($E27>=G125L,$E27<G125U),AND($F27>=G125L,$F27<G125U),AND($G27>=G125L,$G27<G125U)),$C27<=G125AL),"X",10<11,"") ->  | D63: =_xlfn.IFS(COUNT($E$7:$G27)<=hcpma,"",AND(OR(AND($E27>=G150L,$E27<G150U),AND($F27>=G150L,$F27<G150U),AND($G27>=G150L,$G27<G150U)),$C27<=G150AL),"X",10<11,"") ->  | E63: =_xlfn.IFS(COUNT($E$7:$G27)<=hcpma,"",AND(OR(AND($E27>=G175L,$E27<G175U),AND($F27>=G175L,$F27<G175U),AND($G27>=G175L,$G27<G175U)),$C27<=G175AL),"X",10<11,"") ->  | F63: =_xlfn.IFS(COUNT($E$7:$G27)<=hcpma,"",AND(OR(AND($E27>=G200L,$E27<G200U),AND($F27>=G200L,$F27<G200U),AND($G27>=G200L,$G27<G200U)),$C27<=G200AL),"X",10<11,"") ->  | G63: =_xlfn.IFS(COUNT($E$7:$G27)<=hcpma,"",AND(OR(AND($E27>=G225L,$E27<G225U),AND($F27>=G225L,$F27<G225U),AND($G27>=G225L,$G27<G225U)),$C27<=G225AL),"X",10<11,"") ->  | I63: =_xlfn.IFS(COUNT($E$7:$G27)<=hcpma,"",AND(OR(AND($E27>=G250L,$E27<G250U),AND($F27>=G250L,$F27<G250U),AND($G27>=G250L,$G27<G250U)),$C27<=G250AL),"X",10<11,"") ->  | J63: =_xlfn.IFS(COUNT($E$7:$G27)<=hcpma,"",AND(OR(AND($E27>=G275L,$E27<=G275U),AND($F27>=G275L,$F27<=G275U),AND($G27>=G275L,$G27<=G275U)),$C27<=G275AL),"X",10<11,"") ->  | K63: =_xlfn.IFS(COUNT(E27:G27)<=0,"",AND(COUNT($E$7:$G27)>=hcpma,OR(E27>=(C27+G75OV),F27>=(C27+G75OV),G27>=(C27+G75OV))),"X",10<11,"") ->  | M63: =_xlfn.IFS(COUNT($E$7:$G27)<=hcpma,"",AND( AND($I27>=S300L,$I27<S300U), $C27<=S300AL),"X",10<11,"") ->  | N63: =_xlfn.IFS(COUNT($E$7:$G27)<=hcpma,"",AND( AND($I27>=S400L,$I27<S400U), $C27<=S400AL),"X",10<11,"") ->  | O63: =_xlfn.IFS(COUNT($E$7:$G27)<=hcpma,"",AND( AND($I27>=S500L,$I27<S500U), $C27<=S500AL),"X",10<11,"") ->  | R63: =_xlfn.IFS(COUNT($E$7:$G27)<=hcpma,"",AND( AND($I27>=S600L,$I27<S600U), $C27<=S600AL),"X",10<11,"") ->  | S63: =_xlfn.IFS(COUNT($E$7:$G27)<=hcpma,"",AND( AND($I27>=S700L,$I27<S700U), $C27<=S700AL),"X",10<11,"") ->  | T63: =_xlfn.IFS(COUNT($E$7:$G27)<=hcpma,"",SUM($E27:$G27)<1,"",$I27>=3*$C27+S140ov,"X",10<11,"") -> 
A64: 22 | B64: 2024-02-14 | C64: =_xlfn.IFS(COUNT($E$7:$G28)<=hcpma,"",AND(OR(AND($E28>=G125L,$E28<G125U),AND($F28>=G125L,$F28<G125U),AND($G28>=G125L,$G28<G125U)),$C28<=G125AL),"X",10<11,"") ->  | D64: =_xlfn.IFS(COUNT($E$7:$G28)<=hcpma,"",AND(OR(AND($E28>=G150L,$E28<G150U),AND($F28>=G150L,$F28<G150U),AND($G28>=G150L,$G28<G150U)),$C28<=G150AL),"X",10<11,"") ->  | E64: =_xlfn.IFS(COUNT($E$7:$G28)<=hcpma,"",AND(OR(AND($E28>=G175L,$E28<G175U),AND($F28>=G175L,$F28<G175U),AND($G28>=G175L,$G28<G175U)),$C28<=G175AL),"X",10<11,"") ->  | F64: =_xlfn.IFS(COUNT($E$7:$G28)<=hcpma,"",AND(OR(AND($E28>=G200L,$E28<G200U),AND($F28>=G200L,$F28<G200U),AND($G28>=G200L,$G28<G200U)),$C28<=G200AL),"X",10<11,"") ->  | G64: =_xlfn.IFS(COUNT($E$7:$G28)<=hcpma,"",AND(OR(AND($E28>=G225L,$E28<G225U),AND($F28>=G225L,$F28<G225U),AND($G28>=G225L,$G28<G225U)),$C28<=G225AL),"X",10<11,"") ->  | I64: =_xlfn.IFS(COUNT($E$7:$G28)<=hcpma,"",AND(OR(AND($E28>=G250L,$E28<G250U),AND($F28>=G250L,$F28<G250U),AND($G28>=G250L,$G28<G250U)),$C28<=G250AL),"X",10<11,"") ->  | J64: =_xlfn.IFS(COUNT($E$7:$G28)<=hcpma,"",AND(OR(AND($E28>=G275L,$E28<=G275U),AND($F28>=G275L,$F28<=G275U),AND($G28>=G275L,$G28<=G275U)),$C28<=G275AL),"X",10<11,"") ->  | K64: =_xlfn.IFS(COUNT(E28:G28)<=0,"",AND(COUNT($E$7:$G28)>=hcpma,OR(E28>=(C28+G75OV),F28>=(C28+G75OV),G28>=(C28+G75OV))),"X",10<11,"") ->  | M64: =_xlfn.IFS(COUNT($E$7:$G28)<=hcpma,"",AND( AND($I28>=S300L,$I28<S300U), $C28<=S300AL),"X",10<11,"") ->  | N64: =_xlfn.IFS(COUNT($E$7:$G28)<=hcpma,"",AND( AND($I28>=S400L,$I28<S400U), $C28<=S400AL),"X",10<11,"") ->  | O64: =_xlfn.IFS(COUNT($E$7:$G28)<=hcpma,"",AND( AND($I28>=S500L,$I28<S500U), $C28<=S500AL),"X",10<11,"") ->  | R64: =_xlfn.IFS(COUNT($E$7:$G28)<=hcpma,"",AND( AND($I28>=S600L,$I28<S600U), $C28<=S600AL),"X",10<11,"") ->  | S64: =_xlfn.IFS(COUNT($E$7:$G28)<=hcpma,"",AND( AND($I28>=S700L,$I28<S700U), $C28<=S700AL),"X",10<11,"") ->  | T64: =_xlfn.IFS(COUNT($E$7:$G28)<=hcpma,"",SUM($E28:$G28)<1,"",$I28>=3*$C28+S140ov,"X",10<11,"") -> 
A65: 23 | B65: 2024-02-21 | C65: =_xlfn.IFS(COUNT($E$7:$G29)<=hcpma,"",AND(OR(AND($E29>=G125L,$E29<G125U),AND($F29>=G125L,$F29<G125U),AND($G29>=G125L,$G29<G125U)),$C29<=G125AL),"X",10<11,"") ->  | D65: =_xlfn.IFS(COUNT($E$7:$G29)<=hcpma,"",AND(OR(AND($E29>=G150L,$E29<G150U),AND($F29>=G150L,$F29<G150U),AND($G29>=G150L,$G29<G150U)),$C29<=G150AL),"X",10<11,"") ->  | E65: =_xlfn.IFS(COUNT($E$7:$G29)<=hcpma,"",AND(OR(AND($E29>=G175L,$E29<G175U),AND($F29>=G175L,$F29<G175U),AND($G29>=G175L,$G29<G175U)),$C29<=G175AL),"X",10<11,"") ->  | F65: =_xlfn.IFS(COUNT($E$7:$G29)<=hcpma,"",AND(OR(AND($E29>=G200L,$E29<G200U),AND($F29>=G200L,$F29<G200U),AND($G29>=G200L,$G29<G200U)),$C29<=G200AL),"X",10<11,"") ->  | G65: =_xlfn.IFS(COUNT($E$7:$G29)<=hcpma,"",AND(OR(AND($E29>=G225L,$E29<G225U),AND($F29>=G225L,$F29<G225U),AND($G29>=G225L,$G29<G225U)),$C29<=G225AL),"X",10<11,"") ->  | I65: =_xlfn.IFS(COUNT($E$7:$G29)<=hcpma,"",AND(OR(AND($E29>=G250L,$E29<G250U),AND($F29>=G250L,$F29<G250U),AND($G29>=G250L,$G29<G250U)),$C29<=G250AL),"X",10<11,"") ->  | J65: =_xlfn.IFS(COUNT($E$7:$G29)<=hcpma,"",AND(OR(AND($E29>=G275L,$E29<=G275U),AND($F29>=G275L,$F29<=G275U),AND($G29>=G275L,$G29<=G275U)),$C29<=G275AL),"X",10<11,"") ->  | K65: =_xlfn.IFS(COUNT(E29:G29)<=0,"",AND(COUNT($E$7:$G29)>=hcpma,OR(E29>=(C29+G75OV),F29>=(C29+G75OV),G29>=(C29+G75OV))),"X",10<11,"") ->  | M65: =_xlfn.IFS(COUNT($E$7:$G29)<=hcpma,"",AND( AND($I29>=S300L,$I29<S300U), $C29<=S300AL),"X",10<11,"") ->  | N65: =_xlfn.IFS(COUNT($E$7:$G29)<=hcpma,"",AND( AND($I29>=S400L,$I29<S400U), $C29<=S400AL),"X",10<11,"") ->  | O65: =_xlfn.IFS(COUNT($E$7:$G29)<=hcpma,"",AND( AND($I29>=S500L,$I29<S500U), $C29<=S500AL),"X",10<11,"") ->  | R65: =_xlfn.IFS(COUNT($E$7:$G29)<=hcpma,"",AND( AND($I29>=S600L,$I29<S600U), $C29<=S600AL),"X",10<11,"") ->  | S65: =_xlfn.IFS(COUNT($E$7:$G29)<=hcpma,"",AND( AND($I29>=S700L,$I29<S700U), $C29<=S700AL),"X",10<11,"") ->  | T65: =_xlfn.IFS(COUNT($E$7:$G29)<=hcpma,"",SUM($E29:$G29)<1,"",$I29>=3*$C29+S140ov,"X",10<11,"") -> 
A66: 24 | B66: 2024-02-28 | C66: =_xlfn.IFS(COUNT($E$7:$G30)<=hcpma,"",AND(OR(AND($E30>=G125L,$E30<G125U),AND($F30>=G125L,$F30<G125U),AND($G30>=G125L,$G30<G125U)),$C30<=G125AL),"X",10<11,"") ->  | D66: =_xlfn.IFS(COUNT($E$7:$G30)<=hcpma,"",AND(OR(AND($E30>=G150L,$E30<G150U),AND($F30>=G150L,$F30<G150U),AND($G30>=G150L,$G30<G150U)),$C30<=G150AL),"X",10<11,"") -> X | E66: =_xlfn.IFS(COUNT($E$7:$G30)<=hcpma,"",AND(OR(AND($E30>=G175L,$E30<G175U),AND($F30>=G175L,$F30<G175U),AND($G30>=G175L,$G30<G175U)),$C30<=G175AL),"X",10<11,"") ->  | F66: =_xlfn.IFS(COUNT($E$7:$G30)<=hcpma,"",AND(OR(AND($E30>=G200L,$E30<G200U),AND($F30>=G200L,$F30<G200U),AND($G30>=G200L,$G30<G200U)),$C30<=G200AL),"X",10<11,"") ->  | G66: =_xlfn.IFS(COUNT($E$7:$G30)<=hcpma,"",AND(OR(AND($E30>=G225L,$E30<G225U),AND($F30>=G225L,$F30<G225U),AND($G30>=G225L,$G30<G225U)),$C30<=G225AL),"X",10<11,"") ->  | I66: =_xlfn.IFS(COUNT($E$7:$G30)<=hcpma,"",AND(OR(AND($E30>=G250L,$E30<G250U),AND($F30>=G250L,$F30<G250U),AND($G30>=G250L,$G30<G250U)),$C30<=G250AL),"X",10<11,"") ->  | J66: =_xlfn.IFS(COUNT($E$7:$G30)<=hcpma,"",AND(OR(AND($E30>=G275L,$E30<=G275U),AND($F30>=G275L,$F30<=G275U),AND($G30>=G275L,$G30<=G275U)),$C30<=G275AL),"X",10<11,"") ->  | K66: =_xlfn.IFS(COUNT(E30:G30)<=0,"",AND(COUNT($E$7:$G30)>=hcpma,OR(E30>=(C30+G75OV),F30>=(C30+G75OV),G30>=(C30+G75OV))),"X",10<11,"") ->  | M66: =_xlfn.IFS(COUNT($E$7:$G30)<=hcpma,"",AND( AND($I30>=S300L,$I30<S300U), $C30<=S300AL),"X",10<11,"") ->  | N66: =_xlfn.IFS(COUNT($E$7:$G30)<=hcpma,"",AND( AND($I30>=S400L,$I30<S400U), $C30<=S400AL),"X",10<11,"") ->  | O66: =_xlfn.IFS(COUNT($E$7:$G30)<=hcpma,"",AND( AND($I30>=S500L,$I30<S500U), $C30<=S500AL),"X",10<11,"") ->  | R66: =_xlfn.IFS(COUNT($E$7:$G30)<=hcpma,"",AND( AND($I30>=S600L,$I30<S600U), $C30<=S600AL),"X",10<11,"") ->  | S66: =_xlfn.IFS(COUNT($E$7:$G30)<=hcpma,"",AND( AND($I30>=S700L,$I30<S700U), $C30<=S700AL),"X",10<11,"") ->  | T66: =_xlfn.IFS(COUNT($E$7:$G30)<=hcpma,"",SUM($E30:$G30)<1,"",$I30>=3*$C30+S140ov,"X",10<11,"") -> 
A67: 25 | B67: 2024-03-06 | C67: =_xlfn.IFS(COUNT($E$7:$G31)<=hcpma,"",AND(OR(AND($E31>=G125L,$E31<G125U),AND($F31>=G125L,$F31<G125U),AND($G31>=G125L,$G31<G125U)),$C31<=G125AL),"X",10<11,"") ->  | D67: =_xlfn.IFS(COUNT($E$7:$G31)<=hcpma,"",AND(OR(AND($E31>=G150L,$E31<G150U),AND($F31>=G150L,$F31<G150U),AND($G31>=G150L,$G31<G150U)),$C31<=G150AL),"X",10<11,"") ->  | E67: =_xlfn.IFS(COUNT($E$7:$G31)<=hcpma,"",AND(OR(AND($E31>=G175L,$E31<G175U),AND($F31>=G175L,$F31<G175U),AND($G31>=G175L,$G31<G175U)),$C31<=G175AL),"X",10<11,"") ->  | F67: =_xlfn.IFS(COUNT($E$7:$G31)<=hcpma,"",AND(OR(AND($E31>=G200L,$E31<G200U),AND($F31>=G200L,$F31<G200U),AND($G31>=G200L,$G31<G200U)),$C31<=G200AL),"X",10<11,"") ->  | G67: =_xlfn.IFS(COUNT($E$7:$G31)<=hcpma,"",AND(OR(AND($E31>=G225L,$E31<G225U),AND($F31>=G225L,$F31<G225U),AND($G31>=G225L,$G31<G225U)),$C31<=G225AL),"X",10<11,"") ->  | I67: =_xlfn.IFS(COUNT($E$7:$G31)<=hcpma,"",AND(OR(AND($E31>=G250L,$E31<G250U),AND($F31>=G250L,$F31<G250U),AND($G31>=G250L,$G31<G250U)),$C31<=G250AL),"X",10<11,"") ->  | J67: =_xlfn.IFS(COUNT($E$7:$G31)<=hcpma,"",AND(OR(AND($E31>=G275L,$E31<=G275U),AND($F31>=G275L,$F31<=G275U),AND($G31>=G275L,$G31<=G275U)),$C31<=G275AL),"X",10<11,"") ->  | K67: =_xlfn.IFS(COUNT(E31:G31)<=0,"",AND(COUNT($E$7:$G31)>=hcpma,OR(E31>=(C31+G75OV),F31>=(C31+G75OV),G31>=(C31+G75OV))),"X",10<11,"") ->  | M67: =_xlfn.IFS(COUNT($E$7:$G31)<=hcpma,"",AND( AND($I31>=S300L,$I31<S300U), $C31<=S300AL),"X",10<11,"") ->  | N67: =_xlfn.IFS(COUNT($E$7:$G31)<=hcpma,"",AND( AND($I31>=S400L,$I31<S400U), $C31<=S400AL),"X",10<11,"") ->  | O67: =_xlfn.IFS(COUNT($E$7:$G31)<=hcpma,"",AND( AND($I31>=S500L,$I31<S500U), $C31<=S500AL),"X",10<11,"") ->  | R67: =_xlfn.IFS(COUNT($E$7:$G31)<=hcpma,"",AND( AND($I31>=S600L,$I31<S600U), $C31<=S600AL),"X",10<11,"") ->  | S67: =_xlfn.IFS(COUNT($E$7:$G31)<=hcpma,"",AND( AND($I31>=S700L,$I31<S700U), $C31<=S700AL),"X",10<11,"") ->  | T67: =_xlfn.IFS(COUNT($E$7:$G31)<=hcpma,"",SUM($E31:$G31)<1,"",$I31>=3*$C31+S140ov,"X",10<11,"") -> 
A68: 26 | B68: 2024-03-13 | C68: =_xlfn.IFS(COUNT($E$7:$G32)<=hcpma,"",AND(OR(AND($E32>=G125L,$E32<G125U),AND($F32>=G125L,$F32<G125U),AND($G32>=G125L,$G32<G125U)),$C32<=G125AL),"X",10<11,"") ->  | D68: =_xlfn.IFS(COUNT($E$7:$G32)<=hcpma,"",AND(OR(AND($E32>=G150L,$E32<G150U),AND($F32>=G150L,$F32<G150U),AND($G32>=G150L,$G32<G150U)),$C32<=G150AL),"X",10<11,"") ->  | E68: =_xlfn.IFS(COUNT($E$7:$G32)<=hcpma,"",AND(OR(AND($E32>=G175L,$E32<G175U),AND($F32>=G175L,$F32<G175U),AND($G32>=G175L,$G32<G175U)),$C32<=G175AL),"X",10<11,"") ->  | F68: =_xlfn.IFS(COUNT($E$7:$G32)<=hcpma,"",AND(OR(AND($E32>=G200L,$E32<G200U),AND($F32>=G200L,$F32<G200U),AND($G32>=G200L,$G32<G200U)),$C32<=G200AL),"X",10<11,"") ->  | G68: =_xlfn.IFS(COUNT($E$7:$G32)<=hcpma,"",AND(OR(AND($E32>=G225L,$E32<G225U),AND($F32>=G225L,$F32<G225U),AND($G32>=G225L,$G32<G225U)),$C32<=G225AL),"X",10<11,"") ->  | I68: =_xlfn.IFS(COUNT($E$7:$G32)<=hcpma,"",AND(OR(AND($E32>=G250L,$E32<G250U),AND($F32>=G250L,$F32<G250U),AND($G32>=G250L,$G32<G250U)),$C32<=G250AL),"X",10<11,"") ->  | J68: =_xlfn.IFS(COUNT($E$7:$G32)<=hcpma,"",AND(OR(AND($E32>=G275L,$E32<=G275U),AND($F32>=G275L,$F32<=G275U),AND($G32>=G275L,$G32<=G275U)),$C32<=G275AL),"X",10<11,"") ->  | K68: =_xlfn.IFS(COUNT(E32:G32)<=0,"",AND(COUNT($E$7:$G32)>=hcpma,OR(E32>=(C32+G75OV),F32>=(C32+G75OV),G32>=(C32+G75OV))),"X",10<11,"") ->  | M68: =_xlfn.IFS(COUNT($E$7:$G32)<=hcpma,"",AND( AND($I32>=S300L,$I32<S300U), $C32<=S300AL),"X",10<11,"") ->  | N68: =_xlfn.IFS(COUNT($E$7:$G32)<=hcpma,"",AND( AND($I32>=S400L,$I32<S400U), $C32<=S400AL),"X",10<11,"") ->  | O68: =_xlfn.IFS(COUNT($E$7:$G32)<=hcpma,"",AND( AND($I32>=S500L,$I32<S500U), $C32<=S500AL),"X",10<11,"") ->  | R68: =_xlfn.IFS(COUNT($E$7:$G32)<=hcpma,"",AND( AND($I32>=S600L,$I32<S600U), $C32<=S600AL),"X",10<11,"") ->  | S68: =_xlfn.IFS(COUNT($E$7:$G32)<=hcpma,"",AND( AND($I32>=S700L,$I32<S700U), $C32<=S700AL),"X",10<11,"") ->  | T68: =_xlfn.IFS(COUNT($E$7:$G32)<=hcpma,"",SUM($E32:$G32)<1,"",$I32>=3*$C32+S140ov,"X",10<11,"") -> 
A69: 27 | B69: 2024-03-20 | C69: =_xlfn.IFS(COUNT($E$7:$G33)<=hcpma,"",AND(OR(AND($E33>=G125L,$E33<G125U),AND($F33>=G125L,$F33<G125U),AND($G33>=G125L,$G33<G125U)),$C33<=G125AL),"X",10<11,"") ->  | D69: =_xlfn.IFS(COUNT($E$7:$G33)<=hcpma,"",AND(OR(AND($E33>=G150L,$E33<G150U),AND($F33>=G150L,$F33<G150U),AND($G33>=G150L,$G33<G150U)),$C33<=G150AL),"X",10<11,"") ->  | E69: =_xlfn.IFS(COUNT($E$7:$G33)<=hcpma,"",AND(OR(AND($E33>=G175L,$E33<G175U),AND($F33>=G175L,$F33<G175U),AND($G33>=G175L,$G33<G175U)),$C33<=G175AL),"X",10<11,"") ->  | F69: =_xlfn.IFS(COUNT($E$7:$G33)<=hcpma,"",AND(OR(AND($E33>=G200L,$E33<G200U),AND($F33>=G200L,$F33<G200U),AND($G33>=G200L,$G33<G200U)),$C33<=G200AL),"X",10<11,"") ->  | G69: =_xlfn.IFS(COUNT($E$7:$G33)<=hcpma,"",AND(OR(AND($E33>=G225L,$E33<G225U),AND($F33>=G225L,$F33<G225U),AND($G33>=G225L,$G33<G225U)),$C33<=G225AL),"X",10<11,"") ->  | I69: =_xlfn.IFS(COUNT($E$7:$G33)<=hcpma,"",AND(OR(AND($E33>=G250L,$E33<G250U),AND($F33>=G250L,$F33<G250U),AND($G33>=G250L,$G33<G250U)),$C33<=G250AL),"X",10<11,"") ->  | J69: =_xlfn.IFS(COUNT($E$7:$G33)<=hcpma,"",AND(OR(AND($E33>=G275L,$E33<=G275U),AND($F33>=G275L,$F33<=G275U),AND($G33>=G275L,$G33<=G275U)),$C33<=G275AL),"X",10<11,"") ->  | K69: =_xlfn.IFS(COUNT(E33:G33)<=0,"",AND(COUNT($E$7:$G33)>=hcpma,OR(E33>=(C33+G75OV),F33>=(C33+G75OV),G33>=(C33+G75OV))),"X",10<11,"") ->  | M69: =_xlfn.IFS(COUNT($E$7:$G33)<=hcpma,"",AND( AND($I33>=S300L,$I33<S300U), $C33<=S300AL),"X",10<11,"") ->  | N69: =_xlfn.IFS(COUNT($E$7:$G33)<=hcpma,"",AND( AND($I33>=S400L,$I33<S400U), $C33<=S400AL),"X",10<11,"") ->  | O69: =_xlfn.IFS(COUNT($E$7:$G33)<=hcpma,"",AND( AND($I33>=S500L,$I33<S500U), $C33<=S500AL),"X",10<11,"") ->  | R69: =_xlfn.IFS(COUNT($E$7:$G33)<=hcpma,"",AND( AND($I33>=S600L,$I33<S600U), $C33<=S600AL),"X",10<11,"") ->  | S69: =_xlfn.IFS(COUNT($E$7:$G33)<=hcpma,"",AND( AND($I33>=S700L,$I33<S700U), $C33<=S700AL),"X",10<11,"") ->  | T69: =_xlfn.IFS(COUNT($E$7:$G33)<=hcpma,"",SUM($E33:$G33)<1,"",$I33>=3*$C33+S140ov,"X",10<11,"") -> 
A70: 28 | B70: 2024-03-27 | C70: =_xlfn.IFS(COUNT($E$7:$G34)<=hcpma,"",AND(OR(AND($E34>=G125L,$E34<G125U),AND($F34>=G125L,$F34<G125U),AND($G34>=G125L,$G34<G125U)),$C34<=G125AL),"X",10<11,"") ->  | D70: =_xlfn.IFS(COUNT($E$7:$G34)<=hcpma,"",AND(OR(AND($E34>=G150L,$E34<G150U),AND($F34>=G150L,$F34<G150U),AND($G34>=G150L,$G34<G150U)),$C34<=G150AL),"X",10<11,"") ->  | E70: =_xlfn.IFS(COUNT($E$7:$G34)<=hcpma,"",AND(OR(AND($E34>=G175L,$E34<G175U),AND($F34>=G175L,$F34<G175U),AND($G34>=G175L,$G34<G175U)),$C34<=G175AL),"X",10<11,"") ->  | F70: =_xlfn.IFS(COUNT($E$7:$G34)<=hcpma,"",AND(OR(AND($E34>=G200L,$E34<G200U),AND($F34>=G200L,$F34<G200U),AND($G34>=G200L,$G34<G200U)),$C34<=G200AL),"X",10<11,"") ->  | G70: =_xlfn.IFS(COUNT($E$7:$G34)<=hcpma,"",AND(OR(AND($E34>=G225L,$E34<G225U),AND($F34>=G225L,$F34<G225U),AND($G34>=G225L,$G34<G225U)),$C34<=G225AL),"X",10<11,"") ->  | I70: =_xlfn.IFS(COUNT($E$7:$G34)<=hcpma,"",AND(OR(AND($E34>=G250L,$E34<G250U),AND($F34>=G250L,$F34<G250U),AND($G34>=G250L,$G34<G250U)),$C34<=G250AL),"X",10<11,"") ->  | J70: =_xlfn.IFS(COUNT($E$7:$G34)<=hcpma,"",AND(OR(AND($E34>=G275L,$E34<=G275U),AND($F34>=G275L,$F34<=G275U),AND($G34>=G275L,$G34<=G275U)),$C34<=G275AL),"X",10<11,"") ->  | K70: =_xlfn.IFS(COUNT(E34:G34)<=0,"",AND(COUNT($E$7:$G34)>=hcpma,OR(E34>=(C34+G75OV),F34>=(C34+G75OV),G34>=(C34+G75OV))),"X",10<11,"") ->  | M70: =_xlfn.IFS(COUNT($E$7:$G34)<=hcpma,"",AND( AND($I34>=S300L,$I34<S300U), $C34<=S300AL),"X",10<11,"") ->  | N70: =_xlfn.IFS(COUNT($E$7:$G34)<=hcpma,"",AND( AND($I34>=S400L,$I34<S400U), $C34<=S400AL),"X",10<11,"") ->  | O70: =_xlfn.IFS(COUNT($E$7:$G34)<=hcpma,"",AND( AND($I34>=S500L,$I34<S500U), $C34<=S500AL),"X",10<11,"") ->  | R70: =_xlfn.IFS(COUNT($E$7:$G34)<=hcpma,"",AND( AND($I34>=S600L,$I34<S600U), $C34<=S600AL),"X",10<11,"") ->  | S70: =_xlfn.IFS(COUNT($E$7:$G34)<=hcpma,"",AND( AND($I34>=S700L,$I34<S700U), $C34<=S700AL),"X",10<11,"") ->  | T70: =_xlfn.IFS(COUNT($E$7:$G34)<=hcpma,"",SUM($E34:$G34)<1,"",$I34>=3*$C34+S140ov,"X",10<11,"") -> 
A71: 29 | B71: 2024-04-03 | C71: =_xlfn.IFS(COUNT($E$7:$G35)<=hcpma,"",AND(OR(AND($E35>=G125L,$E35<G125U),AND($F35>=G125L,$F35<G125U),AND($G35>=G125L,$G35<G125U)),$C35<=G125AL),"X",10<11,"") ->  | D71: =_xlfn.IFS(COUNT($E$7:$G35)<=hcpma,"",AND(OR(AND($E35>=G150L,$E35<G150U),AND($F35>=G150L,$F35<G150U),AND($G35>=G150L,$G35<G150U)),$C35<=G150AL),"X",10<11,"") ->  | E71: =_xlfn.IFS(COUNT($E$7:$G35)<=hcpma,"",AND(OR(AND($E35>=G175L,$E35<G175U),AND($F35>=G175L,$F35<G175U),AND($G35>=G175L,$G35<G175U)),$C35<=G175AL),"X",10<11,"") ->  | F71: =_xlfn.IFS(COUNT($E$7:$G35)<=hcpma,"",AND(OR(AND($E35>=G200L,$E35<G200U),AND($F35>=G200L,$F35<G200U),AND($G35>=G200L,$G35<G200U)),$C35<=G200AL),"X",10<11,"") ->  | G71: =_xlfn.IFS(COUNT($E$7:$G35)<=hcpma,"",AND(OR(AND($E35>=G225L,$E35<G225U),AND($F35>=G225L,$F35<G225U),AND($G35>=G225L,$G35<G225U)),$C35<=G225AL),"X",10<11,"") ->  | I71: =_xlfn.IFS(COUNT($E$7:$G35)<=hcpma,"",AND(OR(AND($E35>=G250L,$E35<G250U),AND($F35>=G250L,$F35<G250U),AND($G35>=G250L,$G35<G250U)),$C35<=G250AL),"X",10<11,"") ->  | J71: =_xlfn.IFS(COUNT($E$7:$G35)<=hcpma,"",AND(OR(AND($E35>=G275L,$E35<=G275U),AND($F35>=G275L,$F35<=G275U),AND($G35>=G275L,$G35<=G275U)),$C35<=G275AL),"X",10<11,"") ->  | K71: =_xlfn.IFS(COUNT(E35:G35)<=0,"",AND(COUNT($E$7:$G35)>=hcpma,OR(E35>=(C35+G75OV),F35>=(C35+G75OV),G35>=(C35+G75OV))),"X",10<11,"") ->  | M71: =_xlfn.IFS(COUNT($E$7:$G35)<=hcpma,"",AND( AND($I35>=S300L,$I35<S300U), $C35<=S300AL),"X",10<11,"") ->  | N71: =_xlfn.IFS(COUNT($E$7:$G35)<=hcpma,"",AND( AND($I35>=S400L,$I35<S400U), $C35<=S400AL),"X",10<11,"") ->  | O71: =_xlfn.IFS(COUNT($E$7:$G35)<=hcpma,"",AND( AND($I35>=S500L,$I35<S500U), $C35<=S500AL),"X",10<11,"") ->  | R71: =_xlfn.IFS(COUNT($E$7:$G35)<=hcpma,"",AND( AND($I35>=S600L,$I35<S600U), $C35<=S600AL),"X",10<11,"") ->  | S71: =_xlfn.IFS(COUNT($E$7:$G35)<=hcpma,"",AND( AND($I35>=S700L,$I35<S700U), $C35<=S700AL),"X",10<11,"") ->  | T71: =_xlfn.IFS(COUNT($E$7:$G35)<=hcpma,"",SUM($E35:$G35)<1,"",$I35>=3*$C35+S140ov,"X",10<11,"") -> 
A72: 30 | B72: 2024-04-10 | C72: =_xlfn.IFS(COUNT($E$7:$G36)<=hcpma,"",AND(OR(AND($E36>=G125L,$E36<G125U),AND($F36>=G125L,$F36<G125U),AND($G36>=G125L,$G36<G125U)),$C36<=G125AL),"X",10<11,"") ->  | D72: =_xlfn.IFS(COUNT($E$7:$G36)<=hcpma,"",AND(OR(AND($E36>=G150L,$E36<G150U),AND($F36>=G150L,$F36<G150U),AND($G36>=G150L,$G36<G150U)),$C36<=G150AL),"X",10<11,"") ->  | E72: =_xlfn.IFS(COUNT($E$7:$G36)<=hcpma,"",AND(OR(AND($E36>=G175L,$E36<G175U),AND($F36>=G175L,$F36<G175U),AND($G36>=G175L,$G36<G175U)),$C36<=G175AL),"X",10<11,"") ->  | F72: =_xlfn.IFS(COUNT($E$7:$G36)<=hcpma,"",AND(OR(AND($E36>=G200L,$E36<G200U),AND($F36>=G200L,$F36<G200U),AND($G36>=G200L,$G36<G200U)),$C36<=G200AL),"X",10<11,"") ->  | G72: =_xlfn.IFS(COUNT($E$7:$G36)<=hcpma,"",AND(OR(AND($E36>=G225L,$E36<G225U),AND($F36>=G225L,$F36<G225U),AND($G36>=G225L,$G36<G225U)),$C36<=G225AL),"X",10<11,"") ->  | I72: =_xlfn.IFS(COUNT($E$7:$G36)<=hcpma,"",AND(OR(AND($E36>=G250L,$E36<G250U),AND($F36>=G250L,$F36<G250U),AND($G36>=G250L,$G36<G250U)),$C36<=G250AL),"X",10<11,"") ->  | J72: =_xlfn.IFS(COUNT($E$7:$G36)<=hcpma,"",AND(OR(AND($E36>=G275L,$E36<=G275U),AND($F36>=G275L,$F36<=G275U),AND($G36>=G275L,$G36<=G275U)),$C36<=G275AL),"X",10<11,"") ->  | K72: =_xlfn.IFS(COUNT(E36:G36)<=0,"",AND(COUNT($E$7:$G36)>=hcpma,OR(E36>=(C36+G75OV),F36>=(C36+G75OV),G36>=(C36+G75OV))),"X",10<11,"") ->  | M72: =_xlfn.IFS(COUNT($E$7:$G36)<=hcpma,"",AND( AND($I36>=S300L,$I36<S300U), $C36<=S300AL),"X",10<11,"") ->  | N72: =_xlfn.IFS(COUNT($E$7:$G36)<=hcpma,"",AND( AND($I36>=S400L,$I36<S400U), $C36<=S400AL),"X",10<11,"") ->  | O72: =_xlfn.IFS(COUNT($E$7:$G36)<=hcpma,"",AND( AND($I36>=S500L,$I36<S500U), $C36<=S500AL),"X",10<11,"") ->  | R72: =_xlfn.IFS(COUNT($E$7:$G36)<=hcpma,"",AND( AND($I36>=S600L,$I36<S600U), $C36<=S600AL),"X",10<11,"") ->  | S72: =_xlfn.IFS(COUNT($E$7:$G36)<=hcpma,"",AND( AND($I36>=S700L,$I36<S700U), $C36<=S700AL),"X",10<11,"") ->  | T72: =_xlfn.IFS(COUNT($E$7:$G36)<=hcpma,"",SUM($E36:$G36)<1,"",$I36>=3*$C36+S140ov,"X",10<11,"") -> 
M73: =_xlfn.IFS(COUNT($E$7:$G37)<=hcpma,"",AND( AND($I37>=S300L,$I37<S300U), $I37<=S300AL),"X",10<11,"") -> 

Sheet Jake Dorfman
F1: =Title1 -> Wednesday Fun Fours 2023-2024
A2: wk# | B2: =MAX(Z7:Z36) -> 30 | O2: 6 Over week: | S2: =IF(MIN(AA7:AA36)<1,"",MIN(AA7:AA36)) -> 21 | AB2: Note:
A3: Name: | B3: Jake Dorfman | G3: Perfect Attendance: | J3: =_xlfn.IFS(MAX(PA)>B2,"NO",SUM(Q7:Q36)=B2,"YES",SUM(Q7:Q36)<>B2,"NO") -> NO | K3: =_xlfn.IFS(MAX(PA)>B2,"",AND(SUM(Q7:Q36)<30,SUM(Q7:Q36)=B2),"So Far",SUM(Q7:Q36)=30,"Good",SUM(Q7:Q36)<>B2,"") ->  | AB3: For Games scores, Copy/Paste; Don't cut/paste games
A4: Bk Avg: | W4: Hi.series> | X4: =MAX(I7:I36) -> 604
C5: bk or | D5: old | I5: wky | J5: wky | K5: Hcp | L5: hcp | O5: new | P5: start | R5: high | S5: high | T5: high hcp | U5: high hcp | W5: hi.game> | X5: =MAX(E7:G36) -> 237 | AB5: Only write/input in the rectangled areas
A6: wk no. | C6: old avg | D6: hdcp | E6: -1- | F6: -2- | G6: -3- | I6: total | J6: avg | K6: total | L6: t2 hc | M6: Pins | N6: Gms | O6: avg | P6: week | Q6: startB | R6: series | S6: game | T6: series | U6: game | W6: h.hcp.g> | X6: =MAX(W7:Y36) -> 309 | Z6: wk#
A7: 1 | B7: =Date1 -> 2023-09-06 | C7: =_xlfn.IFS(Q7<>1,"",AND($B$4>=1,COUNT($E$7:G7)<=bkng),$B$4,P7=1,TRUNC(AVERAGE(E7:G7),0),COUNT($Q$7:Q7)=2,TRUNC(AVERAGE($E6:G$7),0),COUNT($Q$7:Q7)>=3,TRUNC(AVERAGE($E6:G$7),0)) -> 98 | D7: =_xlfn.IFS(Q7<>1,"",Q7=1,TRUNC((HCPB-C7)*HCPPC)) -> 118 | E7: 85 | F7: 108 | G7: 102 | I7: =IF(Q7=1,SUM(E7:G7),"") -> 295 | J7: =IF(Q7=1,TRUNC(AVERAGE(E7:G7),0),"") -> 98 | K7: =_xlfn.IFS(Q7<>1,"",Q7=1,I7+(3*D7)) -> 649 | L7: =_xlfn.IFS(Q7<>1,"",COUNT($E$7:G7)<=hcpng,"",COUNT($E$7:G7)>=hcpng,K7) ->  | M7: =_xlfn.IFS(Q7=1,SUM($E$7:G7),Q7<>1,"") -> 295 | N7: =_xlfn.IFS(Q7=1,COUNT($E$7:G7),Q7<>1,"") -> 3 | O7: =IF(Q7=1,ROUND(AVERAGE($E$7:G7),2),"") -> 98.33 | P7: =_xlfn.IFS(Q7<>1,"",SUM($Q$7:Q7)=1,1,SUM($Q$7:Q7)<>1,"") -> 1 | Q7: =IF(MAX(E7:G7)<1,"",1) -> 1 | R7: =IF(I7=$X$4,I7,"") ->  | S7: =_xlfn.IFS(E7=$X$5,E7,F7=$X$5,F7,G7=$X$5,G7,$A$7=1,"") ->  | T7: =IF(L7=MAX($L$7:$L$36),L7,"") ->  | U7: =_xlfn.IFS(W7=$X$6,W7,X7=$X$6,X7,Y7=$X$6,Y7,$A$7=1,"") ->  | W7: =_xlfn.IFS(AND(Q7=1,COUNT($E$7:G7)>hcpng),E7+D7,$A$7=1," ") ->  | X7: =_xlfn.IFS(AND(Q7=1,COUNT($E$7:G7)>hcpng),F7+D7,$A$7=1," ") ->  | Y7: =_xlfn.IFS(AND(Q7=1,COUNT($E$7:G7)>hcpng),G7+D7,$A$7=1," ") ->  | Z7: =IF(Q7=1,A7,0) -> 1 | AA7: =_xlfn.IFS(COUNTIFS(H7,"#",H6,"#"),A6,COUNTIFS(H7,2,H6,"#"),A6,$A$7=1,"") ->  | AB7: Edit page Title; on the UTL1 sheet
A8: 2 | B8: 2023-09-13 | C8: =_xlfn.IFS(Q8<>1,"",AND($B$4>=1,COUNT($E$7:G8)<=bkng),$B$4,P8=1,TRUNC(AVERAGE(E8:G8),0),COUNT($Q$7:Q8)=2,TRUNC(AVERAGE($E7:G$7),0),COUNT($Q$7:Q8)>=3,TRUNC(AVERAGE($E7:G$7),0)) -> 98 | D8: =_xlfn.IFS(Q8<>1,"",Q8=1,TRUNC((HCPB-C8)*HCPPC)) -> 118 | E8: 143 | F8: 121 | G8: 141 | H8: =_xlfn.IFS(COUNT(E8:G8)<1,"",AND(E8>C8,F8>C8,G8>C8,COUNT($E$7:G8)>sixng),"#",AND(E8>C7,F8>C7,G8>C7,COUNT($E$7:G8)>sixng,COUNTIF(H7,"#")=1),"2",$A$7=1,"") ->  | I8: =IF(Q8=1,SUM(E8:G8),"") -> 405 | J8: =IF(Q8=1,TRUNC(AVERAGE(E8:G8),0),"") -> 135 | K8: =_xlfn.IFS(Q8<>1,"",Q8=1,I8+(3*D8)) -> 759 | L8: =_xlfn.IFS(Q8<>1,"",COUNT($E$7:G8)<=hcpng,"",COUNT($E$7:G8)>=hcpng,K8) ->  | M8: =_xlfn.IFS(Q8=1,SUM($E$7:G8),Q8<>1,"") -> 700 | N8: =_xlfn.IFS(Q8=1,COUNT($E$7:G8),Q8<>1,"") -> 6 | O8: =IF(Q8=1,ROUND(AVERAGE($E$7:G8),2),"") -> 116.67 | P8: =_xlfn.IFS(Q8<>1,"",SUM($Q$7:Q8)=1,1,SUM($Q$7:Q8)<>1,"") ->  | Q8: =IF(MAX(E8:G8)<1,"",1) -> 1 | R8: =IF(I8=$X$4,I8,"") ->  | S8: =_xlfn.IFS(E8=$X$5,E8,F8=$X$5,F8,G8=$X$5,G8,$A$7=1,"") ->  | T8: =IF(L8=MAX($L$7:$L$36),L8,"") ->  | U8: =_xlfn.IFS(W8=$X$6,W8,X8=$X$6,X8,Y8=$X$6,Y8,$A$7=1,"") ->  | W8: =_xlfn.IFS(AND(Q8=1,COUNT($E$7:G8)>hcpng),E8+D8,$A$7=1," ") ->  | X8: =_xlfn.IFS(AND(Q8=1,COUNT($E$7:G8)>hcpng),F8+D8,$A$7=1," ") ->  | Y8: =_xlfn.IFS(AND(Q8=1,COUNT($E$7:G8)>hcpng),G8+D8,$A$7=1," ") ->  | Z8: =IF(Q8=1,A8,0) -> 2 | AA8: =_xlfn.IFS(COUNTIFS(H8,"#",H7,"#"),A7,COUNTIFS(H8,2,H7,"#"),A7,$A$7=1,"") -> 
A9: 3 | B9: 2023-09-20 | C9: =_xlfn.IFS(Q9<>1,"",AND($B$4>=1,COUNT($E$7:G9)<=bkng),$B$4,P9=1,TRUNC(AVERAGE(E9:G9),0),COUNT($Q$7:Q9)=2,TRUNC(AVERAGE($E$7:G8),0),COUNT($Q$7:Q9)>=3,TRUNC(AVERAGE($E$7:G8),0)) -> 116 | D9: =_xlfn.IFS(Q9<>1,"",Q9=1,TRUNC((HCPB-C9)*HCPPC)) -> 102 | E9: 175 | F9: 153 | G9: 134 | H9: =_xlfn.IFS(COUNT(E9:G9)<1,"",AND(E9>C9,F9>C9,G9>C9,COUNT($E$7:G9)>sixng),"#",AND(E9>C8,F9>C8,G9>C8,COUNT($E$7:G9)>sixng,COUNTIF(H8,"#")=1),"2",$A$7=1,"") ->  | I9: 462 | J9: 154 | K9: =_xlfn.IFS(Q9<>1,"",Q9=1,I9+(3*D9)) -> 768 | L9: =_xlfn.IFS(Q9<>1,"",COUNT($E$7:G9)<=hcpng,"",COUNT($E$7:G9)>=hcpng,K9) ->  | M9: =_xlfn.IFS(Q9=1,SUM($E$7:G9),Q9<>1,"") -> 1162 | N9: =_xlfn.IFS(Q9=1,COUNT($E$7:G9),Q9<>1,"") -> 9 | O9: =IF(Q9=1,ROUND(AVERAGE($E$7:G9),2),"") -> 129.11 | P9: =_xlfn.IFS(Q9<>1,"",SUM($Q$7:Q9)=1,1,SUM($Q$7:Q9)<>1,"") ->  | Q9: =IF(MAX(E9:G9)<1,"",1) -> 1 | S9: =_xlfn.IFS(E9=$X$5,E9,F9=$X$5,F9,G9=$X$5,G9,$A$7=1,"") ->  | U9: =_xlfn.IFS(W9=$X$6,W9,X9=$X$6,X9,Y9=$X$6,Y9,$A$7=1,"") ->  | W9: =_xlfn.IFS(AND(Q9=1,COUNT($E$7:G9)>hcpng),E9+D9,$A$7=1," ") ->  | X9: =_xlfn.IFS(AND(Q9=1,COUNT($E$7:G9)>hcpng),F9+D9,$A$7=1," ") ->  | Y9: =_xlfn.IFS(AND(Q9=1,COUNT($E$7:G9)>hcpng),G9+D9,$A$7=1," ") ->  | Z9: 3 | AA9: =_xlfn.IFS(COUNTIFS(H9,"#",H8,"#"),A8,COUNTIFS(H9,2,H8,"#"),A8,$A$7=1,"") ->  | AB9: Make sure the current week is selected on the UTL1 sheet
A10: 4 | B10: 2023-09-27 | C10: =_xlfn.IFS(Q10<>1,"",AND($B$4>=1,COUNT($E$7:G10)<=bkng),$B$4,P10=1,TRUNC(AVERAGE(E10:G10),0),COUNT($Q$7:Q10)=2,TRUNC(AVERAGE($E$7:G9),0),COUNT($Q$7:Q10)>=3,TRUNC(AVERAGE($E$7:G9),0)) ->  | D10: =_xlfn.IFS(Q10<>1,"",Q10=1,TRUNC((HCPB-C10)*HCPPC)) ->  | H10: =_xlfn.IFS(COUNT(E10:G10)<1,"",AND(E10>C10,F10>C10,G10>C10,COUNT($E$7:G10)>sixng),"#",AND(E10>C9,F10>C9,G10>C9,COUNT($E$7:G10)>sixng,COUNTIF(H9,"#")=1),"2",$A$7=1,"") ->  | K10: =_xlfn.IFS(Q10<>1,"",Q10=1,I10+(3*D10)) ->  | L10: =_xlfn.IFS(Q10<>1,"",COUNT($E$7:G10)<=hcpng,"",COUNT($E$7:G10)>=hcpng,K10) ->  | M10: =_xlfn.IFS(Q10=1,SUM($E$7:G10),Q10<>1,"") ->  | N10: =_xlfn.IFS(Q10=1,COUNT($E$7:G10),Q10<>1,"") ->  | O10: =IF(Q10=1,ROUND(AVERAGE($E$7:G10),2),"") ->  | P10: =_xlfn.IFS(Q10<>1,"",SUM($Q$7:Q10)=1,1,SUM($Q$7:Q10)<>1,"") ->  | Q10: =IF(MAX(E10:G10)<1,"",1) ->  | S10: =_xlfn.IFS(E10=$X$5,E10,F10=$X$5,F10,G10=$X$5,G10,$A$7=1,"") ->  | U10: =_xlfn.IFS(W10=$X$6,W10,X10=$X$6,X10,Y10=$X$6,Y10,$A$7=1,"") ->  | W10: =_xlfn.IFS(AND(Q10=1,COUNT($E$7:G10)>hcpng),E10+D10,$A$7=1," ") ->  | X10: =_xlfn.IFS(AND(Q10=1,COUNT($E$7:G10)>hcpng),F10+D10,$A$7=1," ") ->  | Y10: =_xlfn.IFS(AND(Q10=1,COUNT($E$7:G10)>hcpng),G10+D10,$A$7=1," ") ->  | Z10: 0 | AA10: =_xlfn.IFS(COUNTIFS(H10,"#",H9,"#"),A9,COUNTIFS(H10,2,H9,"#"),A9,$A$7=1,"") -> 
A11: 5 | B11: 2023-10-04 | C11: =_xlfn.IFS(Q11<>1,"",AND($B$4>=1,COUNT($E$7:G11)<=bkng),$B$4,P11=1,TRUNC(AVERAGE(E11:G11),0),COUNT($Q$7:Q11)=2,TRUNC(AVERAGE($E$7:G10),0),COUNT($Q$7:Q11)>=3,TRUNC(AVERAGE($E$7:G10),0)) -> 129 | D11: =_xlfn.IFS(Q11<>1,"",Q11=1,TRUNC((HCPB-C11)*HCPPC)) -> 90 | E11: 157 | F11: 131 | G11: 119 | H11: =_xlfn.IFS(COUNT(E11:G11)<1,"",AND(E11>C11,F11>C11,G11>C11,COUNT($E$7:G11)>sixng),"#",AND(E11>C10,F11>C10,G11>C10,COUNT($E$7:G11)>sixng,COUNTIF(H10,"#")=1),"2",$A$7=1,"") ->  | I11: 407 | J11: 135 | K11: =_xlfn.IFS(Q11<>1,"",Q11=1,I11+(3*D11)) -> 677 | L11: =_xlfn.IFS(Q11<>1,"",COUNT($E$7:G11)<=hcpng,"",COUNT($E$7:G11)>=hcpng,K11) -> 677 | M11: =_xlfn.IFS(Q11=1,SUM($E$7:G11),Q11<>1,"") -> 1569 | N11: =_xlfn.IFS(Q11=1,COUNT($E$7:G11),Q11<>1,"") -> 12 | O11: =IF(Q11=1,ROUND(AVERAGE($E$7:G11),2),"") -> 130.75 | P11: =_xlfn.IFS(Q11<>1,"",SUM($Q$7:Q11)=1,1,SUM($Q$7:Q11)<>1,"") ->  | Q11: 1 | S11: =_xlfn.IFS(E11=$X$5,E11,F11=$X$5,F11,G11=$X$5,G11,$A$7=1,"") ->  | U11: =_xlfn.IFS(W11=$X$6,W11,X11=$X$6,X11,Y11=$X$6,Y11,$A$7=1,"") ->  | W11: =_xlfn.IFS(AND(Q11=1,COUNT($E$7:G11)>hcpng),E11+D11,$A$7=1," ") -> 247 | X11: =_xlfn.IFS(AND(Q11=1,COUNT($E$7:G11)>hcpng),F11+D11,$A$7=1," ") -> 221 | Y11: =_xlfn.IFS(AND(Q11=1,COUNT($E$7:G11)>hcpng),G11+D11,$A$7=1," ") -> 209 | Z11: 5 | AA11: =_xlfn.IFS(COUNTIFS(H11,"#",H10,"#"),A10,COUNTIFS(H11,2,H10,"#"),A10,$A$7=1,"") ->  | AB11: Define the following items using the UTL1 sheet:
A12: 6 | B12: 2023-10-11 | C12: =_xlfn.IFS(Q12<>1,"",AND($B$4>=1,COUNT($E$7:G12)<=bkng),$B$4,P12=1,TRUNC(AVERAGE(E12:G12),0),COUNT($Q$7:Q12)=2,TRUNC(AVERAGE($E$7:G11),0),COUNT($Q$7:Q12)>=3,TRUNC(AVERAGE($E$7:G11),0)) ->  | D12: =_xlfn.IFS(Q12<>1,"",Q12=1,TRUNC((HCPB-C12)*HCPPC)) ->  | H12: =_xlfn.IFS(COUNT(E12:G12)<1,"",AND(E12>C12,F12>C12,G12>C12,COUNT($E$7:G12)>sixng),"#",AND(E12>C11,F12>C11,G12>C11,COUNT($E$7:G12)>sixng,COUNTIF(H11,"#")=1),"2",$A$7=1,"") ->  | K12: =_xlfn.IFS(Q12<>1,"",Q12=1,I12+(3*D12)) ->  | L12: =_xlfn.IFS(Q12<>1,"",COUNT($E$7:G12)<=hcpng,"",COUNT($E$7:G12)>=hcpng,K12) ->  | M12: =_xlfn.IFS(Q12=1,SUM($E$7:G12),Q12<>1,"") ->  | N12: =_xlfn.IFS(Q12=1,COUNT($E$7:G12),Q12<>1,"") ->  | O12: =IF(Q12=1,ROUND(AVERAGE($E$7:G12),2),"") ->  | P12: =_xlfn.IFS(Q12<>1,"",SUM($Q$7:Q12)=1,1,SUM($Q$7:Q12)<>1,"") ->  | S12: =_xlfn.IFS(E12=$X$5,E12,F12=$X$5,F12,G12=$X$5,G12,$A$7=1,"") ->  | U12: =_xlfn.IFS(W12=$X$6,W12,X12=$X$6,X12,Y12=$X$6,Y12,$A$7=1,"") ->  | W12: =_xlfn.IFS(AND(Q12=1,COUNT($E$7:G12)>hcpng),E12+D12,$A$7=1," ") ->  | X12: =_xlfn.IFS(AND(Q12=1,COUNT($E$7:G12)>hcpng),F12+D12,$A$7=1," ") ->  | Y12: =_xlfn.IFS(AND(Q12=1,COUNT($E$7:G12)>hcpng),G12+D12,$A$7=1," ") ->  | Z12: 0 | AA12: =_xlfn.IFS(COUNTIFS(H12,"#",H11,"#"),A11,COUNTIFS(H12,2,H11,"#"),A11,$A$7=1,"") ->  | AB12: 6 over after number of games
A13: 7 | B13: 2023-10-18 | C13: =_xlfn.IFS(Q13<>1,"",AND($B$4>=1,COUNT($E$7:G13)<=bkng),$B$4,P13=1,TRUNC(AVERAGE(E13:G13),0),COUNT($Q$7:Q13)=2,TRUNC(AVERAGE($E$7:G12),0),COUNT($Q$7:Q13)>=3,TRUNC(AVERAGE($E$7:G12),0)) -> 130 | D13: =_xlfn.IFS(Q13<>1,"",Q13=1,TRUNC((HCPB-C13)*HCPPC)) -> 90 | E13: 196 | F13: 151 | G13: 196 | H13: =_xlfn.IFS(COUNT(E13:G13)<1,"",AND(E13>C13,F13>C13,G13>C13,COUNT($E$7:G13)>sixng),"#",AND(E13>C12,F13>C12,G13>C12,COUNT($E$7:G13)>sixng,COUNTIF(H12,"#")=1),"2",$A$7=1,"") -> # | I13: 543 | J13: 181 | K13: =_xlfn.IFS(Q13<>1,"",Q13=1,I13+(3*D13)) -> 813 | L13: =_xlfn.IFS(Q13<>1,"",COUNT($E$7:G13)<=hcpng,"",COUNT($E$7:G13)>=hcpng,K13) -> 813 | M13: =_xlfn.IFS(Q13=1,SUM($E$7:G13),Q13<>1,"") -> 2112 | N13: =_xlfn.IFS(Q13=1,COUNT($E$7:G13),Q13<>1,"") -> 15 | O13: =IF(Q13=1,ROUND(AVERAGE($E$7:G13),2),"") -> 140.8 | P13: =_xlfn.IFS(Q13<>1,"",SUM($Q$7:Q13)=1,1,SUM($Q$7:Q13)<>1,"") ->  | Q13: 1 | S13: =_xlfn.IFS(E13=$X$5,E13,F13=$X$5,F13,G13=$X$5,G13,$A$7=1,"") ->  | U13: =_xlfn.IFS(W13=$X$6,W13,X13=$X$6,X13,Y13=$X$6,Y13,$A$7=1,"") ->  | W13: =_xlfn.IFS(AND(Q13=1,COUNT($E$7:G13)>hcpng),E13+D13,$A$7=1," ") -> 286 | X13: =_xlfn.IFS(AND(Q13=1,COUNT($E$7:G13)>hcpng),F13+D13,$A$7=1," ") -> 241 | Y13: =_xlfn.IFS(AND(Q13=1,COUNT($E$7:G13)>hcpng),G13+D13,$A$7=1," ") -> 286 | Z13: 7 | AA13: =_xlfn.IFS(COUNTIFS(H13,"#",H12,"#"),A12,COUNTIFS(H13,2,H12,"#"),A12,$A$7=1,"") ->  | AB13: book average number of games
A14: 8 | B14: 2023-10-25 | C14: =_xlfn.IFS(Q14<>1,"",AND($B$4>=1,COUNT($E$7:G14)<=bkng),$B$4,P14=1,TRUNC(AVERAGE(E14:G14),0),COUNT($Q$7:Q14)=2,TRUNC(AVERAGE($E$7:G13),0),COUNT($Q$7:Q14)>=3,TRUNC(AVERAGE($E$7:G13),0)) ->  | D14: =_xlfn.IFS(Q14<>1,"",Q14=1,TRUNC((HCPB-C14)*HCPPC)) ->  | H14: =_xlfn.IFS(COUNT(E14:G14)<1,"",AND(E14>C14,F14>C14,G14>C14,COUNT($E$7:G14)>sixng),"#",AND(E14>C13,F14>C13,G14>C13,COUNT($E$7:G14)>sixng,COUNTIF(H13,"#")=1),"2",$A$7=1,"") ->  | K14: =_xlfn.IFS(Q14<>1,"",Q14=1,I14+(3*D14)) ->  | L14: =_xlfn.IFS(Q14<>1,"",COUNT($E$7:G14)<=hcpng,"",COUNT($E$7:G14)>=hcpng,K14) ->  | M14: =_xlfn.IFS(Q14=1,SUM($E$7:G14),Q14<>1,"") ->  | N14: =_xlfn.IFS(Q14=1,COUNT($E$7:G14),Q14<>1,"") ->  | O14: =IF(Q14=1,ROUND(AVERAGE($E$7:G14),2),"") ->  | P14: =_xlfn.IFS(Q14<>1,"",SUM($Q$7:Q14)=1,1,SUM($Q$7:Q14)<>1,"") ->  | S14: =_xlfn.IFS(E14=$X$5,E14,F14=$X$5,F14,G14=$X$5,G14,$A$7=1,"") ->  | U14: =_xlfn.IFS(W14=$X$6,W14,X14=$X$6,X14,Y14=$X$6,Y14,$A$7=1,"") ->  | W14: =_xlfn.IFS(AND(Q14=1,COUNT($E$7:G14)>hcpng),E14+D14,$A$7=1," ") ->  | X14: =_xlfn.IFS(AND(Q14=1,COUNT($E$7:G14)>hcpng),F14+D14,$A$7=1," ") ->  | Y14: =_xlfn.IFS(AND(Q14=1,COUNT($E$7:G14)>hcpng),G14+D14,$A$7=1," ") ->  | Z14: 0 | AA14: =_xlfn.IFS(COUNTIFS(H14,"#",H13,"#"),A13,COUNTIFS(H14,2,H13,"#"),A13,$A$7=1,"") ->  | AB14: handicap after number of games
A15: 9 | B15: 2023-11-01 | C15: =_xlfn.IFS(Q15<>1,"",AND($B$4>=1,COUNT($E$7:G15)<=bkng),$B$4,P15=1,TRUNC(AVERAGE(E15:G15),0),COUNT($Q$7:Q15)=2,TRUNC(AVERAGE($E$7:G14),0),COUNT($Q$7:Q15)>=3,TRUNC(AVERAGE($E$7:G14),0)) -> 140 | D15: =_xlfn.IFS(Q15<>1,"",Q15=1,TRUNC((HCPB-C15)*HCPPC)) -> 81 | E15: 103 | F15: 153 | G15: 170 | H15: =_xlfn.IFS(COUNT(E15:G15)<1,"",AND(E15>C15,F15>C15,G15>C15,COUNT($E$7:G15)>sixng),"#",AND(E15>C14,F15>C14,G15>C14,COUNT($E$7:G15)>sixng,COUNTIF(H14,"#")=1),"2",$A$7=1,"") ->  | I15: 426 | J15: 142 | K15: =_xlfn.IFS(Q15<>1,"",Q15=1,I15+(3*D15)) -> 669 | L15: =_xlfn.IFS(Q15<>1,"",COUNT($E$7:G15)<=hcpng,"",COUNT($E$7:G15)>=hcpng,K15) -> 669 | M15: =_xlfn.IFS(Q15=1,SUM($E$7:G15),Q15<>1,"") -> 2538 | N15: =_xlfn.IFS(Q15=1,COUNT($E$7:G15),Q15<>1,"") -> 18 | O15: =IF(Q15=1,ROUND(AVERAGE($E$7:G15),2),"") -> 141 | P15: =_xlfn.IFS(Q15<>1,"",SUM($Q$7:Q15)=1,1,SUM($Q$7:Q15)<>1,"") ->  | Q15: 1 | S15: =_xlfn.IFS(E15=$X$5,E15,F15=$X$5,F15,G15=$X$5,G15,$A$7=1,"") ->  | U15: =_xlfn.IFS(W15=$X$6,W15,X15=$X$6,X15,Y15=$X$6,Y15,$A$7=1,"") ->  | W15: =_xlfn.IFS(AND(Q15=1,COUNT($E$7:G15)>hcpng),E15+D15,$A$7=1," ") -> 184 | X15: =_xlfn.IFS(AND(Q15=1,COUNT($E$7:G15)>hcpng),F15+D15,$A$7=1," ") -> 234 | Y15: =_xlfn.IFS(AND(Q15=1,COUNT($E$7:G15)>hcpng),G15+D15,$A$7=1," ") -> 251 | Z15: 9 | AA15: =_xlfn.IFS(COUNTIFS(H15,"#",H14,"#"),A14,COUNTIFS(H15,2,H14,"#"),A14,$A$7=1,"") ->  | AB15: hcp Merit Awards number of games
A16: 10 | B16: 2023-11-08 | C16: =_xlfn.IFS(Q16<>1,"",AND($B$4>=1,COUNT($E$7:G16)<=bkng),$B$4,P16=1,TRUNC(AVERAGE(E16:G16),0),COUNT($Q$7:Q16)=2,TRUNC(AVERAGE($E$7:G15),0),COUNT($Q$7:Q16)>=3,TRUNC(AVERAGE($E$7:G15),0)) -> 141 | D16: =_xlfn.IFS(Q16<>1,"",Q16=1,TRUNC((HCPB-C16)*HCPPC)) -> 80 | E16: 182 | F16: 139 | G16: 212 | H16: =_xlfn.IFS(COUNT(E16:G16)<1,"",AND(E16>C16,F16>C16,G16>C16,COUNT($E$7:G16)>sixng),"#",AND(E16>C15,F16>C15,G16>C15,COUNT($E$7:G16)>sixng,COUNTIF(H15,"#")=1),"2",$A$7=1,"") ->  | I16: 533 | J16: 177 | K16: =_xlfn.IFS(Q16<>1,"",Q16=1,I16+(3*D16)) -> 773 | L16: =_xlfn.IFS(Q16<>1,"",COUNT($E$7:G16)<=hcpng,"",COUNT($E$7:G16)>=hcpng,K16) -> 773 | M16: =_xlfn.IFS(Q16=1,SUM($E$7:G16),Q16<>1,"") -> 3071 | N16: =_xlfn.IFS(Q16=1,COUNT($E$7:G16),Q16<>1,"") -> 21 | O16: =IF(Q16=1,ROUND(AVERAGE($E$7:G16),2),"") -> 146.24 | P16: =_xlfn.IFS(Q16<>1,"",SUM($Q$7:Q16)=1,1,SUM($Q$7:Q16)<>1,"") ->  | Q16: 1 | S16: =_xlfn.IFS(E16=$X$5,E16,F16=$X$5,F16,G16=$X$5,G16,$A$7=1,"") ->  | U16: =_xlfn.IFS(W16=$X$6,W16,X16=$X$6,X16,Y16=$X$6,Y16,$A$7=1,"") ->  | W16: =_xlfn.IFS(AND(Q16=1,COUNT($E$7:G16)>hcpng),E16+D16,$A$7=1," ") -> 262 | X16: =_xlfn.IFS(AND(Q16=1,COUNT($E$7:G16)>hcpng),F16+D16,$A$7=1," ") -> 219 | Y16: =_xlfn.IFS(AND(Q16=1,COUNT($E$7:G16)>hcpng),G16+D16,$A$7=1," ") -> 292 | Z16: 10 | AA16: =_xlfn.IFS(COUNTIFS(H16,"#",H15,"#"),A15,COUNTIFS(H16,2,H15,"#"),A15,$A$7=1,"") -> 
A17: 11 | B17: 2023-11-15 | C17: =_xlfn.IFS(Q17<>1,"",AND($B$4>=1,COUNT($E$7:G17)<=bkng),$B$4,P17=1,TRUNC(AVERAGE(E17:G17),0),COUNT($Q$7:Q17)=2,TRUNC(AVERAGE($E$7:G16),0),COUNT($Q$7:Q17)>=3,TRUNC(AVERAGE($E$7:G16),0)) -> 146 | D17: =_xlfn.IFS(Q17<>1,"",Q17=1,TRUNC((HCPB-C17)*HCPPC)) -> 75 | E17: 185 | F17: 140 | G17: 175 | H17: =_xlfn.IFS(COUNT(E17:G17)<1,"",AND(E17>C17,F17>C17,G17>C17,COUNT($E$7:G17)>sixng),"#",AND(E17>C16,F17>C16,G17>C16,COUNT($E$7:G17)>sixng,COUNTIF(H16,"#")=1),"2",$A$7=1,"") ->  | I17: 500 | J17: 166 | K17: =_xlfn.IFS(Q17<>1,"",Q17=1,I17+(3*D17)) -> 725 | L17: =_xlfn.IFS(Q17<>1,"",COUNT($E$7:G17)<=hcpng,"",COUNT($E$7:G17)>=hcpng,K17) -> 725 | M17: =_xlfn.IFS(Q17=1,SUM($E$7:G17),Q17<>1,"") -> 3571 | N17: =_xlfn.IFS(Q17=1,COUNT($E$7:G17),Q17<>1,"") -> 24 | O17: =IF(Q17=1,ROUND(AVERAGE($E$7:G17),2),"") -> 148.79 | P17: =_xlfn.IFS(Q17<>1,"",SUM($Q$7:Q17)=1,1,SUM($Q$7:Q17)<>1,"") ->  | Q17: 1 | S17: =_xlfn.IFS(E17=$X$5,E17,F17=$X$5,F17,G17=$X$5,G17,$A$7=1,"") ->  | U17: =_xlfn.IFS(W17=$X$6,W17,X17=$X$6,X17,Y17=$X$6,Y17,$A$7=1,"") ->  | W17: =_xlfn.IFS(AND(Q17=1,COUNT($E$7:G17)>hcpng),E17+D17,$A$7=1," ") -> 260 | X17: =_xlfn.IFS(AND(Q17=1,COUNT($E$7:G17)>hcpng),F17+D17,$A$7=1," ") -> 215 | Y17: =_xlfn.IFS(AND(Q17=1,COUNT($E$7:G17)>hcpng),G17+D17,$A$7=1," ") -> 250 | Z17: 11 | AA17: =_xlfn.IFS(COUNTIFS(H17,"#",H16,"#"),A16,COUNTIFS(H17,2,H16,"#"),A16,$A$7=1,"") ->  | AB17: Handicap base
A18: 12 | B18: 2023-11-29 | C18: =_xlfn.IFS(Q18<>1,"",AND($B$4>=1,COUNT($E$7:G18)<=bkng),$B$4,P18=1,TRUNC(AVERAGE(E18:G18),0),COUNT($Q$7:Q18)=2,TRUNC(AVERAGE($E$7:G17),0),COUNT($Q$7:Q18)>=3,TRUNC(AVERAGE($E$7:G17),0)) -> 148 | D18: =_xlfn.IFS(Q18<>1,"",Q18=1,TRUNC((HCPB-C18)*HCPPC)) -> 73 | E18: 150 | F18: 151 | G18: 204 | H18: =_xlfn.IFS(COUNT(E18:G18)<1,"",AND(E18>C18,F18>C18,G18>C18,COUNT($E$7:G18)>sixng),"#",AND(E18>C17,F18>C17,G18>C17,COUNT($E$7:G18)>sixng,COUNTIF(H17,"#")=1),"2",$A$7=1,"") -> # | I18: 505 | J18: 168 | K18: =_xlfn.IFS(Q18<>1,"",Q18=1,I18+(3*D18)) -> 724 | L18: =_xlfn.IFS(Q18<>1,"",COUNT($E$7:G18)<=hcpng,"",COUNT($E$7:G18)>=hcpng,K18) -> 724 | M18: =_xlfn.IFS(Q18=1,SUM($E$7:G18),Q18<>1,"") -> 4076 | N18: =_xlfn.IFS(Q18=1,COUNT($E$7:G18),Q18<>1,"") -> 27 | O18: =IF(Q18=1,ROUND(AVERAGE($E$7:G18),2),"") -> 150.96 | P18: =_xlfn.IFS(Q18<>1,"",SUM($Q$7:Q18)=1,1,SUM($Q$7:Q18)<>1,"") ->  | Q18: 1 | S18: =_xlfn.IFS(E18=$X$5,E18,F18=$X$5,F18,G18=$X$5,G18,$A$7=1,"") ->  | U18: =_xlfn.IFS(W18=$X$6,W18,X18=$X$6,X18,Y18=$X$6,Y18,$A$7=1,"") ->  | W18: =_xlfn.IFS(AND(Q18=1,COUNT($E$7:G18)>hcpng),E18+D18,$A$7=1," ") -> 223 | X18: =_xlfn.IFS(AND(Q18=1,COUNT($E$7:G18)>hcpng),F18+D18,$A$7=1," ") -> 224 | Y18: =_xlfn.IFS(AND(Q18=1,COUNT($E$7:G18)>hcpng),G18+D18,$A$7=1," ") -> 277 | Z18: 12 | AA18: =_xlfn.IFS(COUNTIFS(H18,"#",H17,"#"),A17,COUNTIFS(H18,2,H17,"#"),A17,$A$7=1,"") ->  | AB18: Handicap %
A19: 13 | B19: 2023-12-06 | C19: =_xlfn.IFS(Q19<>1,"",AND($B$4>=1,COUNT($E$7:G19)<=bkng),$B$4,P19=1,TRUNC(AVERAGE(E19:G19),0),COUNT($Q$7:Q19)=2,TRUNC(AVERAGE($E$7:G18),0),COUNT($Q$7:Q19)>=3,TRUNC(AVERAGE($E$7:G18),0)) -> 150 | D19: =_xlfn.IFS(Q19<>1,"",Q19=1,TRUNC((HCPB-C19)*HCPPC)) -> 72 | E19: 142 | F19: 127 | G19: 141 | H19: =_xlfn.IFS(COUNT(E19:G19)<1,"",AND(E19>C19,F19>C19,G19>C19,COUNT($E$7:G19)>sixng),"#",AND(E19>C18,F19>C18,G19>C18,COUNT($E$7:G19)>sixng,COUNTIF(H18,"#")=1),"2",$A$7=1,"") ->  | I19: 410 | J19: 136 | K19: =_xlfn.IFS(Q19<>1,"",Q19=1,I19+(3*D19)) -> 626 | L19: =_xlfn.IFS(Q19<>1,"",COUNT($E$7:G19)<=hcpng,"",COUNT($E$7:G19)>=hcpng,K19) -> 626 | M19: =_xlfn.IFS(Q19=1,SUM($E$7:G19),Q19<>1,"") -> 4486 | N19: =_xlfn.IFS(Q19=1,COUNT($E$7:G19),Q19<>1,"") -> 30 | O19: =IF(Q19=1,ROUND(AVERAGE($E$7:G19),2),"") -> 149.53 | P19: =_xlfn.IFS(Q19<>1,"",SUM($Q$7:Q19)=1,1,SUM($Q$7:Q19)<>1,"") ->  | Q19: 1 | S19: =_xlfn.IFS(E19=$X$5,E19,F19=$X$5,F19,G19=$X$5,G19,$A$7=1,"") ->  | U19: =_xlfn.IFS(W19=$X$6,W19,X19=$X$6,X19,Y19=$X$6,Y19,$A$7=1,"") ->  | W19: =_xlfn.IFS(AND(Q19=1,COUNT($E$7:G19)>hcpng),E19+D19,$A$7=1," ") -> 214 | X19: =_xlfn.IFS(AND(Q19=1,COUNT($E$7:G19)>hcpng),F19+D19,$A$7=1," ") -> 199 | Y19: =_xlfn.IFS(AND(Q19=1,COUNT($E$7:G19)>hcpng),G19+D19,$A$7=1," ") -> 213 | Z19: 13 | AA19: =_xlfn.IFS(COUNTIFS(H19,"#",H18,"#"),A18,COUNTIFS(H19,2,H18,"#"),A18,$A$7=1,"") -> 
A20: 14 | B20: 2023-12-13 | C20: =_xlfn.IFS(Q20<>1,"",AND($B$4>=1,COUNT($E$7:G20)<=bkng),$B$4,P20=1,TRUNC(AVERAGE(E20:G20),0),COUNT($Q$7:Q20)=2,TRUNC(AVERAGE($E$7:G19),0),COUNT($Q$7:Q20)>=3,TRUNC(AVERAGE($E$7:G19),0)) -> 149 | D20: =_xlfn.IFS(Q20<>1,"",Q20=1,TRUNC((HCPB-C20)*HCPPC)) -> 72 | E20: 143 | F20: 116 | G20: 184 | H20: =_xlfn.IFS(COUNT(E20:G20)<1,"",AND(E20>C20,F20>C20,G20>C20,COUNT($E$7:G20)>sixng),"#",AND(E20>C19,F20>C19,G20>C19,COUNT($E$7:G20)>sixng,COUNTIF(H19,"#")=1),"2",$A$7=1,"") ->  | I20: 443 | J20: 147 | K20: =_xlfn.IFS(Q20<>1,"",Q20=1,I20+(3*D20)) -> 659 | L20: =_xlfn.IFS(Q20<>1,"",COUNT($E$7:G20)<=hcpng,"",COUNT($E$7:G20)>=hcpng,K20) -> 659 | M20: =_xlfn.IFS(Q20=1,SUM($E$7:G20),Q20<>1,"") -> 4929 | N20: =_xlfn.IFS(Q20=1,COUNT($E$7:G20),Q20<>1,"") -> 33 | O20: =IF(Q20=1,ROUND(AVERAGE($E$7:G20),2),"") -> 149.36 | P20: =_xlfn.IFS(Q20<>1,"",SUM($Q$7:Q20)=1,1,SUM($Q$7:Q20)<>1,"") ->  | Q20: 1 | S20: =_xlfn.IFS(E20=$X$5,E20,F20=$X$5,F20,G20=$X$5,G20,$A$7=1,"") ->  | U20: =_xlfn.IFS(W20=$X$6,W20,X20=$X$6,X20,Y20=$X$6,Y20,$A$7=1,"") ->  | W20: =_xlfn.IFS(AND(Q20=1,COUNT($E$7:G20)>hcpng),E20+D20,$A$7=1," ") -> 215 | X20: =_xlfn.IFS(AND(Q20=1,COUNT($E$7:G20)>hcpng),F20+D20,$A$7=1," ") -> 188 | Y20: =_xlfn.IFS(AND(Q20=1,COUNT($E$7:G20)>hcpng),G20+D20,$A$7=1," ") -> 256 | Z20: 14 | AA20: =_xlfn.IFS(COUNTIFS(H20,"#",H19,"#"),A19,COUNTIFS(H20,2,H19,"#"),A19,$A$7=1,"") ->  | AB20: Define the USBC Merit awards items using the UTLMA sheet:
A21: 15 | B21: 2023-12-20 | C21: =_xlfn.IFS(Q21<>1,"",AND($B$4>=1,COUNT($E$7:G21)<=bkng),$B$4,P21=1,TRUNC(AVERAGE(E21:G21),0),COUNT($Q$7:Q21)=2,TRUNC(AVERAGE($E$7:G20),0),COUNT($Q$7:Q21)>=3,TRUNC(AVERAGE($E$7:G20),0)) -> 149 | D21: =_xlfn.IFS(Q21<>1,"",Q21=1,TRUNC((HCPB-C21)*HCPPC)) -> 72 | E21: 134 | F21: 110 | G21: 117 | H21: =_xlfn.IFS(COUNT(E21:G21)<1,"",AND(E21>C21,F21>C21,G21>C21,COUNT($E$7:G21)>sixng),"#",AND(E21>C20,F21>C20,G21>C20,COUNT($E$7:G21)>sixng,COUNTIF(H20,"#")=1),"2",$A$7=1,"") ->  | I21: 361 | J21: 120 | K21: =_xlfn.IFS(Q21<>1,"",Q21=1,I21+(3*D21)) -> 577 | L21: =_xlfn.IFS(Q21<>1,"",COUNT($E$7:G21)<=hcpng,"",COUNT($E$7:G21)>=hcpng,K21) -> 577 | M21: =_xlfn.IFS(Q21=1,SUM($E$7:G21),Q21<>1,"") -> 5290 | N21: =_xlfn.IFS(Q21=1,COUNT($E$7:G21),Q21<>1,"") -> 36 | O21: =IF(Q21=1,ROUND(AVERAGE($E$7:G21),2),"") -> 146.94 | P21: =_xlfn.IFS(Q21<>1,"",SUM($Q$7:Q21)=1,1,SUM($Q$7:Q21)<>1,"") ->  | Q21: 1 | S21: =_xlfn.IFS(E21=$X$5,E21,F21=$X$5,F21,G21=$X$5,G21,$A$7=1,"") ->  | U21: =_xlfn.IFS(W21=$X$6,W21,X21=$X$6,X21,Y21=$X$6,Y21,$A$7=1,"") ->  | W21: =_xlfn.IFS(AND(Q21=1,COUNT($E$7:G21)>hcpng),E21+D21,$A$7=1," ") -> 206 | X21: =_xlfn.IFS(AND(Q21=1,COUNT($E$7:G21)>hcpng),F21+D21,$A$7=1," ") -> 182 | Y21: =_xlfn.IFS(AND(Q21=1,COUNT($E$7:G21)>hcpng),G21+D21,$A$7=1," ") -> 189 | Z21: 15 | AA21: =_xlfn.IFS(COUNTIFS(H21,"#",H20,"#"),A20,COUNTIFS(H21,2,H20,"#"),A20,$A$7=1,"") -> 
A22: 16 | B22: 2024-01-03 | C22: =_xlfn.IFS(Q22<>1,"",AND($B$4>=1,COUNT($E$7:G22)<=bkng),$B$4,P22=1,TRUNC(AVERAGE(E22:G22),0),COUNT($Q$7:Q22)=2,TRUNC(AVERAGE($E$7:G21),0),COUNT($Q$7:Q22)>=3,TRUNC(AVERAGE($E$7:G21),0)) -> 146 | D22: =_xlfn.IFS(Q22<>1,"",Q22=1,TRUNC((HCPB-C22)*HCPPC)) -> 75 | E22: 166 | F22: 136 | G22: 200 | H22: =_xlfn.IFS(COUNT(E22:G22)<1,"",AND(E22>C22,F22>C22,G22>C22,COUNT($E$7:G22)>sixng),"#",AND(E22>C21,F22>C21,G22>C21,COUNT($E$7:G22)>sixng,COUNTIF(H21,"#")=1),"2",$A$7=1,"") ->  | I22: 502 | J22: 167 | K22: =_xlfn.IFS(Q22<>1,"",Q22=1,I22+(3*D22)) -> 727 | L22: =_xlfn.IFS(Q22<>1,"",COUNT($E$7:G22)<=hcpng,"",COUNT($E$7:G22)>=hcpng,K22) -> 727 | M22: =_xlfn.IFS(Q22=1,SUM($E$7:G22),Q22<>1,"") -> 5792 | N22: =_xlfn.IFS(Q22=1,COUNT($E$7:G22),Q22<>1,"") -> 39 | O22: =IF(Q22=1,ROUND(AVERAGE($E$7:G22),2),"") -> 148.51 | P22: =_xlfn.IFS(Q22<>1,"",SUM($Q$7:Q22)=1,1,SUM($Q$7:Q22)<>1,"") ->  | Q22: 1 | S22: =_xlfn.IFS(E22=$X$5,E22,F22=$X$5,F22,G22=$X$5,G22,$A$7=1,"") ->  | U22: =_xlfn.IFS(W22=$X$6,W22,X22=$X$6,X22,Y22=$X$6,Y22,$A$7=1,"") ->  | W22: =_xlfn.IFS(AND(Q22=1,COUNT($E$7:G22)>hcpng),E22+D22,$A$7=1," ") -> 241 | X22: =_xlfn.IFS(AND(Q22=1,COUNT($E$7:G22)>hcpng),F22+D22,$A$7=1," ") -> 211 | Y22: =_xlfn.IFS(AND(Q22=1,COUNT($E$7:G22)>hcpng),G22+D22,$A$7=1," ") -> 275 | Z22: 16 | AA22: =_xlfn.IFS(COUNTIFS(H22,"#",H21,"#"),A21,COUNTIFS(H22,2,H21,"#"),A21,$A$7=1,"") -> 
A23: 17 | B23: 2024-01-10 | C23: =_xlfn.IFS(Q23<>1,"",AND($B$4>=1,COUNT($E$7:G23)<=bkng),$B$4,P23=1,TRUNC(AVERAGE(E23:G23),0),COUNT($Q$7:Q23)=2,TRUNC(AVERAGE($E$7:G22),0),COUNT($Q$7:Q23)>=3,TRUNC(AVERAGE($E$7:G22),0)) -> 148 | D23: =_xlfn.IFS(Q23<>1,"",Q23=1,TRUNC((HCPB-C23)*HCPPC)) -> 73 | E23: 149 | F23: 136 | G23: 125 | H23: =_xlfn.IFS(COUNT(E23:G23)<1,"",AND(E23>C23,F23>C23,G23>C23,COUNT($E$7:G23)>sixng),"#",AND(E23>C22,F23>C22,G23>C22,COUNT($E$7:G23)>sixng,COUNTIF(H22,"#")=1),"2",$A$7=1,"") ->  | I23: 410 | J23: 136 | K23: =_xlfn.IFS(Q23<>1,"",Q23=1,I23+(3*D23)) -> 629 | L23: =_xlfn.IFS(Q23<>1,"",COUNT($E$7:G23)<=hcpng,"",COUNT($E$7:G23)>=hcpng,K23) -> 629 | M23: =_xlfn.IFS(Q23=1,SUM($E$7:G23),Q23<>1,"") -> 6202 | N23: =_xlfn.IFS(Q23=1,COUNT($E$7:G23),Q23<>1,"") -> 42 | O23: =IF(Q23=1,ROUND(AVERAGE($E$7:G23),2),"") -> 147.67 | P23: =_xlfn.IFS(Q23<>1,"",SUM($Q$7:Q23)=1,1,SUM($Q$7:Q23)<>1,"") ->  | Q23: 1 | S23: =_xlfn.IFS(E23=$X$5,E23,F23=$X$5,F23,G23=$X$5,G23,$A$7=1,"") ->  | U23: =_xlfn.IFS(W23=$X$6,W23,X23=$X$6,X23,Y23=$X$6,Y23,$A$7=1,"") ->  | W23: =_xlfn.IFS(AND(Q23=1,COUNT($E$7:G23)>hcpng),E23+D23,$A$7=1," ") -> 222 | X23: =_xlfn.IFS(AND(Q23=1,COUNT($E$7:G23)>hcpng),F23+D23,$A$7=1," ") -> 209 | Y23: =_xlfn.IFS(AND(Q23=1,COUNT($E$7:G23)>hcpng),G23+D23,$A$7=1," ") -> 198 | Z23: 17 | AA23: =_xlfn.IFS(COUNTIFS(H23,"#",H22,"#"),A22,COUNTIFS(H23,2,H22,"#"),A22,$A$7=1,"") ->  | AB23: To add new bowlers right click on "Blank" sheet select "move or copy", "(move to end)"
A24: 18 | B24: 2024-01-17 | C24: =_xlfn.IFS(Q24<>1,"",AND($B$4>=1,COUNT($E$7:G24)<=bkng),$B$4,P24=1,TRUNC(AVERAGE(E24:G24),0),COUNT($Q$7:Q24)=2,TRUNC(AVERAGE($E$7:G23),0),COUNT($Q$7:Q24)>=3,TRUNC(AVERAGE($E$7:G23),0)) ->  | D24: =_xlfn.IFS(Q24<>1,"",Q24=1,TRUNC((HCPB-C24)*HCPPC)) ->  | H24: =_xlfn.IFS(COUNT(E24:G24)<1,"",AND(E24>C24,F24>C24,G24>C24,COUNT($E$7:G24)>sixng),"#",AND(E24>C23,F24>C23,G24>C23,COUNT($E$7:G24)>sixng,COUNTIF(H23,"#")=1),"2",$A$7=1,"") ->  | K24: =_xlfn.IFS(Q24<>1,"",Q24=1,I24+(3*D24)) ->  | L24: =_xlfn.IFS(Q24<>1,"",COUNT($E$7:G24)<=hcpng,"",COUNT($E$7:G24)>=hcpng,K24) ->  | M24: =_xlfn.IFS(Q24=1,SUM($E$7:G24),Q24<>1,"") ->  | N24: =_xlfn.IFS(Q24=1,COUNT($E$7:G24),Q24<>1,"") ->  | O24: =IF(Q24=1,ROUND(AVERAGE($E$7:G24),2),"") ->  | P24: =_xlfn.IFS(Q24<>1,"",SUM($Q$7:Q24)=1,1,SUM($Q$7:Q24)<>1,"") ->  | S24: =_xlfn.IFS(E24=$X$5,E24,F24=$X$5,F24,G24=$X$5,G24,$A$7=1,"") ->  | U24: =_xlfn.IFS(W24=$X$6,W24,X24=$X$6,X24,Y24=$X$6,Y24,$A$7=1,"") ->  | W24: =_xlfn.IFS(AND(Q24=1,COUNT($E$7:G24)>hcpng),E24+D24,$A$7=1," ") ->  | X24: =_xlfn.IFS(AND(Q24=1,COUNT($E$7:G24)>hcpng),F24+D24,$A$7=1," ") ->  | Y24: =_xlfn.IFS(AND(Q24=1,COUNT($E$7:G24)>hcpng),G24+D24,$A$7=1," ") ->  | Z24: 0 | AA24: =_xlfn.IFS(COUNTIFS(H24,"#",H23,"#"),A23,COUNTIFS(H24,2,H23,"#"),A23,$A$7=1,"") ->  | AB24: and "check create a copy". Note: you can click and hold to move a sheet left or right.
A25: 19 | B25: 2024-01-24 | C25: =_xlfn.IFS(Q25<>1,"",AND($B$4>=1,COUNT($E$7:G25)<=bkng),$B$4,P25=1,TRUNC(AVERAGE(E25:G25),0),COUNT($Q$7:Q25)=2,TRUNC(AVERAGE($E$7:G24),0),COUNT($Q$7:Q25)>=3,TRUNC(AVERAGE($E$7:G24),0)) -> 147 | D25: =_xlfn.IFS(Q25<>1,"",Q25=1,TRUNC((HCPB-C25)*HCPPC)) -> 74 | E25: 182 | F25: 145 | G25: 201 | H25: =_xlfn.IFS(COUNT(E25:G25)<1,"",AND(E25>C25,F25>C25,G25>C25,COUNT($E$7:G25)>sixng),"#",AND(E25>C24,F25>C24,G25>C24,COUNT($E$7:G25)>sixng,COUNTIF(H24,"#")=1),"2",$A$7=1,"") ->  | I25: 528 | J25: 176 | K25: =_xlfn.IFS(Q25<>1,"",Q25=1,I25+(3*D25)) -> 750 | L25: =_xlfn.IFS(Q25<>1,"",COUNT($E$7:G25)<=hcpng,"",COUNT($E$7:G25)>=hcpng,K25) -> 750 | M25: =_xlfn.IFS(Q25=1,SUM($E$7:G25),Q25<>1,"") -> 6730 | N25: =_xlfn.IFS(Q25=1,COUNT($E$7:G25),Q25<>1,"") -> 45 | O25: =IF(Q25=1,ROUND(AVERAGE($E$7:G25),2),"") -> 149.56 | P25: =_xlfn.IFS(Q25<>1,"",SUM($Q$7:Q25)=1,1,SUM($Q$7:Q25)<>1,"") ->  | Q25: 1 | S25: =_xlfn.IFS(E25=$X$5,E25,F25=$X$5,F25,G25=$X$5,G25,$A$7=1,"") ->  | U25: =_xlfn.IFS(W25=$X$6,W25,X25=$X$6,X25,Y25=$X$6,Y25,$A$7=1,"") ->  | W25: =_xlfn.IFS(AND(Q25=1,COUNT($E$7:G25)>hcpng),E25+D25,$A$7=1," ") -> 256 | X25: =_xlfn.IFS(AND(Q25=1,COUNT($E$7:G25)>hcpng),F25+D25,$A$7=1," ") -> 219 | Y25: =_xlfn.IFS(AND(Q25=1,COUNT($E$7:G25)>hcpng),G25+D25,$A$7=1," ") -> 275 | Z25: 19 | AA25: =_xlfn.IFS(COUNTIFS(H25,"#",H24,"#"),A24,COUNTIFS(H25,2,H24,"#"),A24,$A$7=1,"") -> 
A26: 20 | B26: 2024-01-31 | C26: =_xlfn.IFS(Q26<>1,"",AND($B$4>=1,COUNT($E$7:G26)<=bkng),$B$4,P26=1,TRUNC(AVERAGE(E26:G26),0),COUNT($Q$7:Q26)=2,TRUNC(AVERAGE($E$7:G25),0),COUNT($Q$7:Q26)>=3,TRUNC(AVERAGE($E$7:G25),0)) -> 149 | D26: =_xlfn.IFS(Q26<>1,"",Q26=1,TRUNC((HCPB-C26)*HCPPC)) -> 72 | E26: 162 | F26: 148 | G26: 159 | H26: =_xlfn.IFS(COUNT(E26:G26)<1,"",AND(E26>C26,F26>C26,G26>C26,COUNT($E$7:G26)>sixng),"#",AND(E26>C25,F26>C25,G26>C25,COUNT($E$7:G26)>sixng,COUNTIF(H25,"#")=1),"2",$A$7=1,"") ->  | I26: 469 | J26: 156 | K26: =_xlfn.IFS(Q26<>1,"",Q26=1,I26+(3*D26)) -> 685 | L26: =_xlfn.IFS(Q26<>1,"",COUNT($E$7:G26)<=hcpng,"",COUNT($E$7:G26)>=hcpng,K26) -> 685 | M26: =_xlfn.IFS(Q26=1,SUM($E$7:G26),Q26<>1,"") -> 7199 | N26: =_xlfn.IFS(Q26=1,COUNT($E$7:G26),Q26<>1,"") -> 48 | O26: =IF(Q26=1,ROUND(AVERAGE($E$7:G26),2),"") -> 149.98 | P26: =_xlfn.IFS(Q26<>1,"",SUM($Q$7:Q26)=1,1,SUM($Q$7:Q26)<>1,"") ->  | Q26: 1 | S26: =_xlfn.IFS(E26=$X$5,E26,F26=$X$5,F26,G26=$X$5,G26,$A$7=1,"") ->  | U26: =_xlfn.IFS(W26=$X$6,W26,X26=$X$6,X26,Y26=$X$6,Y26,$A$7=1,"") ->  | W26: =_xlfn.IFS(AND(Q26=1,COUNT($E$7:G26)>hcpng),E26+D26,$A$7=1," ") -> 234 | X26: =_xlfn.IFS(AND(Q26=1,COUNT($E$7:G26)>hcpng),F26+D26,$A$7=1," ") -> 220 | Y26: =_xlfn.IFS(AND(Q26=1,COUNT($E$7:G26)>hcpng),G26+D26,$A$7=1," ") -> 231 | Z26: 20 | AA26: =_xlfn.IFS(COUNTIFS(H26,"#",H25,"#"),A25,COUNTIFS(H26,2,H25,"#"),A25,$A$7=1,"") -> 
A27: 21 | B27: 2024-02-07 | C27: =_xlfn.IFS(Q27<>1,"",AND($B$4>=1,COUNT($E$7:G27)<=bkng),$B$4,P27=1,TRUNC(AVERAGE(E27:G27),0),COUNT($Q$7:Q27)=2,TRUNC(AVERAGE($E$7:G26),0),COUNT($Q$7:Q27)>=3,TRUNC(AVERAGE($E$7:G26),0)) -> 149 | D27: =_xlfn.IFS(Q27<>1,"",Q27=1,TRUNC((HCPB-C27)*HCPPC)) -> 72 | E27: 237 | F27: 187 | G27: 180 | H27: =_xlfn.IFS(COUNT(E27:G27)<1,"",AND(E27>C27,F27>C27,G27>C27,COUNT($E$7:G27)>sixng),"#",AND(E27>C26,F27>C26,G27>C26,COUNT($E$7:G27)>sixng,COUNTIF(H26,"#")=1),"2",$A$7=1,"") -> # | I27: 604 | J27: 201 | K27: =_xlfn.IFS(Q27<>1,"",Q27=1,I27+(3*D27)) -> 820 | L27: =_xlfn.IFS(Q27<>1,"",COUNT($E$7:G27)<=hcpng,"",COUNT($E$7:G27)>=hcpng,K27) -> 820 | M27: =_xlfn.IFS(Q27=1,SUM($E$7:G27),Q27<>1,"") -> 7803 | N27: =_xlfn.IFS(Q27=1,COUNT($E$7:G27),Q27<>1,"") -> 51 | O27: =IF(Q27=1,ROUND(AVERAGE($E$7:G27),2),"") -> 153 | P27: =_xlfn.IFS(Q27<>1,"",SUM($Q$7:Q27)=1,1,SUM($Q$7:Q27)<>1,"") ->  | Q27: 1 | R27: 604 | S27: =_xlfn.IFS(E27=$X$5,E27,F27=$X$5,F27,G27=$X$5,G27,$A$7=1,"") -> 237 | T27: 820 | U27: =_xlfn.IFS(W27=$X$6,W27,X27=$X$6,X27,Y27=$X$6,Y27,$A$7=1,"") -> 309 | W27: =_xlfn.IFS(AND(Q27=1,COUNT($E$7:G27)>hcpng),E27+D27,$A$7=1," ") -> 309 | X27: =_xlfn.IFS(AND(Q27=1,COUNT($E$7:G27)>hcpng),F27+D27,$A$7=1," ") -> 259 | Y27: =_xlfn.IFS(AND(Q27=1,COUNT($E$7:G27)>hcpng),G27+D27,$A$7=1," ") -> 252 | Z27: 21 | AA27: =_xlfn.IFS(COUNTIFS(H27,"#",H26,"#"),A26,COUNTIFS(H27,2,H26,"#"),A26,$A$7=1,"") -> 
A28: 22 | B28: 2024-02-14 | C28: =_xlfn.IFS(Q28<>1,"",AND($B$4>=1,COUNT($E$7:G28)<=bkng),$B$4,P28=1,TRUNC(AVERAGE(E28:G28),0),COUNT($Q$7:Q28)=2,TRUNC(AVERAGE($E$7:G27),0),COUNT($Q$7:Q28)>=3,TRUNC(AVERAGE($E$7:G27),0)) -> 153 | D28: =_xlfn.IFS(Q28<>1,"",Q28=1,TRUNC((HCPB-C28)*HCPPC)) -> 69 | E28: 181 | F28: 156 | G28: 191 | H28: =_xlfn.IFS(COUNT(E28:G28)<1,"",AND(E28>C28,F28>C28,G28>C28,COUNT($E$7:G28)>sixng),"#",AND(E28>C27,F28>C27,G28>C27,COUNT($E$7:G28)>sixng,COUNTIF(H27,"#")=1),"2",$A$7=1,"") -> # | I28: 528 | J28: 176 | K28: =_xlfn.IFS(Q28<>1,"",Q28=1,I28+(3*D28)) -> 735 | L28: =_xlfn.IFS(Q28<>1,"",COUNT($E$7:G28)<=hcpng,"",COUNT($E$7:G28)>=hcpng,K28) -> 735 | M28: =_xlfn.IFS(Q28=1,SUM($E$7:G28),Q28<>1,"") -> 8331 | N28: =_xlfn.IFS(Q28=1,COUNT($E$7:G28),Q28<>1,"") -> 54 | O28: =IF(Q28=1,ROUND(AVERAGE($E$7:G28),2),"") -> 154.28 | P28: =_xlfn.IFS(Q28<>1,"",SUM($Q$7:Q28)=1,1,SUM($Q$7:Q28)<>1,"") ->  | Q28: 1 | S28: =_xlfn.IFS(E28=$X$5,E28,F28=$X$5,F28,G28=$X$5,G28,$A$7=1,"") ->  | U28: =_xlfn.IFS(W28=$X$6,W28,X28=$X$6,X28,Y28=$X$6,Y28,$A$7=1,"") ->  | W28: =_xlfn.IFS(AND(Q28=1,COUNT($E$7:G28)>hcpng),E28+D28,$A$7=1," ") -> 250 | X28: =_xlfn.IFS(AND(Q28=1,COUNT($E$7:G28)>hcpng),F28+D28,$A$7=1," ") -> 225 | Y28: =_xlfn.IFS(AND(Q28=1,COUNT($E$7:G28)>hcpng),G28+D28,$A$7=1," ") -> 260 | Z28: 22 | AA28: =_xlfn.IFS(COUNTIFS(H28,"#",H27,"#"),A27,COUNTIFS(H28,2,H27,"#"),A27,$A$7=1,"") -> 21
A29: 23 | B29: 2024-02-21 | C29: =_xlfn.IFS(Q29<>1,"",AND($B$4>=1,COUNT($E$7:G29)<=bkng),$B$4,P29=1,TRUNC(AVERAGE(E29:G29),0),COUNT($Q$7:Q29)=2,TRUNC(AVERAGE($E$7:G28),0),COUNT($Q$7:Q29)>=3,TRUNC(AVERAGE($E$7:G28),0)) -> 154 | D29: =_xlfn.IFS(Q29<>1,"",Q29=1,TRUNC((HCPB-C29)*HCPPC)) -> 68 | E29: 158 | F29: 147 | G29: 129 | H29: =_xlfn.IFS(COUNT(E29:G29)<1,"",AND(E29>C29,F29>C29,G29>C29,COUNT($E$7:G29)>sixng),"#",AND(E29>C28,F29>C28,G29>C28,COUNT($E$7:G29)>sixng,COUNTIF(H28,"#")=1),"2",$A$7=1,"") ->  | I29: 434 | J29: 144 | K29: =_xlfn.IFS(Q29<>1,"",Q29=1,I29+(3*D29)) -> 638 | L29: =_xlfn.IFS(Q29<>1,"",COUNT($E$7:G29)<=hcpng,"",COUNT($E$7:G29)>=hcpng,K29) -> 638 | M29: =_xlfn.IFS(Q29=1,SUM($E$7:G29),Q29<>1,"") -> 8765 | N29: =_xlfn.IFS(Q29=1,COUNT($E$7:G29),Q29<>1,"") -> 57 | O29: =IF(Q29=1,ROUND(AVERAGE($E$7:G29),2),"") -> 153.77 | P29: =_xlfn.IFS(Q29<>1,"",SUM($Q$7:Q29)=1,1,SUM($Q$7:Q29)<>1,"") ->  | Q29: 1 | S29: =_xlfn.IFS(E29=$X$5,E29,F29=$X$5,F29,G29=$X$5,G29,$A$7=1,"") ->  | U29: =_xlfn.IFS(W29=$X$6,W29,X29=$X$6,X29,Y29=$X$6,Y29,$A$7=1,"") ->  | W29: =_xlfn.IFS(AND(Q29=1,COUNT($E$7:G29)>hcpng),E29+D29,$A$7=1," ") -> 226 | X29: =_xlfn.IFS(AND(Q29=1,COUNT($E$7:G29)>hcpng),F29+D29,$A$7=1," ") -> 215 | Y29: =_xlfn.IFS(AND(Q29=1,COUNT($E$7:G29)>hcpng),G29+D29,$A$7=1," ") -> 197 | Z29: 23 | AA29: =_xlfn.IFS(COUNTIFS(H29,"#",H28,"#"),A28,COUNTIFS(H29,2,H28,"#"),A28,$A$7=1,"") -> 
A30: 24 | B30: 2024-02-28 | C30: =_xlfn.IFS(Q30<>1,"",AND($B$4>=1,COUNT($E$7:G30)<=bkng),$B$4,P30=1,TRUNC(AVERAGE(E30:G30),0),COUNT($Q$7:Q30)=2,TRUNC(AVERAGE($E$7:G29),0),COUNT($Q$7:Q30)>=3,TRUNC(AVERAGE($E$7:G29),0)) -> 153 | D30: =_xlfn.IFS(Q30<>1,"",Q30=1,TRUNC((HCPB-C30)*HCPPC)) -> 69 | E30: 147 | F30: 188 | G30: 161 | H30: =_xlfn.IFS(COUNT(E30:G30)<1,"",AND(E30>C30,F30>C30,G30>C30,COUNT($E$7:G30)>sixng),"#",AND(E30>C29,F30>C29,G30>C29,COUNT($E$7:G30)>sixng,COUNTIF(H29,"#")=1),"2",$A$7=1,"") ->  | I30: 496 | J30: 165 | K30: =_xlfn.IFS(Q30<>1,"",Q30=1,I30+(3*D30)) -> 703 | L30: =_xlfn.IFS(Q30<>1,"",COUNT($E$7:G30)<=hcpng,"",COUNT($E$7:G30)>=hcpng,K30) -> 703 | M30: =_xlfn.IFS(Q30=1,SUM($E$7:G30),Q30<>1,"") -> 9261 | N30: =_xlfn.IFS(Q30=1,COUNT($E$7:G30),Q30<>1,"") -> 60 | O30: =IF(Q30=1,ROUND(AVERAGE($E$7:G30),2),"") -> 154.35 | P30: =_xlfn.IFS(Q30<>1,"",SUM($Q$7:Q30)=1,1,SUM($Q$7:Q30)<>1,"") ->  | Q30: 1 | S30: =_xlfn.IFS(E30=$X$5,E30,F30=$X$5,F30,G30=$X$5,G30,$A$7=1,"") ->  | U30: =_xlfn.IFS(W30=$X$6,W30,X30=$X$6,X30,Y30=$X$6,Y30,$A$7=1,"") ->  | W30: =_xlfn.IFS(AND(Q30=1,COUNT($E$7:G30)>hcpng),E30+D30,$A$7=1," ") -> 216 | X30: =_xlfn.IFS(AND(Q30=1,COUNT($E$7:G30)>hcpng),F30+D30,$A$7=1," ") -> 257 | Y30: =_xlfn.IFS(AND(Q30=1,COUNT($E$7:G30)>hcpng),G30+D30,$A$7=1," ") -> 230 | Z30: 24 | AA30: =_xlfn.IFS(COUNTIFS(H30,"#",H29,"#"),A29,COUNTIFS(H30,2,H29,"#"),A29,$A$7=1,"") -> 
A31: 25 | B31: 2024-03-06 | C31: =_xlfn.IFS(Q31<>1,"",AND($B$4>=1,COUNT($E$7:G31)<=bkng),$B$4,P31=1,TRUNC(AVERAGE(E31:G31),0),COUNT($Q$7:Q31)=2,TRUNC(AVERAGE($E$7:G30),0),COUNT($Q$7:Q31)>=3,TRUNC(AVERAGE($E$7:G30),0)) -> 154 | D31: =_xlfn.IFS(Q31<>1,"",Q31=1,TRUNC((HCPB-C31)*HCPPC)) -> 68 | E31: 134 | F31: 187 | G31: 149 | H31: =_xlfn.IFS(COUNT(E31:G31)<1,"",AND(E31>C31,F31>C31,G31>C31,COUNT($E$7:G31)>sixng),"#",AND(E31>C30,F31>C30,G31>C30,COUNT($E$7:G31)>sixng,COUNTIF(H30,"#")=1),"2",$A$7=1,"") ->  | I31: 470 | J31: 156 | K31: =_xlfn.IFS(Q31<>1,"",Q31=1,I31+(3*D31)) -> 674 | L31: =_xlfn.IFS(Q31<>1,"",COUNT($E$7:G31)<=hcpng,"",COUNT($E$7:G31)>=hcpng,K31) -> 674 | M31: =_xlfn.IFS(Q31=1,SUM($E$7:G31),Q31<>1,"") -> 9731 | N31: =_xlfn.IFS(Q31=1,COUNT($E$7:G31),Q31<>1,"") -> 63 | O31: =IF(Q31=1,ROUND(AVERAGE($E$7:G31),2),"") -> 154.46 | P31: =_xlfn.IFS(Q31<>1,"",SUM($Q$7:Q31)=1,1,SUM($Q$7:Q31)<>1,"") ->  | Q31: 1 | S31: =_xlfn.IFS(E31=$X$5,E31,F31=$X$5,F31,G31=$X$5,G31,$A$7=1,"") ->  | U31: =_xlfn.IFS(W31=$X$6,W31,X31=$X$6,X31,Y31=$X$6,Y31,$A$7=1,"") ->  | W31: =_xlfn.IFS(AND(Q31=1,COUNT($E$7:G31)>hcpng),E31+D31,$A$7=1," ") -> 202 | X31: =_xlfn.IFS(AND(Q31=1,COUNT($E$7:G31)>hcpng),F31+D31,$A$7=1," ") -> 255 | Y31: =_xlfn.IFS(AND(Q31=1,COUNT($E$7:G31)>hcpng),G31+D31,$A$7=1," ") -> 217 | Z31: 25 | AA31: =_xlfn.IFS(COUNTIFS(H31,"#",H30,"#"),A30,COUNTIFS(H31,2,H30,"#"),A30,$A$7=1,"") -> 
A32: 26 | B32: 2024-03-13 | C32: =_xlfn.IFS(Q32<>1,"",AND($B$4>=1,COUNT($E$7:G32)<=bkng),$B$4,P32=1,TRUNC(AVERAGE(E32:G32),0),COUNT($Q$7:Q32)=2,TRUNC(AVERAGE($E$7:G31),0),COUNT($Q$7:Q32)>=3,TRUNC(AVERAGE($E$7:G31),0)) ->  | D32: =_xlfn.IFS(Q32<>1,"",Q32=1,TRUNC((HCPB-C32)*HCPPC)) ->  | H32: =_xlfn.IFS(COUNT(E32:G32)<1,"",AND(E32>C32,F32>C32,G32>C32,COUNT($E$7:G32)>sixng),"#",AND(E32>C31,F32>C31,G32>C31,COUNT($E$7:G32)>sixng,COUNTIF(H31,"#")=1),"2",$A$7=1,"") ->  | K32: =_xlfn.IFS(Q32<>1,"",Q32=1,I32+(3*D32)) ->  | L32: =_xlfn.IFS(Q32<>1,"",COUNT($E$7:G32)<=hcpng,"",COUNT($E$7:G32)>=hcpng,K32) ->  | M32: =_xlfn.IFS(Q32=1,SUM($E$7:G32),Q32<>1,"") ->  | N32: =_xlfn.IFS(Q32=1,COUNT($E$7:G32),Q32<>1,"") ->  | O32: =IF(Q32=1,ROUND(AVERAGE($E$7:G32),2),"") ->  | P32: =_xlfn.IFS(Q32<>1,"",SUM($Q$7:Q32)=1,1,SUM($Q$7:Q32)<>1,"") ->  | S32: =_xlfn.IFS(E32=$X$5,E32,F32=$X$5,F32,G32=$X$5,G32,$A$7=1,"") ->  | U32: =_xlfn.IFS(W32=$X$6,W32,X32=$X$6,X32,Y32=$X$6,Y32,$A$7=1,"") ->  | W32: =_xlfn.IFS(AND(Q32=1,COUNT($E$7:G32)>hcpng),E32+D32,$A$7=1," ") ->  | X32: =_xlfn.IFS(AND(Q32=1,COUNT($E$7:G32)>hcpng),F32+D32,$A$7=1," ") ->  | Y32: =_xlfn.IFS(AND(Q32=1,COUNT($E$7:G32)>hcpng),G32+D32,$A$7=1," ") ->  | Z32: 0 | AA32: =_xlfn.IFS(COUNTIFS(H32,"#",H31,"#"),A31,COUNTIFS(H32,2,H31,"#"),A31,$A$7=1,"") -> 
A33: 27 | B33: 2024-03-20 | C33: =_xlfn.IFS(Q33<>1,"",AND($B$4>=1,COUNT($E$7:G33)<=bkng),$B$4,P33=1,TRUNC(AVERAGE(E33:G33),0),COUNT($Q$7:Q33)=2,TRUNC(AVERAGE($E$7:G32),0),COUNT($Q$7:Q33)>=3,TRUNC(AVERAGE($E$7:G32),0)) ->  | D33: =_xlfn.IFS(Q33<>1,"",Q33=1,TRUNC((HCPB-C33)*HCPPC)) ->  | H33: =_xlfn.IFS(COUNT(E33:G33)<1,"",AND(E33>C33,F33>C33,G33>C33,COUNT($E$7:G33)>sixng),"#",AND(E33>C32,F33>C32,G33>C32,COUNT($E$7:G33)>sixng,COUNTIF(H32,"#")=1),"2",$A$7=1,"") ->  | K33: =_xlfn.IFS(Q33<>1,"",Q33=1,I33+(3*D33)) ->  | L33: =_xlfn.IFS(Q33<>1,"",COUNT($E$7:G33)<=hcpng,"",COUNT($E$7:G33)>=hcpng,K33) ->  | M33: =_xlfn.IFS(Q33=1,SUM($E$7:G33),Q33<>1,"") ->  | N33: =_xlfn.IFS(Q33=1,COUNT($E$7:G33),Q33<>1,"") ->  | O33: =IF(Q33=1,ROUND(AVERAGE($E$7:G33),2),"") ->  | P33: =_xlfn.IFS(Q33<>1,"",SUM($Q$7:Q33)=1,1,SUM($Q$7:Q33)<>1,"") ->  | S33: =_xlfn.IFS(E33=$X$5,E33,F33=$X$5,F33,G33=$X$5,G33,$A$7=1,"") ->  | U33: =_xlfn.IFS(W33=$X$6,W33,X33=$X$6,X33,Y33=$X$6,Y33,$A$7=1,"") ->  | W33: =_xlfn.IFS(AND(Q33=1,COUNT($E$7:G33)>hcpng),E33+D33,$A$7=1," ") ->  | X33: =_xlfn.IFS(AND(Q33=1,COUNT($E$7:G33)>hcpng),F33+D33,$A$7=1," ") ->  | Y33: =_xlfn.IFS(AND(Q33=1,COUNT($E$7:G33)>hcpng),G33+D33,$A$7=1," ") ->  | Z33: 0 | AA33: =_xlfn.IFS(COUNTIFS(H33,"#",H32,"#"),A32,COUNTIFS(H33,2,H32,"#"),A32,$A$7=1,"") -> 
A34: 28 | B34: 2024-03-27 | C34: =_xlfn.IFS(Q34<>1,"",AND($B$4>=1,COUNT($E$7:G34)<=bkng),$B$4,P34=1,TRUNC(AVERAGE(E34:G34),0),COUNT($Q$7:Q34)=2,TRUNC(AVERAGE($E$7:G33),0),COUNT($Q$7:Q34)>=3,TRUNC(AVERAGE($E$7:G33),0)) -> 154 | D34: =_xlfn.IFS(Q34<>1,"",Q34=1,TRUNC((HCPB-C34)*HCPPC)) -> 68 | E34: 178 | F34: 158 | G34: 216 | H34: =_xlfn.IFS(COUNT(E34:G34)<1,"",AND(E34>C34,F34>C34,G34>C34,COUNT($E$7:G34)>sixng),"#",AND(E34>C33,F34>C33,G34>C33,COUNT($E$7:G34)>sixng,COUNTIF(H33,"#")=1),"2",$A$7=1,"") -> # | I34: 552 | J34: 184 | K34: =_xlfn.IFS(Q34<>1,"",Q34=1,I34+(3*D34)) -> 756 | L34: =_xlfn.IFS(Q34<>1,"",COUNT($E$7:G34)<=hcpng,"",COUNT($E$7:G34)>=hcpng,K34) -> 756 | M34: =_xlfn.IFS(Q34=1,SUM($E$7:G34),Q34<>1,"") -> 10283 | N34: =_xlfn.IFS(Q34=1,COUNT($E$7:G34),Q34<>1,"") -> 66 | O34: =IF(Q34=1,ROUND(AVERAGE($E$7:G34),2),"") -> 155.8 | P34: =_xlfn.IFS(Q34<>1,"",SUM($Q$7:Q34)=1,1,SUM($Q$7:Q34)<>1,"") ->  | Q34: 1 | S34: =_xlfn.IFS(E34=$X$5,E34,F34=$X$5,F34,G34=$X$5,G34,$A$7=1,"") ->  | U34: =_xlfn.IFS(W34=$X$6,W34,X34=$X$6,X34,Y34=$X$6,Y34,$A$7=1,"") ->  | W34: =_xlfn.IFS(AND(Q34=1,COUNT($E$7:G34)>hcpng),E34+D34,$A$7=1," ") -> 246 | X34: =_xlfn.IFS(AND(Q34=1,COUNT($E$7:G34)>hcpng),F34+D34,$A$7=1," ") -> 226 | Y34: =_xlfn.IFS(AND(Q34=1,COUNT($E$7:G34)>hcpng),G34+D34,$A$7=1," ") -> 284 | Z34: 28 | AA34: =_xlfn.IFS(COUNTIFS(H34,"#",H33,"#"),A33,COUNTIFS(H34,2,H33,"#"),A33,$A$7=1,"") -> 
A35: 29 | B35: 2024-04-03 | C35: =_xlfn.IFS(Q35<>1,"",AND($B$4>=1,COUNT($E$7:G35)<=bkng),$B$4,P35=1,TRUNC(AVERAGE(E35:G35),0),COUNT($Q$7:Q35)=2,TRUNC(AVERAGE($E$7:G34),0),COUNT($Q$7:Q35)>=3,TRUNC(AVERAGE($E$7:G34),0)) -> 155 | D35: =_xlfn.IFS(Q35<>1,"",Q35=1,TRUNC((HCPB-C35)*HCPPC)) -> 67 | E35: 199 | F35: 142 | G35: 138 | H35: =_xlfn.IFS(COUNT(E35:G35)<1,"",AND(E35>C35,F35>C35,G35>C35,COUNT($E$7:G35)>sixng),"#",AND(E35>C34,F35>C34,G35>C34,COUNT($E$7:G35)>sixng,COUNTIF(H34,"#")=1),"2",$A$7=1,"") ->  | I35: 479 | J35: 159 | K35: =_xlfn.IFS(Q35<>1,"",Q35=1,I35+(3*D35)) -> 680 | L35: =_xlfn.IFS(Q35<>1,"",COUNT($E$7:G35)<=hcpng,"",COUNT($E$7:G35)>=hcpng,K35) -> 680 | M35: =_xlfn.IFS(Q35=1,SUM($E$7:G35),Q35<>1,"") -> 10762 | N35: =_xlfn.IFS(Q35=1,COUNT($E$7:G35),Q35<>1,"") -> 69 | O35: =IF(Q35=1,ROUND(AVERAGE($E$7:G35),2),"") -> 155.97 | P35: =_xlfn.IFS(Q35<>1,"",SUM($Q$7:Q35)=1,1,SUM($Q$7:Q35)<>1,"") ->  | Q35: 1 | S35: =_xlfn.IFS(E35=$X$5,E35,F35=$X$5,F35,G35=$X$5,G35,$A$7=1,"") ->  | U35: =_xlfn.IFS(W35=$X$6,W35,X35=$X$6,X35,Y35=$X$6,Y35,$A$7=1,"") ->  | W35: =_xlfn.IFS(AND(Q35=1,COUNT($E$7:G35)>hcpng),E35+D35,$A$7=1," ") -> 266 | X35: =_xlfn.IFS(AND(Q35=1,COUNT($E$7:G35)>hcpng),F35+D35,$A$7=1," ") -> 209 | Y35: =_xlfn.IFS(AND(Q35=1,COUNT($E$7:G35)>hcpng),G35+D35,$A$7=1," ") -> 205 | Z35: 29 | AA35: =_xlfn.IFS(COUNTIFS(H35,"#",H34,"#"),A34,COUNTIFS(H35,2,H34,"#"),A34,$A$7=1,"") -> 
A36: 30 | B36: 2024-04-10 | C36: =_xlfn.IFS(Q36<>1,"",AND($B$4>=1,COUNT($E$7:G36)<=bkng),$B$4,P36=1,TRUNC(AVERAGE(E36:G36),0),COUNT($Q$7:Q36)=2,TRUNC(AVERAGE($E$7:G35),0),COUNT($Q$7:Q36)>=3,TRUNC(AVERAGE($E$7:G35),0)) -> 155 | D36: =_xlfn.IFS(Q36<>1,"",Q36=1,TRUNC((HCPB-C36)*HCPPC)) -> 67 | E36: 146 | F36: 144 | G36: 147 | H36: =_xlfn.IFS(COUNT(E36:G36)<1,"",AND(E36>C36,F36>C36,G36>C36,COUNT($E$7:G36)>sixng),"#",AND(E36>C35,F36>C35,G36>C35,COUNT($E$7:G36)>sixng,COUNTIF(H35,"#")=1),"2",$A$7=1,"") ->  | I36: 437 | J36: 145 | K36: =_xlfn.IFS(Q36<>1,"",Q36=1,I36+(3*D36)) -> 638 | L36: =_xlfn.IFS(Q36<>1,"",COUNT($E$7:G36)<=hcpng,"",COUNT($E$7:G36)>=hcpng,K36) -> 638 | M36: =_xlfn.IFS(Q36=1,SUM($E$7:G36),Q36<>1,"") -> 11199 | N36: =_xlfn.IFS(Q36=1,COUNT($E$7:G36),Q36<>1,"") -> 72 | O36: =IF(Q36=1,ROUND(AVERAGE($E$7:G36),2),"") -> 155.54 | P36: =_xlfn.IFS(Q36<>1,"",SUM($Q$7:Q36)=1,1,SUM($Q$7:Q36)<>1,"") ->  | Q36: 1 | S36: =_xlfn.IFS(E36=$X$5,E36,F36=$X$5,F36,G36=$X$5,G36,$A$7=1,"") ->  | U36: =_xlfn.IFS(W36=$X$6,W36,X36=$X$6,X36,Y36=$X$6,Y36,$A$7=1,"") ->  | W36: =_xlfn.IFS(AND(Q36=1,COUNT($E$7:G36)>hcpng),E36+D36,$A$7=1," ") -> 213 | X36: =_xlfn.IFS(AND(Q36=1,COUNT($E$7:G36)>hcpng),F36+D36,$A$7=1," ") -> 211 | Y36: =_xlfn.IFS(AND(Q36=1,COUNT($E$7:G36)>hcpng),G36+D36,$A$7=1," ") -> 214 | Z36: 30 | AA36: =_xlfn.IFS(COUNTIFS(H36,"#",H35,"#"),A35,COUNTIFS(H36,2,H35,"#"),A35,$A$7=1,"") -> 
E37: =IF(COUNT(E7:E36)>=1,ROUND(SUM(E7:E36)/COUNT(E7:E36),2),"") -> 159.75 | F37: =IF(COUNT(F7:F36)>=1,ROUND(SUM(F7:F36)/COUNT(F7:F36),2),"") -> 144.75 | G37: =IF(COUNT(G7:G36)>=1,ROUND(SUM(G7:G36)/COUNT(G7:G36),2),"") -> 162.13
E39: CSCUSBC ACHIEVEMENT AWARDS 2023-2024
F40: (each award can be earned one time only)
E41: games | O41: series
C42: 125 | D42: 150 | E42: 175 | F42: 200 | G42: 225 | I42: 250 | J42: 275 | K42: 75og | M42: 300 | N42: 400 | O42: 500 | R42: 600 | S42: 700 | T42: 140os
A43: 1 | B43: =Date2 -> 2023-09-06 | C43: =_xlfn.IFS(COUNT($E$7:$G7)<=hcpma,"",AND(OR(AND($E7>=G125L,$E7<G125U),AND($F7>=G125L,$F7<G125U),AND($G7>=G125L,$G7<G125U)),$C7<=G125AL),"X",10<11,"") ->  | D43: =_xlfn.IFS(COUNT($E$7:$G7)<=hcpma,"",AND(OR(AND($E7>=G150L,$E7<G150U),AND($F7>=G150L,$F7<G150U),AND($G7>=G150L,$G7<G150U)),$C7<=G150AL),"X",10<11,"") ->  | E43: =_xlfn.IFS(COUNT($E$7:$G7)<=hcpma,"",AND(OR(AND($E7>=G175L,$E7<G175U),AND($F7>=G175L,$F7<G175U),AND($G7>=G175L,$G7<G175U)),$C7<=G175AL),"X",10<11,"") ->  | F43: =_xlfn.IFS(COUNT($E$7:$G7)<=hcpma,"",AND(OR(AND($E7>=G200L,$E7<G200U),AND($F7>=G200L,$F7<G200U),AND($G7>=G200L,$G7<G200U)),$C7<=G200AL),"X",10<11,"") ->  | G43: =_xlfn.IFS(COUNT($E$7:$G7)<=hcpma,"",AND(OR(AND($E7>=G225L,$E7<G225U),AND($F7>=G225L,$F7<G225U),AND($G7>=G225L,$G7<G225U)),$C7<=G225AL),"X",10<11,"") ->  | I43: =_xlfn.IFS(COUNT($E$7:$G7)<=hcpma,"",AND(OR(AND($E7>=G250L,$E7<G250U),AND($F7>=G250L,$F7<G250U),AND($G7>=G250L,$G7<G250U)),$C7<=G250AL),"X",10<11,"") ->  | J43: =_xlfn.IFS(COUNT($E$7:$G7)<=hcpma,"",AND(OR(AND($E7>=G275L,$E7<=G275U),AND($F7>=G275L,$F7<=G275U),AND($G7>=G275L,$G7<=G275U)),$C7<=G275AL),"X",10<11,"") ->  | K43: =_xlfn.IFS(COUNT(E7:G7)<=0,"",AND(COUNT($E$7:$G7)>=hcpma,OR(E7>=(C7+G75OV),F7>=(C7+G75OV),G7>=(C7+G75OV))),"X",10<11,"") ->  | M43: =_xlfn.IFS(COUNT($E$7:$G7)<=hcpma,"",AND( AND($I7>=S300L,$I7<S300U), $C7<=S300AL),"X",10<11,"") ->  | N43: =_xlfn.IFS(COUNT($E$7:$G7)<=hcpma,"",AND( AND($I7>=S400L,$I7<S400U), $C7<=S400AL),"X",10<11,"") ->  | O43: =_xlfn.IFS(COUNT($E$7:$G7)<=hcpma,"",AND( AND($I7>=S500L,$I7<S500U), $C7<=S500AL),"X",10<11,"") ->  | R43: =_xlfn.IFS(COUNT($E$7:$G7)<=hcpma,"",AND( AND($I7>=S600L,$I7<S600U), $C7<=S600AL),"X",10<11,"") ->  | S43: =_xlfn.IFS(COUNT($E$7:$G7)<=hcpma,"",AND( AND($I7>=S700L,$I7<S700U), $C7<=S700AL),"X",10<11,"") ->  | T43: =_xlfn.IFS(COUNT($E$7:$G7)<=hcpma,"",SUM($E7:$G7)<1,"",$I7>=3*$C7+S140ov,"X",10<11,"") -> 
A44: 2 | B44: 2023-09-13 | C44: =_xlfn.IFS(COUNT($E$7:$G8)<=hcpma,"",AND(OR(AND($E8>=G125L,$E8<G125U),AND($F8>=G125L,$F8<G125U),AND($G8>=G125L,$G8<G125U)),$C8<=G125AL),"X",10<11,"") ->  | D44: =_xlfn.IFS(COUNT($E$7:$G8)<=hcpma,"",AND(OR(AND($E8>=G150L,$E8<G150U),AND($F8>=G150L,$F8<G150U),AND($G8>=G150L,$G8<G150U)),$C8<=G150AL),"X",10<11,"") ->  | E44: =_xlfn.IFS(COUNT($E$7:$G8)<=hcpma,"",AND(OR(AND($E8>=G175L,$E8<G175U),AND($F8>=G175L,$F8<G175U),AND($G8>=G175L,$G8<G175U)),$C8<=G175AL),"X",10<11,"") ->  | F44: =_xlfn.IFS(COUNT($E$7:$G8)<=hcpma,"",AND(OR(AND($E8>=G200L,$E8<G200U),AND($F8>=G200L,$F8<G200U),AND($G8>=G200L,$G8<G200U)),$C8<=G200AL),"X",10<11,"") ->  | G44: =_xlfn.IFS(COUNT($E$7:$G8)<=hcpma,"",AND(OR(AND($E8>=G225L,$E8<G225U),AND($F8>=G225L,$F8<G225U),AND($G8>=G225L,$G8<G225U)),$C8<=G225AL),"X",10<11,"") ->  | I44: =_xlfn.IFS(COUNT($E$7:$G8)<=hcpma,"",AND(OR(AND($E8>=G250L,$E8<G250U),AND($F8>=G250L,$F8<G250U),AND($G8>=G250L,$G8<G250U)),$C8<=G250AL),"X",10<11,"") ->  | J44: =_xlfn.IFS(COUNT($E$7:$G8)<=hcpma,"",AND(OR(AND($E8>=G275L,$E8<=G275U),AND($F8>=G275L,$F8<=G275U),AND($G8>=G275L,$G8<=G275U)),$C8<=G275AL),"X",10<11,"") ->  | K44: =_xlfn.IFS(COUNT(E8:G8)<=0,"",AND(COUNT($E$7:$G8)>=hcpma,OR(E8>=(C8+G75OV),F8>=(C8+G75OV),G8>=(C8+G75OV))),"X",10<11,"") ->  | M44: =_xlfn.IFS(COUNT($E$7:$G8)<=hcpma,"",AND( AND($I8>=S300L,$I8<S300U), $C8<=S300AL),"X",10<11,"") ->  | N44: =_xlfn.IFS(COUNT($E$7:$G8)<=hcpma,"",AND( AND($I8>=S400L,$I8<S400U), $C8<=S400AL),"X",10<11,"") ->  | O44: =_xlfn.IFS(COUNT($E$7:$G8)<=hcpma,"",AND( AND($I8>=S500L,$I8<S500U), $C8<=S500AL),"X",10<11,"") ->  | R44: =_xlfn.IFS(COUNT($E$7:$G8)<=hcpma,"",AND( AND($I8>=S600L,$I8<S600U), $C8<=S600AL),"X",10<11,"") ->  | S44: =_xlfn.IFS(COUNT($E$7:$G8)<=hcpma,"",AND( AND($I8>=S700L,$I8<S700U), $C8<=S700AL),"X",10<11,"") ->  | T44: =_xlfn.IFS(COUNT($E$7:$G8)<=hcpma,"",SUM($E8:$G8)<1,"",$I8>=3*$C8+S140ov,"X",10<11,"") -> 
A45: 3 | B45: 2023-09-20 | C45: =_xlfn.IFS(COUNT($E$7:$G9)<=hcpma,"",AND(OR(AND($E9>=G125L,$E9<G125U),AND($F9>=G125L,$F9<G125U),AND($G9>=G125L,$G9<G125U)),$C9<=G125AL),"X",10<11,"") ->  | D45: =_xlfn.IFS(COUNT($E$7:$G9)<=hcpma,"",AND(OR(AND($E9>=G150L,$E9<G150U),AND($F9>=G150L,$F9<G150U),AND($G9>=G150L,$G9<G150U)),$C9<=G150AL),"X",10<11,"") ->  | E45: =_xlfn.IFS(COUNT($E$7:$G9)<=hcpma,"",AND(OR(AND($E9>=G175L,$E9<G175U),AND($F9>=G175L,$F9<G175U),AND($G9>=G175L,$G9<G175U)),$C9<=G175AL),"X",10<11,"") ->  | F45: =_xlfn.IFS(COUNT($E$7:$G9)<=hcpma,"",AND(OR(AND($E9>=G200L,$E9<G200U),AND($F9>=G200L,$F9<G200U),AND($G9>=G200L,$G9<G200U)),$C9<=G200AL),"X",10<11,"") ->  | G45: =_xlfn.IFS(COUNT($E$7:$G9)<=hcpma,"",AND(OR(AND($E9>=G225L,$E9<G225U),AND($F9>=G225L,$F9<G225U),AND($G9>=G225L,$G9<G225U)),$C9<=G225AL),"X",10<11,"") ->  | I45: =_xlfn.IFS(COUNT($E$7:$G9)<=hcpma,"",AND(OR(AND($E9>=G250L,$E9<G250U),AND($F9>=G250L,$F9<G250U),AND($G9>=G250L,$G9<G250U)),$C9<=G250AL),"X",10<11,"") ->  | J45: =_xlfn.IFS(COUNT($E$7:$G9)<=hcpma,"",AND(OR(AND($E9>=G275L,$E9<=G275U),AND($F9>=G275L,$F9<=G275U),AND($G9>=G275L,$G9<=G275U)),$C9<=G275AL),"X",10<11,"") ->  | K45: =_xlfn.IFS(COUNT(E9:G9)<=0,"",AND(COUNT($E$7:$G9)>=hcpma,OR(E9>=(C9+G75OV),F9>=(C9+G75OV),G9>=(C9+G75OV))),"X",10<11,"") ->  | M45: =_xlfn.IFS(COUNT($E$7:$G9)<=hcpma,"",AND( AND($I9>=S300L,$I9<S300U), $C9<=S300AL),"X",10<11,"") ->  | N45: =_xlfn.IFS(COUNT($E$7:$G9)<=hcpma,"",AND( AND($I9>=S400L,$I9<S400U), $C9<=S400AL),"X",10<11,"") ->  | O45: =_xlfn.IFS(COUNT($E$7:$G9)<=hcpma,"",AND( AND($I9>=S500L,$I9<S500U), $C9<=S500AL),"X",10<11,"") ->  | R45: =_xlfn.IFS(COUNT($E$7:$G9)<=hcpma,"",AND( AND($I9>=S600L,$I9<S600U), $C9<=S600AL),"X",10<11,"") ->  | S45: =_xlfn.IFS(COUNT($E$7:$G9)<=hcpma,"",AND( AND($I9>=S700L,$I9<S700U), $C9<=S700AL),"X",10<11,"") ->  | T45: =_xlfn.IFS(COUNT($E$7:$G9)<=hcpma,"",SUM($E9:$G9)<1,"",$I9>=3*$C9+S140ov,"X",10<11,"") -> 
A46: 4 | B46: 2023-09-27 | C46: =_xlfn.IFS(COUNT($E$7:$G10)<=hcpma,"",AND(OR(AND($E10>=G125L,$E10<G125U),AND($F10>=G125L,$F10<G125U),AND($G10>=G125L,$G10<G125U)),$C10<=G125AL),"X",10<11,"") ->  | D46: =_xlfn.IFS(COUNT($E$7:$G10)<=hcpma,"",AND(OR(AND($E10>=G150L,$E10<G150U),AND($F10>=G150L,$F10<G150U),AND($G10>=G150L,$G10<G150U)),$C10<=G150AL),"X",10<11,"") ->  | E46: =_xlfn.IFS(COUNT($E$7:$G10)<=hcpma,"",AND(OR(AND($E10>=G175L,$E10<G175U),AND($F10>=G175L,$F10<G175U),AND($G10>=G175L,$G10<G175U)),$C10<=G175AL),"X",10<11,"") ->  | F46: =_xlfn.IFS(COUNT($E$7:$G10)<=hcpma,"",AND(OR(AND($E10>=G200L,$E10<G200U),AND($F10>=G200L,$F10<G200U),AND($G10>=G200L,$G10<G200U)),$C10<=G200AL),"X",10<11,"") ->  | G46: =_xlfn.IFS(COUNT($E$7:$G10)<=hcpma,"",AND(OR(AND($E10>=G225L,$E10<G225U),AND($F10>=G225L,$F10<G225U),AND($G10>=G225L,$G10<G225U)),$C10<=G225AL),"X",10<11,"") ->  | I46: =_xlfn.IFS(COUNT($E$7:$G10)<=hcpma,"",AND(OR(AND($E10>=G250L,$E10<G250U),AND($F10>=G250L,$F10<G250U),AND($G10>=G250L,$G10<G250U)),$C10<=G250AL),"X",10<11,"") ->  | J46: =_xlfn.IFS(COUNT($E$7:$G10)<=hcpma,"",AND(OR(AND($E10>=G275L,$E10<=G275U),AND($F10>=G275L,$F10<=G275U),AND($G10>=G275L,$G10<=G275U)),$C10<=G275AL),"X",10<11,"") ->  | K46: =_xlfn.IFS(COUNT(E10:G10)<=0,"",AND(COUNT($E$7:$G10)>=hcpma,OR(E10>=(C10+G75OV),F10>=(C10+G75OV),G10>=(C10+G75OV))),"X",10<11,"") ->  | M46: =_xlfn.IFS(COUNT($E$7:$G10)<=hcpma,"",AND( AND($I10>=S300L,$I10<S300U), $C10<=S300AL),"X",10<11,"") ->  | N46: =_xlfn.IFS(COUNT($E$7:$G10)<=hcpma,"",AND( AND($I10>=S400L,$I10<S400U), $C10<=S400AL),"X",10<11,"") ->  | O46: =_xlfn.IFS(COUNT($E$7:$G10)<=hcpma,"",AND( AND($I10>=S500L,$I10<S500U), $C10<=S500AL),"X",10<11,"") ->  | R46: =_xlfn.IFS(COUNT($E$7:$G10)<=hcpma,"",AND( AND($I10>=S600L,$I10<S600U), $C10<=S600AL),"X",10<11,"") ->  | S46: =_xlfn.IFS(COUNT($E$7:$G10)<=hcpma,"",AND( AND($I10>=S700L,$I10<S700U), $C10<=S700AL),"X",10<11,"") ->  | T46: =_xlfn.IFS(COUNT($E$7:$G10)<=hcpma,"",SUM($E10:$G10)<1,"",$I10>=3*$C10+S140ov,"X",10<11,"") -> 
A47: 5 | B47: 2023-10-04 | C47: =_xlfn.IFS(COUNT($E$7:$G11)<=hcpma,"",AND(OR(AND($E11>=G125L,$E11<G125U),AND($F11>=G125L,$F11<G125U),AND($G11>=G125L,$G11<G125U)),$C11<=G125AL),"X",10<11,"") ->  | D47: =_xlfn.IFS(COUNT($E$7:$G11)<=hcpma,"",AND(OR(AND($E11>=G150L,$E11<G150U),AND($F11>=G150L,$F11<G150U),AND($G11>=G150L,$G11<G150U)),$C11<=G150AL),"X",10<11,"") ->  | E47: =_xlfn.IFS(COUNT($E$7:$G11)<=hcpma,"",AND(OR(AND($E11>=G175L,$E11<G175U),AND($F11>=G175L,$F11<G175U),AND($G11>=G175L,$G11<G175U)),$C11<=G175AL),"X",10<11,"") ->  | F47: =_xlfn.IFS(COUNT($E$7:$G11)<=hcpma,"",AND(OR(AND($E11>=G200L,$E11<G200U),AND($F11>=G200L,$F11<G200U),AND($G11>=G200L,$G11<G200U)),$C11<=G200AL),"X",10<11,"") ->  | G47: =_xlfn.IFS(COUNT($E$7:$G11)<=hcpma,"",AND(OR(AND($E11>=G225L,$E11<G225U),AND($F11>=G225L,$F11<G225U),AND($G11>=G225L,$G11<G225U)),$C11<=G225AL),"X",10<11,"") ->  | I47: =_xlfn.IFS(COUNT($E$7:$G11)<=hcpma,"",AND(OR(AND($E11>=G250L,$E11<G250U),AND($F11>=G250L,$F11<G250U),AND($G11>=G250L,$G11<G250U)),$C11<=G250AL),"X",10<11,"") ->  | J47: =_xlfn.IFS(COUNT($E$7:$G11)<=hcpma,"",AND(OR(AND($E11>=G275L,$E11<=G275U),AND($F11>=G275L,$F11<=G275U),AND($G11>=G275L,$G11<=G275U)),$C11<=G275AL),"X",10<11,"") ->  | K47: =_xlfn.IFS(COUNT(E11:G11)<=0,"",AND(COUNT($E$7:$G11)>=hcpma,OR(E11>=(C11+G75OV),F11>=(C11+G75OV),G11>=(C11+G75OV))),"X",10<11,"") ->  | M47: =_xlfn.IFS(COUNT($E$7:$G11)<=hcpma,"",AND( AND($I11>=S300L,$I11<S300U), $C11<=S300AL),"X",10<11,"") ->  | N47: =_xlfn.IFS(COUNT($E$7:$G11)<=hcpma,"",AND( AND($I11>=S400L,$I11<S400U), $C11<=S400AL),"X",10<11,"") ->  | O47: =_xlfn.IFS(COUNT($E$7:$G11)<=hcpma,"",AND( AND($I11>=S500L,$I11<S500U), $C11<=S500AL),"X",10<11,"") ->  | R47: =_xlfn.IFS(COUNT($E$7:$G11)<=hcpma,"",AND( AND($I11>=S600L,$I11<S600U), $C11<=S600AL),"X",10<11,"") ->  | S47: =_xlfn.IFS(COUNT($E$7:$G11)<=hcpma,"",AND( AND($I11>=S700L,$I11<S700U), $C11<=S700AL),"X",10<11,"") ->  | T47: =_xlfn.IFS(COUNT($E$7:$G11)<=hcpma,"",SUM($E11:$G11)<1,"",$I11>=3*$C11+S140ov,"X",10<11,"") -> 
A48: 6 | B48: 2023-10-11 | C48: =_xlfn.IFS(COUNT($E$7:$G12)<=hcpma,"",AND(OR(AND($E12>=G125L,$E12<G125U),AND($F12>=G125L,$F12<G125U),AND($G12>=G125L,$G12<G125U)),$C12<=G125AL),"X",10<11,"") ->  | D48: =_xlfn.IFS(COUNT($E$7:$G12)<=hcpma,"",AND(OR(AND($E12>=G150L,$E12<G150U),AND($F12>=G150L,$F12<G150U),AND($G12>=G150L,$G12<G150U)),$C12<=G150AL),"X",10<11,"") ->  | E48: =_xlfn.IFS(COUNT($E$7:$G12)<=hcpma,"",AND(OR(AND($E12>=G175L,$E12<G175U),AND($F12>=G175L,$F12<G175U),AND($G12>=G175L,$G12<G175U)),$C12<=G175AL),"X",10<11,"") ->  | F48: =_xlfn.IFS(COUNT($E$7:$G12)<=hcpma,"",AND(OR(AND($E12>=G200L,$E12<G200U),AND($F12>=G200L,$F12<G200U),AND($G12>=G200L,$G12<G200U)),$C12<=G200AL),"X",10<11,"") ->  | G48: =_xlfn.IFS(COUNT($E$7:$G12)<=hcpma,"",AND(OR(AND($E12>=G225L,$E12<G225U),AND($F12>=G225L,$F12<G225U),AND($G12>=G225L,$G12<G225U)),$C12<=G225AL),"X",10<11,"") ->  | I48: =_xlfn.IFS(COUNT($E$7:$G12)<=hcpma,"",AND(OR(AND($E12>=G250L,$E12<G250U),AND($F12>=G250L,$F12<G250U),AND($G12>=G250L,$G12<G250U)),$C12<=G250AL),"X",10<11,"") ->  | J48: =_xlfn.IFS(COUNT($E$7:$G12)<=hcpma,"",AND(OR(AND($E12>=G275L,$E12<=G275U),AND($F12>=G275L,$F12<=G275U),AND($G12>=G275L,$G12<=G275U)),$C12<=G275AL),"X",10<11,"") ->  | K48: =_xlfn.IFS(COUNT(E12:G12)<=0,"",AND(COUNT($E$7:$G12)>=hcpma,OR(E12>=(C12+G75OV),F12>=(C12+G75OV),G12>=(C12+G75OV))),"X",10<11,"") ->  | M48: =_xlfn.IFS(COUNT($E$7:$G12)<=hcpma,"",AND( AND($I12>=S300L,$I12<S300U), $C12<=S300AL),"X",10<11,"") ->  | N48: =_xlfn.IFS(COUNT($E$7:$G12)<=hcpma,"",AND( AND($I12>=S400L,$I12<S400U), $C12<=S400AL),"X",10<11,"") ->  | O48: =_xlfn.IFS(COUNT($E$7:$G12)<=hcpma,"",AND( AND($I12>=S500L,$I12<S500U), $C12<=S500AL),"X",10<11,"") ->  | R48: =_xlfn.IFS(COUNT($E$7:$G12)<=hcpma,"",AND( AND($I12>=S600L,$I12<S600U), $C12<=S600AL),"X",10<11,"") ->  | S48: =_xlfn.IFS(COUNT($E$7:$G12)<=hcpma,"",AND( AND($I12>=S700L,$I12<S700U), $C12<=S700AL),"X",10<11,"") ->  | T48: =_xlfn.IFS(COUNT($E$7:$G12)<=hcpma,"",SUM($E12:$G12)<1,"",$I12>=3*$C12+S140ov,"X",10<11,"") -> 
A49: 7 | B49: 2023-10-18 | C49: =_xlfn.IFS(COUNT($E$7:$G13)<=hcpma,"",AND(OR(AND($E13>=G125L,$E13<G125U),AND($F13>=G125L,$F13<G125U),AND($G13>=G125L,$G13<G125U)),$C13<=G125AL),"X",10<11,"") ->  | D49: =_xlfn.IFS(COUNT($E$7:$G13)<=hcpma,"",AND(OR(AND($E13>=G150L,$E13<G150U),AND($F13>=G150L,$F13<G150U),AND($G13>=G150L,$G13<G150U)),$C13<=G150AL),"X",10<11,"") ->  | E49: =_xlfn.IFS(COUNT($E$7:$G13)<=hcpma,"",AND(OR(AND($E13>=G175L,$E13<G175U),AND($F13>=G175L,$F13<G175U),AND($G13>=G175L,$G13<G175U)),$C13<=G175AL),"X",10<11,"") -> X | F49: =_xlfn.IFS(COUNT($E$7:$G13)<=hcpma,"",AND(OR(AND($E13>=G200L,$E13<G200U),AND($F13>=G200L,$F13<G200U),AND($G13>=G200L,$G13<G200U)),$C13<=G200AL),"X",10<11,"") ->  | G49: =_xlfn.IFS(COUNT($E$7:$G13)<=hcpma,"",AND(OR(AND($E13>=G225L,$E13<G225U),AND($F13>=G225L,$F13<G225U),AND($G13>=G225L,$G13<G225U)),$C13<=G225AL),"X",10<11,"") ->  | I49: =_xlfn.IFS(COUNT($E$7:$G13)<=hcpma,"",AND(OR(AND($E13>=G250L,$E13<G250U),AND($F13>=G250L,$F13<G250U),AND($G13>=G250L,$G13<G250U)),$C13<=G250AL),"X",10<11,"") ->  | J49: =_xlfn.IFS(COUNT($E$7:$G13)<=hcpma,"",AND(OR(AND($E13>=G275L,$E13<=G275U),AND($F13>=G275L,$F13<=G275U),AND($G13>=G275L,$G13<=G275U)),$C13<=G275AL),"X",10<11,"") ->  | K49: =_xlfn.IFS(COUNT(E13:G13)<=0,"",AND(COUNT($E$7:$G13)>=hcpma,OR(E13>=(C13+G75OV),F13>=(C13+G75OV),G13>=(C13+G75OV))),"X",10<11,"") ->  | M49: =_xlfn.IFS(COUNT($E$7:$G13)<=hcpma,"",AND( AND($I13>=S300L,$I13<S300U), $C13<=S300AL),"X",10<11,"") ->  | N49: =_xlfn.IFS(COUNT($E$7:$G13)<=hcpma,"",AND( AND($I13>=S400L,$I13<S400U), $C13<=S400AL),"X",10<11,"") ->  | O49: =_xlfn.IFS(COUNT($E$7:$G13)<=hcpma,"",AND( AND($I13>=S500L,$I13<S500U), $C13<=S500AL),"X",10<11,"") -> X | R49: =_xlfn.IFS(COUNT($E$7:$G13)<=hcpma,"",AND( AND($I13>=S600L,$I13<S600U), $C13<=S600AL),"X",10<11,"") ->  | S49: =_xlfn.IFS(COUNT($E$7:$G13)<=hcpma,"",AND( AND($I13>=S700L,$I13<S700U), $C13<=S700AL),"X",10<11,"") ->  | T49: =_xlfn.IFS(COUNT($E$7:$G13)<=hcpma,"",SUM($E13:$G13)<1,"",$I13>=3*$C13+S140ov,"X",10<11,"") -> X
A50: 8 | B50: 2023-10-25 | C50: =_xlfn.IFS(COUNT($E$7:$G14)<=hcpma,"",AND(OR(AND($E14>=G125L,$E14<G125U),AND($F14>=G125L,$F14<G125U),AND($G14>=G125L,$G14<G125U)),$C14<=G125AL),"X",10<11,"") ->  | D50: =_xlfn.IFS(COUNT($E$7:$G14)<=hcpma,"",AND(OR(AND($E14>=G150L,$E14<G150U),AND($F14>=G150L,$F14<G150U),AND($G14>=G150L,$G14<G150U)),$C14<=G150AL),"X",10<11,"") ->  | E50: =_xlfn.IFS(COUNT($E$7:$G14)<=hcpma,"",AND(OR(AND($E14>=G175L,$E14<G175U),AND($F14>=G175L,$F14<G175U),AND($G14>=G175L,$G14<G175U)),$C14<=G175AL),"X",10<11,"") ->  | F50: =_xlfn.IFS(COUNT($E$7:$G14)<=hcpma,"",AND(OR(AND($E14>=G200L,$E14<G200U),AND($F14>=G200L,$F14<G200U),AND($G14>=G200L,$G14<G200U)),$C14<=G200AL),"X",10<11,"") ->  | G50: =_xlfn.IFS(COUNT($E$7:$G14)<=hcpma,"",AND(OR(AND($E14>=G225L,$E14<G225U),AND($F14>=G225L,$F14<G225U),AND($G14>=G225L,$G14<G225U)),$C14<=G225AL),"X",10<11,"") ->  | I50: =_xlfn.IFS(COUNT($E$7:$G14)<=hcpma,"",AND(OR(AND($E14>=G250L,$E14<G250U),AND($F14>=G250L,$F14<G250U),AND($G14>=G250L,$G14<G250U)),$C14<=G250AL),"X",10<11,"") ->  | J50: =_xlfn.IFS(COUNT($E$7:$G14)<=hcpma,"",AND(OR(AND($E14>=G275L,$E14<=G275U),AND($F14>=G275L,$F14<=G275U),AND($G14>=G275L,$G14<=G275U)),$C14<=G275AL),"X",10<11,"") ->  | K50: =_xlfn.IFS(COUNT(E14:G14)<=0,"",AND(COUNT($E$7:$G14)>=hcpma,OR(E14>=(C14+G75OV),F14>=(C14+G75OV),G14>=(C14+G75OV))),"X",10<11,"") ->  | M50: =_xlfn.IFS(COUNT($E$7:$G14)<=hcpma,"",AND( AND($I14>=S300L,$I14<S300U), $C14<=S300AL),"X",10<11,"") ->  | N50: =_xlfn.IFS(COUNT($E$7:$G14)<=hcpma,"",AND( AND($I14>=S400L,$I14<S400U), $C14<=S400AL),"X",10<11,"") ->  | O50: =_xlfn.IFS(COUNT($E$7:$G14)<=hcpma,"",AND( AND($I14>=S500L,$I14<S500U), $C14<=S500AL),"X",10<11,"") ->  | R50: =_xlfn.IFS(COUNT($E$7:$G14)<=hcpma,"",AND( AND($I14>=S600L,$I14<S600U), $C14<=S600AL),"X",10<11,"") ->  | S50: =_xlfn.IFS(COUNT($E$7:$G14)<=hcpma,"",AND( AND($I14>=S700L,$I14<S700U), $C14<=S700AL),"X",10<11,"") ->  | T50: =_xlfn.IFS(COUNT($E$7:$G14)<=hcpma,"",SUM($E14:$G14)<1,"",$I14>=3*$C14+S140ov,"X",10<11,"") -> 
A51: 9 | B51: 2023-11-01 | C51: =_xlfn.IFS(COUNT($E$7:$G15)<=hcpma,"",AND(OR(AND($E15>=G125L,$E15<G125U),AND($F15>=G125L,$F15<G125U),AND($G15>=G125L,$G15<G125U)),$C15<=G125AL),"X",10<11,"") ->  | D51: =_xlfn.IFS(COUNT($E$7:$G15)<=hcpma,"",AND(OR(AND($E15>=G150L,$E15<G150U),AND($F15>=G150L,$F15<G150U),AND($G15>=G150L,$G15<G150U)),$C15<=G150AL),"X",10<11,"") ->  | E51: =_xlfn.IFS(COUNT($E$7:$G15)<=hcpma,"",AND(OR(AND($E15>=G175L,$E15<G175U),AND($F15>=G175L,$F15<G175U),AND($G15>=G175L,$G15<G175U)),$C15<=G175AL),"X",10<11,"") ->  | F51: =_xlfn.IFS(COUNT($E$7:$G15)<=hcpma,"",AND(OR(AND($E15>=G200L,$E15<G200U),AND($F15>=G200L,$F15<G200U),AND($G15>=G200L,$G15<G200U)),$C15<=G200AL),"X",10<11,"") ->  | G51: =_xlfn.IFS(COUNT($E$7:$G15)<=hcpma,"",AND(OR(AND($E15>=G225L,$E15<G225U),AND($F15>=G225L,$F15<G225U),AND($G15>=G225L,$G15<G225U)),$C15<=G225AL),"X",10<11,"") ->  | I51: =_xlfn.IFS(COUNT($E$7:$G15)<=hcpma,"",AND(OR(AND($E15>=G250L,$E15<G250U),AND($F15>=G250L,$F15<G250U),AND($G15>=G250L,$G15<G250U)),$C15<=G250AL),"X",10<11,"") ->  | J51: =_xlfn.IFS(COUNT($E$7:$G15)<=hcpma,"",AND(OR(AND($E15>=G275L,$E15<=G275U),AND($F15>=G275L,$F15<=G275U),AND($G15>=G275L,$G15<=G275U)),$C15<=G275AL),"X",10<11,"") ->  | K51: =_xlfn.IFS(COUNT(E15:G15)<=0,"",AND(COUNT($E$7:$G15)>=hcpma,OR(E15>=(C15+G75OV),F15>=(C15+G75OV),G15>=(C15+G75OV))),"X",10<11,"") ->  | M51: =_xlfn.IFS(COUNT($E$7:$G15)<=hcpma,"",AND( AND($I15>=S300L,$I15<S300U), $C15<=S300AL),"X",10<11,"") ->  | N51: =_xlfn.IFS(COUNT($E$7:$G15)<=hcpma,"",AND( AND($I15>=S400L,$I15<S400U), $C15<=S400AL),"X",10<11,"") ->  | O51: =_xlfn.IFS(COUNT($E$7:$G15)<=hcpma,"",AND( AND($I15>=S500L,$I15<S500U), $C15<=S500AL),"X",10<11,"") ->  | R51: =_xlfn.IFS(COUNT($E$7:$G15)<=hcpma,"",AND( AND($I15>=S600L,$I15<S600U), $C15<=S600AL),"X",10<11,"") ->  | S51: =_xlfn.IFS(COUNT($E$7:$G15)<=hcpma,"",AND( AND($I15>=S700L,$I15<S700U), $C15<=S700AL),"X",10<11,"") ->  | T51: =_xlfn.IFS(COUNT($E$7:$G15)<=hcpma,"",SUM($E15:$G15)<1,"",$I15>=3*$C15+S140ov,"X",10<11,"") -> 
A52: 10 | B52: 2023-11-08 | C52: =_xlfn.IFS(COUNT($E$7:$G16)<=hcpma,"",AND(OR(AND($E16>=G125L,$E16<G125U),AND($F16>=G125L,$F16<G125U),AND($G16>=G125L,$G16<G125U)),$C16<=G125AL),"X",10<11,"") ->  | D52: =_xlfn.IFS(COUNT($E$7:$G16)<=hcpma,"",AND(OR(AND($E16>=G150L,$E16<G150U),AND($F16>=G150L,$F16<G150U),AND($G16>=G150L,$G16<G150U)),$C16<=G150AL),"X",10<11,"") ->  | E52: =_xlfn.IFS(COUNT($E$7:$G16)<=hcpma,"",AND(OR(AND($E16>=G175L,$E16<G175U),AND($F16>=G175L,$F16<G175U),AND($G16>=G175L,$G16<G175U)),$C16<=G175AL),"X",10<11,"") ->  | F52: =_xlfn.IFS(COUNT($E$7:$G16)<=hcpma,"",AND(OR(AND($E16>=G200L,$E16<G200U),AND($F16>=G200L,$F16<G200U),AND($G16>=G200L,$G16<G200U)),$C16<=G200AL),"X",10<11,"") -> X | G52: =_xlfn.IFS(COUNT($E$7:$G16)<=hcpma,"",AND(OR(AND($E16>=G225L,$E16<G225U),AND($F16>=G225L,$F16<G225U),AND($G16>=G225L,$G16<G225U)),$C16<=G225AL),"X",10<11,"") ->  | I52: =_xlfn.IFS(COUNT($E$7:$G16)<=hcpma,"",AND(OR(AND($E16>=G250L,$E16<G250U),AND($F16>=G250L,$F16<G250U),AND($G16>=G250L,$G16<G250U)),$C16<=G250AL),"X",10<11,"") ->  | J52: =_xlfn.IFS(COUNT($E$7:$G16)<=hcpma,"",AND(OR(AND($E16>=G275L,$E16<=G275U),AND($F16>=G275L,$F16<=G275U),AND($G16>=G275L,$G16<=G275U)),$C16<=G275AL),"X",10<11,"") ->  | K52: =_xlfn.IFS(COUNT(E16:G16)<=0,"",AND(COUNT($E$7:$G16)>=hcpma,OR(E16>=(C16+G75OV),F16>=(C16+G75OV),G16>=(C16+G75OV))),"X",10<11,"") ->  | M52: =_xlfn.IFS(COUNT($E$7:$G16)<=hcpma,"",AND( AND($I16>=S300L,$I16<S300U), $C16<=S300AL),"X",10<11,"") ->  | N52: =_xlfn.IFS(COUNT($E$7:$G16)<=hcpma,"",AND( AND($I16>=S400L,$I16<S400U), $C16<=S400AL),"X",10<11,"") ->  | O52: =_xlfn.IFS(COUNT($E$7:$G16)<=hcpma,"",AND( AND($I16>=S500L,$I16<S500U), $C16<=S500AL),"X",10<11,"") -> X | R52: =_xlfn.IFS(COUNT($E$7:$G16)<=hcpma,"",AND( AND($I16>=S600L,$I16<S600U), $C16<=S600AL),"X",10<11,"") ->  | S52: =_xlfn.IFS(COUNT($E$7:$G16)<=hcpma,"",AND( AND($I16>=S700L,$I16<S700U), $C16<=S700AL),"X",10<11,"") ->  | T52: =_xlfn.IFS(COUNT($E$7:$G16)<=hcpma,"",SUM($E16:$G16)<1,"",$I16>=3*$C16+S140ov,"X",10<11,"") -> 
A53: 11 | B53: 2023-11-15 | C53: =_xlfn.IFS(COUNT($E$7:$G17)<=hcpma,"",AND(OR(AND($E17>=G125L,$E17<G125U),AND($F17>=G125L,$F17<G125U),AND($G17>=G125L,$G17<G125U)),$C17<=G125AL),"X",10<11,"") ->  | D53: =_xlfn.IFS(COUNT($E$7:$G17)<=hcpma,"",AND(OR(AND($E17>=G150L,$E17<G150U),AND($F17>=G150L,$F17<G150U),AND($G17>=G150L,$G17<G150U)),$C17<=G150AL),"X",10<11,"") ->  | E53: =_xlfn.IFS(COUNT($E$7:$G17)<=hcpma,"",AND(OR(AND($E17>=G175L,$E17<G175U),AND($F17>=G175L,$F17<G175U),AND($G17>=G175L,$G17<G175U)),$C17<=G175AL),"X",10<11,"") ->  | F53: =_xlfn.IFS(COUNT($E$7:$G17)<=hcpma,"",AND(OR(AND($E17>=G200L,$E17<G200U),AND($F17>=G200L,$F17<G200U),AND($G17>=G200L,$G17<G200U)),$C17<=G200AL),"X",10<11,"") ->  | G53: =_xlfn.IFS(COUNT($E$7:$G17)<=hcpma,"",AND(OR(AND($E17>=G225L,$E17<G225U),AND($F17>=G225L,$F17<G225U),AND($G17>=G225L,$G17<G225U)),$C17<=G225AL),"X",10<11,"") ->  | I53: =_xlfn.IFS(COUNT($E$7:$G17)<=hcpma,"",AND(OR(AND($E17>=G250L,$E17<G250U),AND($F17>=G250L,$F17<G250U),AND($G17>=G250L,$G17<G250U)),$C17<=G250AL),"X",10<11,"") ->  | J53: =_xlfn.IFS(COUNT($E$7:$G17)<=hcpma,"",AND(OR(AND($E17>=G275L,$E17<=G275U),AND($F17>=G275L,$F17<=G275U),AND($G17>=G275L,$G17<=G275U)),$C17<=G275AL),"X",10<11,"") ->  | K53: =_xlfn.IFS(COUNT(E17:G17)<=0,"",AND(COUNT($E$7:$G17)>=hcpma,OR(E17>=(C17+G75OV),F17>=(C17+G75OV),G17>=(C17+G75OV))),"X",10<11,"") ->  | M53: =_xlfn.IFS(COUNT($E$7:$G17)<=hcpma,"",AND( AND($I17>=S300L,$I17<S300U), $C17<=S300AL),"X",10<11,"") ->  | N53: =_xlfn.IFS(COUNT($E$7:$G17)<=hcpma,"",AND( AND($I17>=S400L,$I17<S400U), $C17<=S400AL),"X",10<11,"") ->  | O53: =_xlfn.IFS(COUNT($E$7:$G17)<=hcpma,"",AND( AND($I17>=S500L,$I17<S500U), $C17<=S500AL),"X",10<11,"") ->  | R53: =_xlfn.IFS(COUNT($E$7:$G17)<=hcpma,"",AND( AND($I17>=S600L,$I17<S600U), $C17<=S600AL),"X",10<11,"") ->  | S53: =_xlfn.IFS(COUNT($E$7:$G17)<=hcpma,"",AND( AND($I17>=S700L,$I17<S700U), $C17<=S700AL),"X",10<11,"") ->  | T53: =_xlfn.IFS(COUNT($E$7:$G17)<=hcpma,"",SUM($E17:$G17)<1,"",$I17>=3*$C17+S140ov,"X",10<11,"") -> 
A54: 12 | B54: 2023-11-29 | C54: =_xlfn.IFS(COUNT($E$7:$G18)<=hcpma,"",AND(OR(AND($E18>=G125L,$E18<G125U),AND($F18>=G125L,$F18<G125U),AND($G18>=G125L,$G18<G125U)),$C18<=G125AL),"X",10<11,"") ->  | D54: =_xlfn.IFS(COUNT($E$7:$G18)<=hcpma,"",AND(OR(AND($E18>=G150L,$E18<G150U),AND($F18>=G150L,$F18<G150U),AND($G18>=G150L,$G18<G150U)),$C18<=G150AL),"X",10<11,"") ->  | E54: =_xlfn.IFS(COUNT($E$7:$G18)<=hcpma,"",AND(OR(AND($E18>=G175L,$E18<G175U),AND($F18>=G175L,$F18<G175U),AND($G18>=G175L,$G18<G175U)),$C18<=G175AL),"X",10<11,"") ->  | F54: =_xlfn.IFS(COUNT($E$7:$G18)<=hcpma,"",AND(OR(AND($E18>=G200L,$E18<G200U),AND($F18>=G200L,$F18<G200U),AND($G18>=G200L,$G18<G200U)),$C18<=G200AL),"X",10<11,"") -> X | G54: =_xlfn.IFS(COUNT($E$7:$G18)<=hcpma,"",AND(OR(AND($E18>=G225L,$E18<G225U),AND($F18>=G225L,$F18<G225U),AND($G18>=G225L,$G18<G225U)),$C18<=G225AL),"X",10<11,"") ->  | I54: =_xlfn.IFS(COUNT($E$7:$G18)<=hcpma,"",AND(OR(AND($E18>=G250L,$E18<G250U),AND($F18>=G250L,$F18<G250U),AND($G18>=G250L,$G18<G250U)),$C18<=G250AL),"X",10<11,"") ->  | J54: =_xlfn.IFS(COUNT($E$7:$G18)<=hcpma,"",AND(OR(AND($E18>=G275L,$E18<=G275U),AND($F18>=G275L,$F18<=G275U),AND($G18>=G275L,$G18<=G275U)),$C18<=G275AL),"X",10<11,"") ->  | K54: =_xlfn.IFS(COUNT(E18:G18)<=0,"",AND(COUNT($E$7:$G18)>=hcpma,OR(E18>=(C18+G75OV),F18>=(C18+G75OV),G18>=(C18+G75OV))),"X",10<11,"") ->  | M54: =_xlfn.IFS(COUNT($E$7:$G18)<=hcpma,"",AND( AND($I18>=S300L,$I18<S300U), $C18<=S300AL),"X",10<11,"") ->  | N54: =_xlfn.IFS(COUNT($E$7:$G18)<=hcpma,"",AND( AND($I18>=S400L,$I18<S400U), $C18<=S400AL),"X",10<11,"") ->  | O54: =_xlfn.IFS(COUNT($E$7:$G18)<=hcpma,"",AND( AND($I18>=S500L,$I18<S500U), $C18<=S500AL),"X",10<11,"") ->  | R54: =_xlfn.IFS(COUNT($E$7:$G18)<=hcpma,"",AND( AND($I18>=S600L,$I18<S600U), $C18<=S600AL),"X",10<11,"") ->  | S54: =_xlfn.IFS(COUNT($E$7:$G18)<=hcpma,"",AND( AND($I18>=S700L,$I18<S700U), $C18<=S700AL),"X",10<11,"") ->  | T54: =_xlfn.IFS(COUNT($E$7:$G18)<=hcpma,"",SUM($E18:$G18)<1,"",$I18>=3*$C18+S140ov,"X",10<11,"") -> 
A55: 13 | B55: 2023-12-06 | C55: =_xlfn.IFS(COUNT($E$7:$G19)<=hcpma,"",AND(OR(AND($E19>=G125L,$E19<G125U),AND($F19>=G125L,$F19<G125U),AND($G19>=G125L,$G19<G125U)),$C19<=G125AL),"X",10<11,"") ->  | D55: =_xlfn.IFS(COUNT($E$7:$G19)<=hcpma,"",AND(OR(AND($E19>=G150L,$E19<G150U),AND($F19>=G150L,$F19<G150U),AND($G19>=G150L,$G19<G150U)),$C19<=G150AL),"X",10<11,"") ->  | E55: =_xlfn.IFS(COUNT($E$7:$G19)<=hcpma,"",AND(OR(AND($E19>=G175L,$E19<G175U),AND($F19>=G175L,$F19<G175U),AND($G19>=G175L,$G19<G175U)),$C19<=G175AL),"X",10<11,"") ->  | F55: =_xlfn.IFS(COUNT($E$7:$G19)<=hcpma,"",AND(OR(AND($E19>=G200L,$E19<G200U),AND($F19>=G200L,$F19<G200U),AND($G19>=G200L,$G19<G200U)),$C19<=G200AL),"X",10<11,"") ->  | G55: =_xlfn.IFS(COUNT($E$7:$G19)<=hcpma,"",AND(OR(AND($E19>=G225L,$E19<G225U),AND($F19>=G225L,$F19<G225U),AND($G19>=G225L,$G19<G225U)),$C19<=G225AL),"X",10<11,"") ->  | I55: =_xlfn.IFS(COUNT($E$7:$G19)<=hcpma,"",AND(OR(AND($E19>=G250L,$E19<G250U),AND($F19>=G250L,$F19<G250U),AND($G19>=G250L,$G19<G250U)),$C19<=G250AL),"X",10<11,"") ->  | J55: =_xlfn.IFS(COUNT($E$7:$G19)<=hcpma,"",AND(OR(AND($E19>=G275L,$E19<=G275U),AND($F19>=G275L,$F19<=G275U),AND($G19>=G275L,$G19<=G275U)),$C19<=G275AL),"X",10<11,"") ->  | K55: =_xlfn.IFS(COUNT(E19:G19)<=0,"",AND(COUNT($E$7:$G19)>=hcpma,OR(E19>=(C19+G75OV),F19>=(C19+G75OV),G19>=(C19+G75OV))),"X",10<11,"") ->  | M55: =_xlfn.IFS(COUNT($E$7:$G19)<=hcpma,"",AND( AND($I19>=S300L,$I19<S300U), $C19<=S300AL),"X",10<11,"") ->  | N55: =_xlfn.IFS(COUNT($E$7:$G19)<=hcpma,"",AND( AND($I19>=S400L,$I19<S400U), $C19<=S400AL),"X",10<11,"") ->  | O55: =_xlfn.IFS(COUNT($E$7:$G19)<=hcpma,"",AND( AND($I19>=S500L,$I19<S500U), $C19<=S500AL),"X",10<11,"") ->  | R55: =_xlfn.IFS(COUNT($E$7:$G19)<=hcpma,"",AND( AND($I19>=S600L,$I19<S600U), $C19<=S600AL),"X",10<11,"") ->  | S55: =_xlfn.IFS(COUNT($E$7:$G19)<=hcpma,"",AND( AND($I19>=S700L,$I19<S700U), $C19<=S700AL),"X",10<11,"") ->  | T55: =_xlfn.IFS(COUNT($E$7:$G19)<=hcpma,"",SUM($E19:$G19)<1,"",$I19>=3*$C19+S140ov,"X",10<11,"") -> 
